Workbook

Sheet Real 2022
A1: INGRESA TU CAPITAL INICIAL | D1: 15000
A3: Pullback o Rebotes | AO3: 26000
A4: Fecha Compra | B4: Broker | C4: Ticker | D4: Strike/Tipo | E4: Op | F4: Compra Contratos | G4: Qty | H4: Total Pos | I4: Stop | J4: Target | K4: Estrategia | L4: Sector | M4: Year | N4: Mes | O4: Fecha Venta | P4: Venta | Q4: Op2 | R4: Prof/Loss | S4: % | T4: Rel G/P | U4: G/P Bruta | V4: Comision | W4: Fee | X4: G/P Neta | Y4: Observaciones | Z4: X | AA4: Cantidad | AB4: Gan/Per | AC4: Saldo | AD4: G/P | AE4: Fecha | AF4: día | AG4: Mes3 | AH4: Día Corrob | AI4: Mes Corrob | AJ4: Año Corrob | AK4: Fecha Corrob | AL4: Texto fecha | AM4: Periodo | AN4: Graficar Día | AO4: Budget Inicial/ Aportación | AP4: Acumulado | AQ4: Perdidas | AR4: Ganadas | AS4: TOTAL GP NETA SUB | AT4: TOTAL APRT INICIAL | AU4: Num Semana | AV4: Num Sem Extrae | AW4: Semana actual | AX4: Trimestre
A5: 2022-02-24T09:30:01 | B5: TWS | C5: AAL | D5: 4 de marzo Strike 17 | E5: put | F5: 0.45 | G5: 100 | H5: =IF(Base_Inversiones[[#This Row],[Graficar Día]]="ok",F5*G5,"") -> 45 | I5: 0.01 | J5: 2 | K5: Ichimoku PUT | L5: Industrials | M5: 2022 | N5: 2 | O5: 2022-02-24T09:30:01 | P5: 1.54 | Q5: swing | R5: =IF(Base_Inversiones[[#This Row],[Graficar Día]]="ok",P5-F5,"") -> 1.09 | S5: =IFERROR(R5/F5,"") -> 2.422222222 | T5: =IFERROR(IF(S5<0,S5/40,S5/20),"") -> 0.1211111111 | U5: =IF(Base_Inversiones[[#This Row],[Graficar Día]]="ok",IF(P5="",0,R5*G5-IF(B5="C",(10+0.15*2*G5/100),(0.5*2*G5/100))),"") -> 108 | X5: =IF(Base_Inversiones[[#This Row],[Graficar Día]]="ok",IF(P5="",0,U5-V5-W5),"") -> 108 | Y5: Rebote Martes | AA5: 5 | AB5: =U5 -> 108 | AC5: =IF(Base_Inversiones[[#This Row],[Graficar Día]]="ok",SUM(AB$5:AB5),"") -> 108 | AD5: =IF(Base_Inversiones[[#This Row],[Graficar Día]]="ok",(IF(S5>0,"G","P")),"") -> G | AE5: =LEFT(A5,10) -> 44616.3958 | AF5: =TEXT(AE5,"dddd") -> jueves | AG5: =TEXT(AE5,"mmmm") -> febrero | AH5: =IF(Base_Inversiones[[#This Row],[Graficar Día]]="ok",DAY(A5),"") -> 24 | AI5: =IF(Base_Inversiones[[#This Row],[Graficar Día]]="ok",MONTH(A5),"") -> 2 | AJ5: =IF(Base_Inversiones[[#This Row],[Graficar Día]]="ok",YEAR(A5),"") -> 2022 | AK5: =IF(Base_Inversiones[[#This Row],[Graficar Día]]="ok",IF(LEN(AH5)=1,"0"&AH5,AH5)&"/"&IF(LEN(AI5)=1,"0"&AI5,AI5)&"/"&AJ5,"") -> 24/02/2022 | AL5: =TEXT(Base_Inversiones[[#This Row],[Fecha Corrob]],"DD/MM/AAAA") -> 24/02/2022 | AM5: =IF(Base_Inversiones[[#This Row],[Graficar Día]]="ok",VLOOKUP(Base_Inversiones[[#This Row],[Texto fecha]],Administración!$B$2:$C$1432,2,0),"") -> P55 | AN5: =IF(Base_Inversiones[[#This Row],[Qty]]>0,"ok","no") -> ok | AO5: =IF(Base_Inversiones[[#This Row],[Graficar Día]]="ok",$D$1,"") -> 15000 | AP5: =IF(Base_Inversiones[[#This Row],[Graficar Día]]="ok",Base_Inversiones[[#This Row],[Budget Inicial/ Aportación]]+Base_Inversiones[[#This Row],[Saldo]],"") -> 15108 | AQ5: =IF(AD5="P",1,"") ->  | AR5: =IF(AD5="G",1,"") -> 1 | AS5: =IF(Base_Inversiones[[#This Row],[Graficar Día]]="ok",SUM(Base_Inversiones[G/P Neta]),"") -> 108 | AT5: =IF(Base_Inversiones[[#This Row],[Graficar Día]]="ok",$D$1,"") -> 15000 | AU5: =IF(Base_Inversiones[[#This Row],[Graficar Día]]="ok",WEEKNUM(Base_Inversiones[[#This Row],[Fecha Compra]]),"") -> 9 | AV5: =IF(Base_Inversiones[[#This Row],[Graficar Día]]="ok",WEEKNUM(DATE(YEAR(Base_Inversiones[[#This Row],[Fecha Compra]]),MONTH(Base_Inversiones[[#This Row],[Fecha Compra]]),1))-1,"") -> 5 | AW5: =IF(Base_Inversiones[[#This Row],[Graficar Día]]="ok",Base_Inversiones[[#This Row],[Num Semana]]-Base_Inversiones[[#This Row],[Num Sem Extrae]],"") -> 4 | AX5: =IF(Base_Inversiones[[#This Row],[Graficar Día]]="ok",IFERROR(VLOOKUP(Base_Inversiones[[#This Row],[Mes Corrob]],Administración!$L$4:$M$15,2,0),""),"") -> Q1
A6: 2022-02-28T09:46:20 | B6: TWS | C6: BP | D6: 4 de marzo strike 28 | E6: PUT | F6: 0.54 | G6: 100 | H6: =IF(Base_Inversiones[[#This Row],[Graficar Día]]="ok",F6*G6,"") -> 54 | I6: 0.01 | J6: 2 | K6: Ichimoku PUT | L6: Energy | M6: 2022 | N6: 2 | O6: 2022-03-02T09:30:45 | P6: 0.1 | Q6: swing | R6: =IF(Base_Inversiones[[#This Row],[Graficar Día]]="ok",P6-F6,"") -> -0.44 | S6: -0.8148148148 | T6: =IFERROR(IF(S6<0,S6/40,S6/20),"") -> -0.02037037037 | U6: =IF(Base_Inversiones[[#This Row],[Graficar Día]]="ok",IF(P6="",0,R6*G6-IF(B6="C",(10+0.15*2*G6/100),(0.5*2*G6/100))),"") -> -45 | X6: =IF(Base_Inversiones[[#This Row],[Graficar Día]]="ok",IF(P6="",0,U6-V6-W6),"") -> -45 | Y6: Romp S PM + Pullback + Retro MA 200 | AA6: 5 | AB6: -45 | AC6: =IF(Base_Inversiones[[#This Row],[Graficar Día]]="ok",SUM(AB$5:AB6),"") -> 63 | AD6: =IF(Base_Inversiones[[#This Row],[Graficar Día]]="ok",(IF(S6>0,"G","P")),"") -> P | AE6: 44620.4071 | AF6: lunes | AG6: febrero | AH6: =IF(Base_Inversiones[[#This Row],[Graficar Día]]="ok",DAY(A6),"") -> 28 | AI6: =IF(Base_Inversiones[[#This Row],[Graficar Día]]="ok",MONTH(A6),"") -> 2 | AJ6: =IF(Base_Inversiones[[#This Row],[Graficar Día]]="ok",YEAR(A6),"") -> 2022 | AK6: =IF(Base_Inversiones[[#This Row],[Graficar Día]]="ok",IF(LEN(AH6)=1,"0"&AH6,AH6)&"/"&IF(LEN(AI6)=1,"0"&AI6,AI6)&"/"&AJ6,"") -> 28/02/2022 | AL6: =TEXT(Base_Inversiones[[#This Row],[Fecha Corrob]],"DD/MM/AAAA") -> 28/02/2022 | AM6: =IF(Base_Inversiones[[#This Row],[Graficar Día]]="ok",VLOOKUP(Base_Inversiones[[#This Row],[Texto fecha]],Administración!$B$2:$C$1432,2,0),"") -> P59 | AN6: =IF(Base_Inversiones[[#This Row],[Qty]]>0,"ok","no") -> ok | AO6: =IF(Base_Inversiones[[#This Row],[Graficar Día]]="ok",$D$1,"") -> 15000 | AP6: =IF(Base_Inversiones[[#This Row],[Graficar Día]]="ok",Base_Inversiones[[#This Row],[Budget Inicial/ Aportación]]+Base_Inversiones[[#This Row],[Saldo]],"") -> 15063 | AQ6: =IF(AD6="P",1,"") -> 1 | AR6: =IF(AD6="G",1,"") ->  | AS6: =IF(Base_Inversiones[[#This Row],[Graficar Día]]="ok",SUM(Base_Inversiones[G/P Neta]),"") -> 108 | AT6: =IF(Base_Inversiones[[#This Row],[Graficar Día]]="ok",$D$1,"") -> 15000 | AU6: =IF(Base_Inversiones[[#This Row],[Graficar Día]]="ok",WEEKNUM(Base_Inversiones[[#This Row],[Fecha Compra]]),"") -> 10 | AV6: =IF(Base_Inversiones[[#This Row],[Graficar Día]]="ok",WEEKNUM(DATE(YEAR(Base_Inversiones[[#This Row],[Fecha Compra]]),MONTH(Base_Inversiones[[#This Row],[Fecha Compra]]),1))-1,"") -> 5 | AW6: =IF(Base_Inversiones[[#This Row],[Graficar Día]]="ok",Base_Inversiones[[#This Row],[Num Semana]]-Base_Inversiones[[#This Row],[Num Sem Extrae]],"") -> 5 | AX6: =IF(Base_Inversiones[[#This Row],[Graficar Día]]="ok",IFERROR(VLOOKUP(Base_Inversiones[[#This Row],[Mes Corrob]],Administración!$L$4:$M$15,2,0),""),"") -> Q1
A7: 2022-03-01T09:44:25 | B7: TWS | C7: AAL | D7: 4 de Marzo Strike 16,5 | E7: PUT | F7: 0.46 | G7: 100 | H7: =IF(Base_Inversiones[[#This Row],[Graficar Día]]="ok",F7*G7,"") -> 46 | I7: 0.01 | J7: 2 | K7: Rup. Del bajo anterior | L7: Industrials | M7: 2022 | N7: 2 | O7: 2022-03-04T09:30:10 | P7: 1.44 | Q7: swing | R7: =IF(Base_Inversiones[[#This Row],[Graficar Día]]="ok",P7-F7,"") -> 0.98 | S7: 2.130434783 | T7: 0.1065217391 | U7: =IF(Base_Inversiones[[#This Row],[Graficar Día]]="ok",IF(P7="",0,R7*G7-IF(B7="C",(10+0.15*2*G7/100),(0.5*2*G7/100))),"") -> 97 | X7: =IF(Base_Inversiones[[#This Row],[Graficar Día]]="ok",IF(P7="",0,U7-V7-W7),"") -> 97 | Y7: Romp LOY + Pullback | AA7: 5 | AB7: 97 | AC7: =IF(Base_Inversiones[[#This Row],[Graficar Día]]="ok",SUM(AB$5:AB7),"") -> 160 | AD7: =IF(Base_Inversiones[[#This Row],[Graficar Día]]="ok",(IF(S7>0,"G","P")),"") -> G | AE7: 44621.4058 | AF7: martes | AG7: marzo | AH7: =IF(Base_Inversiones[[#This Row],[Graficar Día]]="ok",DAY(A7),"") -> 1 | AI7: =IF(Base_Inversiones[[#This Row],[Graficar Día]]="ok",MONTH(A7),"") -> 3 | AJ7: =IF(Base_Inversiones[[#This Row],[Graficar Día]]="ok",YEAR(A7),"") -> 2022 | AK7: =IF(Base_Inversiones[[#This Row],[Graficar Día]]="ok",IF(LEN(AH7)=1,"0"&AH7,AH7)&"/"&IF(LEN(AI7)=1,"0"&AI7,AI7)&"/"&AJ7,"") -> 01/03/2022 | AL7: =TEXT(Base_Inversiones[[#This Row],[Fecha Corrob]],"DD/MM/AAAA") -> 01/03/2022 | AM7: =IF(Base_Inversiones[[#This Row],[Graficar Día]]="ok",VLOOKUP(Base_Inversiones[[#This Row],[Texto fecha]],Administración!$B$2:$C$1432,2,0),"") -> P60 | AN7: =IF(Base_Inversiones[[#This Row],[Qty]]>0,"ok","no") -> ok | AO7: =IF(Base_Inversiones[[#This Row],[Graficar Día]]="ok",$D$1,"") -> 15000 | AP7: =IF(Base_Inversiones[[#This Row],[Graficar Día]]="ok",Base_Inversiones[[#This Row],[Budget Inicial/ Aportación]]+Base_Inversiones[[#This Row],[Saldo]],"") -> 15160 | AR7: 1 | AS7: =IF(Base_Inversiones[[#This Row],[Graficar Día]]="ok",SUM(Base_Inversiones[G/P Neta]),"") -> 108 | AT7: =IF(Base_Inversiones[[#This Row],[Graficar Día]]="ok",$D$1,"") -> 15000 | AU7: =IF(Base_Inversiones[[#This Row],[Graficar Día]]="ok",WEEKNUM(Base_Inversiones[[#This Row],[Fecha Compra]]),"") -> 10 | AV7: =IF(Base_Inversiones[[#This Row],[Graficar Día]]="ok",WEEKNUM(DATE(YEAR(Base_Inversiones[[#This Row],[Fecha Compra]]),MONTH(Base_Inversiones[[#This Row],[Fecha Compra]]),1))-1,"") -> 9 | AW7: =IF(Base_Inversiones[[#This Row],[Graficar Día]]="ok",Base_Inversiones[[#This Row],[Num Semana]]-Base_Inversiones[[#This Row],[Num Sem Extrae]],"") -> 1 | AX7: =IF(Base_Inversiones[[#This Row],[Graficar Día]]="ok",IFERROR(VLOOKUP(Base_Inversiones[[#This Row],[Mes Corrob]],Administración!$L$4:$M$15,2,0),""),"") -> Q1
A8: 3/03/2022 10:14:03 | B8: TWS | C8: DKNG | D8: 18 de Marzo Strike 20 | E8: PUT | F8: 0.77 | G8: 100 | H8: =IF(Base_Inversiones[[#This Row],[Graficar Día]]="ok",F8*G8,"") -> 77 | I8: 0.01 | J8: 2 | K8: Ichimoku + JH | L8: Consumer Cyclical | M8: 2022 | N8: 2 | O8: 2022-03-07T12:20:00 | P8: 2.35 | Q8: swing | R8: =IF(Base_Inversiones[[#This Row],[Graficar Día]]="ok",P8-F8,"") -> 1.58 | S8: 2.051948052 | T8: 0.1025974026 | U8: =IF(Base_Inversiones[[#This Row],[Graficar Día]]="ok",IF(P8="",0,R8*G8-IF(B8="C",(10+0.15*2*G8/100),(0.5*2*G8/100))),"") -> 157 | X8: =IF(Base_Inversiones[[#This Row],[Graficar Día]]="ok",IF(P8="",0,U8-V8-W8),"") -> 157 | Y8: Romp HOY + Romp EMA 8 + Pullback | AA8: 5 | AB8: 157 | AC8: =IF(Base_Inversiones[[#This Row],[Graficar Día]]="ok",SUM(AB$5:AB8),"") -> 317 | AD8: =IF(Base_Inversiones[[#This Row],[Graficar Día]]="ok",(IF(S8>0,"G","P")),"") -> G | AE8: 3/03/2022 | AF8: jueves | AG8: marzo | AH8: =IF(Base_Inversiones[[#This Row],[Graficar Día]]="ok",DAY(A8),"") ->  | AI8: =IF(Base_Inversiones[[#This Row],[Graficar Día]]="ok",MONTH(A8),"") ->  | AJ8: =IF(Base_Inversiones[[#This Row],[Graficar Día]]="ok",YEAR(A8),"") ->  | AK8: =IF(Base_Inversiones[[#This Row],[Graficar Día]]="ok",IF(LEN(AH8)=1,"0"&AH8,AH8)&"/"&IF(LEN(AI8)=1,"0"&AI8,AI8)&"/"&AJ8,"") ->  | AL8: =TEXT(Base_Inversiones[[#This Row],[Fecha Corrob]],"DD/MM/AAAA") ->  | AM8: =IF(Base_Inversiones[[#This Row],[Graficar Día]]="ok",VLOOKUP(Base_Inversiones[[#This Row],[Texto fecha]],Administración!$B$2:$C$1432,2,0),"") ->  | AN8: =IF(Base_Inversiones[[#This Row],[Qty]]>0,"ok","no") -> ok | AO8: =IF(Base_Inversiones[[#This Row],[Graficar Día]]="ok",$D$1,"") -> 15000 | AP8: =IF(Base_Inversiones[[#This Row],[Graficar Día]]="ok",Base_Inversiones[[#This Row],[Budget Inicial/ Aportación]]+Base_Inversiones[[#This Row],[Saldo]],"") -> 15317 | AR8: 1 | AS8: =IF(Base_Inversiones[[#This Row],[Graficar Día]]="ok",SUM(Base_Inversiones[G/P Neta]),"") -> 108 | AT8: =IF(Base_Inversiones[[#This Row],[Graficar Día]]="ok",$D$1,"") -> 15000 | AU8: =IF(Base_Inversiones[[#This Row],[Graficar Día]]="ok",WEEKNUM(Base_Inversiones[[#This Row],[Fecha Compra]]),"") ->  | AV8: =IF(Base_Inversiones[[#This Row],[Graficar Día]]="ok",WEEKNUM(DATE(YEAR(Base_Inversiones[[#This Row],[Fecha Compra]]),MONTH(Base_Inversiones[[#This Row],[Fecha Compra]]),1))-1,"") ->  | AW8: =IF(Base_Inversiones[[#This Row],[Graficar Día]]="ok",Base_Inversiones[[#This Row],[Num Semana]]-Base_Inversiones[[#This Row],[Num Sem Extrae]],"") ->  | AX8: =IF(Base_Inversiones[[#This Row],[Graficar Día]]="ok",IFERROR(VLOOKUP(Base_Inversiones[[#This Row],[Mes Corrob]],Administración!$L$4:$M$15,2,0),""),"") -> 
A9: 4/03/2022 11:00:00 | B9: TWS | C9: SPY | D9: 18 de Marzo Strike 360 | E9: PUT | F9: 0.8 | G9: 100 | H9: =IF(Base_Inversiones[[#This Row],[Graficar Día]]="ok",F9*G9,"") -> 80 | I9: 0.01 | J9: 2 | K9: Ichimoku PUT | L9: ETF | M9: 2022 | N9: 2 | O9: 2022-03-17T08:30:00 | P9: 0.1 | Q9: swing | R9: =IF(Base_Inversiones[[#This Row],[Graficar Día]]="ok",P9-F9,"") -> -0.7 | S9: -0.875 | T9: -0.021875 | U9: =IF(Base_Inversiones[[#This Row],[Graficar Día]]="ok",IF(P9="",0,R9*G9-IF(B9="C",(10+0.15*2*G9/100),(0.5*2*G9/100))),"") -> -71 | X9: =IF(Base_Inversiones[[#This Row],[Graficar Día]]="ok",IF(P9="",0,U9-V9-W9),"") -> -71 | Y9: Rebote LOY | AA9: 5 | AB9: -71 | AC9: =IF(Base_Inversiones[[#This Row],[Graficar Día]]="ok",SUM(AB$5:AB9),"") -> 246 | AD9: =IF(Base_Inversiones[[#This Row],[Graficar Día]]="ok",(IF(S9>0,"G","P")),"") -> P | AE9: 4/03/2022 | AF9: viernes | AG9: marzo | AH9: =IF(Base_Inversiones[[#This Row],[Graficar Día]]="ok",DAY(A9),"") ->  | AI9: =IF(Base_Inversiones[[#This Row],[Graficar Día]]="ok",MONTH(A9),"") ->  | AJ9: =IF(Base_Inversiones[[#This Row],[Graficar Día]]="ok",YEAR(A9),"") ->  | AK9: =IF(Base_Inversiones[[#This Row],[Graficar Día]]="ok",IF(LEN(AH9)=1,"0"&AH9,AH9)&"/"&IF(LEN(AI9)=1,"0"&AI9,AI9)&"/"&AJ9,"") ->  | AL9: =TEXT(Base_Inversiones[[#This Row],[Fecha Corrob]],"DD/MM/AAAA") ->  | AM9: =IF(Base_Inversiones[[#This Row],[Graficar Día]]="ok",VLOOKUP(Base_Inversiones[[#This Row],[Texto fecha]],Administración!$B$2:$C$1432,2,0),"") ->  | AN9: =IF(Base_Inversiones[[#This Row],[Qty]]>0,"ok","no") -> ok | AO9: =IF(Base_Inversiones[[#This Row],[Graficar Día]]="ok",$D$1,"") -> 15000 | AP9: =IF(Base_Inversiones[[#This Row],[Graficar Día]]="ok",Base_Inversiones[[#This Row],[Budget Inicial/ Aportación]]+Base_Inversiones[[#This Row],[Saldo]],"") -> 15246 | AQ9: 1 | AS9: =IF(Base_Inversiones[[#This Row],[Graficar Día]]="ok",SUM(Base_Inversiones[G/P Neta]),"") -> 108 | AT9: =IF(Base_Inversiones[[#This Row],[Graficar Día]]="ok",$D$1,"") -> 15000 | AU9: =IF(Base_Inversiones[[#This Row],[Graficar Día]]="ok",WEEKNUM(Base_Inversiones[[#This Row],[Fecha Compra]]),"") ->  | AV9: =IF(Base_Inversiones[[#This Row],[Graficar Día]]="ok",WEEKNUM(DATE(YEAR(Base_Inversiones[[#This Row],[Fecha Compra]]),MONTH(Base_Inversiones[[#This Row],[Fecha Compra]]),1))-1,"") ->  | AW9: =IF(Base_Inversiones[[#This Row],[Graficar Día]]="ok",Base_Inversiones[[#This Row],[Num Semana]]-Base_Inversiones[[#This Row],[Num Sem Extrae]],"") ->  | AX9: =IF(Base_Inversiones[[#This Row],[Graficar Día]]="ok",IFERROR(VLOOKUP(Base_Inversiones[[#This Row],[Mes Corrob]],Administración!$L$4:$M$15,2,0),""),"") -> 
A10: 8/03/2022 10:05:11 | B10: TWS | C10: UAL | D10: 18 de Marzo Strike | E10: PUT | F10: 0.52 | G10: 100 | H10: =IF(Base_Inversiones[[#This Row],[Graficar Día]]="ok",F10*G10,"") -> 52 | I10: 0.01 | J10: 2 | K10: Rup. Del bajo anterior | L10: Industrials | M10: 2022 | N10: 2 | O10: 2022-03-16T09:00:00 | P10: 0.1 | Q10: swing | R10: =IF(Base_Inversiones[[#This Row],[Graficar Día]]="ok",P10-F10,"") -> -0.42 | S10: -0.8076923077 | T10: -0.02019230769 | U10: =IF(Base_Inversiones[[#This Row],[Graficar Día]]="ok",IF(P10="",0,R10*G10-IF(B10="C",(10+0.15*2*G10/100),(0.5*2*G10/100))),"") -> -43 | X10: =IF(Base_Inversiones[[#This Row],[Graficar Día]]="ok",IF(P10="",0,U10-V10-W10),"") -> -43 | Y10: Romp LOY + Pullback, no aplique mi estrategia al principio por lento al disparar y dudar y me hubieran dado target todas | AA10: 5 | AB10: -43 | AC10: =IF(Base_Inversiones[[#This Row],[Graficar Día]]="ok",SUM(AB$5:AB10),"") -> 203 | AD10: =IF(Base_Inversiones[[#This Row],[Graficar Día]]="ok",(IF(S10>0,"G","P")),"") -> P | AE10: 8/03/2022 | AF10: martes | AG10: marzo | AH10: =IF(Base_Inversiones[[#This Row],[Graficar Día]]="ok",DAY(A10),"") ->  | AI10: =IF(Base_Inversiones[[#This Row],[Graficar Día]]="ok",MONTH(A10),"") ->  | AJ10: =IF(Base_Inversiones[[#This Row],[Graficar Día]]="ok",YEAR(A10),"") ->  | AK10: =IF(Base_Inversiones[[#This Row],[Graficar Día]]="ok",IF(LEN(AH10)=1,"0"&AH10,AH10)&"/"&IF(LEN(AI10)=1,"0"&AI10,AI10)&"/"&AJ10,"") ->  | AL10: =TEXT(Base_Inversiones[[#This Row],[Fecha Corrob]],"DD/MM/AAAA") ->  | AM10: =IF(Base_Inversiones[[#This Row],[Graficar Día]]="ok",VLOOKUP(Base_Inversiones[[#This Row],[Texto fecha]],Administración!$B$2:$C$1432,2,0),"") ->  | AN10: =IF(Base_Inversiones[[#This Row],[Qty]]>0,"ok","no") -> ok | AO10: =IF(Base_Inversiones[[#This Row],[Graficar Día]]="ok",$D$1,"") -> 15000 | AP10: =IF(Base_Inversiones[[#This Row],[Graficar Día]]="ok",Base_Inversiones[[#This Row],[Budget Inicial/ Aportación]]+Base_Inversiones[[#This Row],[Saldo]],"") -> 15203 | AQ10: 1 | AS10: =IF(Base_Inversiones[[#This Row],[Graficar Día]]="ok",SUM(Base_Inversiones[G/P Neta]),"") -> 108 | AT10: =IF(Base_Inversiones[[#This Row],[Graficar Día]]="ok",$D$1,"") -> 15000 | AU10: =IF(Base_Inversiones[[#This Row],[Graficar Día]]="ok",WEEKNUM(Base_Inversiones[[#This Row],[Fecha Compra]]),"") ->  | AV10: =IF(Base_Inversiones[[#This Row],[Graficar Día]]="ok",WEEKNUM(DATE(YEAR(Base_Inversiones[[#This Row],[Fecha Compra]]),MONTH(Base_Inversiones[[#This Row],[Fecha Compra]]),1))-1,"") ->  | AW10: =IF(Base_Inversiones[[#This Row],[Graficar Día]]="ok",Base_Inversiones[[#This Row],[Num Semana]]-Base_Inversiones[[#This Row],[Num Sem Extrae]],"") ->  | AX10: =IF(Base_Inversiones[[#This Row],[Graficar Día]]="ok",IFERROR(VLOOKUP(Base_Inversiones[[#This Row],[Mes Corrob]],Administración!$L$4:$M$15,2,0),""),"") -> 
A11: 9/03/2022 11:00:32 | B11: TWS | C11: MOS | D11: 18 de Marzo Strike 63 | E11: CALL | F11: 0.62 | G11: 100 | H11: =IF(Base_Inversiones[[#This Row],[Graficar Día]]="ok",F11*G11,"") -> 62 | I11: 0.01 | J11: 2 | K11: Rup. De Compresión + Ichimoku | L11: Basic Materials | M11: 2022 | N11: 2 | O11: 2022-03-11T03:28:00 | P11: 2.03 | Q11: swing | R11: =IF(Base_Inversiones[[#This Row],[Graficar Día]]="ok",P11-F11,"") -> 1.41 | S11: 2.274193548 | T11: 0.1137096774 | U11: =IF(Base_Inversiones[[#This Row],[Graficar Día]]="ok",IF(P11="",0,R11*G11-IF(B11="C",(10+0.15*2*G11/100),(0.5*2*G11/100))),"") -> 140 | X11: =IF(Base_Inversiones[[#This Row],[Graficar Día]]="ok",IF(P11="",0,U11-V11-W11),"") -> 140 | Y11: Retroceso TT, no aplique mi estrategia al principio por lento al disparar y dudar y me hubieran dado target todas | AA11: 5 | AB11: 140 | AC11: =IF(Base_Inversiones[[#This Row],[Graficar Día]]="ok",SUM(AB$5:AB11),"") -> 343 | AD11: =IF(Base_Inversiones[[#This Row],[Graficar Día]]="ok",(IF(S11>0,"G","P")),"") -> G | AE11: 9/03/2022 | AF11: miércoles | AG11: marzo | AH11: =IF(Base_Inversiones[[#This Row],[Graficar Día]]="ok",DAY(A11),"") ->  | AI11: =IF(Base_Inversiones[[#This Row],[Graficar Día]]="ok",MONTH(A11),"") ->  | AJ11: =IF(Base_Inversiones[[#This Row],[Graficar Día]]="ok",YEAR(A11),"") ->  | AK11: =IF(Base_Inversiones[[#This Row],[Graficar Día]]="ok",IF(LEN(AH11)=1,"0"&AH11,AH11)&"/"&IF(LEN(AI11)=1,"0"&AI11,AI11)&"/"&AJ11,"") ->  | AL11: =TEXT(Base_Inversiones[[#This Row],[Fecha Corrob]],"DD/MM/AAAA") ->  | AM11: =IF(Base_Inversiones[[#This Row],[Graficar Día]]="ok",VLOOKUP(Base_Inversiones[[#This Row],[Texto fecha]],Administración!$B$2:$C$1432,2,0),"") ->  | AN11: =IF(Base_Inversiones[[#This Row],[Qty]]>0,"ok","no") -> ok | AO11: =IF(Base_Inversiones[[#This Row],[Graficar Día]]="ok",$D$1,"") -> 15000 | AP11: =IF(Base_Inversiones[[#This Row],[Graficar Día]]="ok",Base_Inversiones[[#This Row],[Budget Inicial/ Aportación]]+Base_Inversiones[[#This Row],[Saldo]],"") -> 15343 | AR11: 1 | AS11: =IF(Base_Inversiones[[#This Row],[Graficar Día]]="ok",SUM(Base_Inversiones[G/P Neta]),"") -> 108 | AT11: =IF(Base_Inversiones[[#This Row],[Graficar Día]]="ok",$D$1,"") -> 15000 | AU11: =IF(Base_Inversiones[[#This Row],[Graficar Día]]="ok",WEEKNUM(Base_Inversiones[[#This Row],[Fecha Compra]]),"") ->  | AV11: =IF(Base_Inversiones[[#This Row],[Graficar Día]]="ok",WEEKNUM(DATE(YEAR(Base_Inversiones[[#This Row],[Fecha Compra]]),MONTH(Base_Inversiones[[#This Row],[Fecha Compra]]),1))-1,"") ->  | AW11: =IF(Base_Inversiones[[#This Row],[Graficar Día]]="ok",Base_Inversiones[[#This Row],[Num Semana]]-Base_Inversiones[[#This Row],[Num Sem Extrae]],"") ->  | AX11: =IF(Base_Inversiones[[#This Row],[Graficar Día]]="ok",IFERROR(VLOOKUP(Base_Inversiones[[#This Row],[Mes Corrob]],Administración!$L$4:$M$15,2,0),""),"") -> 
A12: 2022-03-10T10:22:45 | B12: TWS | C12: ASAN | D12: 18 de MArzo Strike 30 | E12: PUT | F12: 0.3 | G12: 100 | H12: =IF(Base_Inversiones[[#This Row],[Graficar Día]]="ok",F12*G12,"") -> 30 | I12: 0.01 | J12: 2 | K12: EDDE | L12: Technology | M12: 2022 | N12: 2 | O12: 2022-03-18 | P12: 0.1 | Q12: swing | R12: =IF(Base_Inversiones[[#This Row],[Graficar Día]]="ok",P12-F12,"") -> -0.2 | S12: -0.6666666667 | T12: -0.01666666667 | U12: =IF(Base_Inversiones[[#This Row],[Graficar Día]]="ok",IF(P12="",0,R12*G12-IF(B12="C",(10+0.15*2*G12/100),(0.5*2*G12/100))),"") -> -21 | X12: =IF(Base_Inversiones[[#This Row],[Graficar Día]]="ok",IF(P12="",0,U12-V12-W12),"") -> -21 | Y12: Retroc R de PM | AA12: 5 | AB12: -21 | AC12: =IF(Base_Inversiones[[#This Row],[Graficar Día]]="ok",SUM(AB$5:AB12),"") -> 322 | AD12: =IF(Base_Inversiones[[#This Row],[Graficar Día]]="ok",(IF(S12>0,"G","P")),"") -> P | AE12: 44630.4324 | AF12: jueves | AG12: marzo | AH12: =IF(Base_Inversiones[[#This Row],[Graficar Día]]="ok",DAY(A12),"") -> 10 | AI12: =IF(Base_Inversiones[[#This Row],[Graficar Día]]="ok",MONTH(A12),"") -> 3 | AJ12: =IF(Base_Inversiones[[#This Row],[Graficar Día]]="ok",YEAR(A12),"") -> 2022 | AK12: =IF(Base_Inversiones[[#This Row],[Graficar Día]]="ok",IF(LEN(AH12)=1,"0"&AH12,AH12)&"/"&IF(LEN(AI12)=1,"0"&AI12,AI12)&"/"&AJ12,"") -> 10/03/2022 | AL12: =TEXT(Base_Inversiones[[#This Row],[Fecha Corrob]],"DD/MM/AAAA") -> 10/03/2022 | AM12: =IF(Base_Inversiones[[#This Row],[Graficar Día]]="ok",VLOOKUP(Base_Inversiones[[#This Row],[Texto fecha]],Administración!$B$2:$C$1432,2,0),"") -> P69 | AN12: =IF(Base_Inversiones[[#This Row],[Qty]]>0,"ok","no") -> ok | AO12: =IF(Base_Inversiones[[#This Row],[Graficar Día]]="ok",$D$1,"") -> 15000 | AP12: =IF(Base_Inversiones[[#This Row],[Graficar Día]]="ok",Base_Inversiones[[#This Row],[Budget Inicial/ Aportación]]+Base_Inversiones[[#This Row],[Saldo]],"") -> 15322 | AQ12: 1 | AS12: =IF(Base_Inversiones[[#This Row],[Graficar Día]]="ok",SUM(Base_Inversiones[G/P Neta]),"") -> 108 | AT12: =IF(Base_Inversiones[[#This Row],[Graficar Día]]="ok",$D$1,"") -> 15000 | AU12: =IF(Base_Inversiones[[#This Row],[Graficar Día]]="ok",WEEKNUM(Base_Inversiones[[#This Row],[Fecha Compra]]),"") -> 11 | AV12: =IF(Base_Inversiones[[#This Row],[Graficar Día]]="ok",WEEKNUM(DATE(YEAR(Base_Inversiones[[#This Row],[Fecha Compra]]),MONTH(Base_Inversiones[[#This Row],[Fecha Compra]]),1))-1,"") -> 9 | AW12: =IF(Base_Inversiones[[#This Row],[Graficar Día]]="ok",Base_Inversiones[[#This Row],[Num Semana]]-Base_Inversiones[[#This Row],[Num Sem Extrae]],"") -> 2 | AX12: =IF(Base_Inversiones[[#This Row],[Graficar Día]]="ok",IFERROR(VLOOKUP(Base_Inversiones[[#This Row],[Mes Corrob]],Administración!$L$4:$M$15,2,0),""),"") -> Q1
A13: 2022-03-11T12:00:00 | B13: TWS | C13: SPY | D13: 11 de Marzo Strike 430 | E13: PUT | F13: 0.6 | G13: 100 | H13: =IF(Base_Inversiones[[#This Row],[Graficar Día]]="ok",F13*G13,"") -> 60 | I13: 0.01 | J13: 2 | K13: Cábala STA | L13: ETF | M13: 2022 | N13: 2 | O13: 2022-03-10T01:30:00 | P13: 0.36 | Q13: swing | R13: =IF(Base_Inversiones[[#This Row],[Graficar Día]]="ok",P13-F13,"") -> -0.24 | S13: -0.4 | T13: -0.01 | U13: =IF(Base_Inversiones[[#This Row],[Graficar Día]]="ok",IF(P13="",0,R13*G13-IF(B13="C",(10+0.15*2*G13/100),(0.5*2*G13/100))),"") -> -25 | X13: =IF(Base_Inversiones[[#This Row],[Graficar Día]]="ok",IF(P13="",0,U13-V13-W13),"") -> -25 | Y13: Rebote Martes | AA13: 5 | AB13: -25 | AC13: =IF(Base_Inversiones[[#This Row],[Graficar Día]]="ok",SUM(AB$5:AB13),"") -> 297 | AD13: =IF(Base_Inversiones[[#This Row],[Graficar Día]]="ok",(IF(S13>0,"G","P")),"") -> P | AE13: 44631.5 | AF13: viernes | AG13: marzo | AH13: =IF(Base_Inversiones[[#This Row],[Graficar Día]]="ok",DAY(A13),"") -> 11 | AI13: =IF(Base_Inversiones[[#This Row],[Graficar Día]]="ok",MONTH(A13),"") -> 3 | AJ13: =IF(Base_Inversiones[[#This Row],[Graficar Día]]="ok",YEAR(A13),"") -> 2022 | AK13: =IF(Base_Inversiones[[#This Row],[Graficar Día]]="ok",IF(LEN(AH13)=1,"0"&AH13,AH13)&"/"&IF(LEN(AI13)=1,"0"&AI13,AI13)&"/"&AJ13,"") -> 11/03/2022 | AL13: =TEXT(Base_Inversiones[[#This Row],[Fecha Corrob]],"DD/MM/AAAA") -> 11/03/2022 | AM13: =IF(Base_Inversiones[[#This Row],[Graficar Día]]="ok",VLOOKUP(Base_Inversiones[[#This Row],[Texto fecha]],Administración!$B$2:$C$1432,2,0),"") -> P70 | AN13: =IF(Base_Inversiones[[#This Row],[Qty]]>0,"ok","no") -> ok | AO13: =IF(Base_Inversiones[[#This Row],[Graficar Día]]="ok",$D$1,"") -> 15000 | AP13: =IF(Base_Inversiones[[#This Row],[Graficar Día]]="ok",Base_Inversiones[[#This Row],[Budget Inicial/ Aportación]]+Base_Inversiones[[#This Row],[Saldo]],"") -> 15297 | AQ13: 1 | AS13: =IF(Base_Inversiones[[#This Row],[Graficar Día]]="ok",SUM(Base_Inversiones[G/P Neta]),"") -> 108 | AT13: =IF(Base_Inversiones[[#This Row],[Graficar Día]]="ok",$D$1,"") -> 15000 | AU13: =IF(Base_Inversiones[[#This Row],[Graficar Día]]="ok",WEEKNUM(Base_Inversiones[[#This Row],[Fecha Compra]]),"") -> 11 | AV13: =IF(Base_Inversiones[[#This Row],[Graficar Día]]="ok",WEEKNUM(DATE(YEAR(Base_Inversiones[[#This Row],[Fecha Compra]]),MONTH(Base_Inversiones[[#This Row],[Fecha Compra]]),1))-1,"") -> 9 | AW13: =IF(Base_Inversiones[[#This Row],[Graficar Día]]="ok",Base_Inversiones[[#This Row],[Num Semana]]-Base_Inversiones[[#This Row],[Num Sem Extrae]],"") -> 2 | AX13: =IF(Base_Inversiones[[#This Row],[Graficar Día]]="ok",IFERROR(VLOOKUP(Base_Inversiones[[#This Row],[Mes Corrob]],Administración!$L$4:$M$15,2,0),""),"") -> Q1
A14: 2022-03-11T10:00:00 | B14: TWS | C14: MAXR | D14: 18 de Marzo Strike 40 | E14: PUT | F14: 0.66 | G14: 200 | H14: =IF(Base_Inversiones[[#This Row],[Graficar Día]]="ok",F14*G14,"") -> 132 | I14: 0.01 | J14: 2 | K14: compresión | L14: Technology | M14: 2022 | N14: 2 | O14: 2022-03-18T10:00:00 | P14: 0.1 | Q14: swing | R14: =IF(Base_Inversiones[[#This Row],[Graficar Día]]="ok",P14-F14,"") -> -0.56 | S14: -0.8484848485 | T14: -0.02121212121 | U14: =IF(Base_Inversiones[[#This Row],[Graficar Día]]="ok",IF(P14="",0,R14*G14-IF(B14="C",(10+0.15*2*G14/100),(0.5*2*G14/100))),"") -> -114 | X14: =IF(Base_Inversiones[[#This Row],[Graficar Día]]="ok",IF(P14="",0,U14-V14-W14),"") -> -114 | Y14: Rebote TP, debo cumplir mi Plan si o si y poner la orden, porque cuando la dejo pasar, en operaciones posteriores decido mal por haber dejado pasar la oportunidad inicial | AA14: 5 | AB14: -114 | AC14: =IF(Base_Inversiones[[#This Row],[Graficar Día]]="ok",SUM(AB$5:AB14),"") -> 183 | AD14: =IF(Base_Inversiones[[#This Row],[Graficar Día]]="ok",(IF(S14>0,"G","P")),"") -> P | AE14: 44631.4166 | AF14: viernes | AG14: marzo | AH14: =IF(Base_Inversiones[[#This Row],[Graficar Día]]="ok",DAY(A14),"") -> 11 | AI14: =IF(Base_Inversiones[[#This Row],[Graficar Día]]="ok",MONTH(A14),"") -> 3 | AJ14: =IF(Base_Inversiones[[#This Row],[Graficar Día]]="ok",YEAR(A14),"") -> 2022 | AK14: =IF(Base_Inversiones[[#This Row],[Graficar Día]]="ok",IF(LEN(AH14)=1,"0"&AH14,AH14)&"/"&IF(LEN(AI14)=1,"0"&AI14,AI14)&"/"&AJ14,"") -> 11/03/2022 | AL14: =TEXT(Base_Inversiones[[#This Row],[Fecha Corrob]],"DD/MM/AAAA") -> 11/03/2022 | AM14: =IF(Base_Inversiones[[#This Row],[Graficar Día]]="ok",VLOOKUP(Base_Inversiones[[#This Row],[Texto fecha]],Administración!$B$2:$C$1432,2,0),"") -> P70 | AN14: =IF(Base_Inversiones[[#This Row],[Qty]]>0,"ok","no") -> ok | AO14: =IF(Base_Inversiones[[#This Row],[Graficar Día]]="ok",$D$1,"") -> 15000 | AP14: =IF(Base_Inversiones[[#This Row],[Graficar Día]]="ok",Base_Inversiones[[#This Row],[Budget Inicial/ Aportación]]+Base_Inversiones[[#This Row],[Saldo]],"") -> 15183 | AQ14: 1 | AS14: =IF(Base_Inversiones[[#This Row],[Graficar Día]]="ok",SUM(Base_Inversiones[G/P Neta]),"") -> 108 | AT14: =IF(Base_Inversiones[[#This Row],[Graficar Día]]="ok",$D$1,"") -> 15000 | AU14: =IF(Base_Inversiones[[#This Row],[Graficar Día]]="ok",WEEKNUM(Base_Inversiones[[#This Row],[Fecha Compra]]),"") -> 11 | AV14: =IF(Base_Inversiones[[#This Row],[Graficar Día]]="ok",WEEKNUM(DATE(YEAR(Base_Inversiones[[#This Row],[Fecha Compra]]),MONTH(Base_Inversiones[[#This Row],[Fecha Compra]]),1))-1,"") -> 9 | AW14: =IF(Base_Inversiones[[#This Row],[Graficar Día]]="ok",Base_Inversiones[[#This Row],[Num Semana]]-Base_Inversiones[[#This Row],[Num Sem Extrae]],"") -> 2 | AX14: =IF(Base_Inversiones[[#This Row],[Graficar Día]]="ok",IFERROR(VLOOKUP(Base_Inversiones[[#This Row],[Mes Corrob]],Administración!$L$4:$M$15,2,0),""),"") -> Q1
A15: 2022-03-14T08:55:00 | B15: TWS | C15: CVX | D15: 18 de Marzo Strike 180 | E15: PUT | F15: 0.46 | G15: 100 | H15: =IF(Base_Inversiones[[#This Row],[Graficar Día]]="ok",F15*G15,"") -> 46 | I15: 0.01 | J15: 2 | K15: Rup. Del bajo anterior | L15: Energy | M15: 2022 | N15: 2 | O15: 2022-03-14T09:15:00 | P15: 0.33 | Q15: swing | R15: =IF(Base_Inversiones[[#This Row],[Graficar Día]]="ok",P15-F15,"") -> -0.13 | S15: -0.2826086957 | T15: -0.007065217391 | U15: =IF(Base_Inversiones[[#This Row],[Graficar Día]]="ok",IF(P15="",0,R15*G15-IF(B15="C",(10+0.15*2*G15/100),(0.5*2*G15/100))),"") -> -14 | X15: =IF(Base_Inversiones[[#This Row],[Graficar Día]]="ok",IF(P15="",0,U15-V15-W15),"") -> -14 | Y15: Romp HOY + Pullback, debo cumplir mi Plan si o si y poner la orden, porque cuando la dejo pasar, en operaciones posteriores decido mal por haber dejado pasar la oportunidad inicial | AA15: 5 | AB15: -14 | AC15: =IF(Base_Inversiones[[#This Row],[Graficar Día]]="ok",SUM(AB$5:AB15),"") -> 169 | AD15: =IF(Base_Inversiones[[#This Row],[Graficar Día]]="ok",(IF(S15>0,"G","P")),"") -> P | AE15: 44634.3715 | AF15: lunes | AG15: marzo | AH15: =IF(Base_Inversiones[[#This Row],[Graficar Día]]="ok",DAY(A15),"") -> 14 | AI15: =IF(Base_Inversiones[[#This Row],[Graficar Día]]="ok",MONTH(A15),"") -> 3 | AJ15: =IF(Base_Inversiones[[#This Row],[Graficar Día]]="ok",YEAR(A15),"") -> 2022 | AK15: =IF(Base_Inversiones[[#This Row],[Graficar Día]]="ok",IF(LEN(AH15)=1,"0"&AH15,AH15)&"/"&IF(LEN(AI15)=1,"0"&AI15,AI15)&"/"&AJ15,"") -> 14/03/2022 | AL15: =TEXT(Base_Inversiones[[#This Row],[Fecha Corrob]],"DD/MM/AAAA") -> 14/03/2022 | AM15: =IF(Base_Inversiones[[#This Row],[Graficar Día]]="ok",VLOOKUP(Base_Inversiones[[#This Row],[Texto fecha]],Administración!$B$2:$C$1432,2,0),"") -> P73 | AN15: =IF(Base_Inversiones[[#This Row],[Qty]]>0,"ok","no") -> ok | AO15: =IF(Base_Inversiones[[#This Row],[Graficar Día]]="ok",$D$1,"") -> 15000 | AP15: =IF(Base_Inversiones[[#This Row],[Graficar Día]]="ok",Base_Inversiones[[#This Row],[Budget Inicial/ Aportación]]+Base_Inversiones[[#This Row],[Saldo]],"") -> 15169 | AQ15: 1 | AS15: =IF(Base_Inversiones[[#This Row],[Graficar Día]]="ok",SUM(Base_Inversiones[G/P Neta]),"") -> 108 | AT15: =IF(Base_Inversiones[[#This Row],[Graficar Día]]="ok",$D$1,"") -> 15000 | AU15: =IF(Base_Inversiones[[#This Row],[Graficar Día]]="ok",WEEKNUM(Base_Inversiones[[#This Row],[Fecha Compra]]),"") -> 12 | AV15: =IF(Base_Inversiones[[#This Row],[Graficar Día]]="ok",WEEKNUM(DATE(YEAR(Base_Inversiones[[#This Row],[Fecha Compra]]),MONTH(Base_Inversiones[[#This Row],[Fecha Compra]]),1))-1,"") -> 9 | AW15: =IF(Base_Inversiones[[#This Row],[Graficar Día]]="ok",Base_Inversiones[[#This Row],[Num Semana]]-Base_Inversiones[[#This Row],[Num Sem Extrae]],"") -> 3 | AX15: =IF(Base_Inversiones[[#This Row],[Graficar Día]]="ok",IFERROR(VLOOKUP(Base_Inversiones[[#This Row],[Mes Corrob]],Administración!$L$4:$M$15,2,0),""),"") -> Q1
A16: 2022-03-14T11:54:00 | B16: TWS | C16: AAPL | D16: 18 de Marzo Strike 140 | E16: PUT | F16: 0.5 | G16: 100 | H16: =IF(Base_Inversiones[[#This Row],[Graficar Día]]="ok",F16*G16,"") -> 50 | I16: 0.01 | J16: 2 | K16: Rup. De Compresión + Ichimoku | L16: Technology | M16: 2022 | N16: 2 | O16: 2022-03-18T09:00:00 | P16: 0.1 | Q16: swing | R16: =IF(Base_Inversiones[[#This Row],[Graficar Día]]="ok",P16-F16,"") -> -0.4 | S16: -0.8 | T16: -0.02 | U16: =IF(Base_Inversiones[[#This Row],[Graficar Día]]="ok",IF(P16="",0,R16*G16-IF(B16="C",(10+0.15*2*G16/100),(0.5*2*G16/100))),"") -> -41 | X16: =IF(Base_Inversiones[[#This Row],[Graficar Día]]="ok",IF(P16="",0,U16-V16-W16),"") -> -41 | Y16: Retroceso en Piso de Ichi, tomo mi Stop | AA16: 5 | AB16: -41 | AC16: =IF(Base_Inversiones[[#This Row],[Graficar Día]]="ok",SUM(AB$5:AB16),"") -> 128 | AD16: =IF(Base_Inversiones[[#This Row],[Graficar Día]]="ok",(IF(S16>0,"G","P")),"") -> P | AE16: 44634.4958 | AF16: lunes | AG16: marzo | AH16: =IF(Base_Inversiones[[#This Row],[Graficar Día]]="ok",DAY(A16),"") -> 14 | AI16: =IF(Base_Inversiones[[#This Row],[Graficar Día]]="ok",MONTH(A16),"") -> 3 | AJ16: =IF(Base_Inversiones[[#This Row],[Graficar Día]]="ok",YEAR(A16),"") -> 2022 | AK16: =IF(Base_Inversiones[[#This Row],[Graficar Día]]="ok",IF(LEN(AH16)=1,"0"&AH16,AH16)&"/"&IF(LEN(AI16)=1,"0"&AI16,AI16)&"/"&AJ16,"") -> 14/03/2022 | AL16: =TEXT(Base_Inversiones[[#This Row],[Fecha Corrob]],"DD/MM/AAAA") -> 14/03/2022 | AM16: =IF(Base_Inversiones[[#This Row],[Graficar Día]]="ok",VLOOKUP(Base_Inversiones[[#This Row],[Texto fecha]],Administración!$B$2:$C$1432,2,0),"") -> P73 | AN16: =IF(Base_Inversiones[[#This Row],[Qty]]>0,"ok","no") -> ok | AO16: =IF(Base_Inversiones[[#This Row],[Graficar Día]]="ok",$D$1,"") -> 15000 | AP16: =IF(Base_Inversiones[[#This Row],[Graficar Día]]="ok",Base_Inversiones[[#This Row],[Budget Inicial/ Aportación]]+Base_Inversiones[[#This Row],[Saldo]],"") -> 15128 | AQ16: 1 | AS16: =IF(Base_Inversiones[[#This Row],[Graficar Día]]="ok",SUM(Base_Inversiones[G/P Neta]),"") -> 108 | AT16: =IF(Base_Inversiones[[#This Row],[Graficar Día]]="ok",$D$1,"") -> 15000 | AU16: =IF(Base_Inversiones[[#This Row],[Graficar Día]]="ok",WEEKNUM(Base_Inversiones[[#This Row],[Fecha Compra]]),"") -> 12 | AV16: =IF(Base_Inversiones[[#This Row],[Graficar Día]]="ok",WEEKNUM(DATE(YEAR(Base_Inversiones[[#This Row],[Fecha Compra]]),MONTH(Base_Inversiones[[#This Row],[Fecha Compra]]),1))-1,"") -> 9 | AW16: =IF(Base_Inversiones[[#This Row],[Graficar Día]]="ok",Base_Inversiones[[#This Row],[Num Semana]]-Base_Inversiones[[#This Row],[Num Sem Extrae]],"") -> 3 | AX16: =IF(Base_Inversiones[[#This Row],[Graficar Día]]="ok",IFERROR(VLOOKUP(Base_Inversiones[[#This Row],[Mes Corrob]],Administración!$L$4:$M$15,2,0),""),"") -> Q1
A17: 2022-03-15T08:47:00 | B17: TWS | C17: NLOK | D17: 18/03/2022 Strike 32 | E17: CALL | F17: 0.55 | G17: 100 | H17: =IF(Base_Inversiones[[#This Row],[Graficar Día]]="ok",F17*G17,"") -> 55 | I17: 0.01 | J17: 2 | K17: Rup. De JH + Ichimoku | L17: Technology | M17: 2022 | N17: 2 | O17: 2022-04-01T10:00:00 | P17: 0.1 | Q17: swing | R17: =IF(Base_Inversiones[[#This Row],[Graficar Día]]="ok",P17-F17,"") -> -0.45 | S17: -0.8181818182 | T17: -0.02045454545 | U17: =IF(Base_Inversiones[[#This Row],[Graficar Día]]="ok",IF(P17="",0,R17*G17-IF(B17="C",(10+0.15*2*G17/100),(0.5*2*G17/100))),"") -> -46 | X17: =IF(Base_Inversiones[[#This Row],[Graficar Día]]="ok",IF(P17="",0,U17-V17-W17),"") -> -46 | Y17: Retroceso EMA 8 | AA17: 5 | AB17: -46 | AC17: =IF(Base_Inversiones[[#This Row],[Graficar Día]]="ok",SUM(AB$5:AB17),"") -> 82 | AD17: =IF(Base_Inversiones[[#This Row],[Graficar Día]]="ok",(IF(S17>0,"G","P")),"") -> P | AE17: 44635.3659 | AF17: martes | AG17: marzo | AH17: =IF(Base_Inversiones[[#This Row],[Graficar Día]]="ok",DAY(A17),"") -> 15 | AI17: =IF(Base_Inversiones[[#This Row],[Graficar Día]]="ok",MONTH(A17),"") -> 3 | AJ17: =IF(Base_Inversiones[[#This Row],[Graficar Día]]="ok",YEAR(A17),"") -> 2022 | AK17: =IF(Base_Inversiones[[#This Row],[Graficar Día]]="ok",IF(LEN(AH17)=1,"0"&AH17,AH17)&"/"&IF(LEN(AI17)=1,"0"&AI17,AI17)&"/"&AJ17,"") -> 15/03/2022 | AL17: =TEXT(Base_Inversiones[[#This Row],[Fecha Corrob]],"DD/MM/AAAA") -> 15/03/2022 | AM17: =IF(Base_Inversiones[[#This Row],[Graficar Día]]="ok",VLOOKUP(Base_Inversiones[[#This Row],[Texto fecha]],Administración!$B$2:$C$1432,2,0),"") -> P74 | AN17: =IF(Base_Inversiones[[#This Row],[Qty]]>0,"ok","no") -> ok | AO17: =IF(Base_Inversiones[[#This Row],[Graficar Día]]="ok",$D$1,"") -> 15000 | AP17: =IF(Base_Inversiones[[#This Row],[Graficar Día]]="ok",Base_Inversiones[[#This Row],[Budget Inicial/ Aportación]]+Base_Inversiones[[#This Row],[Saldo]],"") -> 15082 | AQ17: 1 | AS17: =IF(Base_Inversiones[[#This Row],[Graficar Día]]="ok",SUM(Base_Inversiones[G/P Neta]),"") -> 108 | AT17: =IF(Base_Inversiones[[#This Row],[Graficar Día]]="ok",$D$1,"") -> 15000 | AU17: =IF(Base_Inversiones[[#This Row],[Graficar Día]]="ok",WEEKNUM(Base_Inversiones[[#This Row],[Fecha Compra]]),"") -> 12 | AV17: =IF(Base_Inversiones[[#This Row],[Graficar Día]]="ok",WEEKNUM(DATE(YEAR(Base_Inversiones[[#This Row],[Fecha Compra]]),MONTH(Base_Inversiones[[#This Row],[Fecha Compra]]),1))-1,"") -> 9 | AW17: =IF(Base_Inversiones[[#This Row],[Graficar Día]]="ok",Base_Inversiones[[#This Row],[Num Semana]]-Base_Inversiones[[#This Row],[Num Sem Extrae]],"") -> 3 | AX17: =IF(Base_Inversiones[[#This Row],[Graficar Día]]="ok",IFERROR(VLOOKUP(Base_Inversiones[[#This Row],[Mes Corrob]],Administración!$L$4:$M$15,2,0),""),"") -> Q1
A18: 2022-03-15T08:50:00 | B18: TWS | C18: UAL | D18: 18/03/2022, Strike 40 | E18: CALL | F18: 0.57 | G18: 100 | H18: =IF(Base_Inversiones[[#This Row],[Graficar Día]]="ok",F18*G18,"") -> 57 | I18: 0.01 | J18: 2 | K18: Rup. De JH + Ichimoku | L18: Industrials | M18: 2022 | N18: 2 | O18: 2022-03-18T08:30:00 | P18: 1.8 | Q18: swing | R18: =IF(Base_Inversiones[[#This Row],[Graficar Día]]="ok",P18-F18,"") -> 1.23 | S18: 2.157894737 | T18: 0.1078947368 | U18: =IF(Base_Inversiones[[#This Row],[Graficar Día]]="ok",IF(P18="",0,R18*G18-IF(B18="C",(10+0.15*2*G18/100),(0.5*2*G18/100))),"") -> 122 | X18: =IF(Base_Inversiones[[#This Row],[Graficar Día]]="ok",IF(P18="",0,U18-V18-W18),"") -> 122 | Y18: Rebote Pivot | AA18: 5 | AB18: 122 | AC18: =IF(Base_Inversiones[[#This Row],[Graficar Día]]="ok",SUM(AB$5:AB18),"") -> 204 | AD18: =IF(Base_Inversiones[[#This Row],[Graficar Día]]="ok",(IF(S18>0,"G","P")),"") -> G | AE18: 44635.3680 | AF18: martes | AG18: marzo | AH18: =IF(Base_Inversiones[[#This Row],[Graficar Día]]="ok",DAY(A18),"") -> 15 | AI18: =IF(Base_Inversiones[[#This Row],[Graficar Día]]="ok",MONTH(A18),"") -> 3 | AJ18: =IF(Base_Inversiones[[#This Row],[Graficar Día]]="ok",YEAR(A18),"") -> 2022 | AK18: =IF(Base_Inversiones[[#This Row],[Graficar Día]]="ok",IF(LEN(AH18)=1,"0"&AH18,AH18)&"/"&IF(LEN(AI18)=1,"0"&AI18,AI18)&"/"&AJ18,"") -> 15/03/2022 | AL18: =TEXT(Base_Inversiones[[#This Row],[Fecha Corrob]],"DD/MM/AAAA") -> 15/03/2022 | AM18: =IF(Base_Inversiones[[#This Row],[Graficar Día]]="ok",VLOOKUP(Base_Inversiones[[#This Row],[Texto fecha]],Administración!$B$2:$C$1432,2,0),"") -> P74 | AN18: =IF(Base_Inversiones[[#This Row],[Qty]]>0,"ok","no") -> ok | AO18: =IF(Base_Inversiones[[#This Row],[Graficar Día]]="ok",$D$1,"") -> 15000 | AP18: =IF(Base_Inversiones[[#This Row],[Graficar Día]]="ok",Base_Inversiones[[#This Row],[Budget Inicial/ Aportación]]+Base_Inversiones[[#This Row],[Saldo]],"") -> 15204 | AR18: 1 | AS18: =IF(Base_Inversiones[[#This Row],[Graficar Día]]="ok",SUM(Base_Inversiones[G/P Neta]),"") -> 108 | AT18: =IF(Base_Inversiones[[#This Row],[Graficar Día]]="ok",$D$1,"") -> 15000 | AU18: =IF(Base_Inversiones[[#This Row],[Graficar Día]]="ok",WEEKNUM(Base_Inversiones[[#This Row],[Fecha Compra]]),"") -> 12 | AV18: =IF(Base_Inversiones[[#This Row],[Graficar Día]]="ok",WEEKNUM(DATE(YEAR(Base_Inversiones[[#This Row],[Fecha Compra]]),MONTH(Base_Inversiones[[#This Row],[Fecha Compra]]),1))-1,"") -> 9 | AW18: =IF(Base_Inversiones[[#This Row],[Graficar Día]]="ok",Base_Inversiones[[#This Row],[Num Semana]]-Base_Inversiones[[#This Row],[Num Sem Extrae]],"") -> 3 | AX18: =IF(Base_Inversiones[[#This Row],[Graficar Día]]="ok",IFERROR(VLOOKUP(Base_Inversiones[[#This Row],[Mes Corrob]],Administración!$L$4:$M$15,2,0),""),"") -> Q1
A19: 2022-03-16T10:10:00 | B19: TWS | C19: AMD | D19: 25 de MArzo Strike 125 | E19: CALL | F19: 0.57 | G19: 200 | H19: =IF(Base_Inversiones[[#This Row],[Graficar Día]]="ok",F19*G19,"") -> 114 | I19: 0.01 | J19: 2 | K19: Rup. De JH + Ichimoku | L19: Technology | M19: 2022 | N19: 2 | O19: 2022-03-25T10:10:00 | P19: 0.1 | Q19: swing | R19: =IF(Base_Inversiones[[#This Row],[Graficar Día]]="ok",P19-F19,"") -> -0.47 | S19: -0.8245614035 | T19: -0.02061403509 | U19: =IF(Base_Inversiones[[#This Row],[Graficar Día]]="ok",IF(P19="",0,R19*G19-IF(B19="C",(10+0.15*2*G19/100),(0.5*2*G19/100))),"") -> -96 | X19: =IF(Base_Inversiones[[#This Row],[Graficar Día]]="ok",IF(P19="",0,U19-V19-W19),"") -> -96 | Y19: Rebote Martes, cerre al inicio de la jornada buscando un 40% y cerre en 27% persiguiendo el precio | AA19: 5 | AB19: -96 | AC19: =IF(Base_Inversiones[[#This Row],[Graficar Día]]="ok",SUM(AB$5:AB19),"") -> 108 | AD19: =IF(Base_Inversiones[[#This Row],[Graficar Día]]="ok",(IF(S19>0,"G","P")),"") -> P | AE19: 44636.4236 | AF19: miércoles | AG19: marzo | AH19: =IF(Base_Inversiones[[#This Row],[Graficar Día]]="ok",DAY(A19),"") -> 16 | AI19: =IF(Base_Inversiones[[#This Row],[Graficar Día]]="ok",MONTH(A19),"") -> 3 | AJ19: =IF(Base_Inversiones[[#This Row],[Graficar Día]]="ok",YEAR(A19),"") -> 2022 | AK19: =IF(Base_Inversiones[[#This Row],[Graficar Día]]="ok",IF(LEN(AH19)=1,"0"&AH19,AH19)&"/"&IF(LEN(AI19)=1,"0"&AI19,AI19)&"/"&AJ19,"") -> 16/03/2022 | AL19: =TEXT(Base_Inversiones[[#This Row],[Fecha Corrob]],"DD/MM/AAAA") -> 16/03/2022 | AM19: =IF(Base_Inversiones[[#This Row],[Graficar Día]]="ok",VLOOKUP(Base_Inversiones[[#This Row],[Texto fecha]],Administración!$B$2:$C$1432,2,0),"") -> P75 | AN19: =IF(Base_Inversiones[[#This Row],[Qty]]>0,"ok","no") -> ok | AO19: =IF(Base_Inversiones[[#This Row],[Graficar Día]]="ok",$D$1,"") -> 15000 | AP19: =IF(Base_Inversiones[[#This Row],[Graficar Día]]="ok",Base_Inversiones[[#This Row],[Budget Inicial/ Aportación]]+Base_Inversiones[[#This Row],[Saldo]],"") -> 15108 | AQ19: 1 | AS19: =IF(Base_Inversiones[[#This Row],[Graficar Día]]="ok",SUM(Base_Inversiones[G/P Neta]),"") -> 108 | AT19: =IF(Base_Inversiones[[#This Row],[Graficar Día]]="ok",$D$1,"") -> 15000 | AU19: =IF(Base_Inversiones[[#This Row],[Graficar Día]]="ok",WEEKNUM(Base_Inversiones[[#This Row],[Fecha Compra]]),"") -> 12 | AV19: =IF(Base_Inversiones[[#This Row],[Graficar Día]]="ok",WEEKNUM(DATE(YEAR(Base_Inversiones[[#This Row],[Fecha Compra]]),MONTH(Base_Inversiones[[#This Row],[Fecha Compra]]),1))-1,"") -> 9 | AW19: =IF(Base_Inversiones[[#This Row],[Graficar Día]]="ok",Base_Inversiones[[#This Row],[Num Semana]]-Base_Inversiones[[#This Row],[Num Sem Extrae]],"") -> 3 | AX19: =IF(Base_Inversiones[[#This Row],[Graficar Día]]="ok",IFERROR(VLOOKUP(Base_Inversiones[[#This Row],[Mes Corrob]],Administración!$L$4:$M$15,2,0),""),"") -> Q1
H20: =IF(Base_Inversiones[[#This Row],[Graficar Día]]="ok",F20*G20,"") ->  | R20: =IF(Base_Inversiones[[#This Row],[Graficar Día]]="ok",P20-F20,"") ->  | S20: =IFERROR(R20/F20,"") ->  | T20: =IFERROR(IF(S20<0,S20/40,S20/20),"") ->  | U20: =IF(Base_Inversiones[[#This Row],[Graficar Día]]="ok",IF(P20="",0,R20*G20-IF(B20="C",(10+0.15*2*G20/100),(0.5*2*G20/100))),"") ->  | X20: =IF(Base_Inversiones[[#This Row],[Graficar Día]]="ok",IF(P20="",0,U20-V20-W20),"") ->  | AB20: =U20 ->  | AC20: =IF(Base_Inversiones[[#This Row],[Graficar Día]]="ok",SUM(AB$5:AB20),"") ->  | AD20: =IF(Base_Inversiones[[#This Row],[Graficar Día]]="ok",(IF(S20>0,"G","P")),"") ->  | AE20: =LEFT(A20,10) ->  | AF20: =TEXT(AE20,"dddd") ->  | AG20: =TEXT(AE20,"mmmm") ->  | AH20: =IF(Base_Inversiones[[#This Row],[Graficar Día]]="ok",DAY(A20),"") ->  | AI20: =IF(Base_Inversiones[[#This Row],[Graficar Día]]="ok",MONTH(A20),"") ->  | AJ20: =IF(Base_Inversiones[[#This Row],[Graficar Día]]="ok",YEAR(A20),"") ->  | AK20: =IF(Base_Inversiones[[#This Row],[Graficar Día]]="ok",IF(LEN(AH20)=1,"0"&AH20,AH20)&"/"&IF(LEN(AI20)=1,"0"&AI20,AI20)&"/"&AJ20,"") ->  | AL20: =TEXT(Base_Inversiones[[#This Row],[Fecha Corrob]],"DD/MM/AAAA") ->  | AM20: =IF(Base_Inversiones[[#This Row],[Graficar Día]]="ok",VLOOKUP(Base_Inversiones[[#This Row],[Texto fecha]],Administración!$B$2:$C$1432,2,0),"") ->  | AN20: =IF(Base_Inversiones[[#This Row],[Qty]]>0,"ok","no") -> no | AO20: =IF(Base_Inversiones[[#This Row],[Graficar Día]]="ok",$D$1,"") ->  | AP20: =IF(Base_Inversiones[[#This Row],[Graficar Día]]="ok",Base_Inversiones[[#This Row],[Budget Inicial/ Aportación]]+Base_Inversiones[[#This Row],[Saldo]],"") ->  | AQ20: =IF(AD20="P",1,"") ->  | AR20: =IF(AD20="G",1,"") ->  | AS20: =SUM(Base_Inversiones[G/P Neta]) -> 108 | AT20: =IF(Base_Inversiones[[#This Row],[Graficar Día]]="ok",$D$1,"") ->  | AU20: =IF(Base_Inversiones[[#This Row],[Graficar Día]]="ok",WEEKNUM(Base_Inversiones[[#This Row],[Fecha Compra]]),"") ->  | AV20: =IF(Base_Inversiones[[#This Row],[Graficar Día]]="ok",WEEKNUM(DATE(YEAR(Base_Inversiones[[#This Row],[Fecha Compra]]),MONTH(Base_Inversiones[[#This Row],[Fecha Compra]]),1))-1,"") ->  | AW20: =IF(Base_Inversiones[[#This Row],[Graficar Día]]="ok",Base_Inversiones[[#This Row],[Num Semana]]-Base_Inversiones[[#This Row],[Num Sem Extrae]],"") ->  | AX20: =IF(Base_Inversiones[[#This Row],[Graficar Día]]="ok",IFERROR(VLOOKUP(Base_Inversiones[[#This Row],[Mes Corrob]],Administración!$L$4:$M$15,2,0),""),"") -> 
H21: =IF(Base_Inversiones[[#This Row],[Graficar Día]]="ok",F21*G21,"") ->  | R21: =IF(Base_Inversiones[[#This Row],[Graficar Día]]="ok",P21-F21,"") ->  | U21: =IF(Base_Inversiones[[#This Row],[Graficar Día]]="ok",IF(P21="",0,R21*G21-IF(B21="C",(10+0.15*2*G21/100),(0.5*2*G21/100))),"") ->  | X21: =IF(Base_Inversiones[[#This Row],[Graficar Día]]="ok",IF(P21="",0,U21-V21-W21),"") ->  | AC21: =IF(Base_Inversiones[[#This Row],[Graficar Día]]="ok",SUM(AB$5:AB21),"") ->  | AD21: =IF(Base_Inversiones[[#This Row],[Graficar Día]]="ok",(IF(S21>0,"G","P")),"") ->  | AH21: =IF(Base_Inversiones[[#This Row],[Graficar Día]]="ok",DAY(A21),"") ->  | AI21: =IF(Base_Inversiones[[#This Row],[Graficar Día]]="ok",MONTH(A21),"") ->  | AJ21: =IF(Base_Inversiones[[#This Row],[Graficar Día]]="ok",YEAR(A21),"") ->  | AK21: =IF(Base_Inversiones[[#This Row],[Graficar Día]]="ok",IF(LEN(AH21)=1,"0"&AH21,AH21)&"/"&IF(LEN(AI21)=1,"0"&AI21,AI21)&"/"&AJ21,"") ->  | AL21: =TEXT(Base_Inversiones[[#This Row],[Fecha Corrob]],"DD/MM/AAAA") ->  | AM21: =IF(Base_Inversiones[[#This Row],[Graficar Día]]="ok",VLOOKUP(Base_Inversiones[[#This Row],[Texto fecha]],Administración!$B$2:$C$1432,2,0),"") ->  | AN21: =IF(Base_Inversiones[[#This Row],[Qty]]>0,"ok","no") -> no | AO21: =IF(Base_Inversiones[[#This Row],[Graficar Día]]="ok",$D$1,"") ->  | AP21: =IF(Base_Inversiones[[#This Row],[Graficar Día]]="ok",Base_Inversiones[[#This Row],[Budget Inicial/ Aportación]]+Base_Inversiones[[#This Row],[Saldo]],"") ->  | AS21: =SUM(Base_Inversiones[G/P Neta]) -> 108 | AT21: =IF(Base_Inversiones[[#This Row],[Graficar Día]]="ok",$D$1,"") ->  | AU21: =IF(Base_Inversiones[[#This Row],[Graficar Día]]="ok",WEEKNUM(Base_Inversiones[[#This Row],[Fecha Compra]]),"") ->  | AV21: =IF(Base_Inversiones[[#This Row],[Graficar Día]]="ok",WEEKNUM(DATE(YEAR(Base_Inversiones[[#This Row],[Fecha Compra]]),MONTH(Base_Inversiones[[#This Row],[Fecha Compra]]),1))-1,"") ->  | AW21: =IF(Base_Inversiones[[#This Row],[Graficar Día]]="ok",Base_Inversiones[[#This Row],[Num Semana]]-Base_Inversiones[[#This Row],[Num Sem Extrae]],"") ->  | AX21: =IF(Base_Inversiones[[#This Row],[Graficar Día]]="ok",IFERROR(VLOOKUP(Base_Inversiones[[#This Row],[Mes Corrob]],Administración!$L$4:$M$15,2,0),""),"") -> 
H22: =IF(Base_Inversiones[[#This Row],[Graficar Día]]="ok",F22*G22,"") ->  | R22: =IF(Base_Inversiones[[#This Row],[Graficar Día]]="ok",P22-F22,"") ->  | U22: =IF(Base_Inversiones[[#This Row],[Graficar Día]]="ok",IF(P22="",0,R22*G22-IF(B22="C",(10+0.15*2*G22/100),(0.5*2*G22/100))),"") ->  | X22: =IF(Base_Inversiones[[#This Row],[Graficar Día]]="ok",IF(P22="",0,U22-V22-W22),"") ->  | AC22: =IF(Base_Inversiones[[#This Row],[Graficar Día]]="ok",SUM(AB$5:AB22),"") ->  | AD22: =IF(Base_Inversiones[[#This Row],[Graficar Día]]="ok",(IF(S22>0,"G","P")),"") ->  | AH22: =IF(Base_Inversiones[[#This Row],[Graficar Día]]="ok",DAY(A22),"") ->  | AI22: =IF(Base_Inversiones[[#This Row],[Graficar Día]]="ok",MONTH(A22),"") ->  | AJ22: =IF(Base_Inversiones[[#This Row],[Graficar Día]]="ok",YEAR(A22),"") ->  | AK22: =IF(Base_Inversiones[[#This Row],[Graficar Día]]="ok",IF(LEN(AH22)=1,"0"&AH22,AH22)&"/"&IF(LEN(AI22)=1,"0"&AI22,AI22)&"/"&AJ22,"") ->  | AL22: =TEXT(Base_Inversiones[[#This Row],[Fecha Corrob]],"DD/MM/AAAA") ->  | AM22: =IF(Base_Inversiones[[#This Row],[Graficar Día]]="ok",VLOOKUP(Base_Inversiones[[#This Row],[Texto fecha]],Administración!$B$2:$C$1432,2,0),"") ->  | AN22: =IF(Base_Inversiones[[#This Row],[Qty]]>0,"ok","no") -> no | AO22: =IF(Base_Inversiones[[#This Row],[Graficar Día]]="ok",$D$1,"") ->  | AP22: =IF(Base_Inversiones[[#This Row],[Graficar Día]]="ok",Base_Inversiones[[#This Row],[Budget Inicial/ Aportación]]+Base_Inversiones[[#This Row],[Saldo]],"") ->  | AS22: =SUM(Base_Inversiones[G/P Neta]) -> 108 | AT22: =IF(Base_Inversiones[[#This Row],[Graficar Día]]="ok",$D$1,"") ->  | AU22: =IF(Base_Inversiones[[#This Row],[Graficar Día]]="ok",WEEKNUM(Base_Inversiones[[#This Row],[Fecha Compra]]),"") ->  | AV22: =IF(Base_Inversiones[[#This Row],[Graficar Día]]="ok",WEEKNUM(DATE(YEAR(Base_Inversiones[[#This Row],[Fecha Compra]]),MONTH(Base_Inversiones[[#This Row],[Fecha Compra]]),1))-1,"") ->  | AW22: =IF(Base_Inversiones[[#This Row],[Graficar Día]]="ok",Base_Inversiones[[#This Row],[Num Semana]]-Base_Inversiones[[#This Row],[Num Sem Extrae]],"") ->  | AX22: =IF(Base_Inversiones[[#This Row],[Graficar Día]]="ok",IFERROR(VLOOKUP(Base_Inversiones[[#This Row],[Mes Corrob]],Administración!$L$4:$M$15,2,0),""),"") -> 
H23: =IF(Base_Inversiones[[#This Row],[Graficar Día]]="ok",F23*G23,"") ->  | R23: =IF(Base_Inversiones[[#This Row],[Graficar Día]]="ok",P23-F23,"") ->  | U23: =IF(Base_Inversiones[[#This Row],[Graficar Día]]="ok",IF(P23="",0,R23*G23-IF(B23="C",(10+0.15*2*G23/100),(0.5*2*G23/100))),"") ->  | X23: =IF(Base_Inversiones[[#This Row],[Graficar Día]]="ok",IF(P23="",0,U23-V23-W23),"") ->  | AC23: =IF(Base_Inversiones[[#This Row],[Graficar Día]]="ok",SUM(AB$5:AB23),"") ->  | AD23: =IF(Base_Inversiones[[#This Row],[Graficar Día]]="ok",(IF(S23>0,"G","P")),"") ->  | AH23: =IF(Base_Inversiones[[#This Row],[Graficar Día]]="ok",DAY(A23),"") ->  | AI23: =IF(Base_Inversiones[[#This Row],[Graficar Día]]="ok",MONTH(A23),"") ->  | AJ23: =IF(Base_Inversiones[[#This Row],[Graficar Día]]="ok",YEAR(A23),"") ->  | AK23: =IF(Base_Inversiones[[#This Row],[Graficar Día]]="ok",IF(LEN(AH23)=1,"0"&AH23,AH23)&"/"&IF(LEN(AI23)=1,"0"&AI23,AI23)&"/"&AJ23,"") ->  | AL23: =TEXT(Base_Inversiones[[#This Row],[Fecha Corrob]],"DD/MM/AAAA") ->  | AM23: =IF(Base_Inversiones[[#This Row],[Graficar Día]]="ok",VLOOKUP(Base_Inversiones[[#This Row],[Texto fecha]],Administración!$B$2:$C$1432,2,0),"") ->  | AN23: =IF(Base_Inversiones[[#This Row],[Qty]]>0,"ok","no") -> no | AO23: =IF(Base_Inversiones[[#This Row],[Graficar Día]]="ok",$D$1,"") ->  | AP23: =IF(Base_Inversiones[[#This Row],[Graficar Día]]="ok",Base_Inversiones[[#This Row],[Budget Inicial/ Aportación]]+Base_Inversiones[[#This Row],[Saldo]],"") ->  | AS23: =SUM(Base_Inversiones[G/P Neta]) -> 108 | AT23: =IF(Base_Inversiones[[#This Row],[Graficar Día]]="ok",$D$1,"") ->  | AU23: =IF(Base_Inversiones[[#This Row],[Graficar Día]]="ok",WEEKNUM(Base_Inversiones[[#This Row],[Fecha Compra]]),"") ->  | AV23: =IF(Base_Inversiones[[#This Row],[Graficar Día]]="ok",WEEKNUM(DATE(YEAR(Base_Inversiones[[#This Row],[Fecha Compra]]),MONTH(Base_Inversiones[[#This Row],[Fecha Compra]]),1))-1,"") ->  | AW23: =IF(Base_Inversiones[[#This Row],[Graficar Día]]="ok",Base_Inversiones[[#This Row],[Num Semana]]-Base_Inversiones[[#This Row],[Num Sem Extrae]],"") ->  | AX23: =IF(Base_Inversiones[[#This Row],[Graficar Día]]="ok",IFERROR(VLOOKUP(Base_Inversiones[[#This Row],[Mes Corrob]],Administración!$L$4:$M$15,2,0),""),"") -> 
H24: =IF(Base_Inversiones[[#This Row],[Graficar Día]]="ok",F24*G24,"") ->  | R24: =IF(Base_Inversiones[[#This Row],[Graficar Día]]="ok",P24-F24,"") ->  | U24: =IF(Base_Inversiones[[#This Row],[Graficar Día]]="ok",IF(P24="",0,R24*G24-IF(B24="C",(10+0.15*2*G24/100),(0.5*2*G24/100))),"") ->  | X24: =IF(Base_Inversiones[[#This Row],[Graficar Día]]="ok",IF(P24="",0,U24-V24-W24),"") ->  | AC24: =IF(Base_Inversiones[[#This Row],[Graficar Día]]="ok",SUM(AB$5:AB24),"") ->  | AD24: =IF(Base_Inversiones[[#This Row],[Graficar Día]]="ok",(IF(S24>0,"G","P")),"") ->  | AH24: =IF(Base_Inversiones[[#This Row],[Graficar Día]]="ok",DAY(A24),"") ->  | AI24: =IF(Base_Inversiones[[#This Row],[Graficar Día]]="ok",MONTH(A24),"") ->  | AJ24: =IF(Base_Inversiones[[#This Row],[Graficar Día]]="ok",YEAR(A24),"") ->  | AK24: =IF(Base_Inversiones[[#This Row],[Graficar Día]]="ok",IF(LEN(AH24)=1,"0"&AH24,AH24)&"/"&IF(LEN(AI24)=1,"0"&AI24,AI24)&"/"&AJ24,"") ->  | AL24: =TEXT(Base_Inversiones[[#This Row],[Fecha Corrob]],"DD/MM/AAAA") ->  | AM24: =IF(Base_Inversiones[[#This Row],[Graficar Día]]="ok",VLOOKUP(Base_Inversiones[[#This Row],[Texto fecha]],Administración!$B$2:$C$1432,2,0),"") ->  | AN24: =IF(Base_Inversiones[[#This Row],[Qty]]>0,"ok","no") -> no | AO24: =IF(Base_Inversiones[[#This Row],[Graficar Día]]="ok",$D$1,"") ->  | AP24: =IF(Base_Inversiones[[#This Row],[Graficar Día]]="ok",Base_Inversiones[[#This Row],[Budget Inicial/ Aportación]]+Base_Inversiones[[#This Row],[Saldo]],"") ->  | AS24: =SUM(Base_Inversiones[G/P Neta]) -> 108 | AT24: =IF(Base_Inversiones[[#This Row],[Graficar Día]]="ok",$D$1,"") ->  | AU24: =IF(Base_Inversiones[[#This Row],[Graficar Día]]="ok",WEEKNUM(Base_Inversiones[[#This Row],[Fecha Compra]]),"") ->  | AV24: =IF(Base_Inversiones[[#This Row],[Graficar Día]]="ok",WEEKNUM(DATE(YEAR(Base_Inversiones[[#This Row],[Fecha Compra]]),MONTH(Base_Inversiones[[#This Row],[Fecha Compra]]),1))-1,"") ->  | AW24: =IF(Base_Inversiones[[#This Row],[Graficar Día]]="ok",Base_Inversiones[[#This Row],[Num Semana]]-Base_Inversiones[[#This Row],[Num Sem Extrae]],"") ->  | AX24: =IF(Base_Inversiones[[#This Row],[Graficar Día]]="ok",IFERROR(VLOOKUP(Base_Inversiones[[#This Row],[Mes Corrob]],Administración!$L$4:$M$15,2,0),""),"") -> 
H25: =IF(Base_Inversiones[[#This Row],[Graficar Día]]="ok",F25*G25,"") ->  | R25: =IF(Base_Inversiones[[#This Row],[Graficar Día]]="ok",P25-F25,"") ->  | U25: =IF(Base_Inversiones[[#This Row],[Graficar Día]]="ok",IF(P25="",0,R25*G25-IF(B25="C",(10+0.15*2*G25/100),(0.5*2*G25/100))),"") ->  | X25: =IF(Base_Inversiones[[#This Row],[Graficar Día]]="ok",IF(P25="",0,U25-V25-W25),"") ->  | AC25: =IF(Base_Inversiones[[#This Row],[Graficar Día]]="ok",SUM(AB$5:AB25),"") ->  | AD25: =IF(Base_Inversiones[[#This Row],[Graficar Día]]="ok",(IF(S25>0,"G","P")),"") ->  | AH25: =IF(Base_Inversiones[[#This Row],[Graficar Día]]="ok",DAY(A25),"") ->  | AI25: =IF(Base_Inversiones[[#This Row],[Graficar Día]]="ok",MONTH(A25),"") ->  | AJ25: =IF(Base_Inversiones[[#This Row],[Graficar Día]]="ok",YEAR(A25),"") ->  | AK25: =IF(Base_Inversiones[[#This Row],[Graficar Día]]="ok",IF(LEN(AH25)=1,"0"&AH25,AH25)&"/"&IF(LEN(AI25)=1,"0"&AI25,AI25)&"/"&AJ25,"") ->  | AL25: =TEXT(Base_Inversiones[[#This Row],[Fecha Corrob]],"DD/MM/AAAA") ->  | AM25: =IF(Base_Inversiones[[#This Row],[Graficar Día]]="ok",VLOOKUP(Base_Inversiones[[#This Row],[Texto fecha]],Administración!$B$2:$C$1432,2,0),"") ->  | AN25: =IF(Base_Inversiones[[#This Row],[Qty]]>0,"ok","no") -> no | AO25: =IF(Base_Inversiones[[#This Row],[Graficar Día]]="ok",$D$1,"") ->  | AP25: =IF(Base_Inversiones[[#This Row],[Graficar Día]]="ok",Base_Inversiones[[#This Row],[Budget Inicial/ Aportación]]+Base_Inversiones[[#This Row],[Saldo]],"") ->  | AS25: =SUM(Base_Inversiones[G/P Neta]) -> 108 | AT25: =IF(Base_Inversiones[[#This Row],[Graficar Día]]="ok",$D$1,"") ->  | AU25: =IF(Base_Inversiones[[#This Row],[Graficar Día]]="ok",WEEKNUM(Base_Inversiones[[#This Row],[Fecha Compra]]),"") ->  | AV25: =IF(Base_Inversiones[[#This Row],[Graficar Día]]="ok",WEEKNUM(DATE(YEAR(Base_Inversiones[[#This Row],[Fecha Compra]]),MONTH(Base_Inversiones[[#This Row],[Fecha Compra]]),1))-1,"") ->  | AW25: =IF(Base_Inversiones[[#This Row],[Graficar Día]]="ok",Base_Inversiones[[#This Row],[Num Semana]]-Base_Inversiones[[#This Row],[Num Sem Extrae]],"") ->  | AX25: =IF(Base_Inversiones[[#This Row],[Graficar Día]]="ok",IFERROR(VLOOKUP(Base_Inversiones[[#This Row],[Mes Corrob]],Administración!$L$4:$M$15,2,0),""),"") -> 
H26: =IF(Base_Inversiones[[#This Row],[Graficar Día]]="ok",F26*G26,"") ->  | R26: =IF(Base_Inversiones[[#This Row],[Graficar Día]]="ok",P26-F26,"") ->  | U26: =IF(Base_Inversiones[[#This Row],[Graficar Día]]="ok",IF(P26="",0,R26*G26-IF(B26="C",(10+0.15*2*G26/100),(0.5*2*G26/100))),"") ->  | X26: =IF(Base_Inversiones[[#This Row],[Graficar Día]]="ok",IF(P26="",0,U26-V26-W26),"") ->  | AC26: =IF(Base_Inversiones[[#This Row],[Graficar Día]]="ok",SUM(AB$5:AB26),"") ->  | AD26: =IF(Base_Inversiones[[#This Row],[Graficar Día]]="ok",(IF(S26>0,"G","P")),"") ->  | AH26: =IF(Base_Inversiones[[#This Row],[Graficar Día]]="ok",DAY(A26),"") ->  | AI26: =IF(Base_Inversiones[[#This Row],[Graficar Día]]="ok",MONTH(A26),"") ->  | AJ26: =IF(Base_Inversiones[[#This Row],[Graficar Día]]="ok",YEAR(A26),"") ->  | AK26: =IF(Base_Inversiones[[#This Row],[Graficar Día]]="ok",IF(LEN(AH26)=1,"0"&AH26,AH26)&"/"&IF(LEN(AI26)=1,"0"&AI26,AI26)&"/"&AJ26,"") ->  | AL26: =TEXT(Base_Inversiones[[#This Row],[Fecha Corrob]],"DD/MM/AAAA") ->  | AM26: =IF(Base_Inversiones[[#This Row],[Graficar Día]]="ok",VLOOKUP(Base_Inversiones[[#This Row],[Texto fecha]],Administración!$B$2:$C$1432,2,0),"") ->  | AN26: =IF(Base_Inversiones[[#This Row],[Qty]]>0,"ok","no") -> no | AO26: =IF(Base_Inversiones[[#This Row],[Graficar Día]]="ok",$D$1,"") ->  | AP26: =IF(Base_Inversiones[[#This Row],[Graficar Día]]="ok",Base_Inversiones[[#This Row],[Budget Inicial/ Aportación]]+Base_Inversiones[[#This Row],[Saldo]],"") ->  | AS26: =SUM(Base_Inversiones[G/P Neta]) -> 108 | AT26: =IF(Base_Inversiones[[#This Row],[Graficar Día]]="ok",$D$1,"") ->  | AU26: =IF(Base_Inversiones[[#This Row],[Graficar Día]]="ok",WEEKNUM(Base_Inversiones[[#This Row],[Fecha Compra]]),"") ->  | AV26: =IF(Base_Inversiones[[#This Row],[Graficar Día]]="ok",WEEKNUM(DATE(YEAR(Base_Inversiones[[#This Row],[Fecha Compra]]),MONTH(Base_Inversiones[[#This Row],[Fecha Compra]]),1))-1,"") ->  | AW26: =IF(Base_Inversiones[[#This Row],[Graficar Día]]="ok",Base_Inversiones[[#This Row],[Num Semana]]-Base_Inversiones[[#This Row],[Num Sem Extrae]],"") ->  | AX26: =IF(Base_Inversiones[[#This Row],[Graficar Día]]="ok",IFERROR(VLOOKUP(Base_Inversiones[[#This Row],[Mes Corrob]],Administración!$L$4:$M$15,2,0),""),"") -> 
H27: =IF(Base_Inversiones[[#This Row],[Graficar Día]]="ok",F27*G27,"") ->  | R27: =IF(Base_Inversiones[[#This Row],[Graficar Día]]="ok",P27-F27,"") ->  | U27: =IF(Base_Inversiones[[#This Row],[Graficar Día]]="ok",IF(P27="",0,R27*G27-IF(B27="C",(10+0.15*2*G27/100),(0.5*2*G27/100))),"") ->  | X27: =IF(Base_Inversiones[[#This Row],[Graficar Día]]="ok",IF(P27="",0,U27-V27-W27),"") ->  | AC27: =IF(Base_Inversiones[[#This Row],[Graficar Día]]="ok",SUM(AB$5:AB27),"") ->  | AD27: =IF(Base_Inversiones[[#This Row],[Graficar Día]]="ok",(IF(S27>0,"G","P")),"") ->  | AH27: =IF(Base_Inversiones[[#This Row],[Graficar Día]]="ok",DAY(A27),"") ->  | AI27: =IF(Base_Inversiones[[#This Row],[Graficar Día]]="ok",MONTH(A27),"") ->  | AJ27: =IF(Base_Inversiones[[#This Row],[Graficar Día]]="ok",YEAR(A27),"") ->  | AK27: =IF(Base_Inversiones[[#This Row],[Graficar Día]]="ok",IF(LEN(AH27)=1,"0"&AH27,AH27)&"/"&IF(LEN(AI27)=1,"0"&AI27,AI27)&"/"&AJ27,"") ->  | AL27: =TEXT(Base_Inversiones[[#This Row],[Fecha Corrob]],"DD/MM/AAAA") ->  | AM27: =IF(Base_Inversiones[[#This Row],[Graficar Día]]="ok",VLOOKUP(Base_Inversiones[[#This Row],[Texto fecha]],Administración!$B$2:$C$1432,2,0),"") ->  | AN27: =IF(Base_Inversiones[[#This Row],[Qty]]>0,"ok","no") -> no | AO27: =IF(Base_Inversiones[[#This Row],[Graficar Día]]="ok",$D$1,"") ->  | AP27: =IF(Base_Inversiones[[#This Row],[Graficar Día]]="ok",Base_Inversiones[[#This Row],[Budget Inicial/ Aportación]]+Base_Inversiones[[#This Row],[Saldo]],"") ->  | AS27: =SUM(Base_Inversiones[G/P Neta]) -> 108 | AT27: =IF(Base_Inversiones[[#This Row],[Graficar Día]]="ok",$D$1,"") ->  | AU27: =IF(Base_Inversiones[[#This Row],[Graficar Día]]="ok",WEEKNUM(Base_Inversiones[[#This Row],[Fecha Compra]]),"") ->  | AV27: =IF(Base_Inversiones[[#This Row],[Graficar Día]]="ok",WEEKNUM(DATE(YEAR(Base_Inversiones[[#This Row],[Fecha Compra]]),MONTH(Base_Inversiones[[#This Row],[Fecha Compra]]),1))-1,"") ->  | AW27: =IF(Base_Inversiones[[#This Row],[Graficar Día]]="ok",Base_Inversiones[[#This Row],[Num Semana]]-Base_Inversiones[[#This Row],[Num Sem Extrae]],"") ->  | AX27: =IF(Base_Inversiones[[#This Row],[Graficar Día]]="ok",IFERROR(VLOOKUP(Base_Inversiones[[#This Row],[Mes Corrob]],Administración!$L$4:$M$15,2,0),""),"") -> 
H28: =IF(Base_Inversiones[[#This Row],[Graficar Día]]="ok",F28*G28,"") ->  | R28: =IF(Base_Inversiones[[#This Row],[Graficar Día]]="ok",P28-F28,"") ->  | U28: =IF(Base_Inversiones[[#This Row],[Graficar Día]]="ok",IF(P28="",0,R28*G28-IF(B28="C",(10+0.15*2*G28/100),(0.5*2*G28/100))),"") ->  | X28: =IF(Base_Inversiones[[#This Row],[Graficar Día]]="ok",IF(P28="",0,U28-V28-W28),"") ->  | AC28: =IF(Base_Inversiones[[#This Row],[Graficar Día]]="ok",SUM(AB$5:AB28),"") ->  | AD28: =IF(Base_Inversiones[[#This Row],[Graficar Día]]="ok",(IF(S28>0,"G","P")),"") ->  | AH28: =IF(Base_Inversiones[[#This Row],[Graficar Día]]="ok",DAY(A28),"") ->  | AI28: =IF(Base_Inversiones[[#This Row],[Graficar Día]]="ok",MONTH(A28),"") ->  | AJ28: =IF(Base_Inversiones[[#This Row],[Graficar Día]]="ok",YEAR(A28),"") ->  | AK28: =IF(Base_Inversiones[[#This Row],[Graficar Día]]="ok",IF(LEN(AH28)=1,"0"&AH28,AH28)&"/"&IF(LEN(AI28)=1,"0"&AI28,AI28)&"/"&AJ28,"") ->  | AL28: =TEXT(Base_Inversiones[[#This Row],[Fecha Corrob]],"DD/MM/AAAA") ->  | AM28: =IF(Base_Inversiones[[#This Row],[Graficar Día]]="ok",VLOOKUP(Base_Inversiones[[#This Row],[Texto fecha]],Administración!$B$2:$C$1432,2,0),"") ->  | AN28: =IF(Base_Inversiones[[#This Row],[Qty]]>0,"ok","no") -> no | AO28: =IF(Base_Inversiones[[#This Row],[Graficar Día]]="ok",$D$1,"") ->  | AP28: =IF(Base_Inversiones[[#This Row],[Graficar Día]]="ok",Base_Inversiones[[#This Row],[Budget Inicial/ Aportación]]+Base_Inversiones[[#This Row],[Saldo]],"") ->  | AS28: =SUM(Base_Inversiones[G/P Neta]) -> 108 | AT28: =IF(Base_Inversiones[[#This Row],[Graficar Día]]="ok",$D$1,"") ->  | AU28: =IF(Base_Inversiones[[#This Row],[Graficar Día]]="ok",WEEKNUM(Base_Inversiones[[#This Row],[Fecha Compra]]),"") ->  | AV28: =IF(Base_Inversiones[[#This Row],[Graficar Día]]="ok",WEEKNUM(DATE(YEAR(Base_Inversiones[[#This Row],[Fecha Compra]]),MONTH(Base_Inversiones[[#This Row],[Fecha Compra]]),1))-1,"") ->  | AW28: =IF(Base_Inversiones[[#This Row],[Graficar Día]]="ok",Base_Inversiones[[#This Row],[Num Semana]]-Base_Inversiones[[#This Row],[Num Sem Extrae]],"") ->  | AX28: =IF(Base_Inversiones[[#This Row],[Graficar Día]]="ok",IFERROR(VLOOKUP(Base_Inversiones[[#This Row],[Mes Corrob]],Administración!$L$4:$M$15,2,0),""),"") -> 
H29: =IF(Base_Inversiones[[#This Row],[Graficar Día]]="ok",F29*G29,"") ->  | R29: =IF(Base_Inversiones[[#This Row],[Graficar Día]]="ok",P29-F29,"") ->  | U29: =IF(Base_Inversiones[[#This Row],[Graficar Día]]="ok",IF(P29="",0,R29*G29-IF(B29="C",(10+0.15*2*G29/100),(0.5*2*G29/100))),"") ->  | X29: =IF(Base_Inversiones[[#This Row],[Graficar Día]]="ok",IF(P29="",0,U29-V29-W29),"") ->  | AC29: =IF(Base_Inversiones[[#This Row],[Graficar Día]]="ok",SUM(AB$5:AB29),"") ->  | AD29: =IF(Base_Inversiones[[#This Row],[Graficar Día]]="ok",(IF(S29>0,"G","P")),"") ->  | AH29: =IF(Base_Inversiones[[#This Row],[Graficar Día]]="ok",DAY(A29),"") ->  | AI29: =IF(Base_Inversiones[[#This Row],[Graficar Día]]="ok",MONTH(A29),"") ->  | AJ29: =IF(Base_Inversiones[[#This Row],[Graficar Día]]="ok",YEAR(A29),"") ->  | AK29: =IF(Base_Inversiones[[#This Row],[Graficar Día]]="ok",IF(LEN(AH29)=1,"0"&AH29,AH29)&"/"&IF(LEN(AI29)=1,"0"&AI29,AI29)&"/"&AJ29,"") ->  | AL29: =TEXT(Base_Inversiones[[#This Row],[Fecha Corrob]],"DD/MM/AAAA") ->  | AM29: =IF(Base_Inversiones[[#This Row],[Graficar Día]]="ok",VLOOKUP(Base_Inversiones[[#This Row],[Texto fecha]],Administración!$B$2:$C$1432,2,0),"") ->  | AN29: =IF(Base_Inversiones[[#This Row],[Qty]]>0,"ok","no") -> no | AO29: =IF(Base_Inversiones[[#This Row],[Graficar Día]]="ok",$D$1,"") ->  | AP29: =IF(Base_Inversiones[[#This Row],[Graficar Día]]="ok",Base_Inversiones[[#This Row],[Budget Inicial/ Aportación]]+Base_Inversiones[[#This Row],[Saldo]],"") ->  | AS29: =SUM(Base_Inversiones[G/P Neta]) -> 108 | AT29: =IF(Base_Inversiones[[#This Row],[Graficar Día]]="ok",$D$1,"") ->  | AU29: =IF(Base_Inversiones[[#This Row],[Graficar Día]]="ok",WEEKNUM(Base_Inversiones[[#This Row],[Fecha Compra]]),"") ->  | AV29: =IF(Base_Inversiones[[#This Row],[Graficar Día]]="ok",WEEKNUM(DATE(YEAR(Base_Inversiones[[#This Row],[Fecha Compra]]),MONTH(Base_Inversiones[[#This Row],[Fecha Compra]]),1))-1,"") ->  | AW29: =IF(Base_Inversiones[[#This Row],[Graficar Día]]="ok",Base_Inversiones[[#This Row],[Num Semana]]-Base_Inversiones[[#This Row],[Num Sem Extrae]],"") ->  | AX29: =IF(Base_Inversiones[[#This Row],[Graficar Día]]="ok",IFERROR(VLOOKUP(Base_Inversiones[[#This Row],[Mes Corrob]],Administración!$L$4:$M$15,2,0),""),"") -> 
H30: =IF(Base_Inversiones[[#This Row],[Graficar Día]]="ok",F30*G30,"") ->  | R30: =IF(Base_Inversiones[[#This Row],[Graficar Día]]="ok",P30-F30,"") ->  | U30: =IF(Base_Inversiones[[#This Row],[Graficar Día]]="ok",IF(P30="",0,R30*G30-IF(B30="C",(10+0.15*2*G30/100),(0.5*2*G30/100))),"") ->  | X30: =IF(Base_Inversiones[[#This Row],[Graficar Día]]="ok",IF(P30="",0,U30-V30-W30),"") ->  | AC30: =IF(Base_Inversiones[[#This Row],[Graficar Día]]="ok",SUM(AB$5:AB30),"") ->  | AD30: =IF(Base_Inversiones[[#This Row],[Graficar Día]]="ok",(IF(S30>0,"G","P")),"") ->  | AH30: =IF(Base_Inversiones[[#This Row],[Graficar Día]]="ok",DAY(A30),"") ->  | AI30: =IF(Base_Inversiones[[#This Row],[Graficar Día]]="ok",MONTH(A30),"") ->  | AJ30: =IF(Base_Inversiones[[#This Row],[Graficar Día]]="ok",YEAR(A30),"") ->  | AK30: =IF(Base_Inversiones[[#This Row],[Graficar Día]]="ok",IF(LEN(AH30)=1,"0"&AH30,AH30)&"/"&IF(LEN(AI30)=1,"0"&AI30,AI30)&"/"&AJ30,"") ->  | AL30: =TEXT(Base_Inversiones[[#This Row],[Fecha Corrob]],"DD/MM/AAAA") ->  | AM30: =IF(Base_Inversiones[[#This Row],[Graficar Día]]="ok",VLOOKUP(Base_Inversiones[[#This Row],[Texto fecha]],Administración!$B$2:$C$1432,2,0),"") ->  | AN30: =IF(Base_Inversiones[[#This Row],[Qty]]>0,"ok","no") -> no | AO30: =IF(Base_Inversiones[[#This Row],[Graficar Día]]="ok",$D$1,"") ->  | AP30: =IF(Base_Inversiones[[#This Row],[Graficar Día]]="ok",Base_Inversiones[[#This Row],[Budget Inicial/ Aportación]]+Base_Inversiones[[#This Row],[Saldo]],"") ->  | AS30: =SUM(Base_Inversiones[G/P Neta]) -> 108 | AT30: =IF(Base_Inversiones[[#This Row],[Graficar Día]]="ok",$D$1,"") ->  | AU30: =IF(Base_Inversiones[[#This Row],[Graficar Día]]="ok",WEEKNUM(Base_Inversiones[[#This Row],[Fecha Compra]]),"") ->  | AV30: =IF(Base_Inversiones[[#This Row],[Graficar Día]]="ok",WEEKNUM(DATE(YEAR(Base_Inversiones[[#This Row],[Fecha Compra]]),MONTH(Base_Inversiones[[#This Row],[Fecha Compra]]),1))-1,"") ->  | AW30: =IF(Base_Inversiones[[#This Row],[Graficar Día]]="ok",Base_Inversiones[[#This Row],[Num Semana]]-Base_Inversiones[[#This Row],[Num Sem Extrae]],"") ->  | AX30: =IF(Base_Inversiones[[#This Row],[Graficar Día]]="ok",IFERROR(VLOOKUP(Base_Inversiones[[#This Row],[Mes Corrob]],Administración!$L$4:$M$15,2,0),""),"") -> 
H31: =IF(Base_Inversiones[[#This Row],[Graficar Día]]="ok",F31*G31,"") ->  | R31: =IF(Base_Inversiones[[#This Row],[Graficar Día]]="ok",P31-F31,"") ->  | U31: =IF(Base_Inversiones[[#This Row],[Graficar Día]]="ok",IF(P31="",0,R31*G31-IF(B31="C",(10+0.15*2*G31/100),(0.5*2*G31/100))),"") ->  | X31: =IF(Base_Inversiones[[#This Row],[Graficar Día]]="ok",IF(P31="",0,U31-V31-W31),"") ->  | AC31: =IF(Base_Inversiones[[#This Row],[Graficar Día]]="ok",SUM(AB$5:AB31),"") ->  | AD31: =IF(Base_Inversiones[[#This Row],[Graficar Día]]="ok",(IF(S31>0,"G","P")),"") ->  | AH31: =IF(Base_Inversiones[[#This Row],[Graficar Día]]="ok",DAY(A31),"") ->  | AI31: =IF(Base_Inversiones[[#This Row],[Graficar Día]]="ok",MONTH(A31),"") ->  | AJ31: =IF(Base_Inversiones[[#This Row],[Graficar Día]]="ok",YEAR(A31),"") ->  | AK31: =IF(Base_Inversiones[[#This Row],[Graficar Día]]="ok",IF(LEN(AH31)=1,"0"&AH31,AH31)&"/"&IF(LEN(AI31)=1,"0"&AI31,AI31)&"/"&AJ31,"") ->  | AL31: =TEXT(Base_Inversiones[[#This Row],[Fecha Corrob]],"DD/MM/AAAA") ->  | AM31: =IF(Base_Inversiones[[#This Row],[Graficar Día]]="ok",VLOOKUP(Base_Inversiones[[#This Row],[Texto fecha]],Administración!$B$2:$C$1432,2,0),"") ->  | AN31: =IF(Base_Inversiones[[#This Row],[Qty]]>0,"ok","no") -> no | AO31: =IF(Base_Inversiones[[#This Row],[Graficar Día]]="ok",$D$1,"") ->  | AP31: =IF(Base_Inversiones[[#This Row],[Graficar Día]]="ok",Base_Inversiones[[#This Row],[Budget Inicial/ Aportación]]+Base_Inversiones[[#This Row],[Saldo]],"") ->  | AS31: =SUM(Base_Inversiones[G/P Neta]) -> 108 | AT31: =IF(Base_Inversiones[[#This Row],[Graficar Día]]="ok",$D$1,"") ->  | AU31: =IF(Base_Inversiones[[#This Row],[Graficar Día]]="ok",WEEKNUM(Base_Inversiones[[#This Row],[Fecha Compra]]),"") ->  | AV31: =IF(Base_Inversiones[[#This Row],[Graficar Día]]="ok",WEEKNUM(DATE(YEAR(Base_Inversiones[[#This Row],[Fecha Compra]]),MONTH(Base_Inversiones[[#This Row],[Fecha Compra]]),1))-1,"") ->  | AW31: =IF(Base_Inversiones[[#This Row],[Graficar Día]]="ok",Base_Inversiones[[#This Row],[Num Semana]]-Base_Inversiones[[#This Row],[Num Sem Extrae]],"") ->  | AX31: =IF(Base_Inversiones[[#This Row],[Graficar Día]]="ok",IFERROR(VLOOKUP(Base_Inversiones[[#This Row],[Mes Corrob]],Administración!$L$4:$M$15,2,0),""),"") -> 
H32: =IF(Base_Inversiones[[#This Row],[Graficar Día]]="ok",F32*G32,"") ->  | R32: =IF(Base_Inversiones[[#This Row],[Graficar Día]]="ok",P32-F32,"") ->  | U32: =IF(Base_Inversiones[[#This Row],[Graficar Día]]="ok",IF(P32="",0,R32*G32-IF(B32="C",(10+0.15*2*G32/100),(0.5*2*G32/100))),"") ->  | X32: =IF(Base_Inversiones[[#This Row],[Graficar Día]]="ok",IF(P32="",0,U32-V32-W32),"") ->  | AC32: =IF(Base_Inversiones[[#This Row],[Graficar Día]]="ok",SUM(AB$5:AB32),"") ->  | AD32: =IF(Base_Inversiones[[#This Row],[Graficar Día]]="ok",(IF(S32>0,"G","P")),"") ->  | AH32: =IF(Base_Inversiones[[#This Row],[Graficar Día]]="ok",DAY(A32),"") ->  | AI32: =IF(Base_Inversiones[[#This Row],[Graficar Día]]="ok",MONTH(A32),"") ->  | AJ32: =IF(Base_Inversiones[[#This Row],[Graficar Día]]="ok",YEAR(A32),"") ->  | AK32: =IF(Base_Inversiones[[#This Row],[Graficar Día]]="ok",IF(LEN(AH32)=1,"0"&AH32,AH32)&"/"&IF(LEN(AI32)=1,"0"&AI32,AI32)&"/"&AJ32,"") ->  | AL32: =TEXT(Base_Inversiones[[#This Row],[Fecha Corrob]],"DD/MM/AAAA") ->  | AM32: =IF(Base_Inversiones[[#This Row],[Graficar Día]]="ok",VLOOKUP(Base_Inversiones[[#This Row],[Texto fecha]],Administración!$B$2:$C$1432,2,0),"") ->  | AN32: =IF(Base_Inversiones[[#This Row],[Qty]]>0,"ok","no") -> no | AO32: =IF(Base_Inversiones[[#This Row],[Graficar Día]]="ok",$D$1,"") ->  | AP32: =IF(Base_Inversiones[[#This Row],[Graficar Día]]="ok",Base_Inversiones[[#This Row],[Budget Inicial/ Aportación]]+Base_Inversiones[[#This Row],[Saldo]],"") ->  | AS32: =SUM(Base_Inversiones[G/P Neta]) -> 108 | AT32: =IF(Base_Inversiones[[#This Row],[Graficar Día]]="ok",$D$1,"") ->  | AU32: =IF(Base_Inversiones[[#This Row],[Graficar Día]]="ok",WEEKNUM(Base_Inversiones[[#This Row],[Fecha Compra]]),"") ->  | AV32: =IF(Base_Inversiones[[#This Row],[Graficar Día]]="ok",WEEKNUM(DATE(YEAR(Base_Inversiones[[#This Row],[Fecha Compra]]),MONTH(Base_Inversiones[[#This Row],[Fecha Compra]]),1))-1,"") ->  | AW32: =IF(Base_Inversiones[[#This Row],[Graficar Día]]="ok",Base_Inversiones[[#This Row],[Num Semana]]-Base_Inversiones[[#This Row],[Num Sem Extrae]],"") ->  | AX32: =IF(Base_Inversiones[[#This Row],[Graficar Día]]="ok",IFERROR(VLOOKUP(Base_Inversiones[[#This Row],[Mes Corrob]],Administración!$L$4:$M$15,2,0),""),"") -> 
H33: =IF(Base_Inversiones[[#This Row],[Graficar Día]]="ok",F33*G33,"") ->  | R33: =IF(Base_Inversiones[[#This Row],[Graficar Día]]="ok",P33-F33,"") ->  | U33: =IF(Base_Inversiones[[#This Row],[Graficar Día]]="ok",IF(P33="",0,R33*G33-IF(B33="C",(10+0.15*2*G33/100),(0.5*2*G33/100))),"") ->  | X33: =IF(Base_Inversiones[[#This Row],[Graficar Día]]="ok",IF(P33="",0,U33-V33-W33),"") ->  | AC33: =IF(Base_Inversiones[[#This Row],[Graficar Día]]="ok",SUM(AB$5:AB33),"") ->  | AD33: =IF(Base_Inversiones[[#This Row],[Graficar Día]]="ok",(IF(S33>0,"G","P")),"") ->  | AH33: =IF(Base_Inversiones[[#This Row],[Graficar Día]]="ok",DAY(A33),"") ->  | AI33: =IF(Base_Inversiones[[#This Row],[Graficar Día]]="ok",MONTH(A33),"") ->  | AJ33: =IF(Base_Inversiones[[#This Row],[Graficar Día]]="ok",YEAR(A33),"") ->  | AK33: =IF(Base_Inversiones[[#This Row],[Graficar Día]]="ok",IF(LEN(AH33)=1,"0"&AH33,AH33)&"/"&IF(LEN(AI33)=1,"0"&AI33,AI33)&"/"&AJ33,"") ->  | AL33: =TEXT(Base_Inversiones[[#This Row],[Fecha Corrob]],"DD/MM/AAAA") ->  | AM33: =IF(Base_Inversiones[[#This Row],[Graficar Día]]="ok",VLOOKUP(Base_Inversiones[[#This Row],[Texto fecha]],Administración!$B$2:$C$1432,2,0),"") ->  | AN33: =IF(Base_Inversiones[[#This Row],[Qty]]>0,"ok","no") -> no | AO33: =IF(Base_Inversiones[[#This Row],[Graficar Día]]="ok",$D$1,"") ->  | AP33: =IF(Base_Inversiones[[#This Row],[Graficar Día]]="ok",Base_Inversiones[[#This Row],[Budget Inicial/ Aportación]]+Base_Inversiones[[#This Row],[Saldo]],"") ->  | AS33: =SUM(Base_Inversiones[G/P Neta]) -> 108 | AT33: =IF(Base_Inversiones[[#This Row],[Graficar Día]]="ok",$D$1,"") ->  | AU33: =IF(Base_Inversiones[[#This Row],[Graficar Día]]="ok",WEEKNUM(Base_Inversiones[[#This Row],[Fecha Compra]]),"") ->  | AV33: =IF(Base_Inversiones[[#This Row],[Graficar Día]]="ok",WEEKNUM(DATE(YEAR(Base_Inversiones[[#This Row],[Fecha Compra]]),MONTH(Base_Inversiones[[#This Row],[Fecha Compra]]),1))-1,"") ->  | AW33: =IF(Base_Inversiones[[#This Row],[Graficar Día]]="ok",Base_Inversiones[[#This Row],[Num Semana]]-Base_Inversiones[[#This Row],[Num Sem Extrae]],"") ->  | AX33: =IF(Base_Inversiones[[#This Row],[Graficar Día]]="ok",IFERROR(VLOOKUP(Base_Inversiones[[#This Row],[Mes Corrob]],Administración!$L$4:$M$15,2,0),""),"") -> 
H34: =IF(Base_Inversiones[[#This Row],[Graficar Día]]="ok",F34*G34,"") ->  | R34: =IF(Base_Inversiones[[#This Row],[Graficar Día]]="ok",P34-F34,"") ->  | U34: =IF(Base_Inversiones[[#This Row],[Graficar Día]]="ok",IF(P34="",0,R34*G34-IF(B34="C",(10+0.15*2*G34/100),(0.5*2*G34/100))),"") ->  | X34: =IF(Base_Inversiones[[#This Row],[Graficar Día]]="ok",IF(P34="",0,U34-V34-W34),"") ->  | AC34: =IF(Base_Inversiones[[#This Row],[Graficar Día]]="ok",SUM(AB$5:AB34),"") ->  | AD34: =IF(Base_Inversiones[[#This Row],[Graficar Día]]="ok",(IF(S34>0,"G","P")),"") ->  | AH34: =IF(Base_Inversiones[[#This Row],[Graficar Día]]="ok",DAY(A34),"") ->  | AI34: =IF(Base_Inversiones[[#This Row],[Graficar Día]]="ok",MONTH(A34),"") ->  | AJ34: =IF(Base_Inversiones[[#This Row],[Graficar Día]]="ok",YEAR(A34),"") ->  | AK34: =IF(Base_Inversiones[[#This Row],[Graficar Día]]="ok",IF(LEN(AH34)=1,"0"&AH34,AH34)&"/"&IF(LEN(AI34)=1,"0"&AI34,AI34)&"/"&AJ34,"") ->  | AL34: =TEXT(Base_Inversiones[[#This Row],[Fecha Corrob]],"DD/MM/AAAA") ->  | AM34: =IF(Base_Inversiones[[#This Row],[Graficar Día]]="ok",VLOOKUP(Base_Inversiones[[#This Row],[Texto fecha]],Administración!$B$2:$C$1432,2,0),"") ->  | AN34: =IF(Base_Inversiones[[#This Row],[Qty]]>0,"ok","no") -> no | AO34: =IF(Base_Inversiones[[#This Row],[Graficar Día]]="ok",$D$1,"") ->  | AP34: =IF(Base_Inversiones[[#This Row],[Graficar Día]]="ok",Base_Inversiones[[#This Row],[Budget Inicial/ Aportación]]+Base_Inversiones[[#This Row],[Saldo]],"") ->  | AS34: =SUM(Base_Inversiones[G/P Neta]) -> 108 | AT34: =IF(Base_Inversiones[[#This Row],[Graficar Día]]="ok",$D$1,"") ->  | AU34: =IF(Base_Inversiones[[#This Row],[Graficar Día]]="ok",WEEKNUM(Base_Inversiones[[#This Row],[Fecha Compra]]),"") ->  | AV34: =IF(Base_Inversiones[[#This Row],[Graficar Día]]="ok",WEEKNUM(DATE(YEAR(Base_Inversiones[[#This Row],[Fecha Compra]]),MONTH(Base_Inversiones[[#This Row],[Fecha Compra]]),1))-1,"") ->  | AW34: =IF(Base_Inversiones[[#This Row],[Graficar Día]]="ok",Base_Inversiones[[#This Row],[Num Semana]]-Base_Inversiones[[#This Row],[Num Sem Extrae]],"") ->  | AX34: =IF(Base_Inversiones[[#This Row],[Graficar Día]]="ok",IFERROR(VLOOKUP(Base_Inversiones[[#This Row],[Mes Corrob]],Administración!$L$4:$M$15,2,0),""),"") -> 
H35: =IF(Base_Inversiones[[#This Row],[Graficar Día]]="ok",F35*G35,"") ->  | R35: =IF(Base_Inversiones[[#This Row],[Graficar Día]]="ok",P35-F35,"") ->  | U35: =IF(Base_Inversiones[[#This Row],[Graficar Día]]="ok",IF(P35="",0,R35*G35-IF(B35="C",(10+0.15*2*G35/100),(0.5*2*G35/100))),"") ->  | X35: =IF(Base_Inversiones[[#This Row],[Graficar Día]]="ok",IF(P35="",0,U35-V35-W35),"") ->  | AC35: =IF(Base_Inversiones[[#This Row],[Graficar Día]]="ok",SUM(AB$5:AB35),"") ->  | AD35: =IF(Base_Inversiones[[#This Row],[Graficar Día]]="ok",(IF(S35>0,"G","P")),"") ->  | AH35: =IF(Base_Inversiones[[#This Row],[Graficar Día]]="ok",DAY(A35),"") ->  | AI35: =IF(Base_Inversiones[[#This Row],[Graficar Día]]="ok",MONTH(A35),"") ->  | AJ35: =IF(Base_Inversiones[[#This Row],[Graficar Día]]="ok",YEAR(A35),"") ->  | AK35: =IF(Base_Inversiones[[#This Row],[Graficar Día]]="ok",IF(LEN(AH35)=1,"0"&AH35,AH35)&"/"&IF(LEN(AI35)=1,"0"&AI35,AI35)&"/"&AJ35,"") ->  | AL35: =TEXT(Base_Inversiones[[#This Row],[Fecha Corrob]],"DD/MM/AAAA") ->  | AM35: =IF(Base_Inversiones[[#This Row],[Graficar Día]]="ok",VLOOKUP(Base_Inversiones[[#This Row],[Texto fecha]],Administración!$B$2:$C$1432,2,0),"") ->  | AN35: =IF(Base_Inversiones[[#This Row],[Qty]]>0,"ok","no") -> no | AO35: =IF(Base_Inversiones[[#This Row],[Graficar Día]]="ok",$D$1,"") ->  | AP35: =IF(Base_Inversiones[[#This Row],[Graficar Día]]="ok",Base_Inversiones[[#This Row],[Budget Inicial/ Aportación]]+Base_Inversiones[[#This Row],[Saldo]],"") ->  | AS35: =SUM(Base_Inversiones[G/P Neta]) -> 108 | AT35: =IF(Base_Inversiones[[#This Row],[Graficar Día]]="ok",$D$1,"") ->  | AU35: =IF(Base_Inversiones[[#This Row],[Graficar Día]]="ok",WEEKNUM(Base_Inversiones[[#This Row],[Fecha Compra]]),"") ->  | AV35: =IF(Base_Inversiones[[#This Row],[Graficar Día]]="ok",WEEKNUM(DATE(YEAR(Base_Inversiones[[#This Row],[Fecha Compra]]),MONTH(Base_Inversiones[[#This Row],[Fecha Compra]]),1))-1,"") ->  | AW35: =IF(Base_Inversiones[[#This Row],[Graficar Día]]="ok",Base_Inversiones[[#This Row],[Num Semana]]-Base_Inversiones[[#This Row],[Num Sem Extrae]],"") ->  | AX35: =IF(Base_Inversiones[[#This Row],[Graficar Día]]="ok",IFERROR(VLOOKUP(Base_Inversiones[[#This Row],[Mes Corrob]],Administración!$L$4:$M$15,2,0),""),"") -> 
H36: =IF(Base_Inversiones[[#This Row],[Graficar Día]]="ok",F36*G36,"") ->  | R36: =IF(Base_Inversiones[[#This Row],[Graficar Día]]="ok",P36-F36,"") ->  | U36: =IF(Base_Inversiones[[#This Row],[Graficar Día]]="ok",IF(P36="",0,R36*G36-IF(B36="C",(10+0.15*2*G36/100),(0.5*2*G36/100))),"") ->  | X36: =IF(Base_Inversiones[[#This Row],[Graficar Día]]="ok",IF(P36="",0,U36-V36-W36),"") ->  | AC36: =IF(Base_Inversiones[[#This Row],[Graficar Día]]="ok",SUM(AB$5:AB36),"") ->  | AD36: =IF(Base_Inversiones[[#This Row],[Graficar Día]]="ok",(IF(S36>0,"G","P")),"") ->  | AH36: =IF(Base_Inversiones[[#This Row],[Graficar Día]]="ok",DAY(A36),"") ->  | AI36: =IF(Base_Inversiones[[#This Row],[Graficar Día]]="ok",MONTH(A36),"") ->  | AJ36: =IF(Base_Inversiones[[#This Row],[Graficar Día]]="ok",YEAR(A36),"") ->  | AK36: =IF(Base_Inversiones[[#This Row],[Graficar Día]]="ok",IF(LEN(AH36)=1,"0"&AH36,AH36)&"/"&IF(LEN(AI36)=1,"0"&AI36,AI36)&"/"&AJ36,"") ->  | AL36: =TEXT(Base_Inversiones[[#This Row],[Fecha Corrob]],"DD/MM/AAAA") ->  | AM36: =IF(Base_Inversiones[[#This Row],[Graficar Día]]="ok",VLOOKUP(Base_Inversiones[[#This Row],[Texto fecha]],Administración!$B$2:$C$1432,2,0),"") ->  | AN36: =IF(Base_Inversiones[[#This Row],[Qty]]>0,"ok","no") -> no | AO36: =IF(Base_Inversiones[[#This Row],[Graficar Día]]="ok",$D$1,"") ->  | AP36: =IF(Base_Inversiones[[#This Row],[Graficar Día]]="ok",Base_Inversiones[[#This Row],[Budget Inicial/ Aportación]]+Base_Inversiones[[#This Row],[Saldo]],"") ->  | AS36: =SUM(Base_Inversiones[G/P Neta]) -> 108 | AT36: =IF(Base_Inversiones[[#This Row],[Graficar Día]]="ok",$D$1,"") ->  | AU36: =IF(Base_Inversiones[[#This Row],[Graficar Día]]="ok",WEEKNUM(Base_Inversiones[[#This Row],[Fecha Compra]]),"") ->  | AV36: =IF(Base_Inversiones[[#This Row],[Graficar Día]]="ok",WEEKNUM(DATE(YEAR(Base_Inversiones[[#This Row],[Fecha Compra]]),MONTH(Base_Inversiones[[#This Row],[Fecha Compra]]),1))-1,"") ->  | AW36: =IF(Base_Inversiones[[#This Row],[Graficar Día]]="ok",Base_Inversiones[[#This Row],[Num Semana]]-Base_Inversiones[[#This Row],[Num Sem Extrae]],"") ->  | AX36: =IF(Base_Inversiones[[#This Row],[Graficar Día]]="ok",IFERROR(VLOOKUP(Base_Inversiones[[#This Row],[Mes Corrob]],Administración!$L$4:$M$15,2,0),""),"") -> 
H37: =IF(Base_Inversiones[[#This Row],[Graficar Día]]="ok",F37*G37,"") ->  | R37: =IF(Base_Inversiones[[#This Row],[Graficar Día]]="ok",P37-F37,"") ->  | U37: =IF(Base_Inversiones[[#This Row],[Graficar Día]]="ok",IF(P37="",0,R37*G37-IF(B37="C",(10+0.15*2*G37/100),(0.5*2*G37/100))),"") ->  | X37: =IF(Base_Inversiones[[#This Row],[Graficar Día]]="ok",IF(P37="",0,U37-V37-W37),"") ->  | AC37: =IF(Base_Inversiones[[#This Row],[Graficar Día]]="ok",SUM(AB$5:AB37),"") ->  | AD37: =IF(Base_Inversiones[[#This Row],[Graficar Día]]="ok",(IF(S37>0,"G","P")),"") ->  | AH37: =IF(Base_Inversiones[[#This Row],[Graficar Día]]="ok",DAY(A37),"") ->  | AI37: =IF(Base_Inversiones[[#This Row],[Graficar Día]]="ok",MONTH(A37),"") ->  | AJ37: =IF(Base_Inversiones[[#This Row],[Graficar Día]]="ok",YEAR(A37),"") ->  | AK37: =IF(Base_Inversiones[[#This Row],[Graficar Día]]="ok",IF(LEN(AH37)=1,"0"&AH37,AH37)&"/"&IF(LEN(AI37)=1,"0"&AI37,AI37)&"/"&AJ37,"") ->  | AL37: =TEXT(Base_Inversiones[[#This Row],[Fecha Corrob]],"DD/MM/AAAA") ->  | AM37: =IF(Base_Inversiones[[#This Row],[Graficar Día]]="ok",VLOOKUP(Base_Inversiones[[#This Row],[Texto fecha]],Administración!$B$2:$C$1432,2,0),"") ->  | AN37: =IF(Base_Inversiones[[#This Row],[Qty]]>0,"ok","no") -> no | AO37: =IF(Base_Inversiones[[#This Row],[Graficar Día]]="ok",$D$1,"") ->  | AP37: =IF(Base_Inversiones[[#This Row],[Graficar Día]]="ok",Base_Inversiones[[#This Row],[Budget Inicial/ Aportación]]+Base_Inversiones[[#This Row],[Saldo]],"") ->  | AS37: =SUM(Base_Inversiones[G/P Neta]) -> 108 | AT37: =IF(Base_Inversiones[[#This Row],[Graficar Día]]="ok",$D$1,"") ->  | AU37: =IF(Base_Inversiones[[#This Row],[Graficar Día]]="ok",WEEKNUM(Base_Inversiones[[#This Row],[Fecha Compra]]),"") ->  | AV37: =IF(Base_Inversiones[[#This Row],[Graficar Día]]="ok",WEEKNUM(DATE(YEAR(Base_Inversiones[[#This Row],[Fecha Compra]]),MONTH(Base_Inversiones[[#This Row],[Fecha Compra]]),1))-1,"") ->  | AW37: =IF(Base_Inversiones[[#This Row],[Graficar Día]]="ok",Base_Inversiones[[#This Row],[Num Semana]]-Base_Inversiones[[#This Row],[Num Sem Extrae]],"") ->  | AX37: =IF(Base_Inversiones[[#This Row],[Graficar Día]]="ok",IFERROR(VLOOKUP(Base_Inversiones[[#This Row],[Mes Corrob]],Administración!$L$4:$M$15,2,0),""),"") -> 
H38: =IF(Base_Inversiones[[#This Row],[Graficar Día]]="ok",F38*G38,"") ->  | R38: =IF(Base_Inversiones[[#This Row],[Graficar Día]]="ok",P38-F38,"") ->  | U38: =IF(Base_Inversiones[[#This Row],[Graficar Día]]="ok",IF(P38="",0,R38*G38-IF(B38="C",(10+0.15*2*G38/100),(0.5*2*G38/100))),"") ->  | X38: =IF(Base_Inversiones[[#This Row],[Graficar Día]]="ok",IF(P38="",0,U38-V38-W38),"") ->  | AC38: =IF(Base_Inversiones[[#This Row],[Graficar Día]]="ok",SUM(AB$5:AB38),"") ->  | AD38: =IF(Base_Inversiones[[#This Row],[Graficar Día]]="ok",(IF(S38>0,"G","P")),"") ->  | AH38: =IF(Base_Inversiones[[#This Row],[Graficar Día]]="ok",DAY(A38),"") ->  | AI38: =IF(Base_Inversiones[[#This Row],[Graficar Día]]="ok",MONTH(A38),"") ->  | AJ38: =IF(Base_Inversiones[[#This Row],[Graficar Día]]="ok",YEAR(A38),"") ->  | AK38: =IF(Base_Inversiones[[#This Row],[Graficar Día]]="ok",IF(LEN(AH38)=1,"0"&AH38,AH38)&"/"&IF(LEN(AI38)=1,"0"&AI38,AI38)&"/"&AJ38,"") ->  | AL38: =TEXT(Base_Inversiones[[#This Row],[Fecha Corrob]],"DD/MM/AAAA") ->  | AM38: =IF(Base_Inversiones[[#This Row],[Graficar Día]]="ok",VLOOKUP(Base_Inversiones[[#This Row],[Texto fecha]],Administración!$B$2:$C$1432,2,0),"") ->  | AN38: =IF(Base_Inversiones[[#This Row],[Qty]]>0,"ok","no") -> no | AO38: =IF(Base_Inversiones[[#This Row],[Graficar Día]]="ok",$D$1,"") ->  | AP38: =IF(Base_Inversiones[[#This Row],[Graficar Día]]="ok",Base_Inversiones[[#This Row],[Budget Inicial/ Aportación]]+Base_Inversiones[[#This Row],[Saldo]],"") ->  | AS38: =SUM(Base_Inversiones[G/P Neta]) -> 108 | AT38: =IF(Base_Inversiones[[#This Row],[Graficar Día]]="ok",$D$1,"") ->  | AU38: =IF(Base_Inversiones[[#This Row],[Graficar Día]]="ok",WEEKNUM(Base_Inversiones[[#This Row],[Fecha Compra]]),"") ->  | AV38: =IF(Base_Inversiones[[#This Row],[Graficar Día]]="ok",WEEKNUM(DATE(YEAR(Base_Inversiones[[#This Row],[Fecha Compra]]),MONTH(Base_Inversiones[[#This Row],[Fecha Compra]]),1))-1,"") ->  | AW38: =IF(Base_Inversiones[[#This Row],[Graficar Día]]="ok",Base_Inversiones[[#This Row],[Num Semana]]-Base_Inversiones[[#This Row],[Num Sem Extrae]],"") ->  | AX38: =IF(Base_Inversiones[[#This Row],[Graficar Día]]="ok",IFERROR(VLOOKUP(Base_Inversiones[[#This Row],[Mes Corrob]],Administración!$L$4:$M$15,2,0),""),"") -> 
H39: =IF(Base_Inversiones[[#This Row],[Graficar Día]]="ok",F39*G39,"") ->  | R39: =IF(Base_Inversiones[[#This Row],[Graficar Día]]="ok",P39-F39,"") ->  | U39: =IF(Base_Inversiones[[#This Row],[Graficar Día]]="ok",IF(P39="",0,R39*G39-IF(B39="C",(10+0.15*2*G39/100),(0.5*2*G39/100))),"") ->  | X39: =IF(Base_Inversiones[[#This Row],[Graficar Día]]="ok",IF(P39="",0,U39-V39-W39),"") ->  | AC39: =IF(Base_Inversiones[[#This Row],[Graficar Día]]="ok",SUM(AB$5:AB39),"") ->  | AD39: =IF(Base_Inversiones[[#This Row],[Graficar Día]]="ok",(IF(S39>0,"G","P")),"") ->  | AH39: =IF(Base_Inversiones[[#This Row],[Graficar Día]]="ok",DAY(A39),"") ->  | AI39: =IF(Base_Inversiones[[#This Row],[Graficar Día]]="ok",MONTH(A39),"") ->  | AJ39: =IF(Base_Inversiones[[#This Row],[Graficar Día]]="ok",YEAR(A39),"") ->  | AK39: =IF(Base_Inversiones[[#This Row],[Graficar Día]]="ok",IF(LEN(AH39)=1,"0"&AH39,AH39)&"/"&IF(LEN(AI39)=1,"0"&AI39,AI39)&"/"&AJ39,"") ->  | AL39: =TEXT(Base_Inversiones[[#This Row],[Fecha Corrob]],"DD/MM/AAAA") ->  | AM39: =IF(Base_Inversiones[[#This Row],[Graficar Día]]="ok",VLOOKUP(Base_Inversiones[[#This Row],[Texto fecha]],Administración!$B$2:$C$1432,2,0),"") ->  | AN39: =IF(Base_Inversiones[[#This Row],[Qty]]>0,"ok","no") -> no | AO39: =IF(Base_Inversiones[[#This Row],[Graficar Día]]="ok",$D$1,"") ->  | AP39: =IF(Base_Inversiones[[#This Row],[Graficar Día]]="ok",Base_Inversiones[[#This Row],[Budget Inicial/ Aportación]]+Base_Inversiones[[#This Row],[Saldo]],"") ->  | AS39: =SUM(Base_Inversiones[G/P Neta]) -> 108 | AT39: =IF(Base_Inversiones[[#This Row],[Graficar Día]]="ok",$D$1,"") ->  | AU39: =IF(Base_Inversiones[[#This Row],[Graficar Día]]="ok",WEEKNUM(Base_Inversiones[[#This Row],[Fecha Compra]]),"") ->  | AV39: =IF(Base_Inversiones[[#This Row],[Graficar Día]]="ok",WEEKNUM(DATE(YEAR(Base_Inversiones[[#This Row],[Fecha Compra]]),MONTH(Base_Inversiones[[#This Row],[Fecha Compra]]),1))-1,"") ->  | AW39: =IF(Base_Inversiones[[#This Row],[Graficar Día]]="ok",Base_Inversiones[[#This Row],[Num Semana]]-Base_Inversiones[[#This Row],[Num Sem Extrae]],"") ->  | AX39: =IF(Base_Inversiones[[#This Row],[Graficar Día]]="ok",IFERROR(VLOOKUP(Base_Inversiones[[#This Row],[Mes Corrob]],Administración!$L$4:$M$15,2,0),""),"") -> 
H40: =IF(Base_Inversiones[[#This Row],[Graficar Día]]="ok",F40*G40,"") ->  | R40: =IF(Base_Inversiones[[#This Row],[Graficar Día]]="ok",P40-F40,"") ->  | U40: =IF(Base_Inversiones[[#This Row],[Graficar Día]]="ok",IF(P40="",0,R40*G40-IF(B40="C",(10+0.15*2*G40/100),(0.5*2*G40/100))),"") ->  | X40: =IF(Base_Inversiones[[#This Row],[Graficar Día]]="ok",IF(P40="",0,U40-V40-W40),"") ->  | AC40: =IF(Base_Inversiones[[#This Row],[Graficar Día]]="ok",SUM(AB$5:AB40),"") ->  | AD40: =IF(Base_Inversiones[[#This Row],[Graficar Día]]="ok",(IF(S40>0,"G","P")),"") ->  | AH40: =IF(Base_Inversiones[[#This Row],[Graficar Día]]="ok",DAY(A40),"") ->  | AI40: =IF(Base_Inversiones[[#This Row],[Graficar Día]]="ok",MONTH(A40),"") ->  | AJ40: =IF(Base_Inversiones[[#This Row],[Graficar Día]]="ok",YEAR(A40),"") ->  | AK40: =IF(Base_Inversiones[[#This Row],[Graficar Día]]="ok",IF(LEN(AH40)=1,"0"&AH40,AH40)&"/"&IF(LEN(AI40)=1,"0"&AI40,AI40)&"/"&AJ40,"") ->  | AL40: =TEXT(Base_Inversiones[[#This Row],[Fecha Corrob]],"DD/MM/AAAA") ->  | AM40: =IF(Base_Inversiones[[#This Row],[Graficar Día]]="ok",VLOOKUP(Base_Inversiones[[#This Row],[Texto fecha]],Administración!$B$2:$C$1432,2,0),"") ->  | AN40: =IF(Base_Inversiones[[#This Row],[Qty]]>0,"ok","no") -> no | AO40: =IF(Base_Inversiones[[#This Row],[Graficar Día]]="ok",$D$1,"") ->  | AP40: =IF(Base_Inversiones[[#This Row],[Graficar Día]]="ok",Base_Inversiones[[#This Row],[Budget Inicial/ Aportación]]+Base_Inversiones[[#This Row],[Saldo]],"") ->  | AS40: =SUM(Base_Inversiones[G/P Neta]) -> 108 | AT40: =IF(Base_Inversiones[[#This Row],[Graficar Día]]="ok",$D$1,"") ->  | AU40: =IF(Base_Inversiones[[#This Row],[Graficar Día]]="ok",WEEKNUM(Base_Inversiones[[#This Row],[Fecha Compra]]),"") ->  | AV40: =IF(Base_Inversiones[[#This Row],[Graficar Día]]="ok",WEEKNUM(DATE(YEAR(Base_Inversiones[[#This Row],[Fecha Compra]]),MONTH(Base_Inversiones[[#This Row],[Fecha Compra]]),1))-1,"") ->  | AW40: =IF(Base_Inversiones[[#This Row],[Graficar Día]]="ok",Base_Inversiones[[#This Row],[Num Semana]]-Base_Inversiones[[#This Row],[Num Sem Extrae]],"") ->  | AX40: =IF(Base_Inversiones[[#This Row],[Graficar Día]]="ok",IFERROR(VLOOKUP(Base_Inversiones[[#This Row],[Mes Corrob]],Administración!$L$4:$M$15,2,0),""),"") -> 
H41: =IF(Base_Inversiones[[#This Row],[Graficar Día]]="ok",F41*G41,"") ->  | R41: =IF(Base_Inversiones[[#This Row],[Graficar Día]]="ok",P41-F41,"") ->  | U41: =IF(Base_Inversiones[[#This Row],[Graficar Día]]="ok",IF(P41="",0,R41*G41-IF(B41="C",(10+0.15*2*G41/100),(0.5*2*G41/100))),"") ->  | X41: =IF(Base_Inversiones[[#This Row],[Graficar Día]]="ok",IF(P41="",0,U41-V41-W41),"") ->  | AC41: =IF(Base_Inversiones[[#This Row],[Graficar Día]]="ok",SUM(AB$5:AB41),"") ->  | AD41: =IF(Base_Inversiones[[#This Row],[Graficar Día]]="ok",(IF(S41>0,"G","P")),"") ->  | AH41: =IF(Base_Inversiones[[#This Row],[Graficar Día]]="ok",DAY(A41),"") ->  | AI41: =IF(Base_Inversiones[[#This Row],[Graficar Día]]="ok",MONTH(A41),"") ->  | AJ41: =IF(Base_Inversiones[[#This Row],[Graficar Día]]="ok",YEAR(A41),"") ->  | AK41: =IF(Base_Inversiones[[#This Row],[Graficar Día]]="ok",IF(LEN(AH41)=1,"0"&AH41,AH41)&"/"&IF(LEN(AI41)=1,"0"&AI41,AI41)&"/"&AJ41,"") ->  | AL41: =TEXT(Base_Inversiones[[#This Row],[Fecha Corrob]],"DD/MM/AAAA") ->  | AM41: =IF(Base_Inversiones[[#This Row],[Graficar Día]]="ok",VLOOKUP(Base_Inversiones[[#This Row],[Texto fecha]],Administración!$B$2:$C$1432,2,0),"") ->  | AN41: =IF(Base_Inversiones[[#This Row],[Qty]]>0,"ok","no") -> no | AO41: =IF(Base_Inversiones[[#This Row],[Graficar Día]]="ok",$D$1,"") ->  | AP41: =IF(Base_Inversiones[[#This Row],[Graficar Día]]="ok",Base_Inversiones[[#This Row],[Budget Inicial/ Aportación]]+Base_Inversiones[[#This Row],[Saldo]],"") ->  | AS41: =SUM(Base_Inversiones[G/P Neta]) -> 108 | AT41: =IF(Base_Inversiones[[#This Row],[Graficar Día]]="ok",$D$1,"") ->  | AU41: =IF(Base_Inversiones[[#This Row],[Graficar Día]]="ok",WEEKNUM(Base_Inversiones[[#This Row],[Fecha Compra]]),"") ->  | AV41: =IF(Base_Inversiones[[#This Row],[Graficar Día]]="ok",WEEKNUM(DATE(YEAR(Base_Inversiones[[#This Row],[Fecha Compra]]),MONTH(Base_Inversiones[[#This Row],[Fecha Compra]]),1))-1,"") ->  | AW41: =IF(Base_Inversiones[[#This Row],[Graficar Día]]="ok",Base_Inversiones[[#This Row],[Num Semana]]-Base_Inversiones[[#This Row],[Num Sem Extrae]],"") ->  | AX41: =IF(Base_Inversiones[[#This Row],[Graficar Día]]="ok",IFERROR(VLOOKUP(Base_Inversiones[[#This Row],[Mes Corrob]],Administración!$L$4:$M$15,2,0),""),"") -> 
H42: =IF(Base_Inversiones[[#This Row],[Graficar Día]]="ok",F42*G42,"") ->  | R42: =IF(Base_Inversiones[[#This Row],[Graficar Día]]="ok",P42-F42,"") ->  | U42: =IF(Base_Inversiones[[#This Row],[Graficar Día]]="ok",IF(P42="",0,R42*G42-IF(B42="C",(10+0.15*2*G42/100),(0.5*2*G42/100))),"") ->  | X42: =IF(Base_Inversiones[[#This Row],[Graficar Día]]="ok",IF(P42="",0,U42-V42-W42),"") ->  | AC42: =IF(Base_Inversiones[[#This Row],[Graficar Día]]="ok",SUM(AB$5:AB42),"") ->  | AD42: =IF(Base_Inversiones[[#This Row],[Graficar Día]]="ok",(IF(S42>0,"G","P")),"") ->  | AH42: =IF(Base_Inversiones[[#This Row],[Graficar Día]]="ok",DAY(A42),"") ->  | AI42: =IF(Base_Inversiones[[#This Row],[Graficar Día]]="ok",MONTH(A42),"") ->  | AJ42: =IF(Base_Inversiones[[#This Row],[Graficar Día]]="ok",YEAR(A42),"") ->  | AK42: =IF(Base_Inversiones[[#This Row],[Graficar Día]]="ok",IF(LEN(AH42)=1,"0"&AH42,AH42)&"/"&IF(LEN(AI42)=1,"0"&AI42,AI42)&"/"&AJ42,"") ->  | AL42: =TEXT(Base_Inversiones[[#This Row],[Fecha Corrob]],"DD/MM/AAAA") ->  | AM42: =IF(Base_Inversiones[[#This Row],[Graficar Día]]="ok",VLOOKUP(Base_Inversiones[[#This Row],[Texto fecha]],Administración!$B$2:$C$1432,2,0),"") ->  | AN42: =IF(Base_Inversiones[[#This Row],[Qty]]>0,"ok","no") -> no | AO42: =IF(Base_Inversiones[[#This Row],[Graficar Día]]="ok",$D$1,"") ->  | AP42: =IF(Base_Inversiones[[#This Row],[Graficar Día]]="ok",Base_Inversiones[[#This Row],[Budget Inicial/ Aportación]]+Base_Inversiones[[#This Row],[Saldo]],"") ->  | AS42: =SUM(Base_Inversiones[G/P Neta]) -> 108 | AT42: =IF(Base_Inversiones[[#This Row],[Graficar Día]]="ok",$D$1,"") ->  | AU42: =IF(Base_Inversiones[[#This Row],[Graficar Día]]="ok",WEEKNUM(Base_Inversiones[[#This Row],[Fecha Compra]]),"") ->  | AV42: =IF(Base_Inversiones[[#This Row],[Graficar Día]]="ok",WEEKNUM(DATE(YEAR(Base_Inversiones[[#This Row],[Fecha Compra]]),MONTH(Base_Inversiones[[#This Row],[Fecha Compra]]),1))-1,"") ->  | AW42: =IF(Base_Inversiones[[#This Row],[Graficar Día]]="ok",Base_Inversiones[[#This Row],[Num Semana]]-Base_Inversiones[[#This Row],[Num Sem Extrae]],"") ->  | AX42: =IF(Base_Inversiones[[#This Row],[Graficar Día]]="ok",IFERROR(VLOOKUP(Base_Inversiones[[#This Row],[Mes Corrob]],Administración!$L$4:$M$15,2,0),""),"") -> 
H43: =IF(Base_Inversiones[[#This Row],[Graficar Día]]="ok",F43*G43,"") ->  | R43: =IF(Base_Inversiones[[#This Row],[Graficar Día]]="ok",P43-F43,"") ->  | U43: =IF(Base_Inversiones[[#This Row],[Graficar Día]]="ok",IF(P43="",0,R43*G43-IF(B43="C",(10+0.15*2*G43/100),(0.5*2*G43/100))),"") ->  | X43: =IF(Base_Inversiones[[#This Row],[Graficar Día]]="ok",IF(P43="",0,U43-V43-W43),"") ->  | AC43: =IF(Base_Inversiones[[#This Row],[Graficar Día]]="ok",SUM(AB$5:AB43),"") ->  | AD43: =IF(Base_Inversiones[[#This Row],[Graficar Día]]="ok",(IF(S43>0,"G","P")),"") ->  | AH43: =IF(Base_Inversiones[[#This Row],[Graficar Día]]="ok",DAY(A43),"") ->  | AI43: =IF(Base_Inversiones[[#This Row],[Graficar Día]]="ok",MONTH(A43),"") ->  | AJ43: =IF(Base_Inversiones[[#This Row],[Graficar Día]]="ok",YEAR(A43),"") ->  | AK43: =IF(Base_Inversiones[[#This Row],[Graficar Día]]="ok",IF(LEN(AH43)=1,"0"&AH43,AH43)&"/"&IF(LEN(AI43)=1,"0"&AI43,AI43)&"/"&AJ43,"") ->  | AL43: =TEXT(Base_Inversiones[[#This Row],[Fecha Corrob]],"DD/MM/AAAA") ->  | AM43: =IF(Base_Inversiones[[#This Row],[Graficar Día]]="ok",VLOOKUP(Base_Inversiones[[#This Row],[Texto fecha]],Administración!$B$2:$C$1432,2,0),"") ->  | AN43: =IF(Base_Inversiones[[#This Row],[Qty]]>0,"ok","no") -> no | AO43: =IF(Base_Inversiones[[#This Row],[Graficar Día]]="ok",$D$1,"") ->  | AP43: =IF(Base_Inversiones[[#This Row],[Graficar Día]]="ok",Base_Inversiones[[#This Row],[Budget Inicial/ Aportación]]+Base_Inversiones[[#This Row],[Saldo]],"") ->  | AS43: =SUM(Base_Inversiones[G/P Neta]) -> 108 | AT43: =IF(Base_Inversiones[[#This Row],[Graficar Día]]="ok",$D$1,"") ->  | AU43: =IF(Base_Inversiones[[#This Row],[Graficar Día]]="ok",WEEKNUM(Base_Inversiones[[#This Row],[Fecha Compra]]),"") ->  | AV43: =IF(Base_Inversiones[[#This Row],[Graficar Día]]="ok",WEEKNUM(DATE(YEAR(Base_Inversiones[[#This Row],[Fecha Compra]]),MONTH(Base_Inversiones[[#This Row],[Fecha Compra]]),1))-1,"") ->  | AW43: =IF(Base_Inversiones[[#This Row],[Graficar Día]]="ok",Base_Inversiones[[#This Row],[Num Semana]]-Base_Inversiones[[#This Row],[Num Sem Extrae]],"") ->  | AX43: =IF(Base_Inversiones[[#This Row],[Graficar Día]]="ok",IFERROR(VLOOKUP(Base_Inversiones[[#This Row],[Mes Corrob]],Administración!$L$4:$M$15,2,0),""),"") -> 
H44: =IF(Base_Inversiones[[#This Row],[Graficar Día]]="ok",F44*G44,"") ->  | R44: =IF(Base_Inversiones[[#This Row],[Graficar Día]]="ok",P44-F44,"") ->  | U44: =IF(Base_Inversiones[[#This Row],[Graficar Día]]="ok",IF(P44="",0,R44*G44-IF(B44="C",(10+0.15*2*G44/100),(0.5*2*G44/100))),"") ->  | X44: =IF(Base_Inversiones[[#This Row],[Graficar Día]]="ok",IF(P44="",0,U44-V44-W44),"") ->  | AC44: =IF(Base_Inversiones[[#This Row],[Graficar Día]]="ok",SUM(AB$5:AB44),"") ->  | AD44: =IF(Base_Inversiones[[#This Row],[Graficar Día]]="ok",(IF(S44>0,"G","P")),"") ->  | AH44: =IF(Base_Inversiones[[#This Row],[Graficar Día]]="ok",DAY(A44),"") ->  | AI44: =IF(Base_Inversiones[[#This Row],[Graficar Día]]="ok",MONTH(A44),"") ->  | AJ44: =IF(Base_Inversiones[[#This Row],[Graficar Día]]="ok",YEAR(A44),"") ->  | AK44: =IF(Base_Inversiones[[#This Row],[Graficar Día]]="ok",IF(LEN(AH44)=1,"0"&AH44,AH44)&"/"&IF(LEN(AI44)=1,"0"&AI44,AI44)&"/"&AJ44,"") ->  | AL44: =TEXT(Base_Inversiones[[#This Row],[Fecha Corrob]],"DD/MM/AAAA") ->  | AM44: =IF(Base_Inversiones[[#This Row],[Graficar Día]]="ok",VLOOKUP(Base_Inversiones[[#This Row],[Texto fecha]],Administración!$B$2:$C$1432,2,0),"") ->  | AN44: =IF(Base_Inversiones[[#This Row],[Qty]]>0,"ok","no") -> no | AO44: =IF(Base_Inversiones[[#This Row],[Graficar Día]]="ok",$D$1,"") ->  | AP44: =IF(Base_Inversiones[[#This Row],[Graficar Día]]="ok",Base_Inversiones[[#This Row],[Budget Inicial/ Aportación]]+Base_Inversiones[[#This Row],[Saldo]],"") ->  | AS44: =SUM(Base_Inversiones[G/P Neta]) -> 108 | AT44: =IF(Base_Inversiones[[#This Row],[Graficar Día]]="ok",$D$1,"") ->  | AU44: =IF(Base_Inversiones[[#This Row],[Graficar Día]]="ok",WEEKNUM(Base_Inversiones[[#This Row],[Fecha Compra]]),"") ->  | AV44: =IF(Base_Inversiones[[#This Row],[Graficar Día]]="ok",WEEKNUM(DATE(YEAR(Base_Inversiones[[#This Row],[Fecha Compra]]),MONTH(Base_Inversiones[[#This Row],[Fecha Compra]]),1))-1,"") ->  | AW44: =IF(Base_Inversiones[[#This Row],[Graficar Día]]="ok",Base_Inversiones[[#This Row],[Num Semana]]-Base_Inversiones[[#This Row],[Num Sem Extrae]],"") ->  | AX44: =IF(Base_Inversiones[[#This Row],[Graficar Día]]="ok",IFERROR(VLOOKUP(Base_Inversiones[[#This Row],[Mes Corrob]],Administración!$L$4:$M$15,2,0),""),"") -> 
H45: =IF(Base_Inversiones[[#This Row],[Graficar Día]]="ok",F45*G45,"") ->  | R45: =IF(Base_Inversiones[[#This Row],[Graficar Día]]="ok",P45-F45,"") ->  | U45: =IF(Base_Inversiones[[#This Row],[Graficar Día]]="ok",IF(P45="",0,R45*G45-IF(B45="C",(10+0.15*2*G45/100),(0.5*2*G45/100))),"") ->  | X45: =IF(Base_Inversiones[[#This Row],[Graficar Día]]="ok",IF(P45="",0,U45-V45-W45),"") ->  | AC45: =IF(Base_Inversiones[[#This Row],[Graficar Día]]="ok",SUM(AB$5:AB45),"") ->  | AD45: =IF(Base_Inversiones[[#This Row],[Graficar Día]]="ok",(IF(S45>0,"G","P")),"") ->  | AH45: =IF(Base_Inversiones[[#This Row],[Graficar Día]]="ok",DAY(A45),"") ->  | AI45: =IF(Base_Inversiones[[#This Row],[Graficar Día]]="ok",MONTH(A45),"") ->  | AJ45: =IF(Base_Inversiones[[#This Row],[Graficar Día]]="ok",YEAR(A45),"") ->  | AK45: =IF(Base_Inversiones[[#This Row],[Graficar Día]]="ok",IF(LEN(AH45)=1,"0"&AH45,AH45)&"/"&IF(LEN(AI45)=1,"0"&AI45,AI45)&"/"&AJ45,"") ->  | AL45: =TEXT(Base_Inversiones[[#This Row],[Fecha Corrob]],"DD/MM/AAAA") ->  | AM45: =IF(Base_Inversiones[[#This Row],[Graficar Día]]="ok",VLOOKUP(Base_Inversiones[[#This Row],[Texto fecha]],Administración!$B$2:$C$1432,2,0),"") ->  | AN45: =IF(Base_Inversiones[[#This Row],[Qty]]>0,"ok","no") -> no | AO45: =IF(Base_Inversiones[[#This Row],[Graficar Día]]="ok",$D$1,"") ->  | AP45: =IF(Base_Inversiones[[#This Row],[Graficar Día]]="ok",Base_Inversiones[[#This Row],[Budget Inicial/ Aportación]]+Base_Inversiones[[#This Row],[Saldo]],"") ->  | AS45: =SUM(Base_Inversiones[G/P Neta]) -> 108 | AT45: =IF(Base_Inversiones[[#This Row],[Graficar Día]]="ok",$D$1,"") ->  | AU45: =IF(Base_Inversiones[[#This Row],[Graficar Día]]="ok",WEEKNUM(Base_Inversiones[[#This Row],[Fecha Compra]]),"") ->  | AV45: =IF(Base_Inversiones[[#This Row],[Graficar Día]]="ok",WEEKNUM(DATE(YEAR(Base_Inversiones[[#This Row],[Fecha Compra]]),MONTH(Base_Inversiones[[#This Row],[Fecha Compra]]),1))-1,"") ->  | AW45: =IF(Base_Inversiones[[#This Row],[Graficar Día]]="ok",Base_Inversiones[[#This Row],[Num Semana]]-Base_Inversiones[[#This Row],[Num Sem Extrae]],"") ->  | AX45: =IF(Base_Inversiones[[#This Row],[Graficar Día]]="ok",IFERROR(VLOOKUP(Base_Inversiones[[#This Row],[Mes Corrob]],Administración!$L$4:$M$15,2,0),""),"") -> 
H46: =IF(Base_Inversiones[[#This Row],[Graficar Día]]="ok",F46*G46,"") ->  | R46: =IF(Base_Inversiones[[#This Row],[Graficar Día]]="ok",P46-F46,"") ->  | U46: =IF(Base_Inversiones[[#This Row],[Graficar Día]]="ok",IF(P46="",0,R46*G46-IF(B46="C",(10+0.15*2*G46/100),(0.5*2*G46/100))),"") ->  | X46: =IF(Base_Inversiones[[#This Row],[Graficar Día]]="ok",IF(P46="",0,U46-V46-W46),"") ->  | AC46: =IF(Base_Inversiones[[#This Row],[Graficar Día]]="ok",SUM(AB$5:AB46),"") ->  | AD46: =IF(Base_Inversiones[[#This Row],[Graficar Día]]="ok",(IF(S46>0,"G","P")),"") ->  | AH46: =IF(Base_Inversiones[[#This Row],[Graficar Día]]="ok",DAY(A46),"") ->  | AI46: =IF(Base_Inversiones[[#This Row],[Graficar Día]]="ok",MONTH(A46),"") ->  | AJ46: =IF(Base_Inversiones[[#This Row],[Graficar Día]]="ok",YEAR(A46),"") ->  | AK46: =IF(Base_Inversiones[[#This Row],[Graficar Día]]="ok",IF(LEN(AH46)=1,"0"&AH46,AH46)&"/"&IF(LEN(AI46)=1,"0"&AI46,AI46)&"/"&AJ46,"") ->  | AL46: =TEXT(Base_Inversiones[[#This Row],[Fecha Corrob]],"DD/MM/AAAA") ->  | AM46: =IF(Base_Inversiones[[#This Row],[Graficar Día]]="ok",VLOOKUP(Base_Inversiones[[#This Row],[Texto fecha]],Administración!$B$2:$C$1432,2,0),"") ->  | AN46: =IF(Base_Inversiones[[#This Row],[Qty]]>0,"ok","no") -> no | AO46: =IF(Base_Inversiones[[#This Row],[Graficar Día]]="ok",$D$1,"") ->  | AP46: =IF(Base_Inversiones[[#This Row],[Graficar Día]]="ok",Base_Inversiones[[#This Row],[Budget Inicial/ Aportación]]+Base_Inversiones[[#This Row],[Saldo]],"") ->  | AS46: =SUM(Base_Inversiones[G/P Neta]) -> 108 | AT46: =IF(Base_Inversiones[[#This Row],[Graficar Día]]="ok",$D$1,"") ->  | AU46: =IF(Base_Inversiones[[#This Row],[Graficar Día]]="ok",WEEKNUM(Base_Inversiones[[#This Row],[Fecha Compra]]),"") ->  | AV46: =IF(Base_Inversiones[[#This Row],[Graficar Día]]="ok",WEEKNUM(DATE(YEAR(Base_Inversiones[[#This Row],[Fecha Compra]]),MONTH(Base_Inversiones[[#This Row],[Fecha Compra]]),1))-1,"") ->  | AW46: =IF(Base_Inversiones[[#This Row],[Graficar Día]]="ok",Base_Inversiones[[#This Row],[Num Semana]]-Base_Inversiones[[#This Row],[Num Sem Extrae]],"") ->  | AX46: =IF(Base_Inversiones[[#This Row],[Graficar Día]]="ok",IFERROR(VLOOKUP(Base_Inversiones[[#This Row],[Mes Corrob]],Administración!$L$4:$M$15,2,0),""),"") -> 
H47: =IF(Base_Inversiones[[#This Row],[Graficar Día]]="ok",F47*G47,"") ->  | R47: =IF(Base_Inversiones[[#This Row],[Graficar Día]]="ok",P47-F47,"") ->  | U47: =IF(Base_Inversiones[[#This Row],[Graficar Día]]="ok",IF(P47="",0,R47*G47-IF(B47="C",(10+0.15*2*G47/100),(0.5*2*G47/100))),"") ->  | X47: =IF(Base_Inversiones[[#This Row],[Graficar Día]]="ok",IF(P47="",0,U47-V47-W47),"") ->  | AC47: =IF(Base_Inversiones[[#This Row],[Graficar Día]]="ok",SUM(AB$5:AB47),"") ->  | AD47: =IF(Base_Inversiones[[#This Row],[Graficar Día]]="ok",(IF(S47>0,"G","P")),"") ->  | AH47: =IF(Base_Inversiones[[#This Row],[Graficar Día]]="ok",DAY(A47),"") ->  | AI47: =IF(Base_Inversiones[[#This Row],[Graficar Día]]="ok",MONTH(A47),"") ->  | AJ47: =IF(Base_Inversiones[[#This Row],[Graficar Día]]="ok",YEAR(A47),"") ->  | AK47: =IF(Base_Inversiones[[#This Row],[Graficar Día]]="ok",IF(LEN(AH47)=1,"0"&AH47,AH47)&"/"&IF(LEN(AI47)=1,"0"&AI47,AI47)&"/"&AJ47,"") ->  | AL47: =TEXT(Base_Inversiones[[#This Row],[Fecha Corrob]],"DD/MM/AAAA") ->  | AM47: =IF(Base_Inversiones[[#This Row],[Graficar Día]]="ok",VLOOKUP(Base_Inversiones[[#This Row],[Texto fecha]],Administración!$B$2:$C$1432,2,0),"") ->  | AN47: =IF(Base_Inversiones[[#This Row],[Qty]]>0,"ok","no") -> no | AO47: =IF(Base_Inversiones[[#This Row],[Graficar Día]]="ok",$D$1,"") ->  | AP47: =IF(Base_Inversiones[[#This Row],[Graficar Día]]="ok",Base_Inversiones[[#This Row],[Budget Inicial/ Aportación]]+Base_Inversiones[[#This Row],[Saldo]],"") ->  | AS47: =SUM(Base_Inversiones[G/P Neta]) -> 108 | AT47: =IF(Base_Inversiones[[#This Row],[Graficar Día]]="ok",$D$1,"") ->  | AU47: =IF(Base_Inversiones[[#This Row],[Graficar Día]]="ok",WEEKNUM(Base_Inversiones[[#This Row],[Fecha Compra]]),"") ->  | AV47: =IF(Base_Inversiones[[#This Row],[Graficar Día]]="ok",WEEKNUM(DATE(YEAR(Base_Inversiones[[#This Row],[Fecha Compra]]),MONTH(Base_Inversiones[[#This Row],[Fecha Compra]]),1))-1,"") ->  | AW47: =IF(Base_Inversiones[[#This Row],[Graficar Día]]="ok",Base_Inversiones[[#This Row],[Num Semana]]-Base_Inversiones[[#This Row],[Num Sem Extrae]],"") ->  | AX47: =IF(Base_Inversiones[[#This Row],[Graficar Día]]="ok",IFERROR(VLOOKUP(Base_Inversiones[[#This Row],[Mes Corrob]],Administración!$L$4:$M$15,2,0),""),"") -> 
H48: =IF(Base_Inversiones[[#This Row],[Graficar Día]]="ok",F48*G48,"") ->  | R48: =IF(Base_Inversiones[[#This Row],[Graficar Día]]="ok",P48-F48,"") ->  | U48: =IF(Base_Inversiones[[#This Row],[Graficar Día]]="ok",IF(P48="",0,R48*G48-IF(B48="C",(10+0.15*2*G48/100),(0.5*2*G48/100))),"") ->  | X48: =IF(Base_Inversiones[[#This Row],[Graficar Día]]="ok",IF(P48="",0,U48-V48-W48),"") ->  | AC48: =IF(Base_Inversiones[[#This Row],[Graficar Día]]="ok",SUM(AB$5:AB48),"") ->  | AD48: =IF(Base_Inversiones[[#This Row],[Graficar Día]]="ok",(IF(S48>0,"G","P")),"") ->  | AH48: =IF(Base_Inversiones[[#This Row],[Graficar Día]]="ok",DAY(A48),"") ->  | AI48: =IF(Base_Inversiones[[#This Row],[Graficar Día]]="ok",MONTH(A48),"") ->  | AJ48: =IF(Base_Inversiones[[#This Row],[Graficar Día]]="ok",YEAR(A48),"") ->  | AK48: =IF(Base_Inversiones[[#This Row],[Graficar Día]]="ok",IF(LEN(AH48)=1,"0"&AH48,AH48)&"/"&IF(LEN(AI48)=1,"0"&AI48,AI48)&"/"&AJ48,"") ->  | AL48: =TEXT(Base_Inversiones[[#This Row],[Fecha Corrob]],"DD/MM/AAAA") ->  | AM48: =IF(Base_Inversiones[[#This Row],[Graficar Día]]="ok",VLOOKUP(Base_Inversiones[[#This Row],[Texto fecha]],Administración!$B$2:$C$1432,2,0),"") ->  | AN48: =IF(Base_Inversiones[[#This Row],[Qty]]>0,"ok","no") -> no | AO48: =IF(Base_Inversiones[[#This Row],[Graficar Día]]="ok",$D$1,"") ->  | AP48: =IF(Base_Inversiones[[#This Row],[Graficar Día]]="ok",Base_Inversiones[[#This Row],[Budget Inicial/ Aportación]]+Base_Inversiones[[#This Row],[Saldo]],"") ->  | AS48: =SUM(Base_Inversiones[G/P Neta]) -> 108 | AT48: =IF(Base_Inversiones[[#This Row],[Graficar Día]]="ok",$D$1,"") ->  | AU48: =IF(Base_Inversiones[[#This Row],[Graficar Día]]="ok",WEEKNUM(Base_Inversiones[[#This Row],[Fecha Compra]]),"") ->  | AV48: =IF(Base_Inversiones[[#This Row],[Graficar Día]]="ok",WEEKNUM(DATE(YEAR(Base_Inversiones[[#This Row],[Fecha Compra]]),MONTH(Base_Inversiones[[#This Row],[Fecha Compra]]),1))-1,"") ->  | AW48: =IF(Base_Inversiones[[#This Row],[Graficar Día]]="ok",Base_Inversiones[[#This Row],[Num Semana]]-Base_Inversiones[[#This Row],[Num Sem Extrae]],"") ->  | AX48: =IF(Base_Inversiones[[#This Row],[Graficar Día]]="ok",IFERROR(VLOOKUP(Base_Inversiones[[#This Row],[Mes Corrob]],Administración!$L$4:$M$15,2,0),""),"") -> 
H49: =IF(Base_Inversiones[[#This Row],[Graficar Día]]="ok",F49*G49,"") ->  | R49: =IF(Base_Inversiones[[#This Row],[Graficar Día]]="ok",P49-F49,"") ->  | U49: =IF(Base_Inversiones[[#This Row],[Graficar Día]]="ok",IF(P49="",0,R49*G49-IF(B49="C",(10+0.15*2*G49/100),(0.5*2*G49/100))),"") ->  | X49: =IF(Base_Inversiones[[#This Row],[Graficar Día]]="ok",IF(P49="",0,U49-V49-W49),"") ->  | AC49: =IF(Base_Inversiones[[#This Row],[Graficar Día]]="ok",SUM(AB$5:AB49),"") ->  | AD49: =IF(Base_Inversiones[[#This Row],[Graficar Día]]="ok",(IF(S49>0,"G","P")),"") ->  | AH49: =IF(Base_Inversiones[[#This Row],[Graficar Día]]="ok",DAY(A49),"") ->  | AI49: =IF(Base_Inversiones[[#This Row],[Graficar Día]]="ok",MONTH(A49),"") ->  | AJ49: =IF(Base_Inversiones[[#This Row],[Graficar Día]]="ok",YEAR(A49),"") ->  | AK49: =IF(Base_Inversiones[[#This Row],[Graficar Día]]="ok",IF(LEN(AH49)=1,"0"&AH49,AH49)&"/"&IF(LEN(AI49)=1,"0"&AI49,AI49)&"/"&AJ49,"") ->  | AL49: =TEXT(Base_Inversiones[[#This Row],[Fecha Corrob]],"DD/MM/AAAA") ->  | AM49: =IF(Base_Inversiones[[#This Row],[Graficar Día]]="ok",VLOOKUP(Base_Inversiones[[#This Row],[Texto fecha]],Administración!$B$2:$C$1432,2,0),"") ->  | AN49: =IF(Base_Inversiones[[#This Row],[Qty]]>0,"ok","no") -> no | AO49: =IF(Base_Inversiones[[#This Row],[Graficar Día]]="ok",$D$1,"") ->  | AP49: =IF(Base_Inversiones[[#This Row],[Graficar Día]]="ok",Base_Inversiones[[#This Row],[Budget Inicial/ Aportación]]+Base_Inversiones[[#This Row],[Saldo]],"") ->  | AS49: =SUM(Base_Inversiones[G/P Neta]) -> 108 | AT49: =IF(Base_Inversiones[[#This Row],[Graficar Día]]="ok",$D$1,"") ->  | AU49: =IF(Base_Inversiones[[#This Row],[Graficar Día]]="ok",WEEKNUM(Base_Inversiones[[#This Row],[Fecha Compra]]),"") ->  | AV49: =IF(Base_Inversiones[[#This Row],[Graficar Día]]="ok",WEEKNUM(DATE(YEAR(Base_Inversiones[[#This Row],[Fecha Compra]]),MONTH(Base_Inversiones[[#This Row],[Fecha Compra]]),1))-1,"") ->  | AW49: =IF(Base_Inversiones[[#This Row],[Graficar Día]]="ok",Base_Inversiones[[#This Row],[Num Semana]]-Base_Inversiones[[#This Row],[Num Sem Extrae]],"") ->  | AX49: =IF(Base_Inversiones[[#This Row],[Graficar Día]]="ok",IFERROR(VLOOKUP(Base_Inversiones[[#This Row],[Mes Corrob]],Administración!$L$4:$M$15,2,0),""),"") -> 
H50: =IF(Base_Inversiones[[#This Row],[Graficar Día]]="ok",F50*G50,"") ->  | R50: =IF(Base_Inversiones[[#This Row],[Graficar Día]]="ok",P50-F50,"") ->  | S50: =IFERROR(R50/F50,"") ->  | U50: =IF(Base_Inversiones[[#This Row],[Graficar Día]]="ok",IF(P50="",0,R50*G50-IF(B50="C",(10+0.15*2*G50/100),(0.5*2*G50/100))),"") ->  | X50: =IF(Base_Inversiones[[#This Row],[Graficar Día]]="ok",IF(P50="",0,U50-V50-W50),"") ->  | AC50: =IF(Base_Inversiones[[#This Row],[Graficar Día]]="ok",SUM(AB$5:AB50),"") ->  | AD50: =IF(Base_Inversiones[[#This Row],[Graficar Día]]="ok",(IF(S50>0,"G","P")),"") ->  | AE50: =LEFT(A50,10) ->  | AH50: =IF(Base_Inversiones[[#This Row],[Graficar Día]]="ok",DAY(A50),"") ->  | AI50: =IF(Base_Inversiones[[#This Row],[Graficar Día]]="ok",MONTH(A50),"") ->  | AJ50: =IF(Base_Inversiones[[#This Row],[Graficar Día]]="ok",YEAR(A50),"") ->  | AK50: =IF(Base_Inversiones[[#This Row],[Graficar Día]]="ok",IF(LEN(AH50)=1,"0"&AH50,AH50)&"/"&IF(LEN(AI50)=1,"0"&AI50,AI50)&"/"&AJ50,"") ->  | AL50: =TEXT(Base_Inversiones[[#This Row],[Fecha Corrob]],"DD/MM/AAAA") ->  | AM50: =IF(Base_Inversiones[[#This Row],[Graficar Día]]="ok",VLOOKUP(Base_Inversiones[[#This Row],[Texto fecha]],Administración!$B$2:$C$1432,2,0),"") ->  | AN50: =IF(Base_Inversiones[[#This Row],[Qty]]>0,"ok","no") -> no | AO50: =IF(Base_Inversiones[[#This Row],[Graficar Día]]="ok",$D$1,"") ->  | AP50: =IF(Base_Inversiones[[#This Row],[Graficar Día]]="ok",Base_Inversiones[[#This Row],[Budget Inicial/ Aportación]]+Base_Inversiones[[#This Row],[Saldo]],"") ->  | AS50: =SUM(Base_Inversiones[G/P Neta]) -> 108 | AT50: =IF(Base_Inversiones[[#This Row],[Graficar Día]]="ok",$D$1,"") ->  | AU50: =IF(Base_Inversiones[[#This Row],[Graficar Día]]="ok",WEEKNUM(Base_Inversiones[[#This Row],[Fecha Compra]]),"") ->  | AV50: =IF(Base_Inversiones[[#This Row],[Graficar Día]]="ok",WEEKNUM(DATE(YEAR(Base_Inversiones[[#This Row],[Fecha Compra]]),MONTH(Base_Inversiones[[#This Row],[Fecha Compra]]),1))-1,"") ->  | AW50: =IF(Base_Inversiones[[#This Row],[Graficar Día]]="ok",Base_Inversiones[[#This Row],[Num Semana]]-Base_Inversiones[[#This Row],[Num Sem Extrae]],"") ->  | AX50: =IF(Base_Inversiones[[#This Row],[Graficar Día]]="ok",IFERROR(VLOOKUP(Base_Inversiones[[#This Row],[Mes Corrob]],Administración!$L$4:$M$15,2,0),""),"") -> 
H51: =IF(Base_Inversiones[[#This Row],[Graficar Día]]="ok",F51*G51,"") ->  | R51: =IF(Base_Inversiones[[#This Row],[Graficar Día]]="ok",P51-F51,"") ->  | U51: =IF(Base_Inversiones[[#This Row],[Graficar Día]]="ok",IF(P51="",0,R51*G51-IF(B51="C",(10+0.15*2*G51/100),(0.5*2*G51/100))),"") ->  | X51: =IF(Base_Inversiones[[#This Row],[Graficar Día]]="ok",IF(P51="",0,U51-V51-W51),"") ->  | AC51: =IF(Base_Inversiones[[#This Row],[Graficar Día]]="ok",SUM(AB$5:AB51),"") ->  | AD51: =IF(Base_Inversiones[[#This Row],[Graficar Día]]="ok",(IF(S51>0,"G","P")),"") ->  | AH51: =IF(Base_Inversiones[[#This Row],[Graficar Día]]="ok",DAY(A51),"") ->  | AI51: =IF(Base_Inversiones[[#This Row],[Graficar Día]]="ok",MONTH(A51),"") ->  | AJ51: =IF(Base_Inversiones[[#This Row],[Graficar Día]]="ok",YEAR(A51),"") ->  | AK51: =IF(Base_Inversiones[[#This Row],[Graficar Día]]="ok",IF(LEN(AH51)=1,"0"&AH51,AH51)&"/"&IF(LEN(AI51)=1,"0"&AI51,AI51)&"/"&AJ51,"") ->  | AL51: =TEXT(Base_Inversiones[[#This Row],[Fecha Corrob]],"DD/MM/AAAA") ->  | AM51: =IF(Base_Inversiones[[#This Row],[Graficar Día]]="ok",VLOOKUP(Base_Inversiones[[#This Row],[Texto fecha]],Administración!$B$2:$C$1432,2,0),"") ->  | AN51: =IF(Base_Inversiones[[#This Row],[Qty]]>0,"ok","no") -> no | AO51: =IF(Base_Inversiones[[#This Row],[Graficar Día]]="ok",$D$1,"") ->  | AP51: =IF(Base_Inversiones[[#This Row],[Graficar Día]]="ok",Base_Inversiones[[#This Row],[Budget Inicial/ Aportación]]+Base_Inversiones[[#This Row],[Saldo]],"") ->  | AS51: =SUM(Base_Inversiones[G/P Neta]) -> 108 | AT51: =IF(Base_Inversiones[[#This Row],[Graficar Día]]="ok",$D$1,"") ->  | AU51: =IF(Base_Inversiones[[#This Row],[Graficar Día]]="ok",WEEKNUM(Base_Inversiones[[#This Row],[Fecha Compra]]),"") ->  | AV51: =IF(Base_Inversiones[[#This Row],[Graficar Día]]="ok",WEEKNUM(DATE(YEAR(Base_Inversiones[[#This Row],[Fecha Compra]]),MONTH(Base_Inversiones[[#This Row],[Fecha Compra]]),1))-1,"") ->  | AW51: =IF(Base_Inversiones[[#This Row],[Graficar Día]]="ok",Base_Inversiones[[#This Row],[Num Semana]]-Base_Inversiones[[#This Row],[Num Sem Extrae]],"") ->  | AX51: =IF(Base_Inversiones[[#This Row],[Graficar Día]]="ok",IFERROR(VLOOKUP(Base_Inversiones[[#This Row],[Mes Corrob]],Administración!$L$4:$M$15,2,0),""),"") -> 
H52: =IF(Base_Inversiones[[#This Row],[Graficar Día]]="ok",F52*G52,"") ->  | R52: =IF(Base_Inversiones[[#This Row],[Graficar Día]]="ok",P52-F52,"") ->  | U52: =IF(Base_Inversiones[[#This Row],[Graficar Día]]="ok",IF(P52="",0,R52*G52-IF(B52="C",(10+0.15*2*G52/100),(0.5*2*G52/100))),"") ->  | X52: =IF(Base_Inversiones[[#This Row],[Graficar Día]]="ok",IF(P52="",0,U52-V52-W52),"") ->  | AC52: =IF(Base_Inversiones[[#This Row],[Graficar Día]]="ok",SUM(AB$5:AB52),"") ->  | AD52: =IF(Base_Inversiones[[#This Row],[Graficar Día]]="ok",(IF(S52>0,"G","P")),"") ->  | AH52: =IF(Base_Inversiones[[#This Row],[Graficar Día]]="ok",DAY(A52),"") ->  | AI52: =IF(Base_Inversiones[[#This Row],[Graficar Día]]="ok",MONTH(A52),"") ->  | AJ52: =IF(Base_Inversiones[[#This Row],[Graficar Día]]="ok",YEAR(A52),"") ->  | AK52: =IF(Base_Inversiones[[#This Row],[Graficar Día]]="ok",IF(LEN(AH52)=1,"0"&AH52,AH52)&"/"&IF(LEN(AI52)=1,"0"&AI52,AI52)&"/"&AJ52,"") ->  | AL52: =TEXT(Base_Inversiones[[#This Row],[Fecha Corrob]],"DD/MM/AAAA") ->  | AM52: =IF(Base_Inversiones[[#This Row],[Graficar Día]]="ok",VLOOKUP(Base_Inversiones[[#This Row],[Texto fecha]],Administración!$B$2:$C$1432,2,0),"") ->  | AN52: =IF(Base_Inversiones[[#This Row],[Qty]]>0,"ok","no") -> no | AO52: =IF(Base_Inversiones[[#This Row],[Graficar Día]]="ok",$D$1,"") ->  | AP52: =IF(Base_Inversiones[[#This Row],[Graficar Día]]="ok",Base_Inversiones[[#This Row],[Budget Inicial/ Aportación]]+Base_Inversiones[[#This Row],[Saldo]],"") ->  | AS52: =SUM(Base_Inversiones[G/P Neta]) -> 108 | AT52: =IF(Base_Inversiones[[#This Row],[Graficar Día]]="ok",$D$1,"") ->  | AU52: =IF(Base_Inversiones[[#This Row],[Graficar Día]]="ok",WEEKNUM(Base_Inversiones[[#This Row],[Fecha Compra]]),"") ->  | AV52: =IF(Base_Inversiones[[#This Row],[Graficar Día]]="ok",WEEKNUM(DATE(YEAR(Base_Inversiones[[#This Row],[Fecha Compra]]),MONTH(Base_Inversiones[[#This Row],[Fecha Compra]]),1))-1,"") ->  | AW52: =IF(Base_Inversiones[[#This Row],[Graficar Día]]="ok",Base_Inversiones[[#This Row],[Num Semana]]-Base_Inversiones[[#This Row],[Num Sem Extrae]],"") ->  | AX52: =IF(Base_Inversiones[[#This Row],[Graficar Día]]="ok",IFERROR(VLOOKUP(Base_Inversiones[[#This Row],[Mes Corrob]],Administración!$L$4:$M$15,2,0),""),"") -> 
H53: =IF(Base_Inversiones[[#This Row],[Graficar Día]]="ok",F53*G53,"") ->  | R53: =IF(Base_Inversiones[[#This Row],[Graficar Día]]="ok",P53-F53,"") ->  | U53: =IF(Base_Inversiones[[#This Row],[Graficar Día]]="ok",IF(P53="",0,R53*G53-IF(B53="C",(10+0.15*2*G53/100),(0.5*2*G53/100))),"") ->  | X53: =IF(Base_Inversiones[[#This Row],[Graficar Día]]="ok",IF(P53="",0,U53-V53-W53),"") ->  | AC53: =IF(Base_Inversiones[[#This Row],[Graficar Día]]="ok",SUM(AB$5:AB53),"") ->  | AD53: =IF(Base_Inversiones[[#This Row],[Graficar Día]]="ok",(IF(S53>0,"G","P")),"") ->  | AH53: =IF(Base_Inversiones[[#This Row],[Graficar Día]]="ok",DAY(A53),"") ->  | AI53: =IF(Base_Inversiones[[#This Row],[Graficar Día]]="ok",MONTH(A53),"") ->  | AJ53: =IF(Base_Inversiones[[#This Row],[Graficar Día]]="ok",YEAR(A53),"") ->  | AK53: =IF(Base_Inversiones[[#This Row],[Graficar Día]]="ok",IF(LEN(AH53)=1,"0"&AH53,AH53)&"/"&IF(LEN(AI53)=1,"0"&AI53,AI53)&"/"&AJ53,"") ->  | AL53: =TEXT(Base_Inversiones[[#This Row],[Fecha Corrob]],"DD/MM/AAAA") ->  | AM53: =IF(Base_Inversiones[[#This Row],[Graficar Día]]="ok",VLOOKUP(Base_Inversiones[[#This Row],[Texto fecha]],Administración!$B$2:$C$1432,2,0),"") ->  | AN53: =IF(Base_Inversiones[[#This Row],[Qty]]>0,"ok","no") -> no | AO53: =IF(Base_Inversiones[[#This Row],[Graficar Día]]="ok",$D$1,"") ->  | AP53: =IF(Base_Inversiones[[#This Row],[Graficar Día]]="ok",Base_Inversiones[[#This Row],[Budget Inicial/ Aportación]]+Base_Inversiones[[#This Row],[Saldo]],"") ->  | AS53: =SUM(Base_Inversiones[G/P Neta]) -> 108 | AT53: =IF(Base_Inversiones[[#This Row],[Graficar Día]]="ok",$D$1,"") ->  | AU53: =IF(Base_Inversiones[[#This Row],[Graficar Día]]="ok",WEEKNUM(Base_Inversiones[[#This Row],[Fecha Compra]]),"") ->  | AV53: =IF(Base_Inversiones[[#This Row],[Graficar Día]]="ok",WEEKNUM(DATE(YEAR(Base_Inversiones[[#This Row],[Fecha Compra]]),MONTH(Base_Inversiones[[#This Row],[Fecha Compra]]),1))-1,"") ->  | AW53: =IF(Base_Inversiones[[#This Row],[Graficar Día]]="ok",Base_Inversiones[[#This Row],[Num Semana]]-Base_Inversiones[[#This Row],[Num Sem Extrae]],"") ->  | AX53: =IF(Base_Inversiones[[#This Row],[Graficar Día]]="ok",IFERROR(VLOOKUP(Base_Inversiones[[#This Row],[Mes Corrob]],Administración!$L$4:$M$15,2,0),""),"") -> 
H54: =IF(Base_Inversiones[[#This Row],[Graficar Día]]="ok",F54*G54,"") ->  | R54: =IF(Base_Inversiones[[#This Row],[Graficar Día]]="ok",P54-F54,"") ->  | U54: =IF(Base_Inversiones[[#This Row],[Graficar Día]]="ok",IF(P54="",0,R54*G54-IF(B54="C",(10+0.15*2*G54/100),(0.5*2*G54/100))),"") ->  | X54: =IF(Base_Inversiones[[#This Row],[Graficar Día]]="ok",IF(P54="",0,U54-V54-W54),"") ->  | AC54: =IF(Base_Inversiones[[#This Row],[Graficar Día]]="ok",SUM(AB$5:AB54),"") ->  | AD54: =IF(Base_Inversiones[[#This Row],[Graficar Día]]="ok",(IF(S54>0,"G","P")),"") ->  | AH54: =IF(Base_Inversiones[[#This Row],[Graficar Día]]="ok",DAY(A54),"") ->  | AI54: =IF(Base_Inversiones[[#This Row],[Graficar Día]]="ok",MONTH(A54),"") ->  | AJ54: =IF(Base_Inversiones[[#This Row],[Graficar Día]]="ok",YEAR(A54),"") ->  | AK54: =IF(Base_Inversiones[[#This Row],[Graficar Día]]="ok",IF(LEN(AH54)=1,"0"&AH54,AH54)&"/"&IF(LEN(AI54)=1,"0"&AI54,AI54)&"/"&AJ54,"") ->  | AL54: =TEXT(Base_Inversiones[[#This Row],[Fecha Corrob]],"DD/MM/AAAA") ->  | AM54: =IF(Base_Inversiones[[#This Row],[Graficar Día]]="ok",VLOOKUP(Base_Inversiones[[#This Row],[Texto fecha]],Administración!$B$2:$C$1432,2,0),"") ->  | AN54: =IF(Base_Inversiones[[#This Row],[Qty]]>0,"ok","no") -> no | AO54: =IF(Base_Inversiones[[#This Row],[Graficar Día]]="ok",$D$1,"") ->  | AP54: =IF(Base_Inversiones[[#This Row],[Graficar Día]]="ok",Base_Inversiones[[#This Row],[Budget Inicial/ Aportación]]+Base_Inversiones[[#This Row],[Saldo]],"") ->  | AS54: =SUM(Base_Inversiones[G/P Neta]) -> 108 | AT54: =IF(Base_Inversiones[[#This Row],[Graficar Día]]="ok",$D$1,"") ->  | AU54: =IF(Base_Inversiones[[#This Row],[Graficar Día]]="ok",WEEKNUM(Base_Inversiones[[#This Row],[Fecha Compra]]),"") ->  | AV54: =IF(Base_Inversiones[[#This Row],[Graficar Día]]="ok",WEEKNUM(DATE(YEAR(Base_Inversiones[[#This Row],[Fecha Compra]]),MONTH(Base_Inversiones[[#This Row],[Fecha Compra]]),1))-1,"") ->  | AW54: =IF(Base_Inversiones[[#This Row],[Graficar Día]]="ok",Base_Inversiones[[#This Row],[Num Semana]]-Base_Inversiones[[#This Row],[Num Sem Extrae]],"") ->  | AX54: =IF(Base_Inversiones[[#This Row],[Graficar Día]]="ok",IFERROR(VLOOKUP(Base_Inversiones[[#This Row],[Mes Corrob]],Administración!$L$4:$M$15,2,0),""),"") -> 
H55: =IF(Base_Inversiones[[#This Row],[Graficar Día]]="ok",F55*G55,"") ->  | R55: =IF(Base_Inversiones[[#This Row],[Graficar Día]]="ok",P55-F55,"") ->  | U55: =IF(Base_Inversiones[[#This Row],[Graficar Día]]="ok",IF(P55="",0,R55*G55-IF(B55="C",(10+0.15*2*G55/100),(0.5*2*G55/100))),"") ->  | X55: =IF(Base_Inversiones[[#This Row],[Graficar Día]]="ok",IF(P55="",0,U55-V55-W55),"") ->  | AC55: =IF(Base_Inversiones[[#This Row],[Graficar Día]]="ok",SUM(AB$5:AB55),"") ->  | AD55: =IF(Base_Inversiones[[#This Row],[Graficar Día]]="ok",(IF(S55>0,"G","P")),"") ->  | AH55: =IF(Base_Inversiones[[#This Row],[Graficar Día]]="ok",DAY(A55),"") ->  | AI55: =IF(Base_Inversiones[[#This Row],[Graficar Día]]="ok",MONTH(A55),"") ->  | AJ55: =IF(Base_Inversiones[[#This Row],[Graficar Día]]="ok",YEAR(A55),"") ->  | AK55: =IF(Base_Inversiones[[#This Row],[Graficar Día]]="ok",IF(LEN(AH55)=1,"0"&AH55,AH55)&"/"&IF(LEN(AI55)=1,"0"&AI55,AI55)&"/"&AJ55,"") ->  | AL55: =TEXT(Base_Inversiones[[#This Row],[Fecha Corrob]],"DD/MM/AAAA") ->  | AM55: =IF(Base_Inversiones[[#This Row],[Graficar Día]]="ok",VLOOKUP(Base_Inversiones[[#This Row],[Texto fecha]],Administración!$B$2:$C$1432,2,0),"") ->  | AN55: =IF(Base_Inversiones[[#This Row],[Qty]]>0,"ok","no") -> no | AO55: =IF(Base_Inversiones[[#This Row],[Graficar Día]]="ok",$D$1,"") ->  | AP55: =IF(Base_Inversiones[[#This Row],[Graficar Día]]="ok",Base_Inversiones[[#This Row],[Budget Inicial/ Aportación]]+Base_Inversiones[[#This Row],[Saldo]],"") ->  | AS55: =SUM(Base_Inversiones[G/P Neta]) -> 108 | AT55: =IF(Base_Inversiones[[#This Row],[Graficar Día]]="ok",$D$1,"") ->  | AU55: =IF(Base_Inversiones[[#This Row],[Graficar Día]]="ok",WEEKNUM(Base_Inversiones[[#This Row],[Fecha Compra]]),"") ->  | AV55: =IF(Base_Inversiones[[#This Row],[Graficar Día]]="ok",WEEKNUM(DATE(YEAR(Base_Inversiones[[#This Row],[Fecha Compra]]),MONTH(Base_Inversiones[[#This Row],[Fecha Compra]]),1))-1,"") ->  | AW55: =IF(Base_Inversiones[[#This Row],[Graficar Día]]="ok",Base_Inversiones[[#This Row],[Num Semana]]-Base_Inversiones[[#This Row],[Num Sem Extrae]],"") ->  | AX55: =IF(Base_Inversiones[[#This Row],[Graficar Día]]="ok",IFERROR(VLOOKUP(Base_Inversiones[[#This Row],[Mes Corrob]],Administración!$L$4:$M$15,2,0),""),"") -> 
H56: =IF(Base_Inversiones[[#This Row],[Graficar Día]]="ok",F56*G56,"") ->  | R56: =IF(Base_Inversiones[[#This Row],[Graficar Día]]="ok",P56-F56,"") ->  | U56: =IF(Base_Inversiones[[#This Row],[Graficar Día]]="ok",IF(P56="",0,R56*G56-IF(B56="C",(10+0.15*2*G56/100),(0.5*2*G56/100))),"") ->  | X56: =IF(Base_Inversiones[[#This Row],[Graficar Día]]="ok",IF(P56="",0,U56-V56-W56),"") ->  | AC56: =IF(Base_Inversiones[[#This Row],[Graficar Día]]="ok",SUM(AB$5:AB56),"") ->  | AD56: =IF(Base_Inversiones[[#This Row],[Graficar Día]]="ok",(IF(S56>0,"G","P")),"") ->  | AH56: =IF(Base_Inversiones[[#This Row],[Graficar Día]]="ok",DAY(A56),"") ->  | AI56: =IF(Base_Inversiones[[#This Row],[Graficar Día]]="ok",MONTH(A56),"") ->  | AJ56: =IF(Base_Inversiones[[#This Row],[Graficar Día]]="ok",YEAR(A56),"") ->  | AK56: =IF(Base_Inversiones[[#This Row],[Graficar Día]]="ok",IF(LEN(AH56)=1,"0"&AH56,AH56)&"/"&IF(LEN(AI56)=1,"0"&AI56,AI56)&"/"&AJ56,"") ->  | AL56: =TEXT(Base_Inversiones[[#This Row],[Fecha Corrob]],"DD/MM/AAAA") ->  | AM56: =IF(Base_Inversiones[[#This Row],[Graficar Día]]="ok",VLOOKUP(Base_Inversiones[[#This Row],[Texto fecha]],Administración!$B$2:$C$1432,2,0),"") ->  | AN56: =IF(Base_Inversiones[[#This Row],[Qty]]>0,"ok","no") -> no | AO56: =IF(Base_Inversiones[[#This Row],[Graficar Día]]="ok",$D$1,"") ->  | AP56: =IF(Base_Inversiones[[#This Row],[Graficar Día]]="ok",Base_Inversiones[[#This Row],[Budget Inicial/ Aportación]]+Base_Inversiones[[#This Row],[Saldo]],"") ->  | AS56: =SUM(Base_Inversiones[G/P Neta]) -> 108 | AT56: =IF(Base_Inversiones[[#This Row],[Graficar Día]]="ok",$D$1,"") ->  | AU56: =IF(Base_Inversiones[[#This Row],[Graficar Día]]="ok",WEEKNUM(Base_Inversiones[[#This Row],[Fecha Compra]]),"") ->  | AV56: =IF(Base_Inversiones[[#This Row],[Graficar Día]]="ok",WEEKNUM(DATE(YEAR(Base_Inversiones[[#This Row],[Fecha Compra]]),MONTH(Base_Inversiones[[#This Row],[Fecha Compra]]),1))-1,"") ->  | AW56: =IF(Base_Inversiones[[#This Row],[Graficar Día]]="ok",Base_Inversiones[[#This Row],[Num Semana]]-Base_Inversiones[[#This Row],[Num Sem Extrae]],"") ->  | AX56: =IF(Base_Inversiones[[#This Row],[Graficar Día]]="ok",IFERROR(VLOOKUP(Base_Inversiones[[#This Row],[Mes Corrob]],Administración!$L$4:$M$15,2,0),""),"") -> 
H57: =IF(Base_Inversiones[[#This Row],[Graficar Día]]="ok",F57*G57,"") ->  | R57: =IF(Base_Inversiones[[#This Row],[Graficar Día]]="ok",P57-F57,"") ->  | U57: =IF(Base_Inversiones[[#This Row],[Graficar Día]]="ok",IF(P57="",0,R57*G57-IF(B57="C",(10+0.15*2*G57/100),(0.5*2*G57/100))),"") ->  | X57: =IF(Base_Inversiones[[#This Row],[Graficar Día]]="ok",IF(P57="",0,U57-V57-W57),"") ->  | AC57: =IF(Base_Inversiones[[#This Row],[Graficar Día]]="ok",SUM(AB$5:AB57),"") ->  | AD57: =IF(Base_Inversiones[[#This Row],[Graficar Día]]="ok",(IF(S57>0,"G","P")),"") ->  | AH57: =IF(Base_Inversiones[[#This Row],[Graficar Día]]="ok",DAY(A57),"") ->  | AI57: =IF(Base_Inversiones[[#This Row],[Graficar Día]]="ok",MONTH(A57),"") ->  | AJ57: =IF(Base_Inversiones[[#This Row],[Graficar Día]]="ok",YEAR(A57),"") ->  | AK57: =IF(Base_Inversiones[[#This Row],[Graficar Día]]="ok",IF(LEN(AH57)=1,"0"&AH57,AH57)&"/"&IF(LEN(AI57)=1,"0"&AI57,AI57)&"/"&AJ57,"") ->  | AL57: =TEXT(Base_Inversiones[[#This Row],[Fecha Corrob]],"DD/MM/AAAA") ->  | AM57: =IF(Base_Inversiones[[#This Row],[Graficar Día]]="ok",VLOOKUP(Base_Inversiones[[#This Row],[Texto fecha]],Administración!$B$2:$C$1432,2,0),"") ->  | AN57: =IF(Base_Inversiones[[#This Row],[Qty]]>0,"ok","no") -> no | AO57: =IF(Base_Inversiones[[#This Row],[Graficar Día]]="ok",$D$1,"") ->  | AP57: =IF(Base_Inversiones[[#This Row],[Graficar Día]]="ok",Base_Inversiones[[#This Row],[Budget Inicial/ Aportación]]+Base_Inversiones[[#This Row],[Saldo]],"") ->  | AS57: =SUM(Base_Inversiones[G/P Neta]) -> 108 | AT57: =IF(Base_Inversiones[[#This Row],[Graficar Día]]="ok",$D$1,"") ->  | AU57: =IF(Base_Inversiones[[#This Row],[Graficar Día]]="ok",WEEKNUM(Base_Inversiones[[#This Row],[Fecha Compra]]),"") ->  | AV57: =IF(Base_Inversiones[[#This Row],[Graficar Día]]="ok",WEEKNUM(DATE(YEAR(Base_Inversiones[[#This Row],[Fecha Compra]]),MONTH(Base_Inversiones[[#This Row],[Fecha Compra]]),1))-1,"") ->  | AW57: =IF(Base_Inversiones[[#This Row],[Graficar Día]]="ok",Base_Inversiones[[#This Row],[Num Semana]]-Base_Inversiones[[#This Row],[Num Sem Extrae]],"") ->  | AX57: =IF(Base_Inversiones[[#This Row],[Graficar Día]]="ok",IFERROR(VLOOKUP(Base_Inversiones[[#This Row],[Mes Corrob]],Administración!$L$4:$M$15,2,0),""),"") -> 
H58: =IF(Base_Inversiones[[#This Row],[Graficar Día]]="ok",F58*G58,"") ->  | R58: =IF(Base_Inversiones[[#This Row],[Graficar Día]]="ok",P58-F58,"") ->  | U58: =IF(Base_Inversiones[[#This Row],[Graficar Día]]="ok",IF(P58="",0,R58*G58-IF(B58="C",(10+0.15*2*G58/100),(0.5*2*G58/100))),"") ->  | X58: =IF(Base_Inversiones[[#This Row],[Graficar Día]]="ok",IF(P58="",0,U58-V58-W58),"") ->  | AC58: =IF(Base_Inversiones[[#This Row],[Graficar Día]]="ok",SUM(AB$5:AB58),"") ->  | AD58: =IF(Base_Inversiones[[#This Row],[Graficar Día]]="ok",(IF(S58>0,"G","P")),"") ->  | AH58: =IF(Base_Inversiones[[#This Row],[Graficar Día]]="ok",DAY(A58),"") ->  | AI58: =IF(Base_Inversiones[[#This Row],[Graficar Día]]="ok",MONTH(A58),"") ->  | AJ58: =IF(Base_Inversiones[[#This Row],[Graficar Día]]="ok",YEAR(A58),"") ->  | AK58: =IF(Base_Inversiones[[#This Row],[Graficar Día]]="ok",IF(LEN(AH58)=1,"0"&AH58,AH58)&"/"&IF(LEN(AI58)=1,"0"&AI58,AI58)&"/"&AJ58,"") ->  | AL58: =TEXT(Base_Inversiones[[#This Row],[Fecha Corrob]],"DD/MM/AAAA") ->  | AM58: =IF(Base_Inversiones[[#This Row],[Graficar Día]]="ok",VLOOKUP(Base_Inversiones[[#This Row],[Texto fecha]],Administración!$B$2:$C$1432,2,0),"") ->  | AN58: =IF(Base_Inversiones[[#This Row],[Qty]]>0,"ok","no") -> no | AO58: =IF(Base_Inversiones[[#This Row],[Graficar Día]]="ok",$D$1,"") ->  | AP58: =IF(Base_Inversiones[[#This Row],[Graficar Día]]="ok",Base_Inversiones[[#This Row],[Budget Inicial/ Aportación]]+Base_Inversiones[[#This Row],[Saldo]],"") ->  | AS58: =SUM(Base_Inversiones[G/P Neta]) -> 108 | AT58: =IF(Base_Inversiones[[#This Row],[Graficar Día]]="ok",$D$1,"") ->  | AU58: =IF(Base_Inversiones[[#This Row],[Graficar Día]]="ok",WEEKNUM(Base_Inversiones[[#This Row],[Fecha Compra]]),"") ->  | AV58: =IF(Base_Inversiones[[#This Row],[Graficar Día]]="ok",WEEKNUM(DATE(YEAR(Base_Inversiones[[#This Row],[Fecha Compra]]),MONTH(Base_Inversiones[[#This Row],[Fecha Compra]]),1))-1,"") ->  | AW58: =IF(Base_Inversiones[[#This Row],[Graficar Día]]="ok",Base_Inversiones[[#This Row],[Num Semana]]-Base_Inversiones[[#This Row],[Num Sem Extrae]],"") ->  | AX58: =IF(Base_Inversiones[[#This Row],[Graficar Día]]="ok",IFERROR(VLOOKUP(Base_Inversiones[[#This Row],[Mes Corrob]],Administración!$L$4:$M$15,2,0),""),"") -> 
H59: =IF(Base_Inversiones[[#This Row],[Graficar Día]]="ok",F59*G59,"") ->  | R59: =IF(Base_Inversiones[[#This Row],[Graficar Día]]="ok",P59-F59,"") ->  | U59: =IF(Base_Inversiones[[#This Row],[Graficar Día]]="ok",IF(P59="",0,R59*G59-IF(B59="C",(10+0.15*2*G59/100),(0.5*2*G59/100))),"") ->  | X59: =IF(Base_Inversiones[[#This Row],[Graficar Día]]="ok",IF(P59="",0,U59-V59-W59),"") ->  | AC59: =IF(Base_Inversiones[[#This Row],[Graficar Día]]="ok",SUM(AB$5:AB59),"") ->  | AD59: =IF(Base_Inversiones[[#This Row],[Graficar Día]]="ok",(IF(S59>0,"G","P")),"") ->  | AH59: =IF(Base_Inversiones[[#This Row],[Graficar Día]]="ok",DAY(A59),"") ->  | AI59: =IF(Base_Inversiones[[#This Row],[Graficar Día]]="ok",MONTH(A59),"") ->  | AJ59: =IF(Base_Inversiones[[#This Row],[Graficar Día]]="ok",YEAR(A59),"") ->  | AK59: =IF(Base_Inversiones[[#This Row],[Graficar Día]]="ok",IF(LEN(AH59)=1,"0"&AH59,AH59)&"/"&IF(LEN(AI59)=1,"0"&AI59,AI59)&"/"&AJ59,"") ->  | AL59: =TEXT(Base_Inversiones[[#This Row],[Fecha Corrob]],"DD/MM/AAAA") ->  | AM59: =IF(Base_Inversiones[[#This Row],[Graficar Día]]="ok",VLOOKUP(Base_Inversiones[[#This Row],[Texto fecha]],Administración!$B$2:$C$1432,2,0),"") ->  | AN59: =IF(Base_Inversiones[[#This Row],[Qty]]>0,"ok","no") -> no | AO59: =IF(Base_Inversiones[[#This Row],[Graficar Día]]="ok",$D$1,"") ->  | AP59: =IF(Base_Inversiones[[#This Row],[Graficar Día]]="ok",Base_Inversiones[[#This Row],[Budget Inicial/ Aportación]]+Base_Inversiones[[#This Row],[Saldo]],"") ->  | AS59: =SUM(Base_Inversiones[G/P Neta]) -> 108 | AT59: =IF(Base_Inversiones[[#This Row],[Graficar Día]]="ok",$D$1,"") ->  | AU59: =IF(Base_Inversiones[[#This Row],[Graficar Día]]="ok",WEEKNUM(Base_Inversiones[[#This Row],[Fecha Compra]]),"") ->  | AV59: =IF(Base_Inversiones[[#This Row],[Graficar Día]]="ok",WEEKNUM(DATE(YEAR(Base_Inversiones[[#This Row],[Fecha Compra]]),MONTH(Base_Inversiones[[#This Row],[Fecha Compra]]),1))-1,"") ->  | AW59: =IF(Base_Inversiones[[#This Row],[Graficar Día]]="ok",Base_Inversiones[[#This Row],[Num Semana]]-Base_Inversiones[[#This Row],[Num Sem Extrae]],"") ->  | AX59: =IF(Base_Inversiones[[#This Row],[Graficar Día]]="ok",IFERROR(VLOOKUP(Base_Inversiones[[#This Row],[Mes Corrob]],Administración!$L$4:$M$15,2,0),""),"") -> 
H60: =IF(Base_Inversiones[[#This Row],[Graficar Día]]="ok",F60*G60,"") ->  | R60: =IF(Base_Inversiones[[#This Row],[Graficar Día]]="ok",P60-F60,"") ->  | U60: =IF(Base_Inversiones[[#This Row],[Graficar Día]]="ok",IF(P60="",0,R60*G60-IF(B60="C",(10+0.15*2*G60/100),(0.5*2*G60/100))),"") ->  | X60: =IF(Base_Inversiones[[#This Row],[Graficar Día]]="ok",IF(P60="",0,U60-V60-W60),"") ->  | AC60: =IF(Base_Inversiones[[#This Row],[Graficar Día]]="ok",SUM(AB$5:AB60),"") ->  | AD60: =IF(Base_Inversiones[[#This Row],[Graficar Día]]="ok",(IF(S60>0,"G","P")),"") ->  | AH60: =IF(Base_Inversiones[[#This Row],[Graficar Día]]="ok",DAY(A60),"") ->  | AI60: =IF(Base_Inversiones[[#This Row],[Graficar Día]]="ok",MONTH(A60),"") ->  | AJ60: =IF(Base_Inversiones[[#This Row],[Graficar Día]]="ok",YEAR(A60),"") ->  | AK60: =IF(Base_Inversiones[[#This Row],[Graficar Día]]="ok",IF(LEN(AH60)=1,"0"&AH60,AH60)&"/"&IF(LEN(AI60)=1,"0"&AI60,AI60)&"/"&AJ60,"") ->  | AL60: =TEXT(Base_Inversiones[[#This Row],[Fecha Corrob]],"DD/MM/AAAA") ->  | AM60: =IF(Base_Inversiones[[#This Row],[Graficar Día]]="ok",VLOOKUP(Base_Inversiones[[#This Row],[Texto fecha]],Administración!$B$2:$C$1432,2,0),"") ->  | AN60: =IF(Base_Inversiones[[#This Row],[Qty]]>0,"ok","no") -> no | AO60: =IF(Base_Inversiones[[#This Row],[Graficar Día]]="ok",$D$1,"") ->  | AP60: =IF(Base_Inversiones[[#This Row],[Graficar Día]]="ok",Base_Inversiones[[#This Row],[Budget Inicial/ Aportación]]+Base_Inversiones[[#This Row],[Saldo]],"") ->  | AS60: =SUM(Base_Inversiones[G/P Neta]) -> 108 | AT60: =IF(Base_Inversiones[[#This Row],[Graficar Día]]="ok",$D$1,"") ->  | AU60: =IF(Base_Inversiones[[#This Row],[Graficar Día]]="ok",WEEKNUM(Base_Inversiones[[#This Row],[Fecha Compra]]),"") ->  | AV60: =IF(Base_Inversiones[[#This Row],[Graficar Día]]="ok",WEEKNUM(DATE(YEAR(Base_Inversiones[[#This Row],[Fecha Compra]]),MONTH(Base_Inversiones[[#This Row],[Fecha Compra]]),1))-1,"") ->  | AW60: =IF(Base_Inversiones[[#This Row],[Graficar Día]]="ok",Base_Inversiones[[#This Row],[Num Semana]]-Base_Inversiones[[#This Row],[Num Sem Extrae]],"") ->  | AX60: =IF(Base_Inversiones[[#This Row],[Graficar Día]]="ok",IFERROR(VLOOKUP(Base_Inversiones[[#This Row],[Mes Corrob]],Administración!$L$4:$M$15,2,0),""),"") -> 
H61: =IF(Base_Inversiones[[#This Row],[Graficar Día]]="ok",F61*G61,"") ->  | R61: =IF(Base_Inversiones[[#This Row],[Graficar Día]]="ok",P61-F61,"") ->  | U61: =IF(Base_Inversiones[[#This Row],[Graficar Día]]="ok",IF(P61="",0,R61*G61-IF(B61="C",(10+0.15*2*G61/100),(0.5*2*G61/100))),"") ->  | X61: =IF(Base_Inversiones[[#This Row],[Graficar Día]]="ok",IF(P61="",0,U61-V61-W61),"") ->  | AC61: =IF(Base_Inversiones[[#This Row],[Graficar Día]]="ok",SUM(AB$5:AB61),"") ->  | AD61: =IF(Base_Inversiones[[#This Row],[Graficar Día]]="ok",(IF(S61>0,"G","P")),"") ->  | AH61: =IF(Base_Inversiones[[#This Row],[Graficar Día]]="ok",DAY(A61),"") ->  | AI61: =IF(Base_Inversiones[[#This Row],[Graficar Día]]="ok",MONTH(A61),"") ->  | AJ61: =IF(Base_Inversiones[[#This Row],[Graficar Día]]="ok",YEAR(A61),"") ->  | AK61: =IF(Base_Inversiones[[#This Row],[Graficar Día]]="ok",IF(LEN(AH61)=1,"0"&AH61,AH61)&"/"&IF(LEN(AI61)=1,"0"&AI61,AI61)&"/"&AJ61,"") ->  | AL61: =TEXT(Base_Inversiones[[#This Row],[Fecha Corrob]],"DD/MM/AAAA") ->  | AM61: =IF(Base_Inversiones[[#This Row],[Graficar Día]]="ok",VLOOKUP(Base_Inversiones[[#This Row],[Texto fecha]],Administración!$B$2:$C$1432,2,0),"") ->  | AN61: =IF(Base_Inversiones[[#This Row],[Qty]]>0,"ok","no") -> no | AO61: =IF(Base_Inversiones[[#This Row],[Graficar Día]]="ok",$D$1,"") ->  | AP61: =IF(Base_Inversiones[[#This Row],[Graficar Día]]="ok",Base_Inversiones[[#This Row],[Budget Inicial/ Aportación]]+Base_Inversiones[[#This Row],[Saldo]],"") ->  | AS61: =SUM(Base_Inversiones[G/P Neta]) -> 108 | AT61: =IF(Base_Inversiones[[#This Row],[Graficar Día]]="ok",$D$1,"") ->  | AU61: =IF(Base_Inversiones[[#This Row],[Graficar Día]]="ok",WEEKNUM(Base_Inversiones[[#This Row],[Fecha Compra]]),"") ->  | AV61: =IF(Base_Inversiones[[#This Row],[Graficar Día]]="ok",WEEKNUM(DATE(YEAR(Base_Inversiones[[#This Row],[Fecha Compra]]),MONTH(Base_Inversiones[[#This Row],[Fecha Compra]]),1))-1,"") ->  | AW61: =IF(Base_Inversiones[[#This Row],[Graficar Día]]="ok",Base_Inversiones[[#This Row],[Num Semana]]-Base_Inversiones[[#This Row],[Num Sem Extrae]],"") ->  | AX61: =IF(Base_Inversiones[[#This Row],[Graficar Día]]="ok",IFERROR(VLOOKUP(Base_Inversiones[[#This Row],[Mes Corrob]],Administración!$L$4:$M$15,2,0),""),"") -> 
H62: =IF(Base_Inversiones[[#This Row],[Graficar Día]]="ok",F62*G62,"") ->  | R62: =IF(Base_Inversiones[[#This Row],[Graficar Día]]="ok",P62-F62,"") ->  | U62: =IF(Base_Inversiones[[#This Row],[Graficar Día]]="ok",IF(P62="",0,R62*G62-IF(B62="C",(10+0.15*2*G62/100),(0.5*2*G62/100))),"") ->  | X62: =IF(Base_Inversiones[[#This Row],[Graficar Día]]="ok",IF(P62="",0,U62-V62-W62),"") ->  | AC62: =IF(Base_Inversiones[[#This Row],[Graficar Día]]="ok",SUM(AB$5:AB62),"") ->  | AD62: =IF(Base_Inversiones[[#This Row],[Graficar Día]]="ok",(IF(S62>0,"G","P")),"") ->  | AH62: =IF(Base_Inversiones[[#This Row],[Graficar Día]]="ok",DAY(A62),"") ->  | AI62: =IF(Base_Inversiones[[#This Row],[Graficar Día]]="ok",MONTH(A62),"") ->  | AJ62: =IF(Base_Inversiones[[#This Row],[Graficar Día]]="ok",YEAR(A62),"") ->  | AK62: =IF(Base_Inversiones[[#This Row],[Graficar Día]]="ok",IF(LEN(AH62)=1,"0"&AH62,AH62)&"/"&IF(LEN(AI62)=1,"0"&AI62,AI62)&"/"&AJ62,"") ->  | AL62: =TEXT(Base_Inversiones[[#This Row],[Fecha Corrob]],"DD/MM/AAAA") ->  | AM62: =IF(Base_Inversiones[[#This Row],[Graficar Día]]="ok",VLOOKUP(Base_Inversiones[[#This Row],[Texto fecha]],Administración!$B$2:$C$1432,2,0),"") ->  | AN62: =IF(Base_Inversiones[[#This Row],[Qty]]>0,"ok","no") -> no | AO62: =IF(Base_Inversiones[[#This Row],[Graficar Día]]="ok",$D$1,"") ->  | AP62: =IF(Base_Inversiones[[#This Row],[Graficar Día]]="ok",Base_Inversiones[[#This Row],[Budget Inicial/ Aportación]]+Base_Inversiones[[#This Row],[Saldo]],"") ->  | AS62: =SUM(Base_Inversiones[G/P Neta]) -> 108 | AT62: =IF(Base_Inversiones[[#This Row],[Graficar Día]]="ok",$D$1,"") ->  | AU62: =IF(Base_Inversiones[[#This Row],[Graficar Día]]="ok",WEEKNUM(Base_Inversiones[[#This Row],[Fecha Compra]]),"") ->  | AV62: =IF(Base_Inversiones[[#This Row],[Graficar Día]]="ok",WEEKNUM(DATE(YEAR(Base_Inversiones[[#This Row],[Fecha Compra]]),MONTH(Base_Inversiones[[#This Row],[Fecha Compra]]),1))-1,"") ->  | AW62: =IF(Base_Inversiones[[#This Row],[Graficar Día]]="ok",Base_Inversiones[[#This Row],[Num Semana]]-Base_Inversiones[[#This Row],[Num Sem Extrae]],"") ->  | AX62: =IF(Base_Inversiones[[#This Row],[Graficar Día]]="ok",IFERROR(VLOOKUP(Base_Inversiones[[#This Row],[Mes Corrob]],Administración!$L$4:$M$15,2,0),""),"") -> 
H63: =IF(Base_Inversiones[[#This Row],[Graficar Día]]="ok",F63*G63,"") ->  | R63: =IF(Base_Inversiones[[#This Row],[Graficar Día]]="ok",P63-F63,"") ->  | U63: =IF(Base_Inversiones[[#This Row],[Graficar Día]]="ok",IF(P63="",0,R63*G63-IF(B63="C",(10+0.15*2*G63/100),(0.5*2*G63/100))),"") ->  | X63: =IF(Base_Inversiones[[#This Row],[Graficar Día]]="ok",IF(P63="",0,U63-V63-W63),"") ->  | AC63: =IF(Base_Inversiones[[#This Row],[Graficar Día]]="ok",SUM(AB$5:AB63),"") ->  | AD63: =IF(Base_Inversiones[[#This Row],[Graficar Día]]="ok",(IF(S63>0,"G","P")),"") ->  | AH63: =IF(Base_Inversiones[[#This Row],[Graficar Día]]="ok",DAY(A63),"") ->  | AI63: =IF(Base_Inversiones[[#This Row],[Graficar Día]]="ok",MONTH(A63),"") ->  | AJ63: =IF(Base_Inversiones[[#This Row],[Graficar Día]]="ok",YEAR(A63),"") ->  | AK63: =IF(Base_Inversiones[[#This Row],[Graficar Día]]="ok",IF(LEN(AH63)=1,"0"&AH63,AH63)&"/"&IF(LEN(AI63)=1,"0"&AI63,AI63)&"/"&AJ63,"") ->  | AL63: =TEXT(Base_Inversiones[[#This Row],[Fecha Corrob]],"DD/MM/AAAA") ->  | AM63: =IF(Base_Inversiones[[#This Row],[Graficar Día]]="ok",VLOOKUP(Base_Inversiones[[#This Row],[Texto fecha]],Administración!$B$2:$C$1432,2,0),"") ->  | AN63: =IF(Base_Inversiones[[#This Row],[Qty]]>0,"ok","no") -> no | AO63: =IF(Base_Inversiones[[#This Row],[Graficar Día]]="ok",$D$1,"") ->  | AP63: =IF(Base_Inversiones[[#This Row],[Graficar Día]]="ok",Base_Inversiones[[#This Row],[Budget Inicial/ Aportación]]+Base_Inversiones[[#This Row],[Saldo]],"") ->  | AS63: =SUM(Base_Inversiones[G/P Neta]) -> 108 | AT63: =IF(Base_Inversiones[[#This Row],[Graficar Día]]="ok",$D$1,"") ->  | AU63: =IF(Base_Inversiones[[#This Row],[Graficar Día]]="ok",WEEKNUM(Base_Inversiones[[#This Row],[Fecha Compra]]),"") ->  | AV63: =IF(Base_Inversiones[[#This Row],[Graficar Día]]="ok",WEEKNUM(DATE(YEAR(Base_Inversiones[[#This Row],[Fecha Compra]]),MONTH(Base_Inversiones[[#This Row],[Fecha Compra]]),1))-1,"") ->  | AW63: =IF(Base_Inversiones[[#This Row],[Graficar Día]]="ok",Base_Inversiones[[#This Row],[Num Semana]]-Base_Inversiones[[#This Row],[Num Sem Extrae]],"") ->  | AX63: =IF(Base_Inversiones[[#This Row],[Graficar Día]]="ok",IFERROR(VLOOKUP(Base_Inversiones[[#This Row],[Mes Corrob]],Administración!$L$4:$M$15,2,0),""),"") -> 
H64: =IF(Base_Inversiones[[#This Row],[Graficar Día]]="ok",F64*G64,"") ->  | R64: =IF(Base_Inversiones[[#This Row],[Graficar Día]]="ok",P64-F64,"") ->  | U64: =IF(Base_Inversiones[[#This Row],[Graficar Día]]="ok",IF(P64="",0,R64*G64-IF(B64="C",(10+0.15*2*G64/100),(0.5*2*G64/100))),"") ->  | X64: =IF(Base_Inversiones[[#This Row],[Graficar Día]]="ok",IF(P64="",0,U64-V64-W64),"") ->  | AC64: =IF(Base_Inversiones[[#This Row],[Graficar Día]]="ok",SUM(AB$5:AB64),"") ->  | AD64: =IF(Base_Inversiones[[#This Row],[Graficar Día]]="ok",(IF(S64>0,"G","P")),"") ->  | AH64: =IF(Base_Inversiones[[#This Row],[Graficar Día]]="ok",DAY(A64),"") ->  | AI64: =IF(Base_Inversiones[[#This Row],[Graficar Día]]="ok",MONTH(A64),"") ->  | AJ64: =IF(Base_Inversiones[[#This Row],[Graficar Día]]="ok",YEAR(A64),"") ->  | AK64: =IF(Base_Inversiones[[#This Row],[Graficar Día]]="ok",IF(LEN(AH64)=1,"0"&AH64,AH64)&"/"&IF(LEN(AI64)=1,"0"&AI64,AI64)&"/"&AJ64,"") ->  | AL64: =TEXT(Base_Inversiones[[#This Row],[Fecha Corrob]],"DD/MM/AAAA") ->  | AM64: =IF(Base_Inversiones[[#This Row],[Graficar Día]]="ok",VLOOKUP(Base_Inversiones[[#This Row],[Texto fecha]],Administración!$B$2:$C$1432,2,0),"") ->  | AN64: =IF(Base_Inversiones[[#This Row],[Qty]]>0,"ok","no") -> no | AO64: =IF(Base_Inversiones[[#This Row],[Graficar Día]]="ok",$D$1,"") ->  | AP64: =IF(Base_Inversiones[[#This Row],[Graficar Día]]="ok",Base_Inversiones[[#This Row],[Budget Inicial/ Aportación]]+Base_Inversiones[[#This Row],[Saldo]],"") ->  | AS64: =SUM(Base_Inversiones[G/P Neta]) -> 108 | AT64: =IF(Base_Inversiones[[#This Row],[Graficar Día]]="ok",$D$1,"") ->  | AU64: =IF(Base_Inversiones[[#This Row],[Graficar Día]]="ok",WEEKNUM(Base_Inversiones[[#This Row],[Fecha Compra]]),"") ->  | AV64: =IF(Base_Inversiones[[#This Row],[Graficar Día]]="ok",WEEKNUM(DATE(YEAR(Base_Inversiones[[#This Row],[Fecha Compra]]),MONTH(Base_Inversiones[[#This Row],[Fecha Compra]]),1))-1,"") ->  | AW64: =IF(Base_Inversiones[[#This Row],[Graficar Día]]="ok",Base_Inversiones[[#This Row],[Num Semana]]-Base_Inversiones[[#This Row],[Num Sem Extrae]],"") ->  | AX64: =IF(Base_Inversiones[[#This Row],[Graficar Día]]="ok",IFERROR(VLOOKUP(Base_Inversiones[[#This Row],[Mes Corrob]],Administración!$L$4:$M$15,2,0),""),"") -> 
H65: =IF(Base_Inversiones[[#This Row],[Graficar Día]]="ok",F65*G65,"") ->  | R65: =IF(Base_Inversiones[[#This Row],[Graficar Día]]="ok",P65-F65,"") ->  | U65: =IF(Base_Inversiones[[#This Row],[Graficar Día]]="ok",IF(P65="",0,R65*G65-IF(B65="C",(10+0.15*2*G65/100),(0.5*2*G65/100))),"") ->  | X65: =IF(Base_Inversiones[[#This Row],[Graficar Día]]="ok",IF(P65="",0,U65-V65-W65),"") ->  | AC65: =IF(Base_Inversiones[[#This Row],[Graficar Día]]="ok",SUM(AB$5:AB65),"") ->  | AD65: =IF(Base_Inversiones[[#This Row],[Graficar Día]]="ok",(IF(S65>0,"G","P")),"") ->  | AH65: =IF(Base_Inversiones[[#This Row],[Graficar Día]]="ok",DAY(A65),"") ->  | AI65: =IF(Base_Inversiones[[#This Row],[Graficar Día]]="ok",MONTH(A65),"") ->  | AJ65: =IF(Base_Inversiones[[#This Row],[Graficar Día]]="ok",YEAR(A65),"") ->  | AK65: =IF(Base_Inversiones[[#This Row],[Graficar Día]]="ok",IF(LEN(AH65)=1,"0"&AH65,AH65)&"/"&IF(LEN(AI65)=1,"0"&AI65,AI65)&"/"&AJ65,"") ->  | AL65: =TEXT(Base_Inversiones[[#This Row],[Fecha Corrob]],"DD/MM/AAAA") ->  | AM65: =IF(Base_Inversiones[[#This Row],[Graficar Día]]="ok",VLOOKUP(Base_Inversiones[[#This Row],[Texto fecha]],Administración!$B$2:$C$1432,2,0),"") ->  | AN65: =IF(Base_Inversiones[[#This Row],[Qty]]>0,"ok","no") -> no | AO65: =IF(Base_Inversiones[[#This Row],[Graficar Día]]="ok",$D$1,"") ->  | AP65: =IF(Base_Inversiones[[#This Row],[Graficar Día]]="ok",Base_Inversiones[[#This Row],[Budget Inicial/ Aportación]]+Base_Inversiones[[#This Row],[Saldo]],"") ->  | AS65: =SUM(Base_Inversiones[G/P Neta]) -> 108 | AT65: =IF(Base_Inversiones[[#This Row],[Graficar Día]]="ok",$D$1,"") ->  | AU65: =IF(Base_Inversiones[[#This Row],[Graficar Día]]="ok",WEEKNUM(Base_Inversiones[[#This Row],[Fecha Compra]]),"") ->  | AV65: =IF(Base_Inversiones[[#This Row],[Graficar Día]]="ok",WEEKNUM(DATE(YEAR(Base_Inversiones[[#This Row],[Fecha Compra]]),MONTH(Base_Inversiones[[#This Row],[Fecha Compra]]),1))-1,"") ->  | AW65: =IF(Base_Inversiones[[#This Row],[Graficar Día]]="ok",Base_Inversiones[[#This Row],[Num Semana]]-Base_Inversiones[[#This Row],[Num Sem Extrae]],"") ->  | AX65: =IF(Base_Inversiones[[#This Row],[Graficar Día]]="ok",IFERROR(VLOOKUP(Base_Inversiones[[#This Row],[Mes Corrob]],Administración!$L$4:$M$15,2,0),""),"") -> 
H66: =IF(Base_Inversiones[[#This Row],[Graficar Día]]="ok",F66*G66,"") ->  | R66: =IF(Base_Inversiones[[#This Row],[Graficar Día]]="ok",P66-F66,"") ->  | U66: =IF(Base_Inversiones[[#This Row],[Graficar Día]]="ok",IF(P66="",0,R66*G66-IF(B66="C",(10+0.15*2*G66/100),(0.5*2*G66/100))),"") ->  | X66: =IF(Base_Inversiones[[#This Row],[Graficar Día]]="ok",IF(P66="",0,U66-V66-W66),"") ->  | AC66: =IF(Base_Inversiones[[#This Row],[Graficar Día]]="ok",SUM(AB$5:AB66),"") ->  | AD66: =IF(Base_Inversiones[[#This Row],[Graficar Día]]="ok",(IF(S66>0,"G","P")),"") ->  | AH66: =IF(Base_Inversiones[[#This Row],[Graficar Día]]="ok",DAY(A66),"") ->  | AI66: =IF(Base_Inversiones[[#This Row],[Graficar Día]]="ok",MONTH(A66),"") ->  | AJ66: =IF(Base_Inversiones[[#This Row],[Graficar Día]]="ok",YEAR(A66),"") ->  | AK66: =IF(Base_Inversiones[[#This Row],[Graficar Día]]="ok",IF(LEN(AH66)=1,"0"&AH66,AH66)&"/"&IF(LEN(AI66)=1,"0"&AI66,AI66)&"/"&AJ66,"") ->  | AL66: =TEXT(Base_Inversiones[[#This Row],[Fecha Corrob]],"DD/MM/AAAA") ->  | AM66: =IF(Base_Inversiones[[#This Row],[Graficar Día]]="ok",VLOOKUP(Base_Inversiones[[#This Row],[Texto fecha]],Administración!$B$2:$C$1432,2,0),"") ->  | AN66: =IF(Base_Inversiones[[#This Row],[Qty]]>0,"ok","no") -> no | AO66: =IF(Base_Inversiones[[#This Row],[Graficar Día]]="ok",$D$1,"") ->  | AP66: =IF(Base_Inversiones[[#This Row],[Graficar Día]]="ok",Base_Inversiones[[#This Row],[Budget Inicial/ Aportación]]+Base_Inversiones[[#This Row],[Saldo]],"") ->  | AS66: =SUM(Base_Inversiones[G/P Neta]) -> 108 | AT66: =IF(Base_Inversiones[[#This Row],[Graficar Día]]="ok",$D$1,"") ->  | AU66: =IF(Base_Inversiones[[#This Row],[Graficar Día]]="ok",WEEKNUM(Base_Inversiones[[#This Row],[Fecha Compra]]),"") ->  | AV66: =IF(Base_Inversiones[[#This Row],[Graficar Día]]="ok",WEEKNUM(DATE(YEAR(Base_Inversiones[[#This Row],[Fecha Compra]]),MONTH(Base_Inversiones[[#This Row],[Fecha Compra]]),1))-1,"") ->  | AW66: =IF(Base_Inversiones[[#This Row],[Graficar Día]]="ok",Base_Inversiones[[#This Row],[Num Semana]]-Base_Inversiones[[#This Row],[Num Sem Extrae]],"") ->  | AX66: =IF(Base_Inversiones[[#This Row],[Graficar Día]]="ok",IFERROR(VLOOKUP(Base_Inversiones[[#This Row],[Mes Corrob]],Administración!$L$4:$M$15,2,0),""),"") -> 
H67: =IF(Base_Inversiones[[#This Row],[Graficar Día]]="ok",F67*G67,"") ->  | R67: =IF(Base_Inversiones[[#This Row],[Graficar Día]]="ok",P67-F67,"") ->  | U67: =IF(Base_Inversiones[[#This Row],[Graficar Día]]="ok",IF(P67="",0,R67*G67-IF(B67="C",(10+0.15*2*G67/100),(0.5*2*G67/100))),"") ->  | X67: =IF(Base_Inversiones[[#This Row],[Graficar Día]]="ok",IF(P67="",0,U67-V67-W67),"") ->  | AC67: =IF(Base_Inversiones[[#This Row],[Graficar Día]]="ok",SUM(AB$5:AB67),"") ->  | AD67: =IF(Base_Inversiones[[#This Row],[Graficar Día]]="ok",(IF(S67>0,"G","P")),"") ->  | AH67: =IF(Base_Inversiones[[#This Row],[Graficar Día]]="ok",DAY(A67),"") ->  | AI67: =IF(Base_Inversiones[[#This Row],[Graficar Día]]="ok",MONTH(A67),"") ->  | AJ67: =IF(Base_Inversiones[[#This Row],[Graficar Día]]="ok",YEAR(A67),"") ->  | AK67: =IF(Base_Inversiones[[#This Row],[Graficar Día]]="ok",IF(LEN(AH67)=1,"0"&AH67,AH67)&"/"&IF(LEN(AI67)=1,"0"&AI67,AI67)&"/"&AJ67,"") ->  | AL67: =TEXT(Base_Inversiones[[#This Row],[Fecha Corrob]],"DD/MM/AAAA") ->  | AM67: =IF(Base_Inversiones[[#This Row],[Graficar Día]]="ok",VLOOKUP(Base_Inversiones[[#This Row],[Texto fecha]],Administración!$B$2:$C$1432,2,0),"") ->  | AN67: =IF(Base_Inversiones[[#This Row],[Qty]]>0,"ok","no") -> no | AO67: =IF(Base_Inversiones[[#This Row],[Graficar Día]]="ok",$D$1,"") ->  | AP67: =IF(Base_Inversiones[[#This Row],[Graficar Día]]="ok",Base_Inversiones[[#This Row],[Budget Inicial/ Aportación]]+Base_Inversiones[[#This Row],[Saldo]],"") ->  | AS67: =SUM(Base_Inversiones[G/P Neta]) -> 108 | AT67: =IF(Base_Inversiones[[#This Row],[Graficar Día]]="ok",$D$1,"") ->  | AU67: =IF(Base_Inversiones[[#This Row],[Graficar Día]]="ok",WEEKNUM(Base_Inversiones[[#This Row],[Fecha Compra]]),"") ->  | AV67: =IF(Base_Inversiones[[#This Row],[Graficar Día]]="ok",WEEKNUM(DATE(YEAR(Base_Inversiones[[#This Row],[Fecha Compra]]),MONTH(Base_Inversiones[[#This Row],[Fecha Compra]]),1))-1,"") ->  | AW67: =IF(Base_Inversiones[[#This Row],[Graficar Día]]="ok",Base_Inversiones[[#This Row],[Num Semana]]-Base_Inversiones[[#This Row],[Num Sem Extrae]],"") ->  | AX67: =IF(Base_Inversiones[[#This Row],[Graficar Día]]="ok",IFERROR(VLOOKUP(Base_Inversiones[[#This Row],[Mes Corrob]],Administración!$L$4:$M$15,2,0),""),"") -> 
H68: =IF(Base_Inversiones[[#This Row],[Graficar Día]]="ok",F68*G68,"") ->  | R68: =IF(Base_Inversiones[[#This Row],[Graficar Día]]="ok",P68-F68,"") ->  | U68: =IF(Base_Inversiones[[#This Row],[Graficar Día]]="ok",IF(P68="",0,R68*G68-IF(B68="C",(10+0.15*2*G68/100),(0.5*2*G68/100))),"") ->  | X68: =IF(Base_Inversiones[[#This Row],[Graficar Día]]="ok",IF(P68="",0,U68-V68-W68),"") ->  | AC68: =IF(Base_Inversiones[[#This Row],[Graficar Día]]="ok",SUM(AB$5:AB68),"") ->  | AD68: =IF(Base_Inversiones[[#This Row],[Graficar Día]]="ok",(IF(S68>0,"G","P")),"") ->  | AH68: =IF(Base_Inversiones[[#This Row],[Graficar Día]]="ok",DAY(A68),"") ->  | AI68: =IF(Base_Inversiones[[#This Row],[Graficar Día]]="ok",MONTH(A68),"") ->  | AJ68: =IF(Base_Inversiones[[#This Row],[Graficar Día]]="ok",YEAR(A68),"") ->  | AK68: =IF(Base_Inversiones[[#This Row],[Graficar Día]]="ok",IF(LEN(AH68)=1,"0"&AH68,AH68)&"/"&IF(LEN(AI68)=1,"0"&AI68,AI68)&"/"&AJ68,"") ->  | AL68: =TEXT(Base_Inversiones[[#This Row],[Fecha Corrob]],"DD/MM/AAAA") ->  | AM68: =IF(Base_Inversiones[[#This Row],[Graficar Día]]="ok",VLOOKUP(Base_Inversiones[[#This Row],[Texto fecha]],Administración!$B$2:$C$1432,2,0),"") ->  | AN68: =IF(Base_Inversiones[[#This Row],[Qty]]>0,"ok","no") -> no | AO68: =IF(Base_Inversiones[[#This Row],[Graficar Día]]="ok",$D$1,"") ->  | AP68: =IF(Base_Inversiones[[#This Row],[Graficar Día]]="ok",Base_Inversiones[[#This Row],[Budget Inicial/ Aportación]]+Base_Inversiones[[#This Row],[Saldo]],"") ->  | AS68: =SUM(Base_Inversiones[G/P Neta]) -> 108 | AT68: =IF(Base_Inversiones[[#This Row],[Graficar Día]]="ok",$D$1,"") ->  | AU68: =IF(Base_Inversiones[[#This Row],[Graficar Día]]="ok",WEEKNUM(Base_Inversiones[[#This Row],[Fecha Compra]]),"") ->  | AV68: =IF(Base_Inversiones[[#This Row],[Graficar Día]]="ok",WEEKNUM(DATE(YEAR(Base_Inversiones[[#This Row],[Fecha Compra]]),MONTH(Base_Inversiones[[#This Row],[Fecha Compra]]),1))-1,"") ->  | AW68: =IF(Base_Inversiones[[#This Row],[Graficar Día]]="ok",Base_Inversiones[[#This Row],[Num Semana]]-Base_Inversiones[[#This Row],[Num Sem Extrae]],"") ->  | AX68: =IF(Base_Inversiones[[#This Row],[Graficar Día]]="ok",IFERROR(VLOOKUP(Base_Inversiones[[#This Row],[Mes Corrob]],Administración!$L$4:$M$15,2,0),""),"") -> 
H69: =IF(Base_Inversiones[[#This Row],[Graficar Día]]="ok",F69*G69,"") ->  | R69: =IF(Base_Inversiones[[#This Row],[Graficar Día]]="ok",P69-F69,"") ->  | U69: =IF(Base_Inversiones[[#This Row],[Graficar Día]]="ok",IF(P69="",0,R69*G69-IF(B69="C",(10+0.15*2*G69/100),(0.5*2*G69/100))),"") ->  | X69: =IF(Base_Inversiones[[#This Row],[Graficar Día]]="ok",IF(P69="",0,U69-V69-W69),"") ->  | AC69: =IF(Base_Inversiones[[#This Row],[Graficar Día]]="ok",SUM(AB$5:AB69),"") ->  | AD69: =IF(Base_Inversiones[[#This Row],[Graficar Día]]="ok",(IF(S69>0,"G","P")),"") ->  | AH69: =IF(Base_Inversiones[[#This Row],[Graficar Día]]="ok",DAY(A69),"") ->  | AI69: =IF(Base_Inversiones[[#This Row],[Graficar Día]]="ok",MONTH(A69),"") ->  | AJ69: =IF(Base_Inversiones[[#This Row],[Graficar Día]]="ok",YEAR(A69),"") ->  | AK69: =IF(Base_Inversiones[[#This Row],[Graficar Día]]="ok",IF(LEN(AH69)=1,"0"&AH69,AH69)&"/"&IF(LEN(AI69)=1,"0"&AI69,AI69)&"/"&AJ69,"") ->  | AL69: =TEXT(Base_Inversiones[[#This Row],[Fecha Corrob]],"DD/MM/AAAA") ->  | AM69: =IF(Base_Inversiones[[#This Row],[Graficar Día]]="ok",VLOOKUP(Base_Inversiones[[#This Row],[Texto fecha]],Administración!$B$2:$C$1432,2,0),"") ->  | AN69: =IF(Base_Inversiones[[#This Row],[Qty]]>0,"ok","no") -> no | AO69: =IF(Base_Inversiones[[#This Row],[Graficar Día]]="ok",$D$1,"") ->  | AP69: =IF(Base_Inversiones[[#This Row],[Graficar Día]]="ok",Base_Inversiones[[#This Row],[Budget Inicial/ Aportación]]+Base_Inversiones[[#This Row],[Saldo]],"") ->  | AS69: =SUM(Base_Inversiones[G/P Neta]) -> 108 | AT69: =IF(Base_Inversiones[[#This Row],[Graficar Día]]="ok",$D$1,"") ->  | AU69: =IF(Base_Inversiones[[#This Row],[Graficar Día]]="ok",WEEKNUM(Base_Inversiones[[#This Row],[Fecha Compra]]),"") ->  | AV69: =IF(Base_Inversiones[[#This Row],[Graficar Día]]="ok",WEEKNUM(DATE(YEAR(Base_Inversiones[[#This Row],[Fecha Compra]]),MONTH(Base_Inversiones[[#This Row],[Fecha Compra]]),1))-1,"") ->  | AW69: =IF(Base_Inversiones[[#This Row],[Graficar Día]]="ok",Base_Inversiones[[#This Row],[Num Semana]]-Base_Inversiones[[#This Row],[Num Sem Extrae]],"") ->  | AX69: =IF(Base_Inversiones[[#This Row],[Graficar Día]]="ok",IFERROR(VLOOKUP(Base_Inversiones[[#This Row],[Mes Corrob]],Administración!$L$4:$M$15,2,0),""),"") -> 
H70: =IF(Base_Inversiones[[#This Row],[Graficar Día]]="ok",F70*G70,"") ->  | R70: =IF(Base_Inversiones[[#This Row],[Graficar Día]]="ok",P70-F70,"") ->  | U70: =IF(Base_Inversiones[[#This Row],[Graficar Día]]="ok",IF(P70="",0,R70*G70-IF(B70="C",(10+0.15*2*G70/100),(0.5*2*G70/100))),"") ->  | X70: =IF(Base_Inversiones[[#This Row],[Graficar Día]]="ok",IF(P70="",0,U70-V70-W70),"") ->  | AC70: =IF(Base_Inversiones[[#This Row],[Graficar Día]]="ok",SUM(AB$5:AB70),"") ->  | AD70: =IF(Base_Inversiones[[#This Row],[Graficar Día]]="ok",(IF(S70>0,"G","P")),"") ->  | AH70: =IF(Base_Inversiones[[#This Row],[Graficar Día]]="ok",DAY(A70),"") ->  | AI70: =IF(Base_Inversiones[[#This Row],[Graficar Día]]="ok",MONTH(A70),"") ->  | AJ70: =IF(Base_Inversiones[[#This Row],[Graficar Día]]="ok",YEAR(A70),"") ->  | AK70: =IF(Base_Inversiones[[#This Row],[Graficar Día]]="ok",IF(LEN(AH70)=1,"0"&AH70,AH70)&"/"&IF(LEN(AI70)=1,"0"&AI70,AI70)&"/"&AJ70,"") ->  | AL70: =TEXT(Base_Inversiones[[#This Row],[Fecha Corrob]],"DD/MM/AAAA") ->  | AM70: =IF(Base_Inversiones[[#This Row],[Graficar Día]]="ok",VLOOKUP(Base_Inversiones[[#This Row],[Texto fecha]],Administración!$B$2:$C$1432,2,0),"") ->  | AN70: =IF(Base_Inversiones[[#This Row],[Qty]]>0,"ok","no") -> no | AO70: =IF(Base_Inversiones[[#This Row],[Graficar Día]]="ok",$D$1,"") ->  | AP70: =IF(Base_Inversiones[[#This Row],[Graficar Día]]="ok",Base_Inversiones[[#This Row],[Budget Inicial/ Aportación]]+Base_Inversiones[[#This Row],[Saldo]],"") ->  | AS70: =SUM(Base_Inversiones[G/P Neta]) -> 108 | AT70: =IF(Base_Inversiones[[#This Row],[Graficar Día]]="ok",$D$1,"") ->  | AU70: =IF(Base_Inversiones[[#This Row],[Graficar Día]]="ok",WEEKNUM(Base_Inversiones[[#This Row],[Fecha Compra]]),"") ->  | AV70: =IF(Base_Inversiones[[#This Row],[Graficar Día]]="ok",WEEKNUM(DATE(YEAR(Base_Inversiones[[#This Row],[Fecha Compra]]),MONTH(Base_Inversiones[[#This Row],[Fecha Compra]]),1))-1,"") ->  | AW70: =IF(Base_Inversiones[[#This Row],[Graficar Día]]="ok",Base_Inversiones[[#This Row],[Num Semana]]-Base_Inversiones[[#This Row],[Num Sem Extrae]],"") ->  | AX70: =IF(Base_Inversiones[[#This Row],[Graficar Día]]="ok",IFERROR(VLOOKUP(Base_Inversiones[[#This Row],[Mes Corrob]],Administración!$L$4:$M$15,2,0),""),"") -> 
H71: =IF(Base_Inversiones[[#This Row],[Graficar Día]]="ok",F71*G71,"") ->  | R71: =IF(Base_Inversiones[[#This Row],[Graficar Día]]="ok",P71-F71,"") ->  | U71: =IF(Base_Inversiones[[#This Row],[Graficar Día]]="ok",IF(P71="",0,R71*G71-IF(B71="C",(10+0.15*2*G71/100),(0.5*2*G71/100))),"") ->  | X71: =IF(Base_Inversiones[[#This Row],[Graficar Día]]="ok",IF(P71="",0,U71-V71-W71),"") ->  | AC71: =IF(Base_Inversiones[[#This Row],[Graficar Día]]="ok",SUM(AB$5:AB71),"") ->  | AD71: =IF(Base_Inversiones[[#This Row],[Graficar Día]]="ok",(IF(S71>0,"G","P")),"") ->  | AH71: =IF(Base_Inversiones[[#This Row],[Graficar Día]]="ok",DAY(A71),"") ->  | AI71: =IF(Base_Inversiones[[#This Row],[Graficar Día]]="ok",MONTH(A71),"") ->  | AJ71: =IF(Base_Inversiones[[#This Row],[Graficar Día]]="ok",YEAR(A71),"") ->  | AK71: =IF(Base_Inversiones[[#This Row],[Graficar Día]]="ok",IF(LEN(AH71)=1,"0"&AH71,AH71)&"/"&IF(LEN(AI71)=1,"0"&AI71,AI71)&"/"&AJ71,"") ->  | AL71: =TEXT(Base_Inversiones[[#This Row],[Fecha Corrob]],"DD/MM/AAAA") ->  | AM71: =IF(Base_Inversiones[[#This Row],[Graficar Día]]="ok",VLOOKUP(Base_Inversiones[[#This Row],[Texto fecha]],Administración!$B$2:$C$1432,2,0),"") ->  | AN71: =IF(Base_Inversiones[[#This Row],[Qty]]>0,"ok","no") -> no | AO71: =IF(Base_Inversiones[[#This Row],[Graficar Día]]="ok",$D$1,"") ->  | AP71: =IF(Base_Inversiones[[#This Row],[Graficar Día]]="ok",Base_Inversiones[[#This Row],[Budget Inicial/ Aportación]]+Base_Inversiones[[#This Row],[Saldo]],"") ->  | AS71: =SUM(Base_Inversiones[G/P Neta]) -> 108 | AT71: =IF(Base_Inversiones[[#This Row],[Graficar Día]]="ok",$D$1,"") ->  | AU71: =IF(Base_Inversiones[[#This Row],[Graficar Día]]="ok",WEEKNUM(Base_Inversiones[[#This Row],[Fecha Compra]]),"") ->  | AV71: =IF(Base_Inversiones[[#This Row],[Graficar Día]]="ok",WEEKNUM(DATE(YEAR(Base_Inversiones[[#This Row],[Fecha Compra]]),MONTH(Base_Inversiones[[#This Row],[Fecha Compra]]),1))-1,"") ->  | AW71: =IF(Base_Inversiones[[#This Row],[Graficar Día]]="ok",Base_Inversiones[[#This Row],[Num Semana]]-Base_Inversiones[[#This Row],[Num Sem Extrae]],"") ->  | AX71: =IF(Base_Inversiones[[#This Row],[Graficar Día]]="ok",IFERROR(VLOOKUP(Base_Inversiones[[#This Row],[Mes Corrob]],Administración!$L$4:$M$15,2,0),""),"") -> 
H72: =IF(Base_Inversiones[[#This Row],[Graficar Día]]="ok",F72*G72,"") ->  | R72: =IF(Base_Inversiones[[#This Row],[Graficar Día]]="ok",P72-F72,"") ->  | U72: =IF(Base_Inversiones[[#This Row],[Graficar Día]]="ok",IF(P72="",0,R72*G72-IF(B72="C",(10+0.15*2*G72/100),(0.5*2*G72/100))),"") ->  | X72: =IF(Base_Inversiones[[#This Row],[Graficar Día]]="ok",IF(P72="",0,U72-V72-W72),"") ->  | AC72: =IF(Base_Inversiones[[#This Row],[Graficar Día]]="ok",SUM(AB$5:AB72),"") ->  | AD72: =IF(Base_Inversiones[[#This Row],[Graficar Día]]="ok",(IF(S72>0,"G","P")),"") ->  | AH72: =IF(Base_Inversiones[[#This Row],[Graficar Día]]="ok",DAY(A72),"") ->  | AI72: =IF(Base_Inversiones[[#This Row],[Graficar Día]]="ok",MONTH(A72),"") ->  | AJ72: =IF(Base_Inversiones[[#This Row],[Graficar Día]]="ok",YEAR(A72),"") ->  | AK72: =IF(Base_Inversiones[[#This Row],[Graficar Día]]="ok",IF(LEN(AH72)=1,"0"&AH72,AH72)&"/"&IF(LEN(AI72)=1,"0"&AI72,AI72)&"/"&AJ72,"") ->  | AL72: =TEXT(Base_Inversiones[[#This Row],[Fecha Corrob]],"DD/MM/AAAA") ->  | AM72: =IF(Base_Inversiones[[#This Row],[Graficar Día]]="ok",VLOOKUP(Base_Inversiones[[#This Row],[Texto fecha]],Administración!$B$2:$C$1432,2,0),"") ->  | AN72: =IF(Base_Inversiones[[#This Row],[Qty]]>0,"ok","no") -> no | AO72: =IF(Base_Inversiones[[#This Row],[Graficar Día]]="ok",$D$1,"") ->  | AP72: =IF(Base_Inversiones[[#This Row],[Graficar Día]]="ok",Base_Inversiones[[#This Row],[Budget Inicial/ Aportación]]+Base_Inversiones[[#This Row],[Saldo]],"") ->  | AS72: =SUM(Base_Inversiones[G/P Neta]) -> 108 | AT72: =IF(Base_Inversiones[[#This Row],[Graficar Día]]="ok",$D$1,"") ->  | AU72: =IF(Base_Inversiones[[#This Row],[Graficar Día]]="ok",WEEKNUM(Base_Inversiones[[#This Row],[Fecha Compra]]),"") ->  | AV72: =IF(Base_Inversiones[[#This Row],[Graficar Día]]="ok",WEEKNUM(DATE(YEAR(Base_Inversiones[[#This Row],[Fecha Compra]]),MONTH(Base_Inversiones[[#This Row],[Fecha Compra]]),1))-1,"") ->  | AW72: =IF(Base_Inversiones[[#This Row],[Graficar Día]]="ok",Base_Inversiones[[#This Row],[Num Semana]]-Base_Inversiones[[#This Row],[Num Sem Extrae]],"") ->  | AX72: =IF(Base_Inversiones[[#This Row],[Graficar Día]]="ok",IFERROR(VLOOKUP(Base_Inversiones[[#This Row],[Mes Corrob]],Administración!$L$4:$M$15,2,0),""),"") -> 
H73: =IF(Base_Inversiones[[#This Row],[Graficar Día]]="ok",F73*G73,"") ->  | R73: =IF(Base_Inversiones[[#This Row],[Graficar Día]]="ok",P73-F73,"") ->  | U73: =IF(Base_Inversiones[[#This Row],[Graficar Día]]="ok",IF(P73="",0,R73*G73-IF(B73="C",(10+0.15*2*G73/100),(0.5*2*G73/100))),"") ->  | X73: =IF(Base_Inversiones[[#This Row],[Graficar Día]]="ok",IF(P73="",0,U73-V73-W73),"") ->  | AC73: =IF(Base_Inversiones[[#This Row],[Graficar Día]]="ok",SUM(AB$5:AB73),"") ->  | AD73: =IF(Base_Inversiones[[#This Row],[Graficar Día]]="ok",(IF(S73>0,"G","P")),"") ->  | AH73: =IF(Base_Inversiones[[#This Row],[Graficar Día]]="ok",DAY(A73),"") ->  | AI73: =IF(Base_Inversiones[[#This Row],[Graficar Día]]="ok",MONTH(A73),"") ->  | AJ73: =IF(Base_Inversiones[[#This Row],[Graficar Día]]="ok",YEAR(A73),"") ->  | AK73: =IF(Base_Inversiones[[#This Row],[Graficar Día]]="ok",IF(LEN(AH73)=1,"0"&AH73,AH73)&"/"&IF(LEN(AI73)=1,"0"&AI73,AI73)&"/"&AJ73,"") ->  | AL73: =TEXT(Base_Inversiones[[#This Row],[Fecha Corrob]],"DD/MM/AAAA") ->  | AM73: =IF(Base_Inversiones[[#This Row],[Graficar Día]]="ok",VLOOKUP(Base_Inversiones[[#This Row],[Texto fecha]],Administración!$B$2:$C$1432,2,0),"") ->  | AN73: =IF(Base_Inversiones[[#This Row],[Qty]]>0,"ok","no") -> no | AO73: =IF(Base_Inversiones[[#This Row],[Graficar Día]]="ok",$D$1,"") ->  | AP73: =IF(Base_Inversiones[[#This Row],[Graficar Día]]="ok",Base_Inversiones[[#This Row],[Budget Inicial/ Aportación]]+Base_Inversiones[[#This Row],[Saldo]],"") ->  | AS73: =SUM(Base_Inversiones[G/P Neta]) -> 108 | AT73: =IF(Base_Inversiones[[#This Row],[Graficar Día]]="ok",$D$1,"") ->  | AU73: =IF(Base_Inversiones[[#This Row],[Graficar Día]]="ok",WEEKNUM(Base_Inversiones[[#This Row],[Fecha Compra]]),"") ->  | AV73: =IF(Base_Inversiones[[#This Row],[Graficar Día]]="ok",WEEKNUM(DATE(YEAR(Base_Inversiones[[#This Row],[Fecha Compra]]),MONTH(Base_Inversiones[[#This Row],[Fecha Compra]]),1))-1,"") ->  | AW73: =IF(Base_Inversiones[[#This Row],[Graficar Día]]="ok",Base_Inversiones[[#This Row],[Num Semana]]-Base_Inversiones[[#This Row],[Num Sem Extrae]],"") ->  | AX73: =IF(Base_Inversiones[[#This Row],[Graficar Día]]="ok",IFERROR(VLOOKUP(Base_Inversiones[[#This Row],[Mes Corrob]],Administración!$L$4:$M$15,2,0),""),"") -> 
H74: =IF(Base_Inversiones[[#This Row],[Graficar Día]]="ok",F74*G74,"") ->  | R74: =IF(Base_Inversiones[[#This Row],[Graficar Día]]="ok",P74-F74,"") ->  | U74: =IF(Base_Inversiones[[#This Row],[Graficar Día]]="ok",IF(P74="",0,R74*G74-IF(B74="C",(10+0.15*2*G74/100),(0.5*2*G74/100))),"") ->  | X74: =IF(Base_Inversiones[[#This Row],[Graficar Día]]="ok",IF(P74="",0,U74-V74-W74),"") ->  | AC74: =IF(Base_Inversiones[[#This Row],[Graficar Día]]="ok",SUM(AB$5:AB74),"") ->  | AD74: =IF(Base_Inversiones[[#This Row],[Graficar Día]]="ok",(IF(S74>0,"G","P")),"") ->  | AH74: =IF(Base_Inversiones[[#This Row],[Graficar Día]]="ok",DAY(A74),"") ->  | AI74: =IF(Base_Inversiones[[#This Row],[Graficar Día]]="ok",MONTH(A74),"") ->  | AJ74: =IF(Base_Inversiones[[#This Row],[Graficar Día]]="ok",YEAR(A74),"") ->  | AK74: =IF(Base_Inversiones[[#This Row],[Graficar Día]]="ok",IF(LEN(AH74)=1,"0"&AH74,AH74)&"/"&IF(LEN(AI74)=1,"0"&AI74,AI74)&"/"&AJ74,"") ->  | AL74: =TEXT(Base_Inversiones[[#This Row],[Fecha Corrob]],"DD/MM/AAAA") ->  | AM74: =IF(Base_Inversiones[[#This Row],[Graficar Día]]="ok",VLOOKUP(Base_Inversiones[[#This Row],[Texto fecha]],Administración!$B$2:$C$1432,2,0),"") ->  | AN74: =IF(Base_Inversiones[[#This Row],[Qty]]>0,"ok","no") -> no | AO74: =IF(Base_Inversiones[[#This Row],[Graficar Día]]="ok",$D$1,"") ->  | AP74: =IF(Base_Inversiones[[#This Row],[Graficar Día]]="ok",Base_Inversiones[[#This Row],[Budget Inicial/ Aportación]]+Base_Inversiones[[#This Row],[Saldo]],"") ->  | AS74: =SUM(Base_Inversiones[G/P Neta]) -> 108 | AT74: =IF(Base_Inversiones[[#This Row],[Graficar Día]]="ok",$D$1,"") ->  | AU74: =IF(Base_Inversiones[[#This Row],[Graficar Día]]="ok",WEEKNUM(Base_Inversiones[[#This Row],[Fecha Compra]]),"") ->  | AV74: =IF(Base_Inversiones[[#This Row],[Graficar Día]]="ok",WEEKNUM(DATE(YEAR(Base_Inversiones[[#This Row],[Fecha Compra]]),MONTH(Base_Inversiones[[#This Row],[Fecha Compra]]),1))-1,"") ->  | AW74: =IF(Base_Inversiones[[#This Row],[Graficar Día]]="ok",Base_Inversiones[[#This Row],[Num Semana]]-Base_Inversiones[[#This Row],[Num Sem Extrae]],"") ->  | AX74: =IF(Base_Inversiones[[#This Row],[Graficar Día]]="ok",IFERROR(VLOOKUP(Base_Inversiones[[#This Row],[Mes Corrob]],Administración!$L$4:$M$15,2,0),""),"") -> 
H75: =IF(Base_Inversiones[[#This Row],[Graficar Día]]="ok",F75*G75,"") ->  | R75: =IF(Base_Inversiones[[#This Row],[Graficar Día]]="ok",P75-F75,"") ->  | U75: =IF(Base_Inversiones[[#This Row],[Graficar Día]]="ok",IF(P75="",0,R75*G75-IF(B75="C",(10+0.15*2*G75/100),(0.5*2*G75/100))),"") ->  | X75: =IF(Base_Inversiones[[#This Row],[Graficar Día]]="ok",IF(P75="",0,U75-V75-W75),"") ->  | AC75: =IF(Base_Inversiones[[#This Row],[Graficar Día]]="ok",SUM(AB$5:AB75),"") ->  | AD75: =IF(Base_Inversiones[[#This Row],[Graficar Día]]="ok",(IF(S75>0,"G","P")),"") ->  | AH75: =IF(Base_Inversiones[[#This Row],[Graficar Día]]="ok",DAY(A75),"") ->  | AI75: =IF(Base_Inversiones[[#This Row],[Graficar Día]]="ok",MONTH(A75),"") ->  | AJ75: =IF(Base_Inversiones[[#This Row],[Graficar Día]]="ok",YEAR(A75),"") ->  | AK75: =IF(Base_Inversiones[[#This Row],[Graficar Día]]="ok",IF(LEN(AH75)=1,"0"&AH75,AH75)&"/"&IF(LEN(AI75)=1,"0"&AI75,AI75)&"/"&AJ75,"") ->  | AL75: =TEXT(Base_Inversiones[[#This Row],[Fecha Corrob]],"DD/MM/AAAA") ->  | AM75: =IF(Base_Inversiones[[#This Row],[Graficar Día]]="ok",VLOOKUP(Base_Inversiones[[#This Row],[Texto fecha]],Administración!$B$2:$C$1432,2,0),"") ->  | AN75: =IF(Base_Inversiones[[#This Row],[Qty]]>0,"ok","no") -> no | AO75: =IF(Base_Inversiones[[#This Row],[Graficar Día]]="ok",$D$1,"") ->  | AP75: =IF(Base_Inversiones[[#This Row],[Graficar Día]]="ok",Base_Inversiones[[#This Row],[Budget Inicial/ Aportación]]+Base_Inversiones[[#This Row],[Saldo]],"") ->  | AS75: =SUM(Base_Inversiones[G/P Neta]) -> 108 | AT75: =IF(Base_Inversiones[[#This Row],[Graficar Día]]="ok",$D$1,"") ->  | AU75: =IF(Base_Inversiones[[#This Row],[Graficar Día]]="ok",WEEKNUM(Base_Inversiones[[#This Row],[Fecha Compra]]),"") ->  | AV75: =IF(Base_Inversiones[[#This Row],[Graficar Día]]="ok",WEEKNUM(DATE(YEAR(Base_Inversiones[[#This Row],[Fecha Compra]]),MONTH(Base_Inversiones[[#This Row],[Fecha Compra]]),1))-1,"") ->  | AW75: =IF(Base_Inversiones[[#This Row],[Graficar Día]]="ok",Base_Inversiones[[#This Row],[Num Semana]]-Base_Inversiones[[#This Row],[Num Sem Extrae]],"") ->  | AX75: =IF(Base_Inversiones[[#This Row],[Graficar Día]]="ok",IFERROR(VLOOKUP(Base_Inversiones[[#This Row],[Mes Corrob]],Administración!$L$4:$M$15,2,0),""),"") -> 
H76: =IF(Base_Inversiones[[#This Row],[Graficar Día]]="ok",F76*G76,"") ->  | R76: =IF(Base_Inversiones[[#This Row],[Graficar Día]]="ok",P76-F76,"") ->  | U76: =IF(Base_Inversiones[[#This Row],[Graficar Día]]="ok",IF(P76="",0,R76*G76-IF(B76="C",(10+0.15*2*G76/100),(0.5*2*G76/100))),"") ->  | X76: =IF(Base_Inversiones[[#This Row],[Graficar Día]]="ok",IF(P76="",0,U76-V76-W76),"") ->  | AC76: =IF(Base_Inversiones[[#This Row],[Graficar Día]]="ok",SUM(AB$5:AB76),"") ->  | AD76: =IF(Base_Inversiones[[#This Row],[Graficar Día]]="ok",(IF(S76>0,"G","P")),"") ->  | AH76: =IF(Base_Inversiones[[#This Row],[Graficar Día]]="ok",DAY(A76),"") ->  | AI76: =IF(Base_Inversiones[[#This Row],[Graficar Día]]="ok",MONTH(A76),"") ->  | AJ76: =IF(Base_Inversiones[[#This Row],[Graficar Día]]="ok",YEAR(A76),"") ->  | AK76: =IF(Base_Inversiones[[#This Row],[Graficar Día]]="ok",IF(LEN(AH76)=1,"0"&AH76,AH76)&"/"&IF(LEN(AI76)=1,"0"&AI76,AI76)&"/"&AJ76,"") ->  | AL76: =TEXT(Base_Inversiones[[#This Row],[Fecha Corrob]],"DD/MM/AAAA") ->  | AM76: =IF(Base_Inversiones[[#This Row],[Graficar Día]]="ok",VLOOKUP(Base_Inversiones[[#This Row],[Texto fecha]],Administración!$B$2:$C$1432,2,0),"") ->  | AN76: =IF(Base_Inversiones[[#This Row],[Qty]]>0,"ok","no") -> no | AO76: =IF(Base_Inversiones[[#This Row],[Graficar Día]]="ok",$D$1,"") ->  | AP76: =IF(Base_Inversiones[[#This Row],[Graficar Día]]="ok",Base_Inversiones[[#This Row],[Budget Inicial/ Aportación]]+Base_Inversiones[[#This Row],[Saldo]],"") ->  | AS76: =SUM(Base_Inversiones[G/P Neta]) -> 108 | AT76: =IF(Base_Inversiones[[#This Row],[Graficar Día]]="ok",$D$1,"") ->  | AU76: =IF(Base_Inversiones[[#This Row],[Graficar Día]]="ok",WEEKNUM(Base_Inversiones[[#This Row],[Fecha Compra]]),"") ->  | AV76: =IF(Base_Inversiones[[#This Row],[Graficar Día]]="ok",WEEKNUM(DATE(YEAR(Base_Inversiones[[#This Row],[Fecha Compra]]),MONTH(Base_Inversiones[[#This Row],[Fecha Compra]]),1))-1,"") ->  | AW76: =IF(Base_Inversiones[[#This Row],[Graficar Día]]="ok",Base_Inversiones[[#This Row],[Num Semana]]-Base_Inversiones[[#This Row],[Num Sem Extrae]],"") ->  | AX76: =IF(Base_Inversiones[[#This Row],[Graficar Día]]="ok",IFERROR(VLOOKUP(Base_Inversiones[[#This Row],[Mes Corrob]],Administración!$L$4:$M$15,2,0),""),"") -> 
H77: =IF(Base_Inversiones[[#This Row],[Graficar Día]]="ok",F77*G77,"") ->  | R77: =IF(Base_Inversiones[[#This Row],[Graficar Día]]="ok",P77-F77,"") ->  | T77: =IFERROR(IF(S77<0,S77/40,S77/20),"") ->  | U77: =IF(Base_Inversiones[[#This Row],[Graficar Día]]="ok",IF(P77="",0,R77*G77-IF(B77="C",(10+0.15*2*G77/100),(0.5*2*G77/100))),"") ->  | X77: =IF(Base_Inversiones[[#This Row],[Graficar Día]]="ok",IF(P77="",0,U77-V77-W77),"") ->  | AB77: =U77 ->  | AC77: =IF(Base_Inversiones[[#This Row],[Graficar Día]]="ok",SUM(AB$5:AB77),"") ->  | AD77: =IF(Base_Inversiones[[#This Row],[Graficar Día]]="ok",(IF(S77>0,"G","P")),"") ->  | AF77: =TEXT(AE77,"dddd") ->  | AG77: =TEXT(AE77,"mmmm") ->  | AH77: =IF(Base_Inversiones[[#This Row],[Graficar Día]]="ok",DAY(A77),"") ->  | AI77: =IF(Base_Inversiones[[#This Row],[Graficar Día]]="ok",MONTH(A77),"") ->  | AJ77: =IF(Base_Inversiones[[#This Row],[Graficar Día]]="ok",YEAR(A77),"") ->  | AK77: =IF(Base_Inversiones[[#This Row],[Graficar Día]]="ok",IF(LEN(AH77)=1,"0"&AH77,AH77)&"/"&IF(LEN(AI77)=1,"0"&AI77,AI77)&"/"&AJ77,"") ->  | AL77: =TEXT(Base_Inversiones[[#This Row],[Fecha Corrob]],"DD/MM/AAAA") ->  | AM77: =IF(Base_Inversiones[[#This Row],[Graficar Día]]="ok",VLOOKUP(Base_Inversiones[[#This Row],[Texto fecha]],Administración!$B$2:$C$1432,2,0),"") ->  | AN77: =IF(Base_Inversiones[[#This Row],[Qty]]>0,"ok","no") -> no | AO77: =IF(Base_Inversiones[[#This Row],[Graficar Día]]="ok",$D$1,"") ->  | AP77: =IF(Base_Inversiones[[#This Row],[Graficar Día]]="ok",Base_Inversiones[[#This Row],[Budget Inicial/ Aportación]]+Base_Inversiones[[#This Row],[Saldo]],"") ->  | AQ77: =IF(AD77="P",1,"") ->  | AR77: =IF(AD77="G",1,"") ->  | AS77: =SUM(Base_Inversiones[G/P Neta]) -> 108 | AT77: =IF(Base_Inversiones[[#This Row],[Graficar Día]]="ok",$D$1,"") ->  | AU77: =IF(Base_Inversiones[[#This Row],[Graficar Día]]="ok",WEEKNUM(Base_Inversiones[[#This Row],[Fecha Compra]]),"") ->  | AV77: =IF(Base_Inversiones[[#This Row],[Graficar Día]]="ok",WEEKNUM(DATE(YEAR(Base_Inversiones[[#This Row],[Fecha Compra]]),MONTH(Base_Inversiones[[#This Row],[Fecha Compra]]),1))-1,"") ->  | AW77: =IF(Base_Inversiones[[#This Row],[Graficar Día]]="ok",Base_Inversiones[[#This Row],[Num Semana]]-Base_Inversiones[[#This Row],[Num Sem Extrae]],"") ->  | AX77: =IF(Base_Inversiones[[#This Row],[Graficar Día]]="ok",IFERROR(VLOOKUP(Base_Inversiones[[#This Row],[Mes Corrob]],Administración!$L$4:$M$15,2,0),""),"") -> 
H78: =IF(Base_Inversiones[[#This Row],[Graficar Día]]="ok",F78*G78,"") ->  | R78: =IF(Base_Inversiones[[#This Row],[Graficar Día]]="ok",P78-F78,"") ->  | U78: =IF(Base_Inversiones[[#This Row],[Graficar Día]]="ok",IF(P78="",0,R78*G78-IF(B78="C",(10+0.15*2*G78/100),(0.5*2*G78/100))),"") ->  | X78: =IF(Base_Inversiones[[#This Row],[Graficar Día]]="ok",IF(P78="",0,U78-V78-W78),"") ->  | AC78: =IF(Base_Inversiones[[#This Row],[Graficar Día]]="ok",SUM(AB$5:AB78),"") ->  | AD78: =IF(Base_Inversiones[[#This Row],[Graficar Día]]="ok",(IF(S78>0,"G","P")),"") ->  | AH78: =IF(Base_Inversiones[[#This Row],[Graficar Día]]="ok",DAY(A78),"") ->  | AI78: =IF(Base_Inversiones[[#This Row],[Graficar Día]]="ok",MONTH(A78),"") ->  | AJ78: =IF(Base_Inversiones[[#This Row],[Graficar Día]]="ok",YEAR(A78),"") ->  | AK78: =IF(Base_Inversiones[[#This Row],[Graficar Día]]="ok",IF(LEN(AH78)=1,"0"&AH78,AH78)&"/"&IF(LEN(AI78)=1,"0"&AI78,AI78)&"/"&AJ78,"") ->  | AL78: =TEXT(Base_Inversiones[[#This Row],[Fecha Corrob]],"DD/MM/AAAA") ->  | AM78: =IF(Base_Inversiones[[#This Row],[Graficar Día]]="ok",VLOOKUP(Base_Inversiones[[#This Row],[Texto fecha]],Administración!$B$2:$C$1432,2,0),"") ->  | AN78: =IF(Base_Inversiones[[#This Row],[Qty]]>0,"ok","no") -> no | AO78: =IF(Base_Inversiones[[#This Row],[Graficar Día]]="ok",$D$1,"") ->  | AP78: =IF(Base_Inversiones[[#This Row],[Graficar Día]]="ok",Base_Inversiones[[#This Row],[Budget Inicial/ Aportación]]+Base_Inversiones[[#This Row],[Saldo]],"") ->  | AS78: =SUM(Base_Inversiones[G/P Neta]) -> 108 | AT78: =IF(Base_Inversiones[[#This Row],[Graficar Día]]="ok",$D$1,"") ->  | AU78: =IF(Base_Inversiones[[#This Row],[Graficar Día]]="ok",WEEKNUM(Base_Inversiones[[#This Row],[Fecha Compra]]),"") ->  | AV78: =IF(Base_Inversiones[[#This Row],[Graficar Día]]="ok",WEEKNUM(DATE(YEAR(Base_Inversiones[[#This Row],[Fecha Compra]]),MONTH(Base_Inversiones[[#This Row],[Fecha Compra]]),1))-1,"") ->  | AW78: =IF(Base_Inversiones[[#This Row],[Graficar Día]]="ok",Base_Inversiones[[#This Row],[Num Semana]]-Base_Inversiones[[#This Row],[Num Sem Extrae]],"") ->  | AX78: =IF(Base_Inversiones[[#This Row],[Graficar Día]]="ok",IFERROR(VLOOKUP(Base_Inversiones[[#This Row],[Mes Corrob]],Administración!$L$4:$M$15,2,0),""),"") -> 
H79: =IF(Base_Inversiones[[#This Row],[Graficar Día]]="ok",F79*G79,"") ->  | R79: =IF(Base_Inversiones[[#This Row],[Graficar Día]]="ok",P79-F79,"") ->  | U79: =IF(Base_Inversiones[[#This Row],[Graficar Día]]="ok",IF(P79="",0,R79*G79-IF(B79="C",(10+0.15*2*G79/100),(0.5*2*G79/100))),"") ->  | X79: =IF(Base_Inversiones[[#This Row],[Graficar Día]]="ok",IF(P79="",0,U79-V79-W79),"") ->  | AC79: =IF(Base_Inversiones[[#This Row],[Graficar Día]]="ok",SUM(AB$5:AB79),"") ->  | AD79: =IF(Base_Inversiones[[#This Row],[Graficar Día]]="ok",(IF(S79>0,"G","P")),"") ->  | AH79: =IF(Base_Inversiones[[#This Row],[Graficar Día]]="ok",DAY(A79),"") ->  | AI79: =IF(Base_Inversiones[[#This Row],[Graficar Día]]="ok",MONTH(A79),"") ->  | AJ79: =IF(Base_Inversiones[[#This Row],[Graficar Día]]="ok",YEAR(A79),"") ->  | AK79: =IF(Base_Inversiones[[#This Row],[Graficar Día]]="ok",IF(LEN(AH79)=1,"0"&AH79,AH79)&"/"&IF(LEN(AI79)=1,"0"&AI79,AI79)&"/"&AJ79,"") ->  | AL79: =TEXT(Base_Inversiones[[#This Row],[Fecha Corrob]],"DD/MM/AAAA") ->  | AM79: =IF(Base_Inversiones[[#This Row],[Graficar Día]]="ok",VLOOKUP(Base_Inversiones[[#This Row],[Texto fecha]],Administración!$B$2:$C$1432,2,0),"") ->  | AN79: =IF(Base_Inversiones[[#This Row],[Qty]]>0,"ok","no") -> no | AO79: =IF(Base_Inversiones[[#This Row],[Graficar Día]]="ok",$D$1,"") ->  | AP79: =IF(Base_Inversiones[[#This Row],[Graficar Día]]="ok",Base_Inversiones[[#This Row],[Budget Inicial/ Aportación]]+Base_Inversiones[[#This Row],[Saldo]],"") ->  | AS79: =SUM(Base_Inversiones[G/P Neta]) -> 108 | AT79: =IF(Base_Inversiones[[#This Row],[Graficar Día]]="ok",$D$1,"") ->  | AU79: =IF(Base_Inversiones[[#This Row],[Graficar Día]]="ok",WEEKNUM(Base_Inversiones[[#This Row],[Fecha Compra]]),"") ->  | AV79: =IF(Base_Inversiones[[#This Row],[Graficar Día]]="ok",WEEKNUM(DATE(YEAR(Base_Inversiones[[#This Row],[Fecha Compra]]),MONTH(Base_Inversiones[[#This Row],[Fecha Compra]]),1))-1,"") ->  | AW79: =IF(Base_Inversiones[[#This Row],[Graficar Día]]="ok",Base_Inversiones[[#This Row],[Num Semana]]-Base_Inversiones[[#This Row],[Num Sem Extrae]],"") ->  | AX79: =IF(Base_Inversiones[[#This Row],[Graficar Día]]="ok",IFERROR(VLOOKUP(Base_Inversiones[[#This Row],[Mes Corrob]],Administración!$L$4:$M$15,2,0),""),"") -> 
H80: =IF(Base_Inversiones[[#This Row],[Graficar Día]]="ok",F80*G80,"") ->  | R80: =IF(Base_Inversiones[[#This Row],[Graficar Día]]="ok",P80-F80,"") ->  | U80: =IF(Base_Inversiones[[#This Row],[Graficar Día]]="ok",IF(P80="",0,R80*G80-IF(B80="C",(10+0.15*2*G80/100),(0.5*2*G80/100))),"") ->  | X80: =IF(Base_Inversiones[[#This Row],[Graficar Día]]="ok",IF(P80="",0,U80-V80-W80),"") ->  | AC80: =IF(Base_Inversiones[[#This Row],[Graficar Día]]="ok",SUM(AB$5:AB80),"") ->  | AD80: =IF(Base_Inversiones[[#This Row],[Graficar Día]]="ok",(IF(S80>0,"G","P")),"") ->  | AH80: =IF(Base_Inversiones[[#This Row],[Graficar Día]]="ok",DAY(A80),"") ->  | AI80: =IF(Base_Inversiones[[#This Row],[Graficar Día]]="ok",MONTH(A80),"") ->  | AJ80: =IF(Base_Inversiones[[#This Row],[Graficar Día]]="ok",YEAR(A80),"") ->  | AK80: =IF(Base_Inversiones[[#This Row],[Graficar Día]]="ok",IF(LEN(AH80)=1,"0"&AH80,AH80)&"/"&IF(LEN(AI80)=1,"0"&AI80,AI80)&"/"&AJ80,"") ->  | AL80: =TEXT(Base_Inversiones[[#This Row],[Fecha Corrob]],"DD/MM/AAAA") ->  | AM80: =IF(Base_Inversiones[[#This Row],[Graficar Día]]="ok",VLOOKUP(Base_Inversiones[[#This Row],[Texto fecha]],Administración!$B$2:$C$1432,2,0),"") ->  | AN80: =IF(Base_Inversiones[[#This Row],[Qty]]>0,"ok","no") -> no | AO80: =IF(Base_Inversiones[[#This Row],[Graficar Día]]="ok",$D$1,"") ->  | AP80: =IF(Base_Inversiones[[#This Row],[Graficar Día]]="ok",Base_Inversiones[[#This Row],[Budget Inicial/ Aportación]]+Base_Inversiones[[#This Row],[Saldo]],"") ->  | AS80: =SUM(Base_Inversiones[G/P Neta]) -> 108 | AT80: =IF(Base_Inversiones[[#This Row],[Graficar Día]]="ok",$D$1,"") ->  | AU80: =IF(Base_Inversiones[[#This Row],[Graficar Día]]="ok",WEEKNUM(Base_Inversiones[[#This Row],[Fecha Compra]]),"") ->  | AV80: =IF(Base_Inversiones[[#This Row],[Graficar Día]]="ok",WEEKNUM(DATE(YEAR(Base_Inversiones[[#This Row],[Fecha Compra]]),MONTH(Base_Inversiones[[#This Row],[Fecha Compra]]),1))-1,"") ->  | AW80: =IF(Base_Inversiones[[#This Row],[Graficar Día]]="ok",Base_Inversiones[[#This Row],[Num Semana]]-Base_Inversiones[[#This Row],[Num Sem Extrae]],"") ->  | AX80: =IF(Base_Inversiones[[#This Row],[Graficar Día]]="ok",IFERROR(VLOOKUP(Base_Inversiones[[#This Row],[Mes Corrob]],Administración!$L$4:$M$15,2,0),""),"") -> 
H81: =IF(Base_Inversiones[[#This Row],[Graficar Día]]="ok",F81*G81,"") ->  | R81: =IF(Base_Inversiones[[#This Row],[Graficar Día]]="ok",P81-F81,"") ->  | U81: =IF(Base_Inversiones[[#This Row],[Graficar Día]]="ok",IF(P81="",0,R81*G81-IF(B81="C",(10+0.15*2*G81/100),(0.5*2*G81/100))),"") ->  | X81: =IF(Base_Inversiones[[#This Row],[Graficar Día]]="ok",IF(P81="",0,U81-V81-W81),"") ->  | AC81: =IF(Base_Inversiones[[#This Row],[Graficar Día]]="ok",SUM(AB$5:AB81),"") ->  | AD81: =IF(Base_Inversiones[[#This Row],[Graficar Día]]="ok",(IF(S81>0,"G","P")),"") ->  | AH81: =IF(Base_Inversiones[[#This Row],[Graficar Día]]="ok",DAY(A81),"") ->  | AI81: =IF(Base_Inversiones[[#This Row],[Graficar Día]]="ok",MONTH(A81),"") ->  | AJ81: =IF(Base_Inversiones[[#This Row],[Graficar Día]]="ok",YEAR(A81),"") ->  | AK81: =IF(Base_Inversiones[[#This Row],[Graficar Día]]="ok",IF(LEN(AH81)=1,"0"&AH81,AH81)&"/"&IF(LEN(AI81)=1,"0"&AI81,AI81)&"/"&AJ81,"") ->  | AL81: =TEXT(Base_Inversiones[[#This Row],[Fecha Corrob]],"DD/MM/AAAA") ->  | AM81: =IF(Base_Inversiones[[#This Row],[Graficar Día]]="ok",VLOOKUP(Base_Inversiones[[#This Row],[Texto fecha]],Administración!$B$2:$C$1432,2,0),"") ->  | AN81: =IF(Base_Inversiones[[#This Row],[Qty]]>0,"ok","no") -> no | AO81: =IF(Base_Inversiones[[#This Row],[Graficar Día]]="ok",$D$1,"") ->  | AP81: =IF(Base_Inversiones[[#This Row],[Graficar Día]]="ok",Base_Inversiones[[#This Row],[Budget Inicial/ Aportación]]+Base_Inversiones[[#This Row],[Saldo]],"") ->  | AS81: =SUM(Base_Inversiones[G/P Neta]) -> 108 | AT81: =IF(Base_Inversiones[[#This Row],[Graficar Día]]="ok",$D$1,"") ->  | AU81: =IF(Base_Inversiones[[#This Row],[Graficar Día]]="ok",WEEKNUM(Base_Inversiones[[#This Row],[Fecha Compra]]),"") ->  | AV81: =IF(Base_Inversiones[[#This Row],[Graficar Día]]="ok",WEEKNUM(DATE(YEAR(Base_Inversiones[[#This Row],[Fecha Compra]]),MONTH(Base_Inversiones[[#This Row],[Fecha Compra]]),1))-1,"") ->  | AW81: =IF(Base_Inversiones[[#This Row],[Graficar Día]]="ok",Base_Inversiones[[#This Row],[Num Semana]]-Base_Inversiones[[#This Row],[Num Sem Extrae]],"") ->  | AX81: =IF(Base_Inversiones[[#This Row],[Graficar Día]]="ok",IFERROR(VLOOKUP(Base_Inversiones[[#This Row],[Mes Corrob]],Administración!$L$4:$M$15,2,0),""),"") -> 
H82: =IF(Base_Inversiones[[#This Row],[Graficar Día]]="ok",F82*G82,"") ->  | R82: =IF(Base_Inversiones[[#This Row],[Graficar Día]]="ok",P82-F82,"") ->  | U82: =IF(Base_Inversiones[[#This Row],[Graficar Día]]="ok",IF(P82="",0,R82*G82-IF(B82="C",(10+0.15*2*G82/100),(0.5*2*G82/100))),"") ->  | X82: =IF(Base_Inversiones[[#This Row],[Graficar Día]]="ok",IF(P82="",0,U82-V82-W82),"") ->  | AC82: =IF(Base_Inversiones[[#This Row],[Graficar Día]]="ok",SUM(AB$5:AB82),"") ->  | AD82: =IF(Base_Inversiones[[#This Row],[Graficar Día]]="ok",(IF(S82>0,"G","P")),"") ->  | AH82: =IF(Base_Inversiones[[#This Row],[Graficar Día]]="ok",DAY(A82),"") ->  | AI82: =IF(Base_Inversiones[[#This Row],[Graficar Día]]="ok",MONTH(A82),"") ->  | AJ82: =IF(Base_Inversiones[[#This Row],[Graficar Día]]="ok",YEAR(A82),"") ->  | AK82: =IF(Base_Inversiones[[#This Row],[Graficar Día]]="ok",IF(LEN(AH82)=1,"0"&AH82,AH82)&"/"&IF(LEN(AI82)=1,"0"&AI82,AI82)&"/"&AJ82,"") ->  | AL82: =TEXT(Base_Inversiones[[#This Row],[Fecha Corrob]],"DD/MM/AAAA") ->  | AM82: =IF(Base_Inversiones[[#This Row],[Graficar Día]]="ok",VLOOKUP(Base_Inversiones[[#This Row],[Texto fecha]],Administración!$B$2:$C$1432,2,0),"") ->  | AN82: =IF(Base_Inversiones[[#This Row],[Qty]]>0,"ok","no") -> no | AO82: =IF(Base_Inversiones[[#This Row],[Graficar Día]]="ok",$D$1,"") ->  | AP82: =IF(Base_Inversiones[[#This Row],[Graficar Día]]="ok",Base_Inversiones[[#This Row],[Budget Inicial/ Aportación]]+Base_Inversiones[[#This Row],[Saldo]],"") ->  | AS82: =SUM(Base_Inversiones[G/P Neta]) -> 108 | AT82: =IF(Base_Inversiones[[#This Row],[Graficar Día]]="ok",$D$1,"") ->  | AU82: =IF(Base_Inversiones[[#This Row],[Graficar Día]]="ok",WEEKNUM(Base_Inversiones[[#This Row],[Fecha Compra]]),"") ->  | AV82: =IF(Base_Inversiones[[#This Row],[Graficar Día]]="ok",WEEKNUM(DATE(YEAR(Base_Inversiones[[#This Row],[Fecha Compra]]),MONTH(Base_Inversiones[[#This Row],[Fecha Compra]]),1))-1,"") ->  | AW82: =IF(Base_Inversiones[[#This Row],[Graficar Día]]="ok",Base_Inversiones[[#This Row],[Num Semana]]-Base_Inversiones[[#This Row],[Num Sem Extrae]],"") ->  | AX82: =IF(Base_Inversiones[[#This Row],[Graficar Día]]="ok",IFERROR(VLOOKUP(Base_Inversiones[[#This Row],[Mes Corrob]],Administración!$L$4:$M$15,2,0),""),"") -> 
H83: =IF(Base_Inversiones[[#This Row],[Graficar Día]]="ok",F83*G83,"") ->  | R83: =IF(Base_Inversiones[[#This Row],[Graficar Día]]="ok",P83-F83,"") ->  | U83: =IF(Base_Inversiones[[#This Row],[Graficar Día]]="ok",IF(P83="",0,R83*G83-IF(B83="C",(10+0.15*2*G83/100),(0.5*2*G83/100))),"") ->  | X83: =IF(Base_Inversiones[[#This Row],[Graficar Día]]="ok",IF(P83="",0,U83-V83-W83),"") ->  | AC83: =IF(Base_Inversiones[[#This Row],[Graficar Día]]="ok",SUM(AB$5:AB83),"") ->  | AD83: =IF(Base_Inversiones[[#This Row],[Graficar Día]]="ok",(IF(S83>0,"G","P")),"") ->  | AH83: =IF(Base_Inversiones[[#This Row],[Graficar Día]]="ok",DAY(A83),"") ->  | AI83: =IF(Base_Inversiones[[#This Row],[Graficar Día]]="ok",MONTH(A83),"") ->  | AJ83: =IF(Base_Inversiones[[#This Row],[Graficar Día]]="ok",YEAR(A83),"") ->  | AK83: =IF(Base_Inversiones[[#This Row],[Graficar Día]]="ok",IF(LEN(AH83)=1,"0"&AH83,AH83)&"/"&IF(LEN(AI83)=1,"0"&AI83,AI83)&"/"&AJ83,"") ->  | AL83: =TEXT(Base_Inversiones[[#This Row],[Fecha Corrob]],"DD/MM/AAAA") ->  | AM83: =IF(Base_Inversiones[[#This Row],[Graficar Día]]="ok",VLOOKUP(Base_Inversiones[[#This Row],[Texto fecha]],Administración!$B$2:$C$1432,2,0),"") ->  | AN83: =IF(Base_Inversiones[[#This Row],[Qty]]>0,"ok","no") -> no | AO83: =IF(Base_Inversiones[[#This Row],[Graficar Día]]="ok",$D$1,"") ->  | AP83: =IF(Base_Inversiones[[#This Row],[Graficar Día]]="ok",Base_Inversiones[[#This Row],[Budget Inicial/ Aportación]]+Base_Inversiones[[#This Row],[Saldo]],"") ->  | AS83: =SUM(Base_Inversiones[G/P Neta]) -> 108 | AT83: =IF(Base_Inversiones[[#This Row],[Graficar Día]]="ok",$D$1,"") ->  | AU83: =IF(Base_Inversiones[[#This Row],[Graficar Día]]="ok",WEEKNUM(Base_Inversiones[[#This Row],[Fecha Compra]]),"") ->  | AV83: =IF(Base_Inversiones[[#This Row],[Graficar Día]]="ok",WEEKNUM(DATE(YEAR(Base_Inversiones[[#This Row],[Fecha Compra]]),MONTH(Base_Inversiones[[#This Row],[Fecha Compra]]),1))-1,"") ->  | AW83: =IF(Base_Inversiones[[#This Row],[Graficar Día]]="ok",Base_Inversiones[[#This Row],[Num Semana]]-Base_Inversiones[[#This Row],[Num Sem Extrae]],"") ->  | AX83: =IF(Base_Inversiones[[#This Row],[Graficar Día]]="ok",IFERROR(VLOOKUP(Base_Inversiones[[#This Row],[Mes Corrob]],Administración!$L$4:$M$15,2,0),""),"") -> 
H84: =IF(Base_Inversiones[[#This Row],[Graficar Día]]="ok",F84*G84,"") ->  | R84: =IF(Base_Inversiones[[#This Row],[Graficar Día]]="ok",P84-F84,"") ->  | U84: =IF(Base_Inversiones[[#This Row],[Graficar Día]]="ok",IF(P84="",0,R84*G84-IF(B84="C",(10+0.15*2*G84/100),(0.5*2*G84/100))),"") ->  | X84: =IF(Base_Inversiones[[#This Row],[Graficar Día]]="ok",IF(P84="",0,U84-V84-W84),"") ->  | AC84: =IF(Base_Inversiones[[#This Row],[Graficar Día]]="ok",SUM(AB$5:AB84),"") ->  | AD84: =IF(Base_Inversiones[[#This Row],[Graficar Día]]="ok",(IF(S84>0,"G","P")),"") ->  | AH84: =IF(Base_Inversiones[[#This Row],[Graficar Día]]="ok",DAY(A84),"") ->  | AI84: =IF(Base_Inversiones[[#This Row],[Graficar Día]]="ok",MONTH(A84),"") ->  | AJ84: =IF(Base_Inversiones[[#This Row],[Graficar Día]]="ok",YEAR(A84),"") ->  | AK84: =IF(Base_Inversiones[[#This Row],[Graficar Día]]="ok",IF(LEN(AH84)=1,"0"&AH84,AH84)&"/"&IF(LEN(AI84)=1,"0"&AI84,AI84)&"/"&AJ84,"") ->  | AL84: =TEXT(Base_Inversiones[[#This Row],[Fecha Corrob]],"DD/MM/AAAA") ->  | AM84: =IF(Base_Inversiones[[#This Row],[Graficar Día]]="ok",VLOOKUP(Base_Inversiones[[#This Row],[Texto fecha]],Administración!$B$2:$C$1432,2,0),"") ->  | AN84: =IF(Base_Inversiones[[#This Row],[Qty]]>0,"ok","no") -> no | AO84: =IF(Base_Inversiones[[#This Row],[Graficar Día]]="ok",$D$1,"") ->  | AP84: =IF(Base_Inversiones[[#This Row],[Graficar Día]]="ok",Base_Inversiones[[#This Row],[Budget Inicial/ Aportación]]+Base_Inversiones[[#This Row],[Saldo]],"") ->  | AS84: =SUM(Base_Inversiones[G/P Neta]) -> 108 | AT84: =IF(Base_Inversiones[[#This Row],[Graficar Día]]="ok",$D$1,"") ->  | AU84: =IF(Base_Inversiones[[#This Row],[Graficar Día]]="ok",WEEKNUM(Base_Inversiones[[#This Row],[Fecha Compra]]),"") ->  | AV84: =IF(Base_Inversiones[[#This Row],[Graficar Día]]="ok",WEEKNUM(DATE(YEAR(Base_Inversiones[[#This Row],[Fecha Compra]]),MONTH(Base_Inversiones[[#This Row],[Fecha Compra]]),1))-1,"") ->  | AW84: =IF(Base_Inversiones[[#This Row],[Graficar Día]]="ok",Base_Inversiones[[#This Row],[Num Semana]]-Base_Inversiones[[#This Row],[Num Sem Extrae]],"") ->  | AX84: =IF(Base_Inversiones[[#This Row],[Graficar Día]]="ok",IFERROR(VLOOKUP(Base_Inversiones[[#This Row],[Mes Corrob]],Administración!$L$4:$M$15,2,0),""),"") -> 
H85: =IF(Base_Inversiones[[#This Row],[Graficar Día]]="ok",F85*G85,"") ->  | R85: =IF(Base_Inversiones[[#This Row],[Graficar Día]]="ok",P85-F85,"") ->  | U85: =IF(Base_Inversiones[[#This Row],[Graficar Día]]="ok",IF(P85="",0,R85*G85-IF(B85="C",(10+0.15*2*G85/100),(0.5*2*G85/100))),"") ->  | X85: =IF(Base_Inversiones[[#This Row],[Graficar Día]]="ok",IF(P85="",0,U85-V85-W85),"") ->  | AC85: =IF(Base_Inversiones[[#This Row],[Graficar Día]]="ok",SUM(AB$5:AB85),"") ->  | AD85: =IF(Base_Inversiones[[#This Row],[Graficar Día]]="ok",(IF(S85>0,"G","P")),"") ->  | AH85: =IF(Base_Inversiones[[#This Row],[Graficar Día]]="ok",DAY(A85),"") ->  | AI85: =IF(Base_Inversiones[[#This Row],[Graficar Día]]="ok",MONTH(A85),"") ->  | AJ85: =IF(Base_Inversiones[[#This Row],[Graficar Día]]="ok",YEAR(A85),"") ->  | AK85: =IF(Base_Inversiones[[#This Row],[Graficar Día]]="ok",IF(LEN(AH85)=1,"0"&AH85,AH85)&"/"&IF(LEN(AI85)=1,"0"&AI85,AI85)&"/"&AJ85,"") ->  | AL85: =TEXT(Base_Inversiones[[#This Row],[Fecha Corrob]],"DD/MM/AAAA") ->  | AM85: =IF(Base_Inversiones[[#This Row],[Graficar Día]]="ok",VLOOKUP(Base_Inversiones[[#This Row],[Texto fecha]],Administración!$B$2:$C$1432,2,0),"") ->  | AN85: =IF(Base_Inversiones[[#This Row],[Qty]]>0,"ok","no") -> no | AO85: =IF(Base_Inversiones[[#This Row],[Graficar Día]]="ok",$D$1,"") ->  | AP85: =IF(Base_Inversiones[[#This Row],[Graficar Día]]="ok",Base_Inversiones[[#This Row],[Budget Inicial/ Aportación]]+Base_Inversiones[[#This Row],[Saldo]],"") ->  | AS85: =SUM(Base_Inversiones[G/P Neta]) -> 108 | AT85: =IF(Base_Inversiones[[#This Row],[Graficar Día]]="ok",$D$1,"") ->  | AU85: =IF(Base_Inversiones[[#This Row],[Graficar Día]]="ok",WEEKNUM(Base_Inversiones[[#This Row],[Fecha Compra]]),"") ->  | AV85: =IF(Base_Inversiones[[#This Row],[Graficar Día]]="ok",WEEKNUM(DATE(YEAR(Base_Inversiones[[#This Row],[Fecha Compra]]),MONTH(Base_Inversiones[[#This Row],[Fecha Compra]]),1))-1,"") ->  | AW85: =IF(Base_Inversiones[[#This Row],[Graficar Día]]="ok",Base_Inversiones[[#This Row],[Num Semana]]-Base_Inversiones[[#This Row],[Num Sem Extrae]],"") ->  | AX85: =IF(Base_Inversiones[[#This Row],[Graficar Día]]="ok",IFERROR(VLOOKUP(Base_Inversiones[[#This Row],[Mes Corrob]],Administración!$L$4:$M$15,2,0),""),"") -> 
H86: =IF(Base_Inversiones[[#This Row],[Graficar Día]]="ok",F86*G86,"") ->  | R86: =IF(Base_Inversiones[[#This Row],[Graficar Día]]="ok",P86-F86,"") ->  | U86: =IF(Base_Inversiones[[#This Row],[Graficar Día]]="ok",IF(P86="",0,R86*G86-IF(B86="C",(10+0.15*2*G86/100),(0.5*2*G86/100))),"") ->  | X86: =IF(Base_Inversiones[[#This Row],[Graficar Día]]="ok",IF(P86="",0,U86-V86-W86),"") ->  | AC86: =IF(Base_Inversiones[[#This Row],[Graficar Día]]="ok",SUM(AB$5:AB86),"") ->  | AD86: =IF(Base_Inversiones[[#This Row],[Graficar Día]]="ok",(IF(S86>0,"G","P")),"") ->  | AH86: =IF(Base_Inversiones[[#This Row],[Graficar Día]]="ok",DAY(A86),"") ->  | AI86: =IF(Base_Inversiones[[#This Row],[Graficar Día]]="ok",MONTH(A86),"") ->  | AJ86: =IF(Base_Inversiones[[#This Row],[Graficar Día]]="ok",YEAR(A86),"") ->  | AK86: =IF(Base_Inversiones[[#This Row],[Graficar Día]]="ok",IF(LEN(AH86)=1,"0"&AH86,AH86)&"/"&IF(LEN(AI86)=1,"0"&AI86,AI86)&"/"&AJ86,"") ->  | AL86: =TEXT(Base_Inversiones[[#This Row],[Fecha Corrob]],"DD/MM/AAAA") ->  | AM86: =IF(Base_Inversiones[[#This Row],[Graficar Día]]="ok",VLOOKUP(Base_Inversiones[[#This Row],[Texto fecha]],Administración!$B$2:$C$1432,2,0),"") ->  | AN86: =IF(Base_Inversiones[[#This Row],[Qty]]>0,"ok","no") -> no | AO86: =IF(Base_Inversiones[[#This Row],[Graficar Día]]="ok",$D$1,"") ->  | AP86: =IF(Base_Inversiones[[#This Row],[Graficar Día]]="ok",Base_Inversiones[[#This Row],[Budget Inicial/ Aportación]]+Base_Inversiones[[#This Row],[Saldo]],"") ->  | AS86: =SUM(Base_Inversiones[G/P Neta]) -> 108 | AT86: =IF(Base_Inversiones[[#This Row],[Graficar Día]]="ok",$D$1,"") ->  | AU86: =IF(Base_Inversiones[[#This Row],[Graficar Día]]="ok",WEEKNUM(Base_Inversiones[[#This Row],[Fecha Compra]]),"") ->  | AV86: =IF(Base_Inversiones[[#This Row],[Graficar Día]]="ok",WEEKNUM(DATE(YEAR(Base_Inversiones[[#This Row],[Fecha Compra]]),MONTH(Base_Inversiones[[#This Row],[Fecha Compra]]),1))-1,"") ->  | AW86: =IF(Base_Inversiones[[#This Row],[Graficar Día]]="ok",Base_Inversiones[[#This Row],[Num Semana]]-Base_Inversiones[[#This Row],[Num Sem Extrae]],"") ->  | AX86: =IF(Base_Inversiones[[#This Row],[Graficar Día]]="ok",IFERROR(VLOOKUP(Base_Inversiones[[#This Row],[Mes Corrob]],Administración!$L$4:$M$15,2,0),""),"") -> 
H87: =IF(Base_Inversiones[[#This Row],[Graficar Día]]="ok",F87*G87,"") ->  | R87: =IF(Base_Inversiones[[#This Row],[Graficar Día]]="ok",P87-F87,"") ->  | U87: =IF(Base_Inversiones[[#This Row],[Graficar Día]]="ok",IF(P87="",0,R87*G87-IF(B87="C",(10+0.15*2*G87/100),(0.5*2*G87/100))),"") ->  | X87: =IF(Base_Inversiones[[#This Row],[Graficar Día]]="ok",IF(P87="",0,U87-V87-W87),"") ->  | AC87: =IF(Base_Inversiones[[#This Row],[Graficar Día]]="ok",SUM(AB$5:AB87),"") ->  | AD87: =IF(Base_Inversiones[[#This Row],[Graficar Día]]="ok",(IF(S87>0,"G","P")),"") ->  | AH87: =IF(Base_Inversiones[[#This Row],[Graficar Día]]="ok",DAY(A87),"") ->  | AI87: =IF(Base_Inversiones[[#This Row],[Graficar Día]]="ok",MONTH(A87),"") ->  | AJ87: =IF(Base_Inversiones[[#This Row],[Graficar Día]]="ok",YEAR(A87),"") ->  | AK87: =IF(Base_Inversiones[[#This Row],[Graficar Día]]="ok",IF(LEN(AH87)=1,"0"&AH87,AH87)&"/"&IF(LEN(AI87)=1,"0"&AI87,AI87)&"/"&AJ87,"") ->  | AL87: =TEXT(Base_Inversiones[[#This Row],[Fecha Corrob]],"DD/MM/AAAA") ->  | AM87: =IF(Base_Inversiones[[#This Row],[Graficar Día]]="ok",VLOOKUP(Base_Inversiones[[#This Row],[Texto fecha]],Administración!$B$2:$C$1432,2,0),"") ->  | AN87: =IF(Base_Inversiones[[#This Row],[Qty]]>0,"ok","no") -> no | AO87: =IF(Base_Inversiones[[#This Row],[Graficar Día]]="ok",$D$1,"") ->  | AP87: =IF(Base_Inversiones[[#This Row],[Graficar Día]]="ok",Base_Inversiones[[#This Row],[Budget Inicial/ Aportación]]+Base_Inversiones[[#This Row],[Saldo]],"") ->  | AS87: =SUM(Base_Inversiones[G/P Neta]) -> 108 | AT87: =IF(Base_Inversiones[[#This Row],[Graficar Día]]="ok",$D$1,"") ->  | AU87: =IF(Base_Inversiones[[#This Row],[Graficar Día]]="ok",WEEKNUM(Base_Inversiones[[#This Row],[Fecha Compra]]),"") ->  | AV87: =IF(Base_Inversiones[[#This Row],[Graficar Día]]="ok",WEEKNUM(DATE(YEAR(Base_Inversiones[[#This Row],[Fecha Compra]]),MONTH(Base_Inversiones[[#This Row],[Fecha Compra]]),1))-1,"") ->  | AW87: =IF(Base_Inversiones[[#This Row],[Graficar Día]]="ok",Base_Inversiones[[#This Row],[Num Semana]]-Base_Inversiones[[#This Row],[Num Sem Extrae]],"") ->  | AX87: =IF(Base_Inversiones[[#This Row],[Graficar Día]]="ok",IFERROR(VLOOKUP(Base_Inversiones[[#This Row],[Mes Corrob]],Administración!$L$4:$M$15,2,0),""),"") -> 
H88: =IF(Base_Inversiones[[#This Row],[Graficar Día]]="ok",F88*G88,"") ->  | R88: =IF(Base_Inversiones[[#This Row],[Graficar Día]]="ok",P88-F88,"") ->  | U88: =IF(Base_Inversiones[[#This Row],[Graficar Día]]="ok",IF(P88="",0,R88*G88-IF(B88="C",(10+0.15*2*G88/100),(0.5*2*G88/100))),"") ->  | X88: =IF(Base_Inversiones[[#This Row],[Graficar Día]]="ok",IF(P88="",0,U88-V88-W88),"") ->  | AC88: =IF(Base_Inversiones[[#This Row],[Graficar Día]]="ok",SUM(AB$5:AB88),"") ->  | AD88: =IF(Base_Inversiones[[#This Row],[Graficar Día]]="ok",(IF(S88>0,"G","P")),"") ->  | AH88: =IF(Base_Inversiones[[#This Row],[Graficar Día]]="ok",DAY(A88),"") ->  | AI88: =IF(Base_Inversiones[[#This Row],[Graficar Día]]="ok",MONTH(A88),"") ->  | AJ88: =IF(Base_Inversiones[[#This Row],[Graficar Día]]="ok",YEAR(A88),"") ->  | AK88: =IF(Base_Inversiones[[#This Row],[Graficar Día]]="ok",IF(LEN(AH88)=1,"0"&AH88,AH88)&"/"&IF(LEN(AI88)=1,"0"&AI88,AI88)&"/"&AJ88,"") ->  | AL88: =TEXT(Base_Inversiones[[#This Row],[Fecha Corrob]],"DD/MM/AAAA") ->  | AM88: =IF(Base_Inversiones[[#This Row],[Graficar Día]]="ok",VLOOKUP(Base_Inversiones[[#This Row],[Texto fecha]],Administración!$B$2:$C$1432,2,0),"") ->  | AN88: =IF(Base_Inversiones[[#This Row],[Qty]]>0,"ok","no") -> no | AO88: =IF(Base_Inversiones[[#This Row],[Graficar Día]]="ok",$D$1,"") ->  | AP88: =IF(Base_Inversiones[[#This Row],[Graficar Día]]="ok",Base_Inversiones[[#This Row],[Budget Inicial/ Aportación]]+Base_Inversiones[[#This Row],[Saldo]],"") ->  | AS88: =SUM(Base_Inversiones[G/P Neta]) -> 108 | AT88: =IF(Base_Inversiones[[#This Row],[Graficar Día]]="ok",$D$1,"") ->  | AU88: =IF(Base_Inversiones[[#This Row],[Graficar Día]]="ok",WEEKNUM(Base_Inversiones[[#This Row],[Fecha Compra]]),"") ->  | AV88: =IF(Base_Inversiones[[#This Row],[Graficar Día]]="ok",WEEKNUM(DATE(YEAR(Base_Inversiones[[#This Row],[Fecha Compra]]),MONTH(Base_Inversiones[[#This Row],[Fecha Compra]]),1))-1,"") ->  | AW88: =IF(Base_Inversiones[[#This Row],[Graficar Día]]="ok",Base_Inversiones[[#This Row],[Num Semana]]-Base_Inversiones[[#This Row],[Num Sem Extrae]],"") ->  | AX88: =IF(Base_Inversiones[[#This Row],[Graficar Día]]="ok",IFERROR(VLOOKUP(Base_Inversiones[[#This Row],[Mes Corrob]],Administración!$L$4:$M$15,2,0),""),"") -> 
H89: =IF(Base_Inversiones[[#This Row],[Graficar Día]]="ok",F89*G89,"") ->  | R89: =IF(Base_Inversiones[[#This Row],[Graficar Día]]="ok",P89-F89,"") ->  | U89: =IF(Base_Inversiones[[#This Row],[Graficar Día]]="ok",IF(P89="",0,R89*G89-IF(B89="C",(10+0.15*2*G89/100),(0.5*2*G89/100))),"") ->  | X89: =IF(Base_Inversiones[[#This Row],[Graficar Día]]="ok",IF(P89="",0,U89-V89-W89),"") ->  | AC89: =IF(Base_Inversiones[[#This Row],[Graficar Día]]="ok",SUM(AB$5:AB89),"") ->  | AD89: =IF(Base_Inversiones[[#This Row],[Graficar Día]]="ok",(IF(S89>0,"G","P")),"") ->  | AH89: =IF(Base_Inversiones[[#This Row],[Graficar Día]]="ok",DAY(A89),"") ->  | AI89: =IF(Base_Inversiones[[#This Row],[Graficar Día]]="ok",MONTH(A89),"") ->  | AJ89: =IF(Base_Inversiones[[#This Row],[Graficar Día]]="ok",YEAR(A89),"") ->  | AK89: =IF(Base_Inversiones[[#This Row],[Graficar Día]]="ok",IF(LEN(AH89)=1,"0"&AH89,AH89)&"/"&IF(LEN(AI89)=1,"0"&AI89,AI89)&"/"&AJ89,"") ->  | AL89: =TEXT(Base_Inversiones[[#This Row],[Fecha Corrob]],"DD/MM/AAAA") ->  | AM89: =IF(Base_Inversiones[[#This Row],[Graficar Día]]="ok",VLOOKUP(Base_Inversiones[[#This Row],[Texto fecha]],Administración!$B$2:$C$1432,2,0),"") ->  | AN89: =IF(Base_Inversiones[[#This Row],[Qty]]>0,"ok","no") -> no | AO89: =IF(Base_Inversiones[[#This Row],[Graficar Día]]="ok",$D$1,"") ->  | AP89: =IF(Base_Inversiones[[#This Row],[Graficar Día]]="ok",Base_Inversiones[[#This Row],[Budget Inicial/ Aportación]]+Base_Inversiones[[#This Row],[Saldo]],"") ->  | AS89: =SUM(Base_Inversiones[G/P Neta]) -> 108 | AT89: =IF(Base_Inversiones[[#This Row],[Graficar Día]]="ok",$D$1,"") ->  | AU89: =IF(Base_Inversiones[[#This Row],[Graficar Día]]="ok",WEEKNUM(Base_Inversiones[[#This Row],[Fecha Compra]]),"") ->  | AV89: =IF(Base_Inversiones[[#This Row],[Graficar Día]]="ok",WEEKNUM(DATE(YEAR(Base_Inversiones[[#This Row],[Fecha Compra]]),MONTH(Base_Inversiones[[#This Row],[Fecha Compra]]),1))-1,"") ->  | AW89: =IF(Base_Inversiones[[#This Row],[Graficar Día]]="ok",Base_Inversiones[[#This Row],[Num Semana]]-Base_Inversiones[[#This Row],[Num Sem Extrae]],"") ->  | AX89: =IF(Base_Inversiones[[#This Row],[Graficar Día]]="ok",IFERROR(VLOOKUP(Base_Inversiones[[#This Row],[Mes Corrob]],Administración!$L$4:$M$15,2,0),""),"") -> 
H90: =IF(Base_Inversiones[[#This Row],[Graficar Día]]="ok",F90*G90,"") ->  | R90: =IF(Base_Inversiones[[#This Row],[Graficar Día]]="ok",P90-F90,"") ->  | U90: =IF(Base_Inversiones[[#This Row],[Graficar Día]]="ok",IF(P90="",0,R90*G90-IF(B90="C",(10+0.15*2*G90/100),(0.5*2*G90/100))),"") ->  | X90: =IF(Base_Inversiones[[#This Row],[Graficar Día]]="ok",IF(P90="",0,U90-V90-W90),"") ->  | AC90: =IF(Base_Inversiones[[#This Row],[Graficar Día]]="ok",SUM(AB$5:AB90),"") ->  | AD90: =IF(Base_Inversiones[[#This Row],[Graficar Día]]="ok",(IF(S90>0,"G","P")),"") ->  | AH90: =IF(Base_Inversiones[[#This Row],[Graficar Día]]="ok",DAY(A90),"") ->  | AI90: =IF(Base_Inversiones[[#This Row],[Graficar Día]]="ok",MONTH(A90),"") ->  | AJ90: =IF(Base_Inversiones[[#This Row],[Graficar Día]]="ok",YEAR(A90),"") ->  | AK90: =IF(Base_Inversiones[[#This Row],[Graficar Día]]="ok",IF(LEN(AH90)=1,"0"&AH90,AH90)&"/"&IF(LEN(AI90)=1,"0"&AI90,AI90)&"/"&AJ90,"") ->  | AL90: =TEXT(Base_Inversiones[[#This Row],[Fecha Corrob]],"DD/MM/AAAA") ->  | AM90: =IF(Base_Inversiones[[#This Row],[Graficar Día]]="ok",VLOOKUP(Base_Inversiones[[#This Row],[Texto fecha]],Administración!$B$2:$C$1432,2,0),"") ->  | AN90: =IF(Base_Inversiones[[#This Row],[Qty]]>0,"ok","no") -> no | AO90: =IF(Base_Inversiones[[#This Row],[Graficar Día]]="ok",$D$1,"") ->  | AP90: =IF(Base_Inversiones[[#This Row],[Graficar Día]]="ok",Base_Inversiones[[#This Row],[Budget Inicial/ Aportación]]+Base_Inversiones[[#This Row],[Saldo]],"") ->  | AS90: =SUM(Base_Inversiones[G/P Neta]) -> 108 | AT90: =IF(Base_Inversiones[[#This Row],[Graficar Día]]="ok",$D$1,"") ->  | AU90: =IF(Base_Inversiones[[#This Row],[Graficar Día]]="ok",WEEKNUM(Base_Inversiones[[#This Row],[Fecha Compra]]),"") ->  | AV90: =IF(Base_Inversiones[[#This Row],[Graficar Día]]="ok",WEEKNUM(DATE(YEAR(Base_Inversiones[[#This Row],[Fecha Compra]]),MONTH(Base_Inversiones[[#This Row],[Fecha Compra]]),1))-1,"") ->  | AW90: =IF(Base_Inversiones[[#This Row],[Graficar Día]]="ok",Base_Inversiones[[#This Row],[Num Semana]]-Base_Inversiones[[#This Row],[Num Sem Extrae]],"") ->  | AX90: =IF(Base_Inversiones[[#This Row],[Graficar Día]]="ok",IFERROR(VLOOKUP(Base_Inversiones[[#This Row],[Mes Corrob]],Administración!$L$4:$M$15,2,0),""),"") -> 
H91: =IF(Base_Inversiones[[#This Row],[Graficar Día]]="ok",F91*G91,"") ->  | R91: =IF(Base_Inversiones[[#This Row],[Graficar Día]]="ok",P91-F91,"") ->  | U91: =IF(Base_Inversiones[[#This Row],[Graficar Día]]="ok",IF(P91="",0,R91*G91-IF(B91="C",(10+0.15*2*G91/100),(0.5*2*G91/100))),"") ->  | X91: =IF(Base_Inversiones[[#This Row],[Graficar Día]]="ok",IF(P91="",0,U91-V91-W91),"") ->  | AC91: =IF(Base_Inversiones[[#This Row],[Graficar Día]]="ok",SUM(AB$5:AB91),"") ->  | AD91: =IF(Base_Inversiones[[#This Row],[Graficar Día]]="ok",(IF(S91>0,"G","P")),"") ->  | AH91: =IF(Base_Inversiones[[#This Row],[Graficar Día]]="ok",DAY(A91),"") ->  | AI91: =IF(Base_Inversiones[[#This Row],[Graficar Día]]="ok",MONTH(A91),"") ->  | AJ91: =IF(Base_Inversiones[[#This Row],[Graficar Día]]="ok",YEAR(A91),"") ->  | AK91: =IF(Base_Inversiones[[#This Row],[Graficar Día]]="ok",IF(LEN(AH91)=1,"0"&AH91,AH91)&"/"&IF(LEN(AI91)=1,"0"&AI91,AI91)&"/"&AJ91,"") ->  | AL91: =TEXT(Base_Inversiones[[#This Row],[Fecha Corrob]],"DD/MM/AAAA") ->  | AM91: =IF(Base_Inversiones[[#This Row],[Graficar Día]]="ok",VLOOKUP(Base_Inversiones[[#This Row],[Texto fecha]],Administración!$B$2:$C$1432,2,0),"") ->  | AN91: =IF(Base_Inversiones[[#This Row],[Qty]]>0,"ok","no") -> no | AO91: =IF(Base_Inversiones[[#This Row],[Graficar Día]]="ok",$D$1,"") ->  | AP91: =IF(Base_Inversiones[[#This Row],[Graficar Día]]="ok",Base_Inversiones[[#This Row],[Budget Inicial/ Aportación]]+Base_Inversiones[[#This Row],[Saldo]],"") ->  | AS91: =SUM(Base_Inversiones[G/P Neta]) -> 108 | AT91: =IF(Base_Inversiones[[#This Row],[Graficar Día]]="ok",$D$1,"") ->  | AU91: =IF(Base_Inversiones[[#This Row],[Graficar Día]]="ok",WEEKNUM(Base_Inversiones[[#This Row],[Fecha Compra]]),"") ->  | AV91: =IF(Base_Inversiones[[#This Row],[Graficar Día]]="ok",WEEKNUM(DATE(YEAR(Base_Inversiones[[#This Row],[Fecha Compra]]),MONTH(Base_Inversiones[[#This Row],[Fecha Compra]]),1))-1,"") ->  | AW91: =IF(Base_Inversiones[[#This Row],[Graficar Día]]="ok",Base_Inversiones[[#This Row],[Num Semana]]-Base_Inversiones[[#This Row],[Num Sem Extrae]],"") ->  | AX91: =IF(Base_Inversiones[[#This Row],[Graficar Día]]="ok",IFERROR(VLOOKUP(Base_Inversiones[[#This Row],[Mes Corrob]],Administración!$L$4:$M$15,2,0),""),"") -> 
H92: =IF(Base_Inversiones[[#This Row],[Graficar Día]]="ok",F92*G92,"") ->  | R92: =IF(Base_Inversiones[[#This Row],[Graficar Día]]="ok",P92-F92,"") ->  | U92: =IF(Base_Inversiones[[#This Row],[Graficar Día]]="ok",IF(P92="",0,R92*G92-IF(B92="C",(10+0.15*2*G92/100),(0.5*2*G92/100))),"") ->  | X92: =IF(Base_Inversiones[[#This Row],[Graficar Día]]="ok",IF(P92="",0,U92-V92-W92),"") ->  | AC92: =IF(Base_Inversiones[[#This Row],[Graficar Día]]="ok",SUM(AB$5:AB92),"") ->  | AD92: =IF(Base_Inversiones[[#This Row],[Graficar Día]]="ok",(IF(S92>0,"G","P")),"") ->  | AH92: =IF(Base_Inversiones[[#This Row],[Graficar Día]]="ok",DAY(A92),"") ->  | AI92: =IF(Base_Inversiones[[#This Row],[Graficar Día]]="ok",MONTH(A92),"") ->  | AJ92: =IF(Base_Inversiones[[#This Row],[Graficar Día]]="ok",YEAR(A92),"") ->  | AK92: =IF(Base_Inversiones[[#This Row],[Graficar Día]]="ok",IF(LEN(AH92)=1,"0"&AH92,AH92)&"/"&IF(LEN(AI92)=1,"0"&AI92,AI92)&"/"&AJ92,"") ->  | AL92: =TEXT(Base_Inversiones[[#This Row],[Fecha Corrob]],"DD/MM/AAAA") ->  | AM92: =IF(Base_Inversiones[[#This Row],[Graficar Día]]="ok",VLOOKUP(Base_Inversiones[[#This Row],[Texto fecha]],Administración!$B$2:$C$1432,2,0),"") ->  | AN92: =IF(Base_Inversiones[[#This Row],[Qty]]>0,"ok","no") -> no | AO92: =IF(Base_Inversiones[[#This Row],[Graficar Día]]="ok",$D$1,"") ->  | AP92: =IF(Base_Inversiones[[#This Row],[Graficar Día]]="ok",Base_Inversiones[[#This Row],[Budget Inicial/ Aportación]]+Base_Inversiones[[#This Row],[Saldo]],"") ->  | AS92: =SUM(Base_Inversiones[G/P Neta]) -> 108 | AT92: =IF(Base_Inversiones[[#This Row],[Graficar Día]]="ok",$D$1,"") ->  | AU92: =IF(Base_Inversiones[[#This Row],[Graficar Día]]="ok",WEEKNUM(Base_Inversiones[[#This Row],[Fecha Compra]]),"") ->  | AV92: =IF(Base_Inversiones[[#This Row],[Graficar Día]]="ok",WEEKNUM(DATE(YEAR(Base_Inversiones[[#This Row],[Fecha Compra]]),MONTH(Base_Inversiones[[#This Row],[Fecha Compra]]),1))-1,"") ->  | AW92: =IF(Base_Inversiones[[#This Row],[Graficar Día]]="ok",Base_Inversiones[[#This Row],[Num Semana]]-Base_Inversiones[[#This Row],[Num Sem Extrae]],"") ->  | AX92: =IF(Base_Inversiones[[#This Row],[Graficar Día]]="ok",IFERROR(VLOOKUP(Base_Inversiones[[#This Row],[Mes Corrob]],Administración!$L$4:$M$15,2,0),""),"") -> 
H93: =IF(Base_Inversiones[[#This Row],[Graficar Día]]="ok",F93*G93,"") ->  | R93: =IF(Base_Inversiones[[#This Row],[Graficar Día]]="ok",P93-F93,"") ->  | U93: =IF(Base_Inversiones[[#This Row],[Graficar Día]]="ok",IF(P93="",0,R93*G93-IF(B93="C",(10+0.15*2*G93/100),(0.5*2*G93/100))),"") ->  | X93: =IF(Base_Inversiones[[#This Row],[Graficar Día]]="ok",IF(P93="",0,U93-V93-W93),"") ->  | AC93: =IF(Base_Inversiones[[#This Row],[Graficar Día]]="ok",SUM(AB$5:AB93),"") ->  | AD93: =IF(Base_Inversiones[[#This Row],[Graficar Día]]="ok",(IF(S93>0,"G","P")),"") ->  | AH93: =IF(Base_Inversiones[[#This Row],[Graficar Día]]="ok",DAY(A93),"") ->  | AI93: =IF(Base_Inversiones[[#This Row],[Graficar Día]]="ok",MONTH(A93),"") ->  | AJ93: =IF(Base_Inversiones[[#This Row],[Graficar Día]]="ok",YEAR(A93),"") ->  | AK93: =IF(Base_Inversiones[[#This Row],[Graficar Día]]="ok",IF(LEN(AH93)=1,"0"&AH93,AH93)&"/"&IF(LEN(AI93)=1,"0"&AI93,AI93)&"/"&AJ93,"") ->  | AL93: =TEXT(Base_Inversiones[[#This Row],[Fecha Corrob]],"DD/MM/AAAA") ->  | AM93: =IF(Base_Inversiones[[#This Row],[Graficar Día]]="ok",VLOOKUP(Base_Inversiones[[#This Row],[Texto fecha]],Administración!$B$2:$C$1432,2,0),"") ->  | AN93: =IF(Base_Inversiones[[#This Row],[Qty]]>0,"ok","no") -> no | AO93: =IF(Base_Inversiones[[#This Row],[Graficar Día]]="ok",$D$1,"") ->  | AP93: =IF(Base_Inversiones[[#This Row],[Graficar Día]]="ok",Base_Inversiones[[#This Row],[Budget Inicial/ Aportación]]+Base_Inversiones[[#This Row],[Saldo]],"") ->  | AS93: =SUM(Base_Inversiones[G/P Neta]) -> 108 | AT93: =IF(Base_Inversiones[[#This Row],[Graficar Día]]="ok",$D$1,"") ->  | AU93: =IF(Base_Inversiones[[#This Row],[Graficar Día]]="ok",WEEKNUM(Base_Inversiones[[#This Row],[Fecha Compra]]),"") ->  | AV93: =IF(Base_Inversiones[[#This Row],[Graficar Día]]="ok",WEEKNUM(DATE(YEAR(Base_Inversiones[[#This Row],[Fecha Compra]]),MONTH(Base_Inversiones[[#This Row],[Fecha Compra]]),1))-1,"") ->  | AW93: =IF(Base_Inversiones[[#This Row],[Graficar Día]]="ok",Base_Inversiones[[#This Row],[Num Semana]]-Base_Inversiones[[#This Row],[Num Sem Extrae]],"") ->  | AX93: =IF(Base_Inversiones[[#This Row],[Graficar Día]]="ok",IFERROR(VLOOKUP(Base_Inversiones[[#This Row],[Mes Corrob]],Administración!$L$4:$M$15,2,0),""),"") -> 
H94: =IF(Base_Inversiones[[#This Row],[Graficar Día]]="ok",F94*G94,"") ->  | R94: =IF(Base_Inversiones[[#This Row],[Graficar Día]]="ok",P94-F94,"") ->  | U94: =IF(Base_Inversiones[[#This Row],[Graficar Día]]="ok",IF(P94="",0,R94*G94-IF(B94="C",(10+0.15*2*G94/100),(0.5*2*G94/100))),"") ->  | X94: =IF(Base_Inversiones[[#This Row],[Graficar Día]]="ok",IF(P94="",0,U94-V94-W94),"") ->  | AC94: =IF(Base_Inversiones[[#This Row],[Graficar Día]]="ok",SUM(AB$5:AB94),"") ->  | AD94: =IF(Base_Inversiones[[#This Row],[Graficar Día]]="ok",(IF(S94>0,"G","P")),"") ->  | AH94: =IF(Base_Inversiones[[#This Row],[Graficar Día]]="ok",DAY(A94),"") ->  | AI94: =IF(Base_Inversiones[[#This Row],[Graficar Día]]="ok",MONTH(A94),"") ->  | AJ94: =IF(Base_Inversiones[[#This Row],[Graficar Día]]="ok",YEAR(A94),"") ->  | AK94: =IF(Base_Inversiones[[#This Row],[Graficar Día]]="ok",IF(LEN(AH94)=1,"0"&AH94,AH94)&"/"&IF(LEN(AI94)=1,"0"&AI94,AI94)&"/"&AJ94,"") ->  | AL94: =TEXT(Base_Inversiones[[#This Row],[Fecha Corrob]],"DD/MM/AAAA") ->  | AM94: =IF(Base_Inversiones[[#This Row],[Graficar Día]]="ok",VLOOKUP(Base_Inversiones[[#This Row],[Texto fecha]],Administración!$B$2:$C$1432,2,0),"") ->  | AN94: =IF(Base_Inversiones[[#This Row],[Qty]]>0,"ok","no") -> no | AO94: =IF(Base_Inversiones[[#This Row],[Graficar Día]]="ok",$D$1,"") ->  | AP94: =IF(Base_Inversiones[[#This Row],[Graficar Día]]="ok",Base_Inversiones[[#This Row],[Budget Inicial/ Aportación]]+Base_Inversiones[[#This Row],[Saldo]],"") ->  | AS94: =SUM(Base_Inversiones[G/P Neta]) -> 108 | AT94: =IF(Base_Inversiones[[#This Row],[Graficar Día]]="ok",$D$1,"") ->  | AU94: =IF(Base_Inversiones[[#This Row],[Graficar Día]]="ok",WEEKNUM(Base_Inversiones[[#This Row],[Fecha Compra]]),"") ->  | AV94: =IF(Base_Inversiones[[#This Row],[Graficar Día]]="ok",WEEKNUM(DATE(YEAR(Base_Inversiones[[#This Row],[Fecha Compra]]),MONTH(Base_Inversiones[[#This Row],[Fecha Compra]]),1))-1,"") ->  | AW94: =IF(Base_Inversiones[[#This Row],[Graficar Día]]="ok",Base_Inversiones[[#This Row],[Num Semana]]-Base_Inversiones[[#This Row],[Num Sem Extrae]],"") ->  | AX94: =IF(Base_Inversiones[[#This Row],[Graficar Día]]="ok",IFERROR(VLOOKUP(Base_Inversiones[[#This Row],[Mes Corrob]],Administración!$L$4:$M$15,2,0),""),"") -> 
H95: =IF(Base_Inversiones[[#This Row],[Graficar Día]]="ok",F95*G95,"") ->  | R95: =IF(Base_Inversiones[[#This Row],[Graficar Día]]="ok",P95-F95,"") ->  | U95: =IF(Base_Inversiones[[#This Row],[Graficar Día]]="ok",IF(P95="",0,R95*G95-IF(B95="C",(10+0.15*2*G95/100),(0.5*2*G95/100))),"") ->  | X95: =IF(Base_Inversiones[[#This Row],[Graficar Día]]="ok",IF(P95="",0,U95-V95-W95),"") ->  | AC95: =IF(Base_Inversiones[[#This Row],[Graficar Día]]="ok",SUM(AB$5:AB95),"") ->  | AD95: =IF(Base_Inversiones[[#This Row],[Graficar Día]]="ok",(IF(S95>0,"G","P")),"") ->  | AH95: =IF(Base_Inversiones[[#This Row],[Graficar Día]]="ok",DAY(A95),"") ->  | AI95: =IF(Base_Inversiones[[#This Row],[Graficar Día]]="ok",MONTH(A95),"") ->  | AJ95: =IF(Base_Inversiones[[#This Row],[Graficar Día]]="ok",YEAR(A95),"") ->  | AK95: =IF(Base_Inversiones[[#This Row],[Graficar Día]]="ok",IF(LEN(AH95)=1,"0"&AH95,AH95)&"/"&IF(LEN(AI95)=1,"0"&AI95,AI95)&"/"&AJ95,"") ->  | AL95: =TEXT(Base_Inversiones[[#This Row],[Fecha Corrob]],"DD/MM/AAAA") ->  | AM95: =IF(Base_Inversiones[[#This Row],[Graficar Día]]="ok",VLOOKUP(Base_Inversiones[[#This Row],[Texto fecha]],Administración!$B$2:$C$1432,2,0),"") ->  | AN95: =IF(Base_Inversiones[[#This Row],[Qty]]>0,"ok","no") -> no | AO95: =IF(Base_Inversiones[[#This Row],[Graficar Día]]="ok",$D$1,"") ->  | AP95: =IF(Base_Inversiones[[#This Row],[Graficar Día]]="ok",Base_Inversiones[[#This Row],[Budget Inicial/ Aportación]]+Base_Inversiones[[#This Row],[Saldo]],"") ->  | AS95: =SUM(Base_Inversiones[G/P Neta]) -> 108 | AT95: =IF(Base_Inversiones[[#This Row],[Graficar Día]]="ok",$D$1,"") ->  | AU95: =IF(Base_Inversiones[[#This Row],[Graficar Día]]="ok",WEEKNUM(Base_Inversiones[[#This Row],[Fecha Compra]]),"") ->  | AV95: =IF(Base_Inversiones[[#This Row],[Graficar Día]]="ok",WEEKNUM(DATE(YEAR(Base_Inversiones[[#This Row],[Fecha Compra]]),MONTH(Base_Inversiones[[#This Row],[Fecha Compra]]),1))-1,"") ->  | AW95: =IF(Base_Inversiones[[#This Row],[Graficar Día]]="ok",Base_Inversiones[[#This Row],[Num Semana]]-Base_Inversiones[[#This Row],[Num Sem Extrae]],"") ->  | AX95: =IF(Base_Inversiones[[#This Row],[Graficar Día]]="ok",IFERROR(VLOOKUP(Base_Inversiones[[#This Row],[Mes Corrob]],Administración!$L$4:$M$15,2,0),""),"") -> 
H96: =IF(Base_Inversiones[[#This Row],[Graficar Día]]="ok",F96*G96,"") ->  | R96: =IF(Base_Inversiones[[#This Row],[Graficar Día]]="ok",P96-F96,"") ->  | U96: =IF(Base_Inversiones[[#This Row],[Graficar Día]]="ok",IF(P96="",0,R96*G96-IF(B96="C",(10+0.15*2*G96/100),(0.5*2*G96/100))),"") ->  | X96: =IF(Base_Inversiones[[#This Row],[Graficar Día]]="ok",IF(P96="",0,U96-V96-W96),"") ->  | AC96: =IF(Base_Inversiones[[#This Row],[Graficar Día]]="ok",SUM(AB$5:AB96),"") ->  | AD96: =IF(Base_Inversiones[[#This Row],[Graficar Día]]="ok",(IF(S96>0,"G","P")),"") ->  | AH96: =IF(Base_Inversiones[[#This Row],[Graficar Día]]="ok",DAY(A96),"") ->  | AI96: =IF(Base_Inversiones[[#This Row],[Graficar Día]]="ok",MONTH(A96),"") ->  | AJ96: =IF(Base_Inversiones[[#This Row],[Graficar Día]]="ok",YEAR(A96),"") ->  | AK96: =IF(Base_Inversiones[[#This Row],[Graficar Día]]="ok",IF(LEN(AH96)=1,"0"&AH96,AH96)&"/"&IF(LEN(AI96)=1,"0"&AI96,AI96)&"/"&AJ96,"") ->  | AL96: =TEXT(Base_Inversiones[[#This Row],[Fecha Corrob]],"DD/MM/AAAA") ->  | AM96: =IF(Base_Inversiones[[#This Row],[Graficar Día]]="ok",VLOOKUP(Base_Inversiones[[#This Row],[Texto fecha]],Administración!$B$2:$C$1432,2,0),"") ->  | AN96: =IF(Base_Inversiones[[#This Row],[Qty]]>0,"ok","no") -> no | AO96: =IF(Base_Inversiones[[#This Row],[Graficar Día]]="ok",$D$1,"") ->  | AP96: =IF(Base_Inversiones[[#This Row],[Graficar Día]]="ok",Base_Inversiones[[#This Row],[Budget Inicial/ Aportación]]+Base_Inversiones[[#This Row],[Saldo]],"") ->  | AS96: =SUM(Base_Inversiones[G/P Neta]) -> 108 | AT96: =IF(Base_Inversiones[[#This Row],[Graficar Día]]="ok",$D$1,"") ->  | AU96: =IF(Base_Inversiones[[#This Row],[Graficar Día]]="ok",WEEKNUM(Base_Inversiones[[#This Row],[Fecha Compra]]),"") ->  | AV96: =IF(Base_Inversiones[[#This Row],[Graficar Día]]="ok",WEEKNUM(DATE(YEAR(Base_Inversiones[[#This Row],[Fecha Compra]]),MONTH(Base_Inversiones[[#This Row],[Fecha Compra]]),1))-1,"") ->  | AW96: =IF(Base_Inversiones[[#This Row],[Graficar Día]]="ok",Base_Inversiones[[#This Row],[Num Semana]]-Base_Inversiones[[#This Row],[Num Sem Extrae]],"") ->  | AX96: =IF(Base_Inversiones[[#This Row],[Graficar Día]]="ok",IFERROR(VLOOKUP(Base_Inversiones[[#This Row],[Mes Corrob]],Administración!$L$4:$M$15,2,0),""),"") -> 
H97: =IF(Base_Inversiones[[#This Row],[Graficar Día]]="ok",F97*G97,"") ->  | R97: =IF(Base_Inversiones[[#This Row],[Graficar Día]]="ok",P97-F97,"") ->  | U97: =IF(Base_Inversiones[[#This Row],[Graficar Día]]="ok",IF(P97="",0,R97*G97-IF(B97="C",(10+0.15*2*G97/100),(0.5*2*G97/100))),"") ->  | X97: =IF(Base_Inversiones[[#This Row],[Graficar Día]]="ok",IF(P97="",0,U97-V97-W97),"") ->  | AC97: =IF(Base_Inversiones[[#This Row],[Graficar Día]]="ok",SUM(AB$5:AB97),"") ->  | AD97: =IF(Base_Inversiones[[#This Row],[Graficar Día]]="ok",(IF(S97>0,"G","P")),"") ->  | AH97: =IF(Base_Inversiones[[#This Row],[Graficar Día]]="ok",DAY(A97),"") ->  | AI97: =IF(Base_Inversiones[[#This Row],[Graficar Día]]="ok",MONTH(A97),"") ->  | AJ97: =IF(Base_Inversiones[[#This Row],[Graficar Día]]="ok",YEAR(A97),"") ->  | AK97: =IF(Base_Inversiones[[#This Row],[Graficar Día]]="ok",IF(LEN(AH97)=1,"0"&AH97,AH97)&"/"&IF(LEN(AI97)=1,"0"&AI97,AI97)&"/"&AJ97,"") ->  | AL97: =TEXT(Base_Inversiones[[#This Row],[Fecha Corrob]],"DD/MM/AAAA") ->  | AM97: =IF(Base_Inversiones[[#This Row],[Graficar Día]]="ok",VLOOKUP(Base_Inversiones[[#This Row],[Texto fecha]],Administración!$B$2:$C$1432,2,0),"") ->  | AN97: =IF(Base_Inversiones[[#This Row],[Qty]]>0,"ok","no") -> no | AO97: =IF(Base_Inversiones[[#This Row],[Graficar Día]]="ok",$D$1,"") ->  | AP97: =IF(Base_Inversiones[[#This Row],[Graficar Día]]="ok",Base_Inversiones[[#This Row],[Budget Inicial/ Aportación]]+Base_Inversiones[[#This Row],[Saldo]],"") ->  | AS97: =SUM(Base_Inversiones[G/P Neta]) -> 108 | AT97: =IF(Base_Inversiones[[#This Row],[Graficar Día]]="ok",$D$1,"") ->  | AU97: =IF(Base_Inversiones[[#This Row],[Graficar Día]]="ok",WEEKNUM(Base_Inversiones[[#This Row],[Fecha Compra]]),"") ->  | AV97: =IF(Base_Inversiones[[#This Row],[Graficar Día]]="ok",WEEKNUM(DATE(YEAR(Base_Inversiones[[#This Row],[Fecha Compra]]),MONTH(Base_Inversiones[[#This Row],[Fecha Compra]]),1))-1,"") ->  | AW97: =IF(Base_Inversiones[[#This Row],[Graficar Día]]="ok",Base_Inversiones[[#This Row],[Num Semana]]-Base_Inversiones[[#This Row],[Num Sem Extrae]],"") ->  | AX97: =IF(Base_Inversiones[[#This Row],[Graficar Día]]="ok",IFERROR(VLOOKUP(Base_Inversiones[[#This Row],[Mes Corrob]],Administración!$L$4:$M$15,2,0),""),"") -> 
H98: =IF(Base_Inversiones[[#This Row],[Graficar Día]]="ok",F98*G98,"") ->  | R98: =IF(Base_Inversiones[[#This Row],[Graficar Día]]="ok",P98-F98,"") ->  | U98: =IF(Base_Inversiones[[#This Row],[Graficar Día]]="ok",IF(P98="",0,R98*G98-IF(B98="C",(10+0.15*2*G98/100),(0.5*2*G98/100))),"") ->  | X98: =IF(Base_Inversiones[[#This Row],[Graficar Día]]="ok",IF(P98="",0,U98-V98-W98),"") ->  | AC98: =IF(Base_Inversiones[[#This Row],[Graficar Día]]="ok",SUM(AB$5:AB98),"") ->  | AD98: =IF(Base_Inversiones[[#This Row],[Graficar Día]]="ok",(IF(S98>0,"G","P")),"") ->  | AH98: =IF(Base_Inversiones[[#This Row],[Graficar Día]]="ok",DAY(A98),"") ->  | AI98: =IF(Base_Inversiones[[#This Row],[Graficar Día]]="ok",MONTH(A98),"") ->  | AJ98: =IF(Base_Inversiones[[#This Row],[Graficar Día]]="ok",YEAR(A98),"") ->  | AK98: =IF(Base_Inversiones[[#This Row],[Graficar Día]]="ok",IF(LEN(AH98)=1,"0"&AH98,AH98)&"/"&IF(LEN(AI98)=1,"0"&AI98,AI98)&"/"&AJ98,"") ->  | AL98: =TEXT(Base_Inversiones[[#This Row],[Fecha Corrob]],"DD/MM/AAAA") ->  | AM98: =IF(Base_Inversiones[[#This Row],[Graficar Día]]="ok",VLOOKUP(Base_Inversiones[[#This Row],[Texto fecha]],Administración!$B$2:$C$1432,2,0),"") ->  | AN98: =IF(Base_Inversiones[[#This Row],[Qty]]>0,"ok","no") -> no | AO98: =IF(Base_Inversiones[[#This Row],[Graficar Día]]="ok",$D$1,"") ->  | AP98: =IF(Base_Inversiones[[#This Row],[Graficar Día]]="ok",Base_Inversiones[[#This Row],[Budget Inicial/ Aportación]]+Base_Inversiones[[#This Row],[Saldo]],"") ->  | AS98: =SUM(Base_Inversiones[G/P Neta]) -> 108 | AT98: =IF(Base_Inversiones[[#This Row],[Graficar Día]]="ok",$D$1,"") ->  | AU98: =IF(Base_Inversiones[[#This Row],[Graficar Día]]="ok",WEEKNUM(Base_Inversiones[[#This Row],[Fecha Compra]]),"") ->  | AV98: =IF(Base_Inversiones[[#This Row],[Graficar Día]]="ok",WEEKNUM(DATE(YEAR(Base_Inversiones[[#This Row],[Fecha Compra]]),MONTH(Base_Inversiones[[#This Row],[Fecha Compra]]),1))-1,"") ->  | AW98: =IF(Base_Inversiones[[#This Row],[Graficar Día]]="ok",Base_Inversiones[[#This Row],[Num Semana]]-Base_Inversiones[[#This Row],[Num Sem Extrae]],"") ->  | AX98: =IF(Base_Inversiones[[#This Row],[Graficar Día]]="ok",IFERROR(VLOOKUP(Base_Inversiones[[#This Row],[Mes Corrob]],Administración!$L$4:$M$15,2,0),""),"") -> 
H99: =IF(Base_Inversiones[[#This Row],[Graficar Día]]="ok",F99*G99,"") ->  | R99: =IF(Base_Inversiones[[#This Row],[Graficar Día]]="ok",P99-F99,"") ->  | U99: =IF(Base_Inversiones[[#This Row],[Graficar Día]]="ok",IF(P99="",0,R99*G99-IF(B99="C",(10+0.15*2*G99/100),(0.5*2*G99/100))),"") ->  | X99: =IF(Base_Inversiones[[#This Row],[Graficar Día]]="ok",IF(P99="",0,U99-V99-W99),"") ->  | AC99: =IF(Base_Inversiones[[#This Row],[Graficar Día]]="ok",SUM(AB$5:AB99),"") ->  | AD99: =IF(Base_Inversiones[[#This Row],[Graficar Día]]="ok",(IF(S99>0,"G","P")),"") ->  | AH99: =IF(Base_Inversiones[[#This Row],[Graficar Día]]="ok",DAY(A99),"") ->  | AI99: =IF(Base_Inversiones[[#This Row],[Graficar Día]]="ok",MONTH(A99),"") ->  | AJ99: =IF(Base_Inversiones[[#This Row],[Graficar Día]]="ok",YEAR(A99),"") ->  | AK99: =IF(Base_Inversiones[[#This Row],[Graficar Día]]="ok",IF(LEN(AH99)=1,"0"&AH99,AH99)&"/"&IF(LEN(AI99)=1,"0"&AI99,AI99)&"/"&AJ99,"") ->  | AL99: =TEXT(Base_Inversiones[[#This Row],[Fecha Corrob]],"DD/MM/AAAA") ->  | AM99: =IF(Base_Inversiones[[#This Row],[Graficar Día]]="ok",VLOOKUP(Base_Inversiones[[#This Row],[Texto fecha]],Administración!$B$2:$C$1432,2,0),"") ->  | AN99: =IF(Base_Inversiones[[#This Row],[Qty]]>0,"ok","no") -> no | AO99: =IF(Base_Inversiones[[#This Row],[Graficar Día]]="ok",$D$1,"") ->  | AP99: =IF(Base_Inversiones[[#This Row],[Graficar Día]]="ok",Base_Inversiones[[#This Row],[Budget Inicial/ Aportación]]+Base_Inversiones[[#This Row],[Saldo]],"") ->  | AS99: =SUM(Base_Inversiones[G/P Neta]) -> 108 | AT99: =IF(Base_Inversiones[[#This Row],[Graficar Día]]="ok",$D$1,"") ->  | AU99: =IF(Base_Inversiones[[#This Row],[Graficar Día]]="ok",WEEKNUM(Base_Inversiones[[#This Row],[Fecha Compra]]),"") ->  | AV99: =IF(Base_Inversiones[[#This Row],[Graficar Día]]="ok",WEEKNUM(DATE(YEAR(Base_Inversiones[[#This Row],[Fecha Compra]]),MONTH(Base_Inversiones[[#This Row],[Fecha Compra]]),1))-1,"") ->  | AW99: =IF(Base_Inversiones[[#This Row],[Graficar Día]]="ok",Base_Inversiones[[#This Row],[Num Semana]]-Base_Inversiones[[#This Row],[Num Sem Extrae]],"") ->  | AX99: =IF(Base_Inversiones[[#This Row],[Graficar Día]]="ok",IFERROR(VLOOKUP(Base_Inversiones[[#This Row],[Mes Corrob]],Administración!$L$4:$M$15,2,0),""),"") -> 
H100: =IF(Base_Inversiones[[#This Row],[Graficar Día]]="ok",F100*G100,"") ->  | R100: =IF(Base_Inversiones[[#This Row],[Graficar Día]]="ok",P100-F100,"") ->  | U100: =IF(Base_Inversiones[[#This Row],[Graficar Día]]="ok",IF(P100="",0,R100*G100-IF(B100="C",(10+0.15*2*G100/100),(0.5*2*G100/100))),"") ->  | X100: =IF(Base_Inversiones[[#This Row],[Graficar Día]]="ok",IF(P100="",0,U100-V100-W100),"") ->  | AC100: =IF(Base_Inversiones[[#This Row],[Graficar Día]]="ok",SUM(AB$5:AB100),"") ->  | AD100: =IF(Base_Inversiones[[#This Row],[Graficar Día]]="ok",(IF(S100>0,"G","P")),"") ->  | AH100: =IF(Base_Inversiones[[#This Row],[Graficar Día]]="ok",DAY(A100),"") ->  | AI100: =IF(Base_Inversiones[[#This Row],[Graficar Día]]="ok",MONTH(A100),"") ->  | AJ100: =IF(Base_Inversiones[[#This Row],[Graficar Día]]="ok",YEAR(A100),"") ->  | AK100: =IF(Base_Inversiones[[#This Row],[Graficar Día]]="ok",IF(LEN(AH100)=1,"0"&AH100,AH100)&"/"&IF(LEN(AI100)=1,"0"&AI100,AI100)&"/"&AJ100,"") ->  | AL100: =TEXT(Base_Inversiones[[#This Row],[Fecha Corrob]],"DD/MM/AAAA") ->  | AM100: =IF(Base_Inversiones[[#This Row],[Graficar Día]]="ok",VLOOKUP(Base_Inversiones[[#This Row],[Texto fecha]],Administración!$B$2:$C$1432,2,0),"") ->  | AN100: =IF(Base_Inversiones[[#This Row],[Qty]]>0,"ok","no") -> no | AO100: =IF(Base_Inversiones[[#This Row],[Graficar Día]]="ok",$D$1,"") ->  | AP100: =IF(Base_Inversiones[[#This Row],[Graficar Día]]="ok",Base_Inversiones[[#This Row],[Budget Inicial/ Aportación]]+Base_Inversiones[[#This Row],[Saldo]],"") ->  | AS100: =SUM(Base_Inversiones[G/P Neta]) -> 108 | AT100: =IF(Base_Inversiones[[#This Row],[Graficar Día]]="ok",$D$1,"") ->  | AU100: =IF(Base_Inversiones[[#This Row],[Graficar Día]]="ok",WEEKNUM(Base_Inversiones[[#This Row],[Fecha Compra]]),"") ->  | AV100: =IF(Base_Inversiones[[#This Row],[Graficar Día]]="ok",WEEKNUM(DATE(YEAR(Base_Inversiones[[#This Row],[Fecha Compra]]),MONTH(Base_Inversiones[[#This Row],[Fecha Compra]]),1))-1,"") ->  | AW100: =IF(Base_Inversiones[[#This Row],[Graficar Día]]="ok",Base_Inversiones[[#This Row],[Num Semana]]-Base_Inversiones[[#This Row],[Num Sem Extrae]],"") ->  | AX100: =IF(Base_Inversiones[[#This Row],[Graficar Día]]="ok",IFERROR(VLOOKUP(Base_Inversiones[[#This Row],[Mes Corrob]],Administración!$L$4:$M$15,2,0),""),"") -> 
H101: =IF(Base_Inversiones[[#This Row],[Graficar Día]]="ok",F101*G101,"") ->  | R101: =IF(Base_Inversiones[[#This Row],[Graficar Día]]="ok",P101-F101,"") ->  | U101: =IF(Base_Inversiones[[#This Row],[Graficar Día]]="ok",IF(P101="",0,R101*G101-IF(B101="C",(10+0.15*2*G101/100),(0.5*2*G101/100))),"") ->  | X101: =IF(Base_Inversiones[[#This Row],[Graficar Día]]="ok",IF(P101="",0,U101-V101-W101),"") ->  | AC101: =IF(Base_Inversiones[[#This Row],[Graficar Día]]="ok",SUM(AB$5:AB101),"") ->  | AD101: =IF(Base_Inversiones[[#This Row],[Graficar Día]]="ok",(IF(S101>0,"G","P")),"") ->  | AH101: =IF(Base_Inversiones[[#This Row],[Graficar Día]]="ok",DAY(A101),"") ->  | AI101: =IF(Base_Inversiones[[#This Row],[Graficar Día]]="ok",MONTH(A101),"") ->  | AJ101: =IF(Base_Inversiones[[#This Row],[Graficar Día]]="ok",YEAR(A101),"") ->  | AK101: =IF(Base_Inversiones[[#This Row],[Graficar Día]]="ok",IF(LEN(AH101)=1,"0"&AH101,AH101)&"/"&IF(LEN(AI101)=1,"0"&AI101,AI101)&"/"&AJ101,"") ->  | AL101: =TEXT(Base_Inversiones[[#This Row],[Fecha Corrob]],"DD/MM/AAAA") ->  | AM101: =IF(Base_Inversiones[[#This Row],[Graficar Día]]="ok",VLOOKUP(Base_Inversiones[[#This Row],[Texto fecha]],Administración!$B$2:$C$1432,2,0),"") ->  | AN101: =IF(Base_Inversiones[[#This Row],[Qty]]>0,"ok","no") -> no | AO101: =IF(Base_Inversiones[[#This Row],[Graficar Día]]="ok",$D$1,"") ->  | AP101: =IF(Base_Inversiones[[#This Row],[Graficar Día]]="ok",Base_Inversiones[[#This Row],[Budget Inicial/ Aportación]]+Base_Inversiones[[#This Row],[Saldo]],"") ->  | AS101: =SUM(Base_Inversiones[G/P Neta]) -> 108 | AT101: =IF(Base_Inversiones[[#This Row],[Graficar Día]]="ok",$D$1,"") ->  | AU101: =IF(Base_Inversiones[[#This Row],[Graficar Día]]="ok",WEEKNUM(Base_Inversiones[[#This Row],[Fecha Compra]]),"") ->  | AV101: =IF(Base_Inversiones[[#This Row],[Graficar Día]]="ok",WEEKNUM(DATE(YEAR(Base_Inversiones[[#This Row],[Fecha Compra]]),MONTH(Base_Inversiones[[#This Row],[Fecha Compra]]),1))-1,"") ->  | AW101: =IF(Base_Inversiones[[#This Row],[Graficar Día]]="ok",Base_Inversiones[[#This Row],[Num Semana]]-Base_Inversiones[[#This Row],[Num Sem Extrae]],"") ->  | AX101: =IF(Base_Inversiones[[#This Row],[Graficar Día]]="ok",IFERROR(VLOOKUP(Base_Inversiones[[#This Row],[Mes Corrob]],Administración!$L$4:$M$15,2,0),""),"") -> 
H102: =IF(Base_Inversiones[[#This Row],[Graficar Día]]="ok",F102*G102,"") ->  | R102: =IF(Base_Inversiones[[#This Row],[Graficar Día]]="ok",P102-F102,"") ->  | U102: =IF(Base_Inversiones[[#This Row],[Graficar Día]]="ok",IF(P102="",0,R102*G102-IF(B102="C",(10+0.15*2*G102/100),(0.5*2*G102/100))),"") ->  | X102: =IF(Base_Inversiones[[#This Row],[Graficar Día]]="ok",IF(P102="",0,U102-V102-W102),"") ->  | AC102: =IF(Base_Inversiones[[#This Row],[Graficar Día]]="ok",SUM(AB$5:AB102),"") ->  | AD102: =IF(Base_Inversiones[[#This Row],[Graficar Día]]="ok",(IF(S102>0,"G","P")),"") ->  | AH102: =IF(Base_Inversiones[[#This Row],[Graficar Día]]="ok",DAY(A102),"") ->  | AI102: =IF(Base_Inversiones[[#This Row],[Graficar Día]]="ok",MONTH(A102),"") ->  | AJ102: =IF(Base_Inversiones[[#This Row],[Graficar Día]]="ok",YEAR(A102),"") ->  | AK102: =IF(Base_Inversiones[[#This Row],[Graficar Día]]="ok",IF(LEN(AH102)=1,"0"&AH102,AH102)&"/"&IF(LEN(AI102)=1,"0"&AI102,AI102)&"/"&AJ102,"") ->  | AL102: =TEXT(Base_Inversiones[[#This Row],[Fecha Corrob]],"DD/MM/AAAA") ->  | AM102: =IF(Base_Inversiones[[#This Row],[Graficar Día]]="ok",VLOOKUP(Base_Inversiones[[#This Row],[Texto fecha]],Administración!$B$2:$C$1432,2,0),"") ->  | AN102: =IF(Base_Inversiones[[#This Row],[Qty]]>0,"ok","no") -> no | AO102: =IF(Base_Inversiones[[#This Row],[Graficar Día]]="ok",$D$1,"") ->  | AP102: =IF(Base_Inversiones[[#This Row],[Graficar Día]]="ok",Base_Inversiones[[#This Row],[Budget Inicial/ Aportación]]+Base_Inversiones[[#This Row],[Saldo]],"") ->  | AS102: =SUM(Base_Inversiones[G/P Neta]) -> 108 | AT102: =IF(Base_Inversiones[[#This Row],[Graficar Día]]="ok",$D$1,"") ->  | AU102: =IF(Base_Inversiones[[#This Row],[Graficar Día]]="ok",WEEKNUM(Base_Inversiones[[#This Row],[Fecha Compra]]),"") ->  | AV102: =IF(Base_Inversiones[[#This Row],[Graficar Día]]="ok",WEEKNUM(DATE(YEAR(Base_Inversiones[[#This Row],[Fecha Compra]]),MONTH(Base_Inversiones[[#This Row],[Fecha Compra]]),1))-1,"") ->  | AW102: =IF(Base_Inversiones[[#This Row],[Graficar Día]]="ok",Base_Inversiones[[#This Row],[Num Semana]]-Base_Inversiones[[#This Row],[Num Sem Extrae]],"") ->  | AX102: =IF(Base_Inversiones[[#This Row],[Graficar Día]]="ok",IFERROR(VLOOKUP(Base_Inversiones[[#This Row],[Mes Corrob]],Administración!$L$4:$M$15,2,0),""),"") -> 
H103: =IF(Base_Inversiones[[#This Row],[Graficar Día]]="ok",F103*G103,"") ->  | R103: =IF(Base_Inversiones[[#This Row],[Graficar Día]]="ok",P103-F103,"") ->  | U103: =IF(Base_Inversiones[[#This Row],[Graficar Día]]="ok",IF(P103="",0,R103*G103-IF(B103="C",(10+0.15*2*G103/100),(0.5*2*G103/100))),"") ->  | X103: =IF(Base_Inversiones[[#This Row],[Graficar Día]]="ok",IF(P103="",0,U103-V103-W103),"") ->  | AC103: =IF(Base_Inversiones[[#This Row],[Graficar Día]]="ok",SUM(AB$5:AB103),"") ->  | AD103: =IF(Base_Inversiones[[#This Row],[Graficar Día]]="ok",(IF(S103>0,"G","P")),"") ->  | AH103: =IF(Base_Inversiones[[#This Row],[Graficar Día]]="ok",DAY(A103),"") ->  | AI103: =IF(Base_Inversiones[[#This Row],[Graficar Día]]="ok",MONTH(A103),"") ->  | AJ103: =IF(Base_Inversiones[[#This Row],[Graficar Día]]="ok",YEAR(A103),"") ->  | AK103: =IF(Base_Inversiones[[#This Row],[Graficar Día]]="ok",IF(LEN(AH103)=1,"0"&AH103,AH103)&"/"&IF(LEN(AI103)=1,"0"&AI103,AI103)&"/"&AJ103,"") ->  | AL103: =TEXT(Base_Inversiones[[#This Row],[Fecha Corrob]],"DD/MM/AAAA") ->  | AM103: =IF(Base_Inversiones[[#This Row],[Graficar Día]]="ok",VLOOKUP(Base_Inversiones[[#This Row],[Texto fecha]],Administración!$B$2:$C$1432,2,0),"") ->  | AN103: =IF(Base_Inversiones[[#This Row],[Qty]]>0,"ok","no") -> no | AO103: =IF(Base_Inversiones[[#This Row],[Graficar Día]]="ok",$D$1,"") ->  | AP103: =IF(Base_Inversiones[[#This Row],[Graficar Día]]="ok",Base_Inversiones[[#This Row],[Budget Inicial/ Aportación]]+Base_Inversiones[[#This Row],[Saldo]],"") ->  | AS103: =SUM(Base_Inversiones[G/P Neta]) -> 108 | AT103: =IF(Base_Inversiones[[#This Row],[Graficar Día]]="ok",$D$1,"") ->  | AU103: =IF(Base_Inversiones[[#This Row],[Graficar Día]]="ok",WEEKNUM(Base_Inversiones[[#This Row],[Fecha Compra]]),"") ->  | AV103: =IF(Base_Inversiones[[#This Row],[Graficar Día]]="ok",WEEKNUM(DATE(YEAR(Base_Inversiones[[#This Row],[Fecha Compra]]),MONTH(Base_Inversiones[[#This Row],[Fecha Compra]]),1))-1,"") ->  | AW103: =IF(Base_Inversiones[[#This Row],[Graficar Día]]="ok",Base_Inversiones[[#This Row],[Num Semana]]-Base_Inversiones[[#This Row],[Num Sem Extrae]],"") ->  | AX103: =IF(Base_Inversiones[[#This Row],[Graficar Día]]="ok",IFERROR(VLOOKUP(Base_Inversiones[[#This Row],[Mes Corrob]],Administración!$L$4:$M$15,2,0),""),"") -> 
H104: =IF(Base_Inversiones[[#This Row],[Graficar Día]]="ok",F104*G104,"") ->  | R104: =IF(Base_Inversiones[[#This Row],[Graficar Día]]="ok",P104-F104,"") ->  | U104: =IF(Base_Inversiones[[#This Row],[Graficar Día]]="ok",IF(P104="",0,R104*G104-IF(B104="C",(10+0.15*2*G104/100),(0.5*2*G104/100))),"") ->  | X104: =IF(Base_Inversiones[[#This Row],[Graficar Día]]="ok",IF(P104="",0,U104-V104-W104),"") ->  | AC104: =IF(Base_Inversiones[[#This Row],[Graficar Día]]="ok",SUM(AB$5:AB104),"") ->  | AD104: =IF(Base_Inversiones[[#This Row],[Graficar Día]]="ok",(IF(S104>0,"G","P")),"") ->  | AH104: =IF(Base_Inversiones[[#This Row],[Graficar Día]]="ok",DAY(A104),"") ->  | AI104: =IF(Base_Inversiones[[#This Row],[Graficar Día]]="ok",MONTH(A104),"") ->  | AJ104: =IF(Base_Inversiones[[#This Row],[Graficar Día]]="ok",YEAR(A104),"") ->  | AK104: =IF(Base_Inversiones[[#This Row],[Graficar Día]]="ok",IF(LEN(AH104)=1,"0"&AH104,AH104)&"/"&IF(LEN(AI104)=1,"0"&AI104,AI104)&"/"&AJ104,"") ->  | AL104: =TEXT(Base_Inversiones[[#This Row],[Fecha Corrob]],"DD/MM/AAAA") ->  | AM104: =IF(Base_Inversiones[[#This Row],[Graficar Día]]="ok",VLOOKUP(Base_Inversiones[[#This Row],[Texto fecha]],Administración!$B$2:$C$1432,2,0),"") ->  | AN104: =IF(Base_Inversiones[[#This Row],[Qty]]>0,"ok","no") -> no | AO104: =IF(Base_Inversiones[[#This Row],[Graficar Día]]="ok",$D$1,"") ->  | AP104: =IF(Base_Inversiones[[#This Row],[Graficar Día]]="ok",Base_Inversiones[[#This Row],[Budget Inicial/ Aportación]]+Base_Inversiones[[#This Row],[Saldo]],"") ->  | AS104: =SUM(Base_Inversiones[G/P Neta]) -> 108 | AT104: =IF(Base_Inversiones[[#This Row],[Graficar Día]]="ok",$D$1,"") ->  | AU104: =IF(Base_Inversiones[[#This Row],[Graficar Día]]="ok",WEEKNUM(Base_Inversiones[[#This Row],[Fecha Compra]]),"") ->  | AV104: =IF(Base_Inversiones[[#This Row],[Graficar Día]]="ok",WEEKNUM(DATE(YEAR(Base_Inversiones[[#This Row],[Fecha Compra]]),MONTH(Base_Inversiones[[#This Row],[Fecha Compra]]),1))-1,"") ->  | AW104: =IF(Base_Inversiones[[#This Row],[Graficar Día]]="ok",Base_Inversiones[[#This Row],[Num Semana]]-Base_Inversiones[[#This Row],[Num Sem Extrae]],"") ->  | AX104: =IF(Base_Inversiones[[#This Row],[Graficar Día]]="ok",IFERROR(VLOOKUP(Base_Inversiones[[#This Row],[Mes Corrob]],Administración!$L$4:$M$15,2,0),""),"") -> 
H105: =IF(Base_Inversiones[[#This Row],[Graficar Día]]="ok",F105*G105,"") ->  | R105: =IF(Base_Inversiones[[#This Row],[Graficar Día]]="ok",P105-F105,"") ->  | U105: =IF(Base_Inversiones[[#This Row],[Graficar Día]]="ok",IF(P105="",0,R105*G105-IF(B105="C",(10+0.15*2*G105/100),(0.5*2*G105/100))),"") ->  | X105: =IF(Base_Inversiones[[#This Row],[Graficar Día]]="ok",IF(P105="",0,U105-V105-W105),"") ->  | AC105: =IF(Base_Inversiones[[#This Row],[Graficar Día]]="ok",SUM(AB$5:AB105),"") ->  | AD105: =IF(Base_Inversiones[[#This Row],[Graficar Día]]="ok",(IF(S105>0,"G","P")),"") ->  | AH105: =IF(Base_Inversiones[[#This Row],[Graficar Día]]="ok",DAY(A105),"") ->  | AI105: =IF(Base_Inversiones[[#This Row],[Graficar Día]]="ok",MONTH(A105),"") ->  | AJ105: =IF(Base_Inversiones[[#This Row],[Graficar Día]]="ok",YEAR(A105),"") ->  | AK105: =IF(Base_Inversiones[[#This Row],[Graficar Día]]="ok",IF(LEN(AH105)=1,"0"&AH105,AH105)&"/"&IF(LEN(AI105)=1,"0"&AI105,AI105)&"/"&AJ105,"") ->  | AL105: =TEXT(Base_Inversiones[[#This Row],[Fecha Corrob]],"DD/MM/AAAA") ->  | AM105: =IF(Base_Inversiones[[#This Row],[Graficar Día]]="ok",VLOOKUP(Base_Inversiones[[#This Row],[Texto fecha]],Administración!$B$2:$C$1432,2,0),"") ->  | AN105: =IF(Base_Inversiones[[#This Row],[Qty]]>0,"ok","no") -> no | AO105: =IF(Base_Inversiones[[#This Row],[Graficar Día]]="ok",$D$1,"") ->  | AP105: =IF(Base_Inversiones[[#This Row],[Graficar Día]]="ok",Base_Inversiones[[#This Row],[Budget Inicial/ Aportación]]+Base_Inversiones[[#This Row],[Saldo]],"") ->  | AS105: =SUM(Base_Inversiones[G/P Neta]) -> 108 | AT105: =IF(Base_Inversiones[[#This Row],[Graficar Día]]="ok",$D$1,"") ->  | AU105: =IF(Base_Inversiones[[#This Row],[Graficar Día]]="ok",WEEKNUM(Base_Inversiones[[#This Row],[Fecha Compra]]),"") ->  | AV105: =IF(Base_Inversiones[[#This Row],[Graficar Día]]="ok",WEEKNUM(DATE(YEAR(Base_Inversiones[[#This Row],[Fecha Compra]]),MONTH(Base_Inversiones[[#This Row],[Fecha Compra]]),1))-1,"") ->  | AW105: =IF(Base_Inversiones[[#This Row],[Graficar Día]]="ok",Base_Inversiones[[#This Row],[Num Semana]]-Base_Inversiones[[#This Row],[Num Sem Extrae]],"") ->  | AX105: =IF(Base_Inversiones[[#This Row],[Graficar Día]]="ok",IFERROR(VLOOKUP(Base_Inversiones[[#This Row],[Mes Corrob]],Administración!$L$4:$M$15,2,0),""),"") -> 
H106: =IF(Base_Inversiones[[#This Row],[Graficar Día]]="ok",F106*G106,"") ->  | R106: =IF(Base_Inversiones[[#This Row],[Graficar Día]]="ok",P106-F106,"") ->  | U106: =IF(Base_Inversiones[[#This Row],[Graficar Día]]="ok",IF(P106="",0,R106*G106-IF(B106="C",(10+0.15*2*G106/100),(0.5*2*G106/100))),"") ->  | X106: =IF(Base_Inversiones[[#This Row],[Graficar Día]]="ok",IF(P106="",0,U106-V106-W106),"") ->  | AC106: =IF(Base_Inversiones[[#This Row],[Graficar Día]]="ok",SUM(AB$5:AB106),"") ->  | AD106: =IF(Base_Inversiones[[#This Row],[Graficar Día]]="ok",(IF(S106>0,"G","P")),"") ->  | AH106: =IF(Base_Inversiones[[#This Row],[Graficar Día]]="ok",DAY(A106),"") ->  | AI106: =IF(Base_Inversiones[[#This Row],[Graficar Día]]="ok",MONTH(A106),"") ->  | AJ106: =IF(Base_Inversiones[[#This Row],[Graficar Día]]="ok",YEAR(A106),"") ->  | AK106: =IF(Base_Inversiones[[#This Row],[Graficar Día]]="ok",IF(LEN(AH106)=1,"0"&AH106,AH106)&"/"&IF(LEN(AI106)=1,"0"&AI106,AI106)&"/"&AJ106,"") ->  | AL106: =TEXT(Base_Inversiones[[#This Row],[Fecha Corrob]],"DD/MM/AAAA") ->  | AM106: =IF(Base_Inversiones[[#This Row],[Graficar Día]]="ok",VLOOKUP(Base_Inversiones[[#This Row],[Texto fecha]],Administración!$B$2:$C$1432,2,0),"") ->  | AN106: =IF(Base_Inversiones[[#This Row],[Qty]]>0,"ok","no") -> no | AO106: =IF(Base_Inversiones[[#This Row],[Graficar Día]]="ok",$D$1,"") ->  | AP106: =IF(Base_Inversiones[[#This Row],[Graficar Día]]="ok",Base_Inversiones[[#This Row],[Budget Inicial/ Aportación]]+Base_Inversiones[[#This Row],[Saldo]],"") ->  | AS106: =SUM(Base_Inversiones[G/P Neta]) -> 108 | AT106: =IF(Base_Inversiones[[#This Row],[Graficar Día]]="ok",$D$1,"") ->  | AU106: =IF(Base_Inversiones[[#This Row],[Graficar Día]]="ok",WEEKNUM(Base_Inversiones[[#This Row],[Fecha Compra]]),"") ->  | AV106: =IF(Base_Inversiones[[#This Row],[Graficar Día]]="ok",WEEKNUM(DATE(YEAR(Base_Inversiones[[#This Row],[Fecha Compra]]),MONTH(Base_Inversiones[[#This Row],[Fecha Compra]]),1))-1,"") ->  | AW106: =IF(Base_Inversiones[[#This Row],[Graficar Día]]="ok",Base_Inversiones[[#This Row],[Num Semana]]-Base_Inversiones[[#This Row],[Num Sem Extrae]],"") ->  | AX106: =IF(Base_Inversiones[[#This Row],[Graficar Día]]="ok",IFERROR(VLOOKUP(Base_Inversiones[[#This Row],[Mes Corrob]],Administración!$L$4:$M$15,2,0),""),"") -> 
H107: =IF(Base_Inversiones[[#This Row],[Graficar Día]]="ok",F107*G107,"") ->  | R107: =IF(Base_Inversiones[[#This Row],[Graficar Día]]="ok",P107-F107,"") ->  | U107: =IF(Base_Inversiones[[#This Row],[Graficar Día]]="ok",IF(P107="",0,R107*G107-IF(B107="C",(10+0.15*2*G107/100),(0.5*2*G107/100))),"") ->  | X107: =IF(Base_Inversiones[[#This Row],[Graficar Día]]="ok",IF(P107="",0,U107-V107-W107),"") ->  | AC107: =IF(Base_Inversiones[[#This Row],[Graficar Día]]="ok",SUM(AB$5:AB107),"") ->  | AD107: =IF(Base_Inversiones[[#This Row],[Graficar Día]]="ok",(IF(S107>0,"G","P")),"") ->  | AH107: =IF(Base_Inversiones[[#This Row],[Graficar Día]]="ok",DAY(A107),"") ->  | AI107: =IF(Base_Inversiones[[#This Row],[Graficar Día]]="ok",MONTH(A107),"") ->  | AJ107: =IF(Base_Inversiones[[#This Row],[Graficar Día]]="ok",YEAR(A107),"") ->  | AK107: =IF(Base_Inversiones[[#This Row],[Graficar Día]]="ok",IF(LEN(AH107)=1,"0"&AH107,AH107)&"/"&IF(LEN(AI107)=1,"0"&AI107,AI107)&"/"&AJ107,"") ->  | AL107: =TEXT(Base_Inversiones[[#This Row],[Fecha Corrob]],"DD/MM/AAAA") ->  | AM107: =IF(Base_Inversiones[[#This Row],[Graficar Día]]="ok",VLOOKUP(Base_Inversiones[[#This Row],[Texto fecha]],Administración!$B$2:$C$1432,2,0),"") ->  | AN107: =IF(Base_Inversiones[[#This Row],[Qty]]>0,"ok","no") -> no | AO107: =IF(Base_Inversiones[[#This Row],[Graficar Día]]="ok",$D$1,"") ->  | AP107: =IF(Base_Inversiones[[#This Row],[Graficar Día]]="ok",Base_Inversiones[[#This Row],[Budget Inicial/ Aportación]]+Base_Inversiones[[#This Row],[Saldo]],"") ->  | AS107: =SUM(Base_Inversiones[G/P Neta]) -> 108 | AT107: =IF(Base_Inversiones[[#This Row],[Graficar Día]]="ok",$D$1,"") ->  | AU107: =IF(Base_Inversiones[[#This Row],[Graficar Día]]="ok",WEEKNUM(Base_Inversiones[[#This Row],[Fecha Compra]]),"") ->  | AV107: =IF(Base_Inversiones[[#This Row],[Graficar Día]]="ok",WEEKNUM(DATE(YEAR(Base_Inversiones[[#This Row],[Fecha Compra]]),MONTH(Base_Inversiones[[#This Row],[Fecha Compra]]),1))-1,"") ->  | AW107: =IF(Base_Inversiones[[#This Row],[Graficar Día]]="ok",Base_Inversiones[[#This Row],[Num Semana]]-Base_Inversiones[[#This Row],[Num Sem Extrae]],"") ->  | AX107: =IF(Base_Inversiones[[#This Row],[Graficar Día]]="ok",IFERROR(VLOOKUP(Base_Inversiones[[#This Row],[Mes Corrob]],Administración!$L$4:$M$15,2,0),""),"") -> 
H108: =IF(Base_Inversiones[[#This Row],[Graficar Día]]="ok",F108*G108,"") ->  | R108: =IF(Base_Inversiones[[#This Row],[Graficar Día]]="ok",P108-F108,"") ->  | U108: =IF(Base_Inversiones[[#This Row],[Graficar Día]]="ok",IF(P108="",0,R108*G108-IF(B108="C",(10+0.15*2*G108/100),(0.5*2*G108/100))),"") ->  | X108: =IF(Base_Inversiones[[#This Row],[Graficar Día]]="ok",IF(P108="",0,U108-V108-W108),"") ->  | AC108: =IF(Base_Inversiones[[#This Row],[Graficar Día]]="ok",SUM(AB$5:AB108),"") ->  | AD108: =IF(Base_Inversiones[[#This Row],[Graficar Día]]="ok",(IF(S108>0,"G","P")),"") ->  | AH108: =IF(Base_Inversiones[[#This Row],[Graficar Día]]="ok",DAY(A108),"") ->  | AI108: =IF(Base_Inversiones[[#This Row],[Graficar Día]]="ok",MONTH(A108),"") ->  | AJ108: =IF(Base_Inversiones[[#This Row],[Graficar Día]]="ok",YEAR(A108),"") ->  | AK108: =IF(Base_Inversiones[[#This Row],[Graficar Día]]="ok",IF(LEN(AH108)=1,"0"&AH108,AH108)&"/"&IF(LEN(AI108)=1,"0"&AI108,AI108)&"/"&AJ108,"") ->  | AL108: =TEXT(Base_Inversiones[[#This Row],[Fecha Corrob]],"DD/MM/AAAA") ->  | AM108: =IF(Base_Inversiones[[#This Row],[Graficar Día]]="ok",VLOOKUP(Base_Inversiones[[#This Row],[Texto fecha]],Administración!$B$2:$C$1432,2,0),"") ->  | AN108: =IF(Base_Inversiones[[#This Row],[Qty]]>0,"ok","no") -> no | AO108: =IF(Base_Inversiones[[#This Row],[Graficar Día]]="ok",$D$1,"") ->  | AP108: =IF(Base_Inversiones[[#This Row],[Graficar Día]]="ok",Base_Inversiones[[#This Row],[Budget Inicial/ Aportación]]+Base_Inversiones[[#This Row],[Saldo]],"") ->  | AS108: =SUM(Base_Inversiones[G/P Neta]) -> 108 | AT108: =IF(Base_Inversiones[[#This Row],[Graficar Día]]="ok",$D$1,"") ->  | AU108: =IF(Base_Inversiones[[#This Row],[Graficar Día]]="ok",WEEKNUM(Base_Inversiones[[#This Row],[Fecha Compra]]),"") ->  | AV108: =IF(Base_Inversiones[[#This Row],[Graficar Día]]="ok",WEEKNUM(DATE(YEAR(Base_Inversiones[[#This Row],[Fecha Compra]]),MONTH(Base_Inversiones[[#This Row],[Fecha Compra]]),1))-1,"") ->  | AW108: =IF(Base_Inversiones[[#This Row],[Graficar Día]]="ok",Base_Inversiones[[#This Row],[Num Semana]]-Base_Inversiones[[#This Row],[Num Sem Extrae]],"") ->  | AX108: =IF(Base_Inversiones[[#This Row],[Graficar Día]]="ok",IFERROR(VLOOKUP(Base_Inversiones[[#This Row],[Mes Corrob]],Administración!$L$4:$M$15,2,0),""),"") -> 
H109: =IF(Base_Inversiones[[#This Row],[Graficar Día]]="ok",F109*G109,"") ->  | R109: =IF(Base_Inversiones[[#This Row],[Graficar Día]]="ok",P109-F109,"") ->  | U109: =IF(Base_Inversiones[[#This Row],[Graficar Día]]="ok",IF(P109="",0,R109*G109-IF(B109="C",(10+0.15*2*G109/100),(0.5*2*G109/100))),"") ->  | X109: =IF(Base_Inversiones[[#This Row],[Graficar Día]]="ok",IF(P109="",0,U109-V109-W109),"") ->  | AC109: =IF(Base_Inversiones[[#This Row],[Graficar Día]]="ok",SUM(AB$5:AB109),"") ->  | AD109: =IF(Base_Inversiones[[#This Row],[Graficar Día]]="ok",(IF(S109>0,"G","P")),"") ->  | AH109: =IF(Base_Inversiones[[#This Row],[Graficar Día]]="ok",DAY(A109),"") ->  | AI109: =IF(Base_Inversiones[[#This Row],[Graficar Día]]="ok",MONTH(A109),"") ->  | AJ109: =IF(Base_Inversiones[[#This Row],[Graficar Día]]="ok",YEAR(A109),"") ->  | AK109: =IF(Base_Inversiones[[#This Row],[Graficar Día]]="ok",IF(LEN(AH109)=1,"0"&AH109,AH109)&"/"&IF(LEN(AI109)=1,"0"&AI109,AI109)&"/"&AJ109,"") ->  | AL109: =TEXT(Base_Inversiones[[#This Row],[Fecha Corrob]],"DD/MM/AAAA") ->  | AM109: =IF(Base_Inversiones[[#This Row],[Graficar Día]]="ok",VLOOKUP(Base_Inversiones[[#This Row],[Texto fecha]],Administración!$B$2:$C$1432,2,0),"") ->  | AN109: =IF(Base_Inversiones[[#This Row],[Qty]]>0,"ok","no") -> no | AO109: =IF(Base_Inversiones[[#This Row],[Graficar Día]]="ok",$D$1,"") ->  | AP109: =IF(Base_Inversiones[[#This Row],[Graficar Día]]="ok",Base_Inversiones[[#This Row],[Budget Inicial/ Aportación]]+Base_Inversiones[[#This Row],[Saldo]],"") ->  | AS109: =SUM(Base_Inversiones[G/P Neta]) -> 108 | AT109: =IF(Base_Inversiones[[#This Row],[Graficar Día]]="ok",$D$1,"") ->  | AU109: =IF(Base_Inversiones[[#This Row],[Graficar Día]]="ok",WEEKNUM(Base_Inversiones[[#This Row],[Fecha Compra]]),"") ->  | AV109: =IF(Base_Inversiones[[#This Row],[Graficar Día]]="ok",WEEKNUM(DATE(YEAR(Base_Inversiones[[#This Row],[Fecha Compra]]),MONTH(Base_Inversiones[[#This Row],[Fecha Compra]]),1))-1,"") ->  | AW109: =IF(Base_Inversiones[[#This Row],[Graficar Día]]="ok",Base_Inversiones[[#This Row],[Num Semana]]-Base_Inversiones[[#This Row],[Num Sem Extrae]],"") ->  | AX109: =IF(Base_Inversiones[[#This Row],[Graficar Día]]="ok",IFERROR(VLOOKUP(Base_Inversiones[[#This Row],[Mes Corrob]],Administración!$L$4:$M$15,2,0),""),"") -> 
H110: =IF(Base_Inversiones[[#This Row],[Graficar Día]]="ok",F110*G110,"") ->  | R110: =IF(Base_Inversiones[[#This Row],[Graficar Día]]="ok",P110-F110,"") ->  | U110: =IF(Base_Inversiones[[#This Row],[Graficar Día]]="ok",IF(P110="",0,R110*G110-IF(B110="C",(10+0.15*2*G110/100),(0.5*2*G110/100))),"") ->  | X110: =IF(Base_Inversiones[[#This Row],[Graficar Día]]="ok",IF(P110="",0,U110-V110-W110),"") ->  | AC110: =IF(Base_Inversiones[[#This Row],[Graficar Día]]="ok",SUM(AB$5:AB110),"") ->  | AD110: =IF(Base_Inversiones[[#This Row],[Graficar Día]]="ok",(IF(S110>0,"G","P")),"") ->  | AH110: =IF(Base_Inversiones[[#This Row],[Graficar Día]]="ok",DAY(A110),"") ->  | AI110: =IF(Base_Inversiones[[#This Row],[Graficar Día]]="ok",MONTH(A110),"") ->  | AJ110: =IF(Base_Inversiones[[#This Row],[Graficar Día]]="ok",YEAR(A110),"") ->  | AK110: =IF(Base_Inversiones[[#This Row],[Graficar Día]]="ok",IF(LEN(AH110)=1,"0"&AH110,AH110)&"/"&IF(LEN(AI110)=1,"0"&AI110,AI110)&"/"&AJ110,"") ->  | AL110: =TEXT(Base_Inversiones[[#This Row],[Fecha Corrob]],"DD/MM/AAAA") ->  | AM110: =IF(Base_Inversiones[[#This Row],[Graficar Día]]="ok",VLOOKUP(Base_Inversiones[[#This Row],[Texto fecha]],Administración!$B$2:$C$1432,2,0),"") ->  | AN110: =IF(Base_Inversiones[[#This Row],[Qty]]>0,"ok","no") -> no | AO110: =IF(Base_Inversiones[[#This Row],[Graficar Día]]="ok",$D$1,"") ->  | AP110: =IF(Base_Inversiones[[#This Row],[Graficar Día]]="ok",Base_Inversiones[[#This Row],[Budget Inicial/ Aportación]]+Base_Inversiones[[#This Row],[Saldo]],"") ->  | AS110: =SUM(Base_Inversiones[G/P Neta]) -> 108 | AT110: =IF(Base_Inversiones[[#This Row],[Graficar Día]]="ok",$D$1,"") ->  | AU110: =IF(Base_Inversiones[[#This Row],[Graficar Día]]="ok",WEEKNUM(Base_Inversiones[[#This Row],[Fecha Compra]]),"") ->  | AV110: =IF(Base_Inversiones[[#This Row],[Graficar Día]]="ok",WEEKNUM(DATE(YEAR(Base_Inversiones[[#This Row],[Fecha Compra]]),MONTH(Base_Inversiones[[#This Row],[Fecha Compra]]),1))-1,"") ->  | AW110: =IF(Base_Inversiones[[#This Row],[Graficar Día]]="ok",Base_Inversiones[[#This Row],[Num Semana]]-Base_Inversiones[[#This Row],[Num Sem Extrae]],"") ->  | AX110: =IF(Base_Inversiones[[#This Row],[Graficar Día]]="ok",IFERROR(VLOOKUP(Base_Inversiones[[#This Row],[Mes Corrob]],Administración!$L$4:$M$15,2,0),""),"") -> 
H111: =IF(Base_Inversiones[[#This Row],[Graficar Día]]="ok",F111*G111,"") ->  | R111: =IF(Base_Inversiones[[#This Row],[Graficar Día]]="ok",P111-F111,"") ->  | U111: =IF(Base_Inversiones[[#This Row],[Graficar Día]]="ok",IF(P111="",0,R111*G111-IF(B111="C",(10+0.15*2*G111/100),(0.5*2*G111/100))),"") ->  | X111: =IF(Base_Inversiones[[#This Row],[Graficar Día]]="ok",IF(P111="",0,U111-V111-W111),"") ->  | AC111: =IF(Base_Inversiones[[#This Row],[Graficar Día]]="ok",SUM(AB$5:AB111),"") ->  | AD111: =IF(Base_Inversiones[[#This Row],[Graficar Día]]="ok",(IF(S111>0,"G","P")),"") ->  | AH111: =IF(Base_Inversiones[[#This Row],[Graficar Día]]="ok",DAY(A111),"") ->  | AI111: =IF(Base_Inversiones[[#This Row],[Graficar Día]]="ok",MONTH(A111),"") ->  | AJ111: =IF(Base_Inversiones[[#This Row],[Graficar Día]]="ok",YEAR(A111),"") ->  | AK111: =IF(Base_Inversiones[[#This Row],[Graficar Día]]="ok",IF(LEN(AH111)=1,"0"&AH111,AH111)&"/"&IF(LEN(AI111)=1,"0"&AI111,AI111)&"/"&AJ111,"") ->  | AL111: =TEXT(Base_Inversiones[[#This Row],[Fecha Corrob]],"DD/MM/AAAA") ->  | AM111: =IF(Base_Inversiones[[#This Row],[Graficar Día]]="ok",VLOOKUP(Base_Inversiones[[#This Row],[Texto fecha]],Administración!$B$2:$C$1432,2,0),"") ->  | AN111: =IF(Base_Inversiones[[#This Row],[Qty]]>0,"ok","no") -> no | AO111: =IF(Base_Inversiones[[#This Row],[Graficar Día]]="ok",$D$1,"") ->  | AP111: =IF(Base_Inversiones[[#This Row],[Graficar Día]]="ok",Base_Inversiones[[#This Row],[Budget Inicial/ Aportación]]+Base_Inversiones[[#This Row],[Saldo]],"") ->  | AS111: =SUM(Base_Inversiones[G/P Neta]) -> 108 | AT111: =IF(Base_Inversiones[[#This Row],[Graficar Día]]="ok",$D$1,"") ->  | AU111: =IF(Base_Inversiones[[#This Row],[Graficar Día]]="ok",WEEKNUM(Base_Inversiones[[#This Row],[Fecha Compra]]),"") ->  | AV111: =IF(Base_Inversiones[[#This Row],[Graficar Día]]="ok",WEEKNUM(DATE(YEAR(Base_Inversiones[[#This Row],[Fecha Compra]]),MONTH(Base_Inversiones[[#This Row],[Fecha Compra]]),1))-1,"") ->  | AW111: =IF(Base_Inversiones[[#This Row],[Graficar Día]]="ok",Base_Inversiones[[#This Row],[Num Semana]]-Base_Inversiones[[#This Row],[Num Sem Extrae]],"") ->  | AX111: =IF(Base_Inversiones[[#This Row],[Graficar Día]]="ok",IFERROR(VLOOKUP(Base_Inversiones[[#This Row],[Mes Corrob]],Administración!$L$4:$M$15,2,0),""),"") -> 
H112: =IF(Base_Inversiones[[#This Row],[Graficar Día]]="ok",F112*G112,"") ->  | R112: =IF(Base_Inversiones[[#This Row],[Graficar Día]]="ok",P112-F112,"") ->  | U112: =IF(Base_Inversiones[[#This Row],[Graficar Día]]="ok",IF(P112="",0,R112*G112-IF(B112="C",(10+0.15*2*G112/100),(0.5*2*G112/100))),"") ->  | X112: =IF(Base_Inversiones[[#This Row],[Graficar Día]]="ok",IF(P112="",0,U112-V112-W112),"") ->  | AC112: =IF(Base_Inversiones[[#This Row],[Graficar Día]]="ok",SUM(AB$5:AB112),"") ->  | AD112: =IF(Base_Inversiones[[#This Row],[Graficar Día]]="ok",(IF(S112>0,"G","P")),"") ->  | AH112: =IF(Base_Inversiones[[#This Row],[Graficar Día]]="ok",DAY(A112),"") ->  | AI112: =IF(Base_Inversiones[[#This Row],[Graficar Día]]="ok",MONTH(A112),"") ->  | AJ112: =IF(Base_Inversiones[[#This Row],[Graficar Día]]="ok",YEAR(A112),"") ->  | AK112: =IF(Base_Inversiones[[#This Row],[Graficar Día]]="ok",IF(LEN(AH112)=1,"0"&AH112,AH112)&"/"&IF(LEN(AI112)=1,"0"&AI112,AI112)&"/"&AJ112,"") ->  | AL112: =TEXT(Base_Inversiones[[#This Row],[Fecha Corrob]],"DD/MM/AAAA") ->  | AM112: =IF(Base_Inversiones[[#This Row],[Graficar Día]]="ok",VLOOKUP(Base_Inversiones[[#This Row],[Texto fecha]],Administración!$B$2:$C$1432,2,0),"") ->  | AN112: =IF(Base_Inversiones[[#This Row],[Qty]]>0,"ok","no") -> no | AO112: =IF(Base_Inversiones[[#This Row],[Graficar Día]]="ok",$D$1,"") ->  | AP112: =IF(Base_Inversiones[[#This Row],[Graficar Día]]="ok",Base_Inversiones[[#This Row],[Budget Inicial/ Aportación]]+Base_Inversiones[[#This Row],[Saldo]],"") ->  | AS112: =SUM(Base_Inversiones[G/P Neta]) -> 108 | AT112: =IF(Base_Inversiones[[#This Row],[Graficar Día]]="ok",$D$1,"") ->  | AU112: =IF(Base_Inversiones[[#This Row],[Graficar Día]]="ok",WEEKNUM(Base_Inversiones[[#This Row],[Fecha Compra]]),"") ->  | AV112: =IF(Base_Inversiones[[#This Row],[Graficar Día]]="ok",WEEKNUM(DATE(YEAR(Base_Inversiones[[#This Row],[Fecha Compra]]),MONTH(Base_Inversiones[[#This Row],[Fecha Compra]]),1))-1,"") ->  | AW112: =IF(Base_Inversiones[[#This Row],[Graficar Día]]="ok",Base_Inversiones[[#This Row],[Num Semana]]-Base_Inversiones[[#This Row],[Num Sem Extrae]],"") ->  | AX112: =IF(Base_Inversiones[[#This Row],[Graficar Día]]="ok",IFERROR(VLOOKUP(Base_Inversiones[[#This Row],[Mes Corrob]],Administración!$L$4:$M$15,2,0),""),"") -> 
H113: =IF(Base_Inversiones[[#This Row],[Graficar Día]]="ok",F113*G113,"") ->  | R113: =IF(Base_Inversiones[[#This Row],[Graficar Día]]="ok",P113-F113,"") ->  | U113: =IF(Base_Inversiones[[#This Row],[Graficar Día]]="ok",IF(P113="",0,R113*G113-IF(B113="C",(10+0.15*2*G113/100),(0.5*2*G113/100))),"") ->  | X113: =IF(Base_Inversiones[[#This Row],[Graficar Día]]="ok",IF(P113="",0,U113-V113-W113),"") ->  | AC113: =IF(Base_Inversiones[[#This Row],[Graficar Día]]="ok",SUM(AB$5:AB113),"") ->  | AD113: =IF(Base_Inversiones[[#This Row],[Graficar Día]]="ok",(IF(S113>0,"G","P")),"") ->  | AH113: =IF(Base_Inversiones[[#This Row],[Graficar Día]]="ok",DAY(A113),"") ->  | AI113: =IF(Base_Inversiones[[#This Row],[Graficar Día]]="ok",MONTH(A113),"") ->  | AJ113: =IF(Base_Inversiones[[#This Row],[Graficar Día]]="ok",YEAR(A113),"") ->  | AK113: =IF(Base_Inversiones[[#This Row],[Graficar Día]]="ok",IF(LEN(AH113)=1,"0"&AH113,AH113)&"/"&IF(LEN(AI113)=1,"0"&AI113,AI113)&"/"&AJ113,"") ->  | AL113: =TEXT(Base_Inversiones[[#This Row],[Fecha Corrob]],"DD/MM/AAAA") ->  | AM113: =IF(Base_Inversiones[[#This Row],[Graficar Día]]="ok",VLOOKUP(Base_Inversiones[[#This Row],[Texto fecha]],Administración!$B$2:$C$1432,2,0),"") ->  | AN113: =IF(Base_Inversiones[[#This Row],[Qty]]>0,"ok","no") -> no | AO113: =IF(Base_Inversiones[[#This Row],[Graficar Día]]="ok",$D$1,"") ->  | AP113: =IF(Base_Inversiones[[#This Row],[Graficar Día]]="ok",Base_Inversiones[[#This Row],[Budget Inicial/ Aportación]]+Base_Inversiones[[#This Row],[Saldo]],"") ->  | AS113: =SUM(Base_Inversiones[G/P Neta]) -> 108 | AT113: =IF(Base_Inversiones[[#This Row],[Graficar Día]]="ok",$D$1,"") ->  | AU113: =IF(Base_Inversiones[[#This Row],[Graficar Día]]="ok",WEEKNUM(Base_Inversiones[[#This Row],[Fecha Compra]]),"") ->  | AV113: =IF(Base_Inversiones[[#This Row],[Graficar Día]]="ok",WEEKNUM(DATE(YEAR(Base_Inversiones[[#This Row],[Fecha Compra]]),MONTH(Base_Inversiones[[#This Row],[Fecha Compra]]),1))-1,"") ->  | AW113: =IF(Base_Inversiones[[#This Row],[Graficar Día]]="ok",Base_Inversiones[[#This Row],[Num Semana]]-Base_Inversiones[[#This Row],[Num Sem Extrae]],"") ->  | AX113: =IF(Base_Inversiones[[#This Row],[Graficar Día]]="ok",IFERROR(VLOOKUP(Base_Inversiones[[#This Row],[Mes Corrob]],Administración!$L$4:$M$15,2,0),""),"") -> 
H114: =IF(Base_Inversiones[[#This Row],[Graficar Día]]="ok",F114*G114,"") ->  | R114: =IF(Base_Inversiones[[#This Row],[Graficar Día]]="ok",P114-F114,"") ->  | S114: =IFERROR(R114/F114,"") ->  | U114: =IF(Base_Inversiones[[#This Row],[Graficar Día]]="ok",IF(P114="",0,R114*G114-IF(B114="C",(10+0.15*2*G114/100),(0.5*2*G114/100))),"") ->  | X114: =IF(Base_Inversiones[[#This Row],[Graficar Día]]="ok",IF(P114="",0,U114-V114-W114),"") ->  | AC114: =IF(Base_Inversiones[[#This Row],[Graficar Día]]="ok",SUM(AB$5:AB114),"") ->  | AD114: =IF(Base_Inversiones[[#This Row],[Graficar Día]]="ok",(IF(S114>0,"G","P")),"") ->  | AE114: =LEFT(A114,10) ->  | AH114: =IF(Base_Inversiones[[#This Row],[Graficar Día]]="ok",DAY(A114),"") ->  | AI114: =IF(Base_Inversiones[[#This Row],[Graficar Día]]="ok",MONTH(A114),"") ->  | AJ114: =IF(Base_Inversiones[[#This Row],[Graficar Día]]="ok",YEAR(A114),"") ->  | AK114: =IF(Base_Inversiones[[#This Row],[Graficar Día]]="ok",IF(LEN(AH114)=1,"0"&AH114,AH114)&"/"&IF(LEN(AI114)=1,"0"&AI114,AI114)&"/"&AJ114,"") ->  | AL114: =TEXT(Base_Inversiones[[#This Row],[Fecha Corrob]],"DD/MM/AAAA") ->  | AM114: =IF(Base_Inversiones[[#This Row],[Graficar Día]]="ok",VLOOKUP(Base_Inversiones[[#This Row],[Texto fecha]],Administración!$B$2:$C$1432,2,0),"") ->  | AN114: =IF(Base_Inversiones[[#This Row],[Qty]]>0,"ok","no") -> no | AO114: =IF(Base_Inversiones[[#This Row],[Graficar Día]]="ok",$D$1,"") ->  | AP114: =IF(Base_Inversiones[[#This Row],[Graficar Día]]="ok",Base_Inversiones[[#This Row],[Budget Inicial/ Aportación]]+Base_Inversiones[[#This Row],[Saldo]],"") ->  | AS114: =SUM(Base_Inversiones[G/P Neta]) -> 108 | AT114: =IF(Base_Inversiones[[#This Row],[Graficar Día]]="ok",$D$1,"") ->  | AU114: =IF(Base_Inversiones[[#This Row],[Graficar Día]]="ok",WEEKNUM(Base_Inversiones[[#This Row],[Fecha Compra]]),"") ->  | AV114: =IF(Base_Inversiones[[#This Row],[Graficar Día]]="ok",WEEKNUM(DATE(YEAR(Base_Inversiones[[#This Row],[Fecha Compra]]),MONTH(Base_Inversiones[[#This Row],[Fecha Compra]]),1))-1,"") ->  | AW114: =IF(Base_Inversiones[[#This Row],[Graficar Día]]="ok",Base_Inversiones[[#This Row],[Num Semana]]-Base_Inversiones[[#This Row],[Num Sem Extrae]],"") ->  | AX114: =IF(Base_Inversiones[[#This Row],[Graficar Día]]="ok",IFERROR(VLOOKUP(Base_Inversiones[[#This Row],[Mes Corrob]],Administración!$L$4:$M$15,2,0),""),"") -> 
H115: =IF(Base_Inversiones[[#This Row],[Graficar Día]]="ok",F115*G115,"") ->  | R115: =IF(Base_Inversiones[[#This Row],[Graficar Día]]="ok",P115-F115,"") ->  | U115: =IF(Base_Inversiones[[#This Row],[Graficar Día]]="ok",IF(P115="",0,R115*G115-IF(B115="C",(10+0.15*2*G115/100),(0.5*2*G115/100))),"") ->  | X115: =IF(Base_Inversiones[[#This Row],[Graficar Día]]="ok",IF(P115="",0,U115-V115-W115),"") ->  | AC115: =IF(Base_Inversiones[[#This Row],[Graficar Día]]="ok",SUM(AB$5:AB115),"") ->  | AD115: =IF(Base_Inversiones[[#This Row],[Graficar Día]]="ok",(IF(S115>0,"G","P")),"") ->  | AH115: =IF(Base_Inversiones[[#This Row],[Graficar Día]]="ok",DAY(A115),"") ->  | AI115: =IF(Base_Inversiones[[#This Row],[Graficar Día]]="ok",MONTH(A115),"") ->  | AJ115: =IF(Base_Inversiones[[#This Row],[Graficar Día]]="ok",YEAR(A115),"") ->  | AK115: =IF(Base_Inversiones[[#This Row],[Graficar Día]]="ok",IF(LEN(AH115)=1,"0"&AH115,AH115)&"/"&IF(LEN(AI115)=1,"0"&AI115,AI115)&"/"&AJ115,"") ->  | AL115: =TEXT(Base_Inversiones[[#This Row],[Fecha Corrob]],"DD/MM/AAAA") ->  | AM115: =IF(Base_Inversiones[[#This Row],[Graficar Día]]="ok",VLOOKUP(Base_Inversiones[[#This Row],[Texto fecha]],Administración!$B$2:$C$1432,2,0),"") ->  | AN115: =IF(Base_Inversiones[[#This Row],[Qty]]>0,"ok","no") -> no | AO115: =IF(Base_Inversiones[[#This Row],[Graficar Día]]="ok",$D$1,"") ->  | AP115: =IF(Base_Inversiones[[#This Row],[Graficar Día]]="ok",Base_Inversiones[[#This Row],[Budget Inicial/ Aportación]]+Base_Inversiones[[#This Row],[Saldo]],"") ->  | AS115: =SUM(Base_Inversiones[G/P Neta]) -> 108 | AT115: =IF(Base_Inversiones[[#This Row],[Graficar Día]]="ok",$D$1,"") ->  | AU115: =IF(Base_Inversiones[[#This Row],[Graficar Día]]="ok",WEEKNUM(Base_Inversiones[[#This Row],[Fecha Compra]]),"") ->  | AV115: =IF(Base_Inversiones[[#This Row],[Graficar Día]]="ok",WEEKNUM(DATE(YEAR(Base_Inversiones[[#This Row],[Fecha Compra]]),MONTH(Base_Inversiones[[#This Row],[Fecha Compra]]),1))-1,"") ->  | AW115: =IF(Base_Inversiones[[#This Row],[Graficar Día]]="ok",Base_Inversiones[[#This Row],[Num Semana]]-Base_Inversiones[[#This Row],[Num Sem Extrae]],"") ->  | AX115: =IF(Base_Inversiones[[#This Row],[Graficar Día]]="ok",IFERROR(VLOOKUP(Base_Inversiones[[#This Row],[Mes Corrob]],Administración!$L$4:$M$15,2,0),""),"") -> 
H116: =IF(Base_Inversiones[[#This Row],[Graficar Día]]="ok",F116*G116,"") ->  | R116: =IF(Base_Inversiones[[#This Row],[Graficar Día]]="ok",P116-F116,"") ->  | U116: =IF(Base_Inversiones[[#This Row],[Graficar Día]]="ok",IF(P116="",0,R116*G116-IF(B116="C",(10+0.15*2*G116/100),(0.5*2*G116/100))),"") ->  | X116: =IF(Base_Inversiones[[#This Row],[Graficar Día]]="ok",IF(P116="",0,U116-V116-W116),"") ->  | AC116: =IF(Base_Inversiones[[#This Row],[Graficar Día]]="ok",SUM(AB$5:AB116),"") ->  | AD116: =IF(Base_Inversiones[[#This Row],[Graficar Día]]="ok",(IF(S116>0,"G","P")),"") ->  | AH116: =IF(Base_Inversiones[[#This Row],[Graficar Día]]="ok",DAY(A116),"") ->  | AI116: =IF(Base_Inversiones[[#This Row],[Graficar Día]]="ok",MONTH(A116),"") ->  | AJ116: =IF(Base_Inversiones[[#This Row],[Graficar Día]]="ok",YEAR(A116),"") ->  | AK116: =IF(Base_Inversiones[[#This Row],[Graficar Día]]="ok",IF(LEN(AH116)=1,"0"&AH116,AH116)&"/"&IF(LEN(AI116)=1,"0"&AI116,AI116)&"/"&AJ116,"") ->  | AL116: =TEXT(Base_Inversiones[[#This Row],[Fecha Corrob]],"DD/MM/AAAA") ->  | AM116: =IF(Base_Inversiones[[#This Row],[Graficar Día]]="ok",VLOOKUP(Base_Inversiones[[#This Row],[Texto fecha]],Administración!$B$2:$C$1432,2,0),"") ->  | AN116: =IF(Base_Inversiones[[#This Row],[Qty]]>0,"ok","no") -> no | AO116: =IF(Base_Inversiones[[#This Row],[Graficar Día]]="ok",$D$1,"") ->  | AP116: =IF(Base_Inversiones[[#This Row],[Graficar Día]]="ok",Base_Inversiones[[#This Row],[Budget Inicial/ Aportación]]+Base_Inversiones[[#This Row],[Saldo]],"") ->  | AS116: =SUM(Base_Inversiones[G/P Neta]) -> 108 | AT116: =IF(Base_Inversiones[[#This Row],[Graficar Día]]="ok",$D$1,"") ->  | AU116: =IF(Base_Inversiones[[#This Row],[Graficar Día]]="ok",WEEKNUM(Base_Inversiones[[#This Row],[Fecha Compra]]),"") ->  | AV116: =IF(Base_Inversiones[[#This Row],[Graficar Día]]="ok",WEEKNUM(DATE(YEAR(Base_Inversiones[[#This Row],[Fecha Compra]]),MONTH(Base_Inversiones[[#This Row],[Fecha Compra]]),1))-1,"") ->  | AW116: =IF(Base_Inversiones[[#This Row],[Graficar Día]]="ok",Base_Inversiones[[#This Row],[Num Semana]]-Base_Inversiones[[#This Row],[Num Sem Extrae]],"") ->  | AX116: =IF(Base_Inversiones[[#This Row],[Graficar Día]]="ok",IFERROR(VLOOKUP(Base_Inversiones[[#This Row],[Mes Corrob]],Administración!$L$4:$M$15,2,0),""),"") -> 
H117: =IF(Base_Inversiones[[#This Row],[Graficar Día]]="ok",F117*G117,"") ->  | R117: =IF(Base_Inversiones[[#This Row],[Graficar Día]]="ok",P117-F117,"") ->  | U117: =IF(Base_Inversiones[[#This Row],[Graficar Día]]="ok",IF(P117="",0,R117*G117-IF(B117="C",(10+0.15*2*G117/100),(0.5*2*G117/100))),"") ->  | X117: =IF(Base_Inversiones[[#This Row],[Graficar Día]]="ok",IF(P117="",0,U117-V117-W117),"") ->  | AC117: =IF(Base_Inversiones[[#This Row],[Graficar Día]]="ok",SUM(AB$5:AB117),"") ->  | AD117: =IF(Base_Inversiones[[#This Row],[Graficar Día]]="ok",(IF(S117>0,"G","P")),"") ->  | AH117: =IF(Base_Inversiones[[#This Row],[Graficar Día]]="ok",DAY(A117),"") ->  | AI117: =IF(Base_Inversiones[[#This Row],[Graficar Día]]="ok",MONTH(A117),"") ->  | AJ117: =IF(Base_Inversiones[[#This Row],[Graficar Día]]="ok",YEAR(A117),"") ->  | AK117: =IF(Base_Inversiones[[#This Row],[Graficar Día]]="ok",IF(LEN(AH117)=1,"0"&AH117,AH117)&"/"&IF(LEN(AI117)=1,"0"&AI117,AI117)&"/"&AJ117,"") ->  | AL117: =TEXT(Base_Inversiones[[#This Row],[Fecha Corrob]],"DD/MM/AAAA") ->  | AM117: =IF(Base_Inversiones[[#This Row],[Graficar Día]]="ok",VLOOKUP(Base_Inversiones[[#This Row],[Texto fecha]],Administración!$B$2:$C$1432,2,0),"") ->  | AN117: =IF(Base_Inversiones[[#This Row],[Qty]]>0,"ok","no") -> no | AO117: =IF(Base_Inversiones[[#This Row],[Graficar Día]]="ok",$D$1,"") ->  | AP117: =IF(Base_Inversiones[[#This Row],[Graficar Día]]="ok",Base_Inversiones[[#This Row],[Budget Inicial/ Aportación]]+Base_Inversiones[[#This Row],[Saldo]],"") ->  | AS117: =SUM(Base_Inversiones[G/P Neta]) -> 108 | AT117: =IF(Base_Inversiones[[#This Row],[Graficar Día]]="ok",$D$1,"") ->  | AU117: =IF(Base_Inversiones[[#This Row],[Graficar Día]]="ok",WEEKNUM(Base_Inversiones[[#This Row],[Fecha Compra]]),"") ->  | AV117: =IF(Base_Inversiones[[#This Row],[Graficar Día]]="ok",WEEKNUM(DATE(YEAR(Base_Inversiones[[#This Row],[Fecha Compra]]),MONTH(Base_Inversiones[[#This Row],[Fecha Compra]]),1))-1,"") ->  | AW117: =IF(Base_Inversiones[[#This Row],[Graficar Día]]="ok",Base_Inversiones[[#This Row],[Num Semana]]-Base_Inversiones[[#This Row],[Num Sem Extrae]],"") ->  | AX117: =IF(Base_Inversiones[[#This Row],[Graficar Día]]="ok",IFERROR(VLOOKUP(Base_Inversiones[[#This Row],[Mes Corrob]],Administración!$L$4:$M$15,2,0),""),"") -> 
H118: =IF(Base_Inversiones[[#This Row],[Graficar Día]]="ok",F118*G118,"") ->  | R118: =IF(Base_Inversiones[[#This Row],[Graficar Día]]="ok",P118-F118,"") ->  | U118: =IF(Base_Inversiones[[#This Row],[Graficar Día]]="ok",IF(P118="",0,R118*G118-IF(B118="C",(10+0.15*2*G118/100),(0.5*2*G118/100))),"") ->  | X118: =IF(Base_Inversiones[[#This Row],[Graficar Día]]="ok",IF(P118="",0,U118-V118-W118),"") ->  | AC118: =IF(Base_Inversiones[[#This Row],[Graficar Día]]="ok",SUM(AB$5:AB118),"") ->  | AD118: =IF(Base_Inversiones[[#This Row],[Graficar Día]]="ok",(IF(S118>0,"G","P")),"") ->  | AH118: =IF(Base_Inversiones[[#This Row],[Graficar Día]]="ok",DAY(A118),"") ->  | AI118: =IF(Base_Inversiones[[#This Row],[Graficar Día]]="ok",MONTH(A118),"") ->  | AJ118: =IF(Base_Inversiones[[#This Row],[Graficar Día]]="ok",YEAR(A118),"") ->  | AK118: =IF(Base_Inversiones[[#This Row],[Graficar Día]]="ok",IF(LEN(AH118)=1,"0"&AH118,AH118)&"/"&IF(LEN(AI118)=1,"0"&AI118,AI118)&"/"&AJ118,"") ->  | AL118: =TEXT(Base_Inversiones[[#This Row],[Fecha Corrob]],"DD/MM/AAAA") ->  | AM118: =IF(Base_Inversiones[[#This Row],[Graficar Día]]="ok",VLOOKUP(Base_Inversiones[[#This Row],[Texto fecha]],Administración!$B$2:$C$1432,2,0),"") ->  | AN118: =IF(Base_Inversiones[[#This Row],[Qty]]>0,"ok","no") -> no | AO118: =IF(Base_Inversiones[[#This Row],[Graficar Día]]="ok",$D$1,"") ->  | AP118: =IF(Base_Inversiones[[#This Row],[Graficar Día]]="ok",Base_Inversiones[[#This Row],[Budget Inicial/ Aportación]]+Base_Inversiones[[#This Row],[Saldo]],"") ->  | AS118: =SUM(Base_Inversiones[G/P Neta]) -> 108 | AT118: =IF(Base_Inversiones[[#This Row],[Graficar Día]]="ok",$D$1,"") ->  | AU118: =IF(Base_Inversiones[[#This Row],[Graficar Día]]="ok",WEEKNUM(Base_Inversiones[[#This Row],[Fecha Compra]]),"") ->  | AV118: =IF(Base_Inversiones[[#This Row],[Graficar Día]]="ok",WEEKNUM(DATE(YEAR(Base_Inversiones[[#This Row],[Fecha Compra]]),MONTH(Base_Inversiones[[#This Row],[Fecha Compra]]),1))-1,"") ->  | AW118: =IF(Base_Inversiones[[#This Row],[Graficar Día]]="ok",Base_Inversiones[[#This Row],[Num Semana]]-Base_Inversiones[[#This Row],[Num Sem Extrae]],"") ->  | AX118: =IF(Base_Inversiones[[#This Row],[Graficar Día]]="ok",IFERROR(VLOOKUP(Base_Inversiones[[#This Row],[Mes Corrob]],Administración!$L$4:$M$15,2,0),""),"") -> 
H119: =IF(Base_Inversiones[[#This Row],[Graficar Día]]="ok",F119*G119,"") ->  | R119: =IF(Base_Inversiones[[#This Row],[Graficar Día]]="ok",P119-F119,"") ->  | U119: =IF(Base_Inversiones[[#This Row],[Graficar Día]]="ok",IF(P119="",0,R119*G119-IF(B119="C",(10+0.15*2*G119/100),(0.5*2*G119/100))),"") ->  | X119: =IF(Base_Inversiones[[#This Row],[Graficar Día]]="ok",IF(P119="",0,U119-V119-W119),"") ->  | AC119: =IF(Base_Inversiones[[#This Row],[Graficar Día]]="ok",SUM(AB$5:AB119),"") ->  | AD119: =IF(Base_Inversiones[[#This Row],[Graficar Día]]="ok",(IF(S119>0,"G","P")),"") ->  | AH119: =IF(Base_Inversiones[[#This Row],[Graficar Día]]="ok",DAY(A119),"") ->  | AI119: =IF(Base_Inversiones[[#This Row],[Graficar Día]]="ok",MONTH(A119),"") ->  | AJ119: =IF(Base_Inversiones[[#This Row],[Graficar Día]]="ok",YEAR(A119),"") ->  | AK119: =IF(Base_Inversiones[[#This Row],[Graficar Día]]="ok",IF(LEN(AH119)=1,"0"&AH119,AH119)&"/"&IF(LEN(AI119)=1,"0"&AI119,AI119)&"/"&AJ119,"") ->  | AL119: =TEXT(Base_Inversiones[[#This Row],[Fecha Corrob]],"DD/MM/AAAA") ->  | AM119: =IF(Base_Inversiones[[#This Row],[Graficar Día]]="ok",VLOOKUP(Base_Inversiones[[#This Row],[Texto fecha]],Administración!$B$2:$C$1432,2,0),"") ->  | AN119: =IF(Base_Inversiones[[#This Row],[Qty]]>0,"ok","no") -> no | AO119: =IF(Base_Inversiones[[#This Row],[Graficar Día]]="ok",$D$1,"") ->  | AP119: =IF(Base_Inversiones[[#This Row],[Graficar Día]]="ok",Base_Inversiones[[#This Row],[Budget Inicial/ Aportación]]+Base_Inversiones[[#This Row],[Saldo]],"") ->  | AS119: =SUM(Base_Inversiones[G/P Neta]) -> 108 | AT119: =IF(Base_Inversiones[[#This Row],[Graficar Día]]="ok",$D$1,"") ->  | AU119: =IF(Base_Inversiones[[#This Row],[Graficar Día]]="ok",WEEKNUM(Base_Inversiones[[#This Row],[Fecha Compra]]),"") ->  | AV119: =IF(Base_Inversiones[[#This Row],[Graficar Día]]="ok",WEEKNUM(DATE(YEAR(Base_Inversiones[[#This Row],[Fecha Compra]]),MONTH(Base_Inversiones[[#This Row],[Fecha Compra]]),1))-1,"") ->  | AW119: =IF(Base_Inversiones[[#This Row],[Graficar Día]]="ok",Base_Inversiones[[#This Row],[Num Semana]]-Base_Inversiones[[#This Row],[Num Sem Extrae]],"") ->  | AX119: =IF(Base_Inversiones[[#This Row],[Graficar Día]]="ok",IFERROR(VLOOKUP(Base_Inversiones[[#This Row],[Mes Corrob]],Administración!$L$4:$M$15,2,0),""),"") -> 
H120: =IF(Base_Inversiones[[#This Row],[Graficar Día]]="ok",F120*G120,"") ->  | R120: =IF(Base_Inversiones[[#This Row],[Graficar Día]]="ok",P120-F120,"") ->  | U120: =IF(Base_Inversiones[[#This Row],[Graficar Día]]="ok",IF(P120="",0,R120*G120-IF(B120="C",(10+0.15*2*G120/100),(0.5*2*G120/100))),"") ->  | X120: =IF(Base_Inversiones[[#This Row],[Graficar Día]]="ok",IF(P120="",0,U120-V120-W120),"") ->  | AC120: =IF(Base_Inversiones[[#This Row],[Graficar Día]]="ok",SUM(AB$5:AB120),"") ->  | AD120: =IF(Base_Inversiones[[#This Row],[Graficar Día]]="ok",(IF(S120>0,"G","P")),"") ->  | AH120: =IF(Base_Inversiones[[#This Row],[Graficar Día]]="ok",DAY(A120),"") ->  | AI120: =IF(Base_Inversiones[[#This Row],[Graficar Día]]="ok",MONTH(A120),"") ->  | AJ120: =IF(Base_Inversiones[[#This Row],[Graficar Día]]="ok",YEAR(A120),"") ->  | AK120: =IF(Base_Inversiones[[#This Row],[Graficar Día]]="ok",IF(LEN(AH120)=1,"0"&AH120,AH120)&"/"&IF(LEN(AI120)=1,"0"&AI120,AI120)&"/"&AJ120,"") ->  | AL120: =TEXT(Base_Inversiones[[#This Row],[Fecha Corrob]],"DD/MM/AAAA") ->  | AM120: =IF(Base_Inversiones[[#This Row],[Graficar Día]]="ok",VLOOKUP(Base_Inversiones[[#This Row],[Texto fecha]],Administración!$B$2:$C$1432,2,0),"") ->  | AN120: =IF(Base_Inversiones[[#This Row],[Qty]]>0,"ok","no") -> no | AO120: =IF(Base_Inversiones[[#This Row],[Graficar Día]]="ok",$D$1,"") ->  | AP120: =IF(Base_Inversiones[[#This Row],[Graficar Día]]="ok",Base_Inversiones[[#This Row],[Budget Inicial/ Aportación]]+Base_Inversiones[[#This Row],[Saldo]],"") ->  | AS120: =SUM(Base_Inversiones[G/P Neta]) -> 108 | AT120: =IF(Base_Inversiones[[#This Row],[Graficar Día]]="ok",$D$1,"") ->  | AU120: =IF(Base_Inversiones[[#This Row],[Graficar Día]]="ok",WEEKNUM(Base_Inversiones[[#This Row],[Fecha Compra]]),"") ->  | AV120: =IF(Base_Inversiones[[#This Row],[Graficar Día]]="ok",WEEKNUM(DATE(YEAR(Base_Inversiones[[#This Row],[Fecha Compra]]),MONTH(Base_Inversiones[[#This Row],[Fecha Compra]]),1))-1,"") ->  | AW120: =IF(Base_Inversiones[[#This Row],[Graficar Día]]="ok",Base_Inversiones[[#This Row],[Num Semana]]-Base_Inversiones[[#This Row],[Num Sem Extrae]],"") ->  | AX120: =IF(Base_Inversiones[[#This Row],[Graficar Día]]="ok",IFERROR(VLOOKUP(Base_Inversiones[[#This Row],[Mes Corrob]],Administración!$L$4:$M$15,2,0),""),"") -> 
H121: =IF(Base_Inversiones[[#This Row],[Graficar Día]]="ok",F121*G121,"") ->  | R121: =IF(Base_Inversiones[[#This Row],[Graficar Día]]="ok",P121-F121,"") ->  | U121: =IF(Base_Inversiones[[#This Row],[Graficar Día]]="ok",IF(P121="",0,R121*G121-IF(B121="C",(10+0.15*2*G121/100),(0.5*2*G121/100))),"") ->  | X121: =IF(Base_Inversiones[[#This Row],[Graficar Día]]="ok",IF(P121="",0,U121-V121-W121),"") ->  | AC121: =IF(Base_Inversiones[[#This Row],[Graficar Día]]="ok",SUM(AB$5:AB121),"") ->  | AD121: =IF(Base_Inversiones[[#This Row],[Graficar Día]]="ok",(IF(S121>0,"G","P")),"") ->  | AH121: =IF(Base_Inversiones[[#This Row],[Graficar Día]]="ok",DAY(A121),"") ->  | AI121: =IF(Base_Inversiones[[#This Row],[Graficar Día]]="ok",MONTH(A121),"") ->  | AJ121: =IF(Base_Inversiones[[#This Row],[Graficar Día]]="ok",YEAR(A121),"") ->  | AK121: =IF(Base_Inversiones[[#This Row],[Graficar Día]]="ok",IF(LEN(AH121)=1,"0"&AH121,AH121)&"/"&IF(LEN(AI121)=1,"0"&AI121,AI121)&"/"&AJ121,"") ->  | AL121: =TEXT(Base_Inversiones[[#This Row],[Fecha Corrob]],"DD/MM/AAAA") ->  | AM121: =IF(Base_Inversiones[[#This Row],[Graficar Día]]="ok",VLOOKUP(Base_Inversiones[[#This Row],[Texto fecha]],Administración!$B$2:$C$1432,2,0),"") ->  | AN121: =IF(Base_Inversiones[[#This Row],[Qty]]>0,"ok","no") -> no | AO121: =IF(Base_Inversiones[[#This Row],[Graficar Día]]="ok",$D$1,"") ->  | AP121: =IF(Base_Inversiones[[#This Row],[Graficar Día]]="ok",Base_Inversiones[[#This Row],[Budget Inicial/ Aportación]]+Base_Inversiones[[#This Row],[Saldo]],"") ->  | AS121: =SUM(Base_Inversiones[G/P Neta]) -> 108 | AT121: =IF(Base_Inversiones[[#This Row],[Graficar Día]]="ok",$D$1,"") ->  | AU121: =IF(Base_Inversiones[[#This Row],[Graficar Día]]="ok",WEEKNUM(Base_Inversiones[[#This Row],[Fecha Compra]]),"") ->  | AV121: =IF(Base_Inversiones[[#This Row],[Graficar Día]]="ok",WEEKNUM(DATE(YEAR(Base_Inversiones[[#This Row],[Fecha Compra]]),MONTH(Base_Inversiones[[#This Row],[Fecha Compra]]),1))-1,"") ->  | AW121: =IF(Base_Inversiones[[#This Row],[Graficar Día]]="ok",Base_Inversiones[[#This Row],[Num Semana]]-Base_Inversiones[[#This Row],[Num Sem Extrae]],"") ->  | AX121: =IF(Base_Inversiones[[#This Row],[Graficar Día]]="ok",IFERROR(VLOOKUP(Base_Inversiones[[#This Row],[Mes Corrob]],Administración!$L$4:$M$15,2,0),""),"") -> 
H122: =IF(Base_Inversiones[[#This Row],[Graficar Día]]="ok",F122*G122,"") ->  | R122: =IF(Base_Inversiones[[#This Row],[Graficar Día]]="ok",P122-F122,"") ->  | U122: =IF(Base_Inversiones[[#This Row],[Graficar Día]]="ok",IF(P122="",0,R122*G122-IF(B122="C",(10+0.15*2*G122/100),(0.5*2*G122/100))),"") ->  | X122: =IF(Base_Inversiones[[#This Row],[Graficar Día]]="ok",IF(P122="",0,U122-V122-W122),"") ->  | AC122: =IF(Base_Inversiones[[#This Row],[Graficar Día]]="ok",SUM(AB$5:AB122),"") ->  | AD122: =IF(Base_Inversiones[[#This Row],[Graficar Día]]="ok",(IF(S122>0,"G","P")),"") ->  | AH122: =IF(Base_Inversiones[[#This Row],[Graficar Día]]="ok",DAY(A122),"") ->  | AI122: =IF(Base_Inversiones[[#This Row],[Graficar Día]]="ok",MONTH(A122),"") ->  | AJ122: =IF(Base_Inversiones[[#This Row],[Graficar Día]]="ok",YEAR(A122),"") ->  | AK122: =IF(Base_Inversiones[[#This Row],[Graficar Día]]="ok",IF(LEN(AH122)=1,"0"&AH122,AH122)&"/"&IF(LEN(AI122)=1,"0"&AI122,AI122)&"/"&AJ122,"") ->  | AL122: =TEXT(Base_Inversiones[[#This Row],[Fecha Corrob]],"DD/MM/AAAA") ->  | AM122: =IF(Base_Inversiones[[#This Row],[Graficar Día]]="ok",VLOOKUP(Base_Inversiones[[#This Row],[Texto fecha]],Administración!$B$2:$C$1432,2,0),"") ->  | AN122: =IF(Base_Inversiones[[#This Row],[Qty]]>0,"ok","no") -> no | AO122: =IF(Base_Inversiones[[#This Row],[Graficar Día]]="ok",$D$1,"") ->  | AP122: =IF(Base_Inversiones[[#This Row],[Graficar Día]]="ok",Base_Inversiones[[#This Row],[Budget Inicial/ Aportación]]+Base_Inversiones[[#This Row],[Saldo]],"") ->  | AS122: =SUM(Base_Inversiones[G/P Neta]) -> 108 | AT122: =IF(Base_Inversiones[[#This Row],[Graficar Día]]="ok",$D$1,"") ->  | AU122: =IF(Base_Inversiones[[#This Row],[Graficar Día]]="ok",WEEKNUM(Base_Inversiones[[#This Row],[Fecha Compra]]),"") ->  | AV122: =IF(Base_Inversiones[[#This Row],[Graficar Día]]="ok",WEEKNUM(DATE(YEAR(Base_Inversiones[[#This Row],[Fecha Compra]]),MONTH(Base_Inversiones[[#This Row],[Fecha Compra]]),1))-1,"") ->  | AW122: =IF(Base_Inversiones[[#This Row],[Graficar Día]]="ok",Base_Inversiones[[#This Row],[Num Semana]]-Base_Inversiones[[#This Row],[Num Sem Extrae]],"") ->  | AX122: =IF(Base_Inversiones[[#This Row],[Graficar Día]]="ok",IFERROR(VLOOKUP(Base_Inversiones[[#This Row],[Mes Corrob]],Administración!$L$4:$M$15,2,0),""),"") -> 
H123: =IF(Base_Inversiones[[#This Row],[Graficar Día]]="ok",F123*G123,"") ->  | R123: =IF(Base_Inversiones[[#This Row],[Graficar Día]]="ok",P123-F123,"") ->  | U123: =IF(Base_Inversiones[[#This Row],[Graficar Día]]="ok",IF(P123="",0,R123*G123-IF(B123="C",(10+0.15*2*G123/100),(0.5*2*G123/100))),"") ->  | X123: =IF(Base_Inversiones[[#This Row],[Graficar Día]]="ok",IF(P123="",0,U123-V123-W123),"") ->  | AC123: =IF(Base_Inversiones[[#This Row],[Graficar Día]]="ok",SUM(AB$5:AB123),"") ->  | AD123: =IF(Base_Inversiones[[#This Row],[Graficar Día]]="ok",(IF(S123>0,"G","P")),"") ->  | AH123: =IF(Base_Inversiones[[#This Row],[Graficar Día]]="ok",DAY(A123),"") ->  | AI123: =IF(Base_Inversiones[[#This Row],[Graficar Día]]="ok",MONTH(A123),"") ->  | AJ123: =IF(Base_Inversiones[[#This Row],[Graficar Día]]="ok",YEAR(A123),"") ->  | AK123: =IF(Base_Inversiones[[#This Row],[Graficar Día]]="ok",IF(LEN(AH123)=1,"0"&AH123,AH123)&"/"&IF(LEN(AI123)=1,"0"&AI123,AI123)&"/"&AJ123,"") ->  | AL123: =TEXT(Base_Inversiones[[#This Row],[Fecha Corrob]],"DD/MM/AAAA") ->  | AM123: =IF(Base_Inversiones[[#This Row],[Graficar Día]]="ok",VLOOKUP(Base_Inversiones[[#This Row],[Texto fecha]],Administración!$B$2:$C$1432,2,0),"") ->  | AN123: =IF(Base_Inversiones[[#This Row],[Qty]]>0,"ok","no") -> no | AO123: =IF(Base_Inversiones[[#This Row],[Graficar Día]]="ok",$D$1,"") ->  | AP123: =IF(Base_Inversiones[[#This Row],[Graficar Día]]="ok",Base_Inversiones[[#This Row],[Budget Inicial/ Aportación]]+Base_Inversiones[[#This Row],[Saldo]],"") ->  | AS123: =SUM(Base_Inversiones[G/P Neta]) -> 108 | AT123: =IF(Base_Inversiones[[#This Row],[Graficar Día]]="ok",$D$1,"") ->  | AU123: =IF(Base_Inversiones[[#This Row],[Graficar Día]]="ok",WEEKNUM(Base_Inversiones[[#This Row],[Fecha Compra]]),"") ->  | AV123: =IF(Base_Inversiones[[#This Row],[Graficar Día]]="ok",WEEKNUM(DATE(YEAR(Base_Inversiones[[#This Row],[Fecha Compra]]),MONTH(Base_Inversiones[[#This Row],[Fecha Compra]]),1))-1,"") ->  | AW123: =IF(Base_Inversiones[[#This Row],[Graficar Día]]="ok",Base_Inversiones[[#This Row],[Num Semana]]-Base_Inversiones[[#This Row],[Num Sem Extrae]],"") ->  | AX123: =IF(Base_Inversiones[[#This Row],[Graficar Día]]="ok",IFERROR(VLOOKUP(Base_Inversiones[[#This Row],[Mes Corrob]],Administración!$L$4:$M$15,2,0),""),"") -> 
H124: =IF(Base_Inversiones[[#This Row],[Graficar Día]]="ok",F124*G124,"") ->  | R124: =IF(Base_Inversiones[[#This Row],[Graficar Día]]="ok",P124-F124,"") ->  | U124: =IF(Base_Inversiones[[#This Row],[Graficar Día]]="ok",IF(P124="",0,R124*G124-IF(B124="C",(10+0.15*2*G124/100),(0.5*2*G124/100))),"") ->  | X124: =IF(Base_Inversiones[[#This Row],[Graficar Día]]="ok",IF(P124="",0,U124-V124-W124),"") ->  | AC124: =IF(Base_Inversiones[[#This Row],[Graficar Día]]="ok",SUM(AB$5:AB124),"") ->  | AD124: =IF(Base_Inversiones[[#This Row],[Graficar Día]]="ok",(IF(S124>0,"G","P")),"") ->  | AH124: =IF(Base_Inversiones[[#This Row],[Graficar Día]]="ok",DAY(A124),"") ->  | AI124: =IF(Base_Inversiones[[#This Row],[Graficar Día]]="ok",MONTH(A124),"") ->  | AJ124: =IF(Base_Inversiones[[#This Row],[Graficar Día]]="ok",YEAR(A124),"") ->  | AK124: =IF(Base_Inversiones[[#This Row],[Graficar Día]]="ok",IF(LEN(AH124)=1,"0"&AH124,AH124)&"/"&IF(LEN(AI124)=1,"0"&AI124,AI124)&"/"&AJ124,"") ->  | AL124: =TEXT(Base_Inversiones[[#This Row],[Fecha Corrob]],"DD/MM/AAAA") ->  | AM124: =IF(Base_Inversiones[[#This Row],[Graficar Día]]="ok",VLOOKUP(Base_Inversiones[[#This Row],[Texto fecha]],Administración!$B$2:$C$1432,2,0),"") ->  | AN124: =IF(Base_Inversiones[[#This Row],[Qty]]>0,"ok","no") -> no | AO124: =IF(Base_Inversiones[[#This Row],[Graficar Día]]="ok",$D$1,"") ->  | AP124: =IF(Base_Inversiones[[#This Row],[Graficar Día]]="ok",Base_Inversiones[[#This Row],[Budget Inicial/ Aportación]]+Base_Inversiones[[#This Row],[Saldo]],"") ->  | AS124: =SUM(Base_Inversiones[G/P Neta]) -> 108 | AT124: =IF(Base_Inversiones[[#This Row],[Graficar Día]]="ok",$D$1,"") ->  | AU124: =IF(Base_Inversiones[[#This Row],[Graficar Día]]="ok",WEEKNUM(Base_Inversiones[[#This Row],[Fecha Compra]]),"") ->  | AV124: =IF(Base_Inversiones[[#This Row],[Graficar Día]]="ok",WEEKNUM(DATE(YEAR(Base_Inversiones[[#This Row],[Fecha Compra]]),MONTH(Base_Inversiones[[#This Row],[Fecha Compra]]),1))-1,"") ->  | AW124: =IF(Base_Inversiones[[#This Row],[Graficar Día]]="ok",Base_Inversiones[[#This Row],[Num Semana]]-Base_Inversiones[[#This Row],[Num Sem Extrae]],"") ->  | AX124: =IF(Base_Inversiones[[#This Row],[Graficar Día]]="ok",IFERROR(VLOOKUP(Base_Inversiones[[#This Row],[Mes Corrob]],Administración!$L$4:$M$15,2,0),""),"") -> 
H125: =IF(Base_Inversiones[[#This Row],[Graficar Día]]="ok",F125*G125,"") ->  | R125: =IF(Base_Inversiones[[#This Row],[Graficar Día]]="ok",P125-F125,"") ->  | U125: =IF(Base_Inversiones[[#This Row],[Graficar Día]]="ok",IF(P125="",0,R125*G125-IF(B125="C",(10+0.15*2*G125/100),(0.5*2*G125/100))),"") ->  | X125: =IF(Base_Inversiones[[#This Row],[Graficar Día]]="ok",IF(P125="",0,U125-V125-W125),"") ->  | AC125: =IF(Base_Inversiones[[#This Row],[Graficar Día]]="ok",SUM(AB$5:AB125),"") ->  | AD125: =IF(Base_Inversiones[[#This Row],[Graficar Día]]="ok",(IF(S125>0,"G","P")),"") ->  | AH125: =IF(Base_Inversiones[[#This Row],[Graficar Día]]="ok",DAY(A125),"") ->  | AI125: =IF(Base_Inversiones[[#This Row],[Graficar Día]]="ok",MONTH(A125),"") ->  | AJ125: =IF(Base_Inversiones[[#This Row],[Graficar Día]]="ok",YEAR(A125),"") ->  | AK125: =IF(Base_Inversiones[[#This Row],[Graficar Día]]="ok",IF(LEN(AH125)=1,"0"&AH125,AH125)&"/"&IF(LEN(AI125)=1,"0"&AI125,AI125)&"/"&AJ125,"") ->  | AL125: =TEXT(Base_Inversiones[[#This Row],[Fecha Corrob]],"DD/MM/AAAA") ->  | AM125: =IF(Base_Inversiones[[#This Row],[Graficar Día]]="ok",VLOOKUP(Base_Inversiones[[#This Row],[Texto fecha]],Administración!$B$2:$C$1432,2,0),"") ->  | AN125: =IF(Base_Inversiones[[#This Row],[Qty]]>0,"ok","no") -> no | AO125: =IF(Base_Inversiones[[#This Row],[Graficar Día]]="ok",$D$1,"") ->  | AP125: =IF(Base_Inversiones[[#This Row],[Graficar Día]]="ok",Base_Inversiones[[#This Row],[Budget Inicial/ Aportación]]+Base_Inversiones[[#This Row],[Saldo]],"") ->  | AS125: =SUM(Base_Inversiones[G/P Neta]) -> 108 | AT125: =IF(Base_Inversiones[[#This Row],[Graficar Día]]="ok",$D$1,"") ->  | AU125: =IF(Base_Inversiones[[#This Row],[Graficar Día]]="ok",WEEKNUM(Base_Inversiones[[#This Row],[Fecha Compra]]),"") ->  | AV125: =IF(Base_Inversiones[[#This Row],[Graficar Día]]="ok",WEEKNUM(DATE(YEAR(Base_Inversiones[[#This Row],[Fecha Compra]]),MONTH(Base_Inversiones[[#This Row],[Fecha Compra]]),1))-1,"") ->  | AW125: =IF(Base_Inversiones[[#This Row],[Graficar Día]]="ok",Base_Inversiones[[#This Row],[Num Semana]]-Base_Inversiones[[#This Row],[Num Sem Extrae]],"") ->  | AX125: =IF(Base_Inversiones[[#This Row],[Graficar Día]]="ok",IFERROR(VLOOKUP(Base_Inversiones[[#This Row],[Mes Corrob]],Administración!$L$4:$M$15,2,0),""),"") -> 
H126: =IF(Base_Inversiones[[#This Row],[Graficar Día]]="ok",F126*G126,"") ->  | R126: =IF(Base_Inversiones[[#This Row],[Graficar Día]]="ok",P126-F126,"") ->  | U126: =IF(Base_Inversiones[[#This Row],[Graficar Día]]="ok",IF(P126="",0,R126*G126-IF(B126="C",(10+0.15*2*G126/100),(0.5*2*G126/100))),"") ->  | X126: =IF(Base_Inversiones[[#This Row],[Graficar Día]]="ok",IF(P126="",0,U126-V126-W126),"") ->  | AC126: =IF(Base_Inversiones[[#This Row],[Graficar Día]]="ok",SUM(AB$5:AB126),"") ->  | AD126: =IF(Base_Inversiones[[#This Row],[Graficar Día]]="ok",(IF(S126>0,"G","P")),"") ->  | AH126: =IF(Base_Inversiones[[#This Row],[Graficar Día]]="ok",DAY(A126),"") ->  | AI126: =IF(Base_Inversiones[[#This Row],[Graficar Día]]="ok",MONTH(A126),"") ->  | AJ126: =IF(Base_Inversiones[[#This Row],[Graficar Día]]="ok",YEAR(A126),"") ->  | AK126: =IF(Base_Inversiones[[#This Row],[Graficar Día]]="ok",IF(LEN(AH126)=1,"0"&AH126,AH126)&"/"&IF(LEN(AI126)=1,"0"&AI126,AI126)&"/"&AJ126,"") ->  | AL126: =TEXT(Base_Inversiones[[#This Row],[Fecha Corrob]],"DD/MM/AAAA") ->  | AM126: =IF(Base_Inversiones[[#This Row],[Graficar Día]]="ok",VLOOKUP(Base_Inversiones[[#This Row],[Texto fecha]],Administración!$B$2:$C$1432,2,0),"") ->  | AN126: =IF(Base_Inversiones[[#This Row],[Qty]]>0,"ok","no") -> no | AO126: =IF(Base_Inversiones[[#This Row],[Graficar Día]]="ok",$D$1,"") ->  | AP126: =IF(Base_Inversiones[[#This Row],[Graficar Día]]="ok",Base_Inversiones[[#This Row],[Budget Inicial/ Aportación]]+Base_Inversiones[[#This Row],[Saldo]],"") ->  | AS126: =SUM(Base_Inversiones[G/P Neta]) -> 108 | AT126: =IF(Base_Inversiones[[#This Row],[Graficar Día]]="ok",$D$1,"") ->  | AU126: =IF(Base_Inversiones[[#This Row],[Graficar Día]]="ok",WEEKNUM(Base_Inversiones[[#This Row],[Fecha Compra]]),"") ->  | AV126: =IF(Base_Inversiones[[#This Row],[Graficar Día]]="ok",WEEKNUM(DATE(YEAR(Base_Inversiones[[#This Row],[Fecha Compra]]),MONTH(Base_Inversiones[[#This Row],[Fecha Compra]]),1))-1,"") ->  | AW126: =IF(Base_Inversiones[[#This Row],[Graficar Día]]="ok",Base_Inversiones[[#This Row],[Num Semana]]-Base_Inversiones[[#This Row],[Num Sem Extrae]],"") ->  | AX126: =IF(Base_Inversiones[[#This Row],[Graficar Día]]="ok",IFERROR(VLOOKUP(Base_Inversiones[[#This Row],[Mes Corrob]],Administración!$L$4:$M$15,2,0),""),"") -> 
H127: =IF(Base_Inversiones[[#This Row],[Graficar Día]]="ok",F127*G127,"") ->  | R127: =IF(Base_Inversiones[[#This Row],[Graficar Día]]="ok",P127-F127,"") ->  | U127: =IF(Base_Inversiones[[#This Row],[Graficar Día]]="ok",IF(P127="",0,R127*G127-IF(B127="C",(10+0.15*2*G127/100),(0.5*2*G127/100))),"") ->  | X127: =IF(Base_Inversiones[[#This Row],[Graficar Día]]="ok",IF(P127="",0,U127-V127-W127),"") ->  | AC127: =IF(Base_Inversiones[[#This Row],[Graficar Día]]="ok",SUM(AB$5:AB127),"") ->  | AD127: =IF(Base_Inversiones[[#This Row],[Graficar Día]]="ok",(IF(S127>0,"G","P")),"") ->  | AH127: =IF(Base_Inversiones[[#This Row],[Graficar Día]]="ok",DAY(A127),"") ->  | AI127: =IF(Base_Inversiones[[#This Row],[Graficar Día]]="ok",MONTH(A127),"") ->  | AJ127: =IF(Base_Inversiones[[#This Row],[Graficar Día]]="ok",YEAR(A127),"") ->  | AK127: =IF(Base_Inversiones[[#This Row],[Graficar Día]]="ok",IF(LEN(AH127)=1,"0"&AH127,AH127)&"/"&IF(LEN(AI127)=1,"0"&AI127,AI127)&"/"&AJ127,"") ->  | AL127: =TEXT(Base_Inversiones[[#This Row],[Fecha Corrob]],"DD/MM/AAAA") ->  | AM127: =IF(Base_Inversiones[[#This Row],[Graficar Día]]="ok",VLOOKUP(Base_Inversiones[[#This Row],[Texto fecha]],Administración!$B$2:$C$1432,2,0),"") ->  | AN127: =IF(Base_Inversiones[[#This Row],[Qty]]>0,"ok","no") -> no | AO127: =IF(Base_Inversiones[[#This Row],[Graficar Día]]="ok",$D$1,"") ->  | AP127: =IF(Base_Inversiones[[#This Row],[Graficar Día]]="ok",Base_Inversiones[[#This Row],[Budget Inicial/ Aportación]]+Base_Inversiones[[#This Row],[Saldo]],"") ->  | AS127: =SUM(Base_Inversiones[G/P Neta]) -> 108 | AT127: =IF(Base_Inversiones[[#This Row],[Graficar Día]]="ok",$D$1,"") ->  | AU127: =IF(Base_Inversiones[[#This Row],[Graficar Día]]="ok",WEEKNUM(Base_Inversiones[[#This Row],[Fecha Compra]]),"") ->  | AV127: =IF(Base_Inversiones[[#This Row],[Graficar Día]]="ok",WEEKNUM(DATE(YEAR(Base_Inversiones[[#This Row],[Fecha Compra]]),MONTH(Base_Inversiones[[#This Row],[Fecha Compra]]),1))-1,"") ->  | AW127: =IF(Base_Inversiones[[#This Row],[Graficar Día]]="ok",Base_Inversiones[[#This Row],[Num Semana]]-Base_Inversiones[[#This Row],[Num Sem Extrae]],"") ->  | AX127: =IF(Base_Inversiones[[#This Row],[Graficar Día]]="ok",IFERROR(VLOOKUP(Base_Inversiones[[#This Row],[Mes Corrob]],Administración!$L$4:$M$15,2,0),""),"") -> 
H128: =IF(Base_Inversiones[[#This Row],[Graficar Día]]="ok",F128*G128,"") ->  | R128: =IF(Base_Inversiones[[#This Row],[Graficar Día]]="ok",P128-F128,"") ->  | U128: =IF(Base_Inversiones[[#This Row],[Graficar Día]]="ok",IF(P128="",0,R128*G128-IF(B128="C",(10+0.15*2*G128/100),(0.5*2*G128/100))),"") ->  | X128: =IF(Base_Inversiones[[#This Row],[Graficar Día]]="ok",IF(P128="",0,U128-V128-W128),"") ->  | AC128: =IF(Base_Inversiones[[#This Row],[Graficar Día]]="ok",SUM(AB$5:AB128),"") ->  | AD128: =IF(Base_Inversiones[[#This Row],[Graficar Día]]="ok",(IF(S128>0,"G","P")),"") ->  | AH128: =IF(Base_Inversiones[[#This Row],[Graficar Día]]="ok",DAY(A128),"") ->  | AI128: =IF(Base_Inversiones[[#This Row],[Graficar Día]]="ok",MONTH(A128),"") ->  | AJ128: =IF(Base_Inversiones[[#This Row],[Graficar Día]]="ok",YEAR(A128),"") ->  | AK128: =IF(Base_Inversiones[[#This Row],[Graficar Día]]="ok",IF(LEN(AH128)=1,"0"&AH128,AH128)&"/"&IF(LEN(AI128)=1,"0"&AI128,AI128)&"/"&AJ128,"") ->  | AL128: =TEXT(Base_Inversiones[[#This Row],[Fecha Corrob]],"DD/MM/AAAA") ->  | AM128: =IF(Base_Inversiones[[#This Row],[Graficar Día]]="ok",VLOOKUP(Base_Inversiones[[#This Row],[Texto fecha]],Administración!$B$2:$C$1432,2,0),"") ->  | AN128: =IF(Base_Inversiones[[#This Row],[Qty]]>0,"ok","no") -> no | AO128: =IF(Base_Inversiones[[#This Row],[Graficar Día]]="ok",$D$1,"") ->  | AP128: =IF(Base_Inversiones[[#This Row],[Graficar Día]]="ok",Base_Inversiones[[#This Row],[Budget Inicial/ Aportación]]+Base_Inversiones[[#This Row],[Saldo]],"") ->  | AS128: =SUM(Base_Inversiones[G/P Neta]) -> 108 | AT128: =IF(Base_Inversiones[[#This Row],[Graficar Día]]="ok",$D$1,"") ->  | AU128: =IF(Base_Inversiones[[#This Row],[Graficar Día]]="ok",WEEKNUM(Base_Inversiones[[#This Row],[Fecha Compra]]),"") ->  | AV128: =IF(Base_Inversiones[[#This Row],[Graficar Día]]="ok",WEEKNUM(DATE(YEAR(Base_Inversiones[[#This Row],[Fecha Compra]]),MONTH(Base_Inversiones[[#This Row],[Fecha Compra]]),1))-1,"") ->  | AW128: =IF(Base_Inversiones[[#This Row],[Graficar Día]]="ok",Base_Inversiones[[#This Row],[Num Semana]]-Base_Inversiones[[#This Row],[Num Sem Extrae]],"") ->  | AX128: =IF(Base_Inversiones[[#This Row],[Graficar Día]]="ok",IFERROR(VLOOKUP(Base_Inversiones[[#This Row],[Mes Corrob]],Administración!$L$4:$M$15,2,0),""),"") -> 
H129: =IF(Base_Inversiones[[#This Row],[Graficar Día]]="ok",F129*G129,"") ->  | R129: =IF(Base_Inversiones[[#This Row],[Graficar Día]]="ok",P129-F129,"") ->  | U129: =IF(Base_Inversiones[[#This Row],[Graficar Día]]="ok",IF(P129="",0,R129*G129-IF(B129="C",(10+0.15*2*G129/100),(0.5*2*G129/100))),"") ->  | X129: =IF(Base_Inversiones[[#This Row],[Graficar Día]]="ok",IF(P129="",0,U129-V129-W129),"") ->  | AC129: =IF(Base_Inversiones[[#This Row],[Graficar Día]]="ok",SUM(AB$5:AB129),"") ->  | AD129: =IF(Base_Inversiones[[#This Row],[Graficar Día]]="ok",(IF(S129>0,"G","P")),"") ->  | AH129: =IF(Base_Inversiones[[#This Row],[Graficar Día]]="ok",DAY(A129),"") ->  | AI129: =IF(Base_Inversiones[[#This Row],[Graficar Día]]="ok",MONTH(A129),"") ->  | AJ129: =IF(Base_Inversiones[[#This Row],[Graficar Día]]="ok",YEAR(A129),"") ->  | AK129: =IF(Base_Inversiones[[#This Row],[Graficar Día]]="ok",IF(LEN(AH129)=1,"0"&AH129,AH129)&"/"&IF(LEN(AI129)=1,"0"&AI129,AI129)&"/"&AJ129,"") ->  | AL129: =TEXT(Base_Inversiones[[#This Row],[Fecha Corrob]],"DD/MM/AAAA") ->  | AM129: =IF(Base_Inversiones[[#This Row],[Graficar Día]]="ok",VLOOKUP(Base_Inversiones[[#This Row],[Texto fecha]],Administración!$B$2:$C$1432,2,0),"") ->  | AN129: =IF(Base_Inversiones[[#This Row],[Qty]]>0,"ok","no") -> no | AO129: =IF(Base_Inversiones[[#This Row],[Graficar Día]]="ok",$D$1,"") ->  | AP129: =IF(Base_Inversiones[[#This Row],[Graficar Día]]="ok",Base_Inversiones[[#This Row],[Budget Inicial/ Aportación]]+Base_Inversiones[[#This Row],[Saldo]],"") ->  | AS129: =SUM(Base_Inversiones[G/P Neta]) -> 108 | AT129: =IF(Base_Inversiones[[#This Row],[Graficar Día]]="ok",$D$1,"") ->  | AU129: =IF(Base_Inversiones[[#This Row],[Graficar Día]]="ok",WEEKNUM(Base_Inversiones[[#This Row],[Fecha Compra]]),"") ->  | AV129: =IF(Base_Inversiones[[#This Row],[Graficar Día]]="ok",WEEKNUM(DATE(YEAR(Base_Inversiones[[#This Row],[Fecha Compra]]),MONTH(Base_Inversiones[[#This Row],[Fecha Compra]]),1))-1,"") ->  | AW129: =IF(Base_Inversiones[[#This Row],[Graficar Día]]="ok",Base_Inversiones[[#This Row],[Num Semana]]-Base_Inversiones[[#This Row],[Num Sem Extrae]],"") ->  | AX129: =IF(Base_Inversiones[[#This Row],[Graficar Día]]="ok",IFERROR(VLOOKUP(Base_Inversiones[[#This Row],[Mes Corrob]],Administración!$L$4:$M$15,2,0),""),"") -> 
H130: =IF(Base_Inversiones[[#This Row],[Graficar Día]]="ok",F130*G130,"") ->  | R130: =IF(Base_Inversiones[[#This Row],[Graficar Día]]="ok",P130-F130,"") ->  | U130: =IF(Base_Inversiones[[#This Row],[Graficar Día]]="ok",IF(P130="",0,R130*G130-IF(B130="C",(10+0.15*2*G130/100),(0.5*2*G130/100))),"") ->  | X130: =IF(Base_Inversiones[[#This Row],[Graficar Día]]="ok",IF(P130="",0,U130-V130-W130),"") ->  | AC130: =IF(Base_Inversiones[[#This Row],[Graficar Día]]="ok",SUM(AB$5:AB130),"") ->  | AD130: =IF(Base_Inversiones[[#This Row],[Graficar Día]]="ok",(IF(S130>0,"G","P")),"") ->  | AH130: =IF(Base_Inversiones[[#This Row],[Graficar Día]]="ok",DAY(A130),"") ->  | AI130: =IF(Base_Inversiones[[#This Row],[Graficar Día]]="ok",MONTH(A130),"") ->  | AJ130: =IF(Base_Inversiones[[#This Row],[Graficar Día]]="ok",YEAR(A130),"") ->  | AK130: =IF(Base_Inversiones[[#This Row],[Graficar Día]]="ok",IF(LEN(AH130)=1,"0"&AH130,AH130)&"/"&IF(LEN(AI130)=1,"0"&AI130,AI130)&"/"&AJ130,"") ->  | AL130: =TEXT(Base_Inversiones[[#This Row],[Fecha Corrob]],"DD/MM/AAAA") ->  | AM130: =IF(Base_Inversiones[[#This Row],[Graficar Día]]="ok",VLOOKUP(Base_Inversiones[[#This Row],[Texto fecha]],Administración!$B$2:$C$1432,2,0),"") ->  | AN130: =IF(Base_Inversiones[[#This Row],[Qty]]>0,"ok","no") -> no | AO130: =IF(Base_Inversiones[[#This Row],[Graficar Día]]="ok",$D$1,"") ->  | AP130: =IF(Base_Inversiones[[#This Row],[Graficar Día]]="ok",Base_Inversiones[[#This Row],[Budget Inicial/ Aportación]]+Base_Inversiones[[#This Row],[Saldo]],"") ->  | AS130: =SUM(Base_Inversiones[G/P Neta]) -> 108 | AT130: =IF(Base_Inversiones[[#This Row],[Graficar Día]]="ok",$D$1,"") ->  | AU130: =IF(Base_Inversiones[[#This Row],[Graficar Día]]="ok",WEEKNUM(Base_Inversiones[[#This Row],[Fecha Compra]]),"") ->  | AV130: =IF(Base_Inversiones[[#This Row],[Graficar Día]]="ok",WEEKNUM(DATE(YEAR(Base_Inversiones[[#This Row],[Fecha Compra]]),MONTH(Base_Inversiones[[#This Row],[Fecha Compra]]),1))-1,"") ->  | AW130: =IF(Base_Inversiones[[#This Row],[Graficar Día]]="ok",Base_Inversiones[[#This Row],[Num Semana]]-Base_Inversiones[[#This Row],[Num Sem Extrae]],"") ->  | AX130: =IF(Base_Inversiones[[#This Row],[Graficar Día]]="ok",IFERROR(VLOOKUP(Base_Inversiones[[#This Row],[Mes Corrob]],Administración!$L$4:$M$15,2,0),""),"") -> 
H131: =IF(Base_Inversiones[[#This Row],[Graficar Día]]="ok",F131*G131,"") ->  | R131: =IF(Base_Inversiones[[#This Row],[Graficar Día]]="ok",P131-F131,"") ->  | U131: =IF(Base_Inversiones[[#This Row],[Graficar Día]]="ok",IF(P131="",0,R131*G131-IF(B131="C",(10+0.15*2*G131/100),(0.5*2*G131/100))),"") ->  | X131: =IF(Base_Inversiones[[#This Row],[Graficar Día]]="ok",IF(P131="",0,U131-V131-W131),"") ->  | AC131: =IF(Base_Inversiones[[#This Row],[Graficar Día]]="ok",SUM(AB$5:AB131),"") ->  | AD131: =IF(Base_Inversiones[[#This Row],[Graficar Día]]="ok",(IF(S131>0,"G","P")),"") ->  | AH131: =IF(Base_Inversiones[[#This Row],[Graficar Día]]="ok",DAY(A131),"") ->  | AI131: =IF(Base_Inversiones[[#This Row],[Graficar Día]]="ok",MONTH(A131),"") ->  | AJ131: =IF(Base_Inversiones[[#This Row],[Graficar Día]]="ok",YEAR(A131),"") ->  | AK131: =IF(Base_Inversiones[[#This Row],[Graficar Día]]="ok",IF(LEN(AH131)=1,"0"&AH131,AH131)&"/"&IF(LEN(AI131)=1,"0"&AI131,AI131)&"/"&AJ131,"") ->  | AL131: =TEXT(Base_Inversiones[[#This Row],[Fecha Corrob]],"DD/MM/AAAA") ->  | AM131: =IF(Base_Inversiones[[#This Row],[Graficar Día]]="ok",VLOOKUP(Base_Inversiones[[#This Row],[Texto fecha]],Administración!$B$2:$C$1432,2,0),"") ->  | AN131: =IF(Base_Inversiones[[#This Row],[Qty]]>0,"ok","no") -> no | AO131: =IF(Base_Inversiones[[#This Row],[Graficar Día]]="ok",$D$1,"") ->  | AP131: =IF(Base_Inversiones[[#This Row],[Graficar Día]]="ok",Base_Inversiones[[#This Row],[Budget Inicial/ Aportación]]+Base_Inversiones[[#This Row],[Saldo]],"") ->  | AS131: =SUM(Base_Inversiones[G/P Neta]) -> 108 | AT131: =IF(Base_Inversiones[[#This Row],[Graficar Día]]="ok",$D$1,"") ->  | AU131: =IF(Base_Inversiones[[#This Row],[Graficar Día]]="ok",WEEKNUM(Base_Inversiones[[#This Row],[Fecha Compra]]),"") ->  | AV131: =IF(Base_Inversiones[[#This Row],[Graficar Día]]="ok",WEEKNUM(DATE(YEAR(Base_Inversiones[[#This Row],[Fecha Compra]]),MONTH(Base_Inversiones[[#This Row],[Fecha Compra]]),1))-1,"") ->  | AW131: =IF(Base_Inversiones[[#This Row],[Graficar Día]]="ok",Base_Inversiones[[#This Row],[Num Semana]]-Base_Inversiones[[#This Row],[Num Sem Extrae]],"") ->  | AX131: =IF(Base_Inversiones[[#This Row],[Graficar Día]]="ok",IFERROR(VLOOKUP(Base_Inversiones[[#This Row],[Mes Corrob]],Administración!$L$4:$M$15,2,0),""),"") -> 
H132: =IF(Base_Inversiones[[#This Row],[Graficar Día]]="ok",F132*G132,"") ->  | R132: =IF(Base_Inversiones[[#This Row],[Graficar Día]]="ok",P132-F132,"") ->  | U132: =IF(Base_Inversiones[[#This Row],[Graficar Día]]="ok",IF(P132="",0,R132*G132-IF(B132="C",(10+0.15*2*G132/100),(0.5*2*G132/100))),"") ->  | X132: =IF(Base_Inversiones[[#This Row],[Graficar Día]]="ok",IF(P132="",0,U132-V132-W132),"") ->  | AC132: =IF(Base_Inversiones[[#This Row],[Graficar Día]]="ok",SUM(AB$5:AB132),"") ->  | AD132: =IF(Base_Inversiones[[#This Row],[Graficar Día]]="ok",(IF(S132>0,"G","P")),"") ->  | AH132: =IF(Base_Inversiones[[#This Row],[Graficar Día]]="ok",DAY(A132),"") ->  | AI132: =IF(Base_Inversiones[[#This Row],[Graficar Día]]="ok",MONTH(A132),"") ->  | AJ132: =IF(Base_Inversiones[[#This Row],[Graficar Día]]="ok",YEAR(A132),"") ->  | AK132: =IF(Base_Inversiones[[#This Row],[Graficar Día]]="ok",IF(LEN(AH132)=1,"0"&AH132,AH132)&"/"&IF(LEN(AI132)=1,"0"&AI132,AI132)&"/"&AJ132,"") ->  | AL132: =TEXT(Base_Inversiones[[#This Row],[Fecha Corrob]],"DD/MM/AAAA") ->  | AM132: =IF(Base_Inversiones[[#This Row],[Graficar Día]]="ok",VLOOKUP(Base_Inversiones[[#This Row],[Texto fecha]],Administración!$B$2:$C$1432,2,0),"") ->  | AN132: =IF(Base_Inversiones[[#This Row],[Qty]]>0,"ok","no") -> no | AO132: =IF(Base_Inversiones[[#This Row],[Graficar Día]]="ok",$D$1,"") ->  | AP132: =IF(Base_Inversiones[[#This Row],[Graficar Día]]="ok",Base_Inversiones[[#This Row],[Budget Inicial/ Aportación]]+Base_Inversiones[[#This Row],[Saldo]],"") ->  | AS132: =SUM(Base_Inversiones[G/P Neta]) -> 108 | AT132: =IF(Base_Inversiones[[#This Row],[Graficar Día]]="ok",$D$1,"") ->  | AU132: =IF(Base_Inversiones[[#This Row],[Graficar Día]]="ok",WEEKNUM(Base_Inversiones[[#This Row],[Fecha Compra]]),"") ->  | AV132: =IF(Base_Inversiones[[#This Row],[Graficar Día]]="ok",WEEKNUM(DATE(YEAR(Base_Inversiones[[#This Row],[Fecha Compra]]),MONTH(Base_Inversiones[[#This Row],[Fecha Compra]]),1))-1,"") ->  | AW132: =IF(Base_Inversiones[[#This Row],[Graficar Día]]="ok",Base_Inversiones[[#This Row],[Num Semana]]-Base_Inversiones[[#This Row],[Num Sem Extrae]],"") ->  | AX132: =IF(Base_Inversiones[[#This Row],[Graficar Día]]="ok",IFERROR(VLOOKUP(Base_Inversiones[[#This Row],[Mes Corrob]],Administración!$L$4:$M$15,2,0),""),"") -> 
